Workbook

Sheet Preface and Contents
E2: 2020 Annual Technology Baseline (ATB)
E4: NREL annually documents a realistic and timely set of input assumptions (e.g., technology cost, fuel costs), and a diverse set of potential futures (standard scenarios) to inform electric sector analysis in the United States. The products of this work, including assessments of current and projected technology cost and performance for both renewable and conventional electricity generation technologies, as well as market projections of more than a dozen scenarios produced with NREL's Regional Energy Deployment Systems (ReEDS) model, are applied consistently in NREL's analyses throughout the following year. This annual process is supported by the Office of Strategic Programs of the U.S. Department of Energy’s Office of Energy Efficiency and Renewable Energy (EERE). The specific products from this effort including the following:
E6: * An Annual Technology Baseline (ATB) workbook documenting detailed cost and performance data (both current and projected) for both renewable and conventional technologies.
E7: * An ATB web application describing each of the technologies and providing additional context for their treatment in the workbook.
E8: * A Standard Scenarios Annual Report describing the identified scenarios, associated assumptions (including technology cost and performance assumptions from the ATB)
E10: These products can be accessed at atb.nrel.gov.
E12: New to this Edition
E14: Two options representing market conditions for project financing: - R&D - based on macro-economic indicators from AEO (2019) for the year 2017 as a source for debt rates and return on equity rates. Includes dynamic effects of R&D on technology cost, technology performance, and financial performance. Excludes economic dynamics such as background changes to inflation, interest, and return on equity. Excludes policies such as tax credits and tariffs. Financing presented as a time series. - R&D + Market – based on macro-economic indicators from AEO (2019) as a source for debt rates and return on equity rates. Includes dynamics from R&D Only case. Adds in economic dynamics and policies. (3% carbon risk adder is applied to WAAC of coal non-CCS technologies)
E16: Contents
E17: Financial Definitions
E18: Wind: Land-based
E19: Wind: Offshore
E20: Solar: PV: Utility
E21: Solar: PV: Commercial
E22: Solar: PV: Residential
E23: Solar: CSP
E24: Geothermal
E25: Hydropower
E26: Natural Gas
E27: Coal
E28: Nuclear
E29: Biopower
E30: Summary (for Tableau)
E31: Recommended Citation
E32: NREL (National Renewable Energy Laboratory). 2020. 2020 Annual Technology Baseline. Golden, CO: National Renewable Energy Laboratory.
E34: Online
B35: atb.nrel.gov | E35: 2020 Annual Technology Baseline (ATB)
E38: Contact
E39: atb.nrel.gov/electricity/contact
E41: DISCLAIMER AGREEMENT
E42: These detailed electricity generation technology cost and performance data ("Data") are provided by the National Renewable Energy Laboratory ("NREL"), which is operated by the Alliance for Sustainable Energy LLC ("Alliance") for the U.S. Department of Energy (the "DOE").
E44: It is recognized that disclosure of these Data are provided under the following conditions and warnings: (1) these Data have been prepared for reference purposes only; (2) these Data consist of forecasts, estimates, or assumptions made on a best-efforts basis, based upon expectations of current and future conditions at the time they were developed; and (3) these Data were prepared with existing information and are subject to change without notice.
E46: The user understands that DOE/NREL/ALLIANCE are not obligated to provide the user with any support, consulting, training or assistance of any kind with regard to the use of the Data or to provide the user with any updates, revisions or new versions thereof. DOE, NREL, and ALLIANCE do not guarantee or endorse any results generated by use of the Data, and user is entirely responsible for the results and any reliance on the results or the Data in general.
E48: USER AGREES TO INDEMNIFY DOE/NREL/ALLIANCE AND ITS SUBSIDIARIES, AFFILIATES, OFFICERS, AGENTS, AND EMPLOYEES AGAINST ANY CLAIM OR DEMAND, INCLUDING REASONABLE ATTORNEYS' FEES, RELATED TO USER’S USE OF THE DATA. THE DATA ARE PROVIDED BY DOE/NREL/ALLIANCE "AS IS," AND ANY EXPRESS OR IMPLIED WARRANTIES, INCLUDING BUT NOT LIMITED TO THE IMPLIED WARRANTIES OF MERCHANTABILITY AND FITNESS FOR A PARTICULAR PURPOSE ARE DISCLAIMED. IN NO EVENT SHALL DOE/NREL/ALLIANCE BE LIABLE FOR ANY SPECIAL, INDIRECT OR CONSEQUENTIAL DAMAGES OR ANY DAMAGES WHATSOEVER, INCLUDING BUT NOT LIMITED TO CLAIMS ASSOCIATED WITH THE LOSS OF DATA OR PROFITS, THAT MAY RESULT FROM AN ACTION IN CONTRACT, NEGLIGENCE OR OTHER TORTIOUS CLAIM THAT ARISES OUT OF OR IN CONNECTION WITH THE ACCESS, USE OR PERFORMANCE OF THE DATA.

Sheet Financial Definitions
B2: Electricity Generation Technology LCOE equation for Standard Scenarios – ReEDS Model Inputs and Annual Technology Baseline presentation of technology assumptions.
B3: Note: Costs associated with a given year are for systems that come online in that year. For example, the overnight capital cost (OCC) for a technology in 2020 represents the OCC of a system that begins commercial operation in 2020. The capacity factor for a technology in 2020 represents the expected annualized lifetime energy production for a system that begins commercial operation in 2020.
B5: Levelized Cost of Energy ($/MWh) | C5: LCOE = ((FCR * CAPEX + FOM)*1000/(CF * 8760)) + VOM + Fuel
C6: LCOE = ((CRF * ProFinFactor * ConFinFactor * (OCC * CapRegMult + GCC) + FOM) * 1000 / (CF * 8760)) + VOM + Fuel
B8: Fixed Charge Rate | C8: FCR = CRF * ProFinFactor | D8: Amount of revenue per dollar of investment required that must be collected annually from customers to pay the carrying charges on that investment.
B10: CAPEX | C10: CAPEX = ConFinFActor * (OCC * CapRegMult + GCC) | D10: Capital expenditures required to achieve commercial operation of the generation plant
B12: Capital Recovery Factor | C12: CRF = WACC / (1 - (1 / (1 + WACC)^t)) note: WACC real | D12: *ReEDS uses: CRF = (WACC - 1) / (1 - (1 / WACC)^t)
C13: WACC = ((1+((1-DF)*((1+RROE)*(1+i)-1)) + (DF*((1+IR)*(1+i)-1)*(1-TR))) / (1+i)) - 1 | D13: but uses a WACC that is equal to 1 + the WACC rate, and returns a CRF that is 1+CRF
C14: DF = debt fraction | D14: *ReEDS uses: WACC = (1 + ((1 - DF)*(RROE*i - 1)) + (DF*(IR*i - 1)*(1-TR))) / i
C15: RROE = rate of return on equity (real) = 10.24% | D15: but uses RROE, i, and IR that are equal to 1 + the rates, and returns a WACC that is 1+WACC
C16: i = inflation rate = 2.5%
C17: IR = interest rate (real) = 5.4%
B19: Project Finance factor | C19: ProFinFactor = (1 - TR * PVD) / (1 - TR)
C20: TR = combined state/federal tax rate
C21: PVD = present value of depreciation = summation from y=1 to y=M+1 of (FDy * fy)
C22: M = # years in MACRS depreciation schedule
C23: FDy = fraction of capital depreciated in year y
C24: fy = depreciation factor in year y | D24: fy = 1/dy
C25: d = nominal discount rate (8.9%) | D25: d = WACC * i
C26: i = inflation rate
B28: Construction Finance Factor | C28: ConFinFactor = summation from y=0 to y=C-1 of (FCy * AIy)
C29: FCy = fraction of capital spent in year y
C30: AIy =1 + ((1 + IDC)(year+0.5) - 1) | D30: *ReEDS uses: AIy =1 + (1 - TR) * (IDC(year+0.5) - 1)
C31: IDC = interest during construction | D31: but uses an IDC that is equal to 1 + the interest rate
C32: y = year index, starting at 0
C33: C = construction duration (years)
B35: Overnight Capital Cost | C35: OCC = input in $/kW
B37: Capital Regional Multiplier | C37: CapRegMult = 1 for ATB | D37: CapRegMult = 1 for ATB
B39: Grid Connection Costs | C39: GCC = GF + OnSpurCost + Off SpurCost
C40: GF | D40: grid feature = 0 for ATB
C41: OnSpurCost | D41: Onshore Spur Line Costs = 0 for ATB
C42: Off SpurCost | D42: Offshore (underwater) Spur Line Costs
B44: Fixed Operating Expenses | C44: FOM = input in $/kW
B46: * 1000 | C46: conversion factor from $/kW inputs to $/MWh output
B48: Capacity Factor | C48: CF = input as %
B50: * 8760 | C50: conversion factor for hours per year
B52: Variable Operating Expenses | C52: VOM = input in $/MWh
B54: Fuel | C54: Fuel = input in $/MWh
B56: Overnight LCOE | C56: =((OCC*CRF*(1-TR*PVD))/(8760*CF*(1-TR))+FOM/(8760*CF))*1000)+VOM | D56: This is similar to the LCOE used in the TCDB (Transparent Cost database)
B58: Definitions:
B59: AI | C59: Accumulated Interest | D59: Accumulated interest is a function of the interest during construction and the tax rate.
B60: C | C60: Construction Duration | D60: Number of years in construction period
B61: CapRegMult | C61: Capital Regional Multiplier | D61: Capital cost multipliers to account for regional variations that affect plant costs, e.g. labor rates, etc. Separate multipliers are applied to land-based and offshore wind plants, PV, CSP, coal, gas, nuclear, etc. No multipliers for geothermal or hydropower due to site specific nature of plant cost estimates.
B62: CF | C62: Capacity Factor (%) | D62: Generally defined as the ratio of actual annual output to output at rated capacity for an entire year.
B63: ConFinFactor | C63: Construction Finance Factor | D63: Portion of all-in capital cost associated with construction period financing. ConFinFactor is a function of C, FC, and IDC.
B64: CRF | C64: Capital Recovery Factor | D64: The ratio of a constant annuity to the present value of receiving that annuity for a given length of time. (Default in ReEDS is 8.89% real); CRF is a function of WACC and t.
B65: d | C65: nominal discount rate (8.9%) | D65: The discount rate is a function of the WACC and inflation.
B66: DF | C66: Debt Fraction | D66: Fraction of capital financed with debt. 1-DF is assumed financed with equity. (50% for all technologies in ReEDS)
B67: EMRP | C67: Expected Market Risk Premium | D67: The market risk premium is the difference between the expected return on a market portfolio and the risk-free rate.
B68: f | C68: Depreciation Factor | D68: The depreciation factor is a function of the discount rate.
B69: FC | C69: Capital Fraction | D69: Fraction of capital spent in each year of construction, 1 to C.
B70: FD | C70: Depreciation Fraction | D70: Fraction of capital depreciated in each year, 1 to M.
B71: FOM | C71: Fixed Operation and Maintenance Expenses ($/MW-year) | D71: Annual expenditures to operate and maintain equipment that are not incurred on a per-unit-energy basis.
B72: Fuel | C72: fuel cost ($/MWh) | D72: Fuel costs are converted to $/MWh from various units.
B73: GCC | C73: Grid Connection Costs | D73: Distance-based costs of spur lines over land, offshore wind plant export cable costs and construction-period transit costs
B74: GF | C74: Grid Feature | D74: Point of interconnection at the high voltage transmission network, including substation, transmission lines, load center, or BA center. (Default in ReEDS is $0/kW for substation and load center and $14/kW for others)
B75: i | C75: Inflation Rate | D75: Assumed inflation rate based on historical data. (2.5% in ReEDS)
B76: ICC | C76: Installed Capital Cost ($/MW) | D76: Total capital expenditure to achieve commercial operation up to the plant gate. This intermediate value is used only in presentation of technology cost assumptions with historic market data. It is not required to calculate LCOE.
B77: IDC | C77: Interest During Construction | D77: Interest rate for financing project during construction period.
B78: IR | C78: Interest Rate (real) | D78: Assumed interest rate on debt. (5.4% for all technologies in ReEDS, 8% nominal)
B79: M | C79: Depreciation period (years) | D79: Number of years in MACRS depreciation schedule.
B80: OCC | C80: Overnight Capital Cost ($/MW) | D80: Capital expenditures excluding construction period financing. Includes onsite electrical equipment (e.g., switchyard), a nominal-distance spur line (<1 mi), and necessary upgrades at a transmission substation.
B81: OffDist | C81: Offshore Distance | D81: Total offshore distance covered by the offshore export cables
B82: OffSpurCost | C82: Offshore (underwater) Spur Line Costs | D82: Cost for offshore (underwater) export cables from the offshore wind plant to land; OffSpurCost is a function of OffDist and OffDistFactor.
B83: OffDistFactor | C83: Offshore Distance Factor | D83: Incremental capital expenditure for offshore wind plant export cable length between landfall and offshore wind plant site.
B84: OnDist | C84: Onshore Distance | D84: Total onshore distance covered by the onshore transmission spur lines
B85: OnRegTransMult | C85: Onshore Regional Transmission Multiplier | D85: Transmission cost multipliers to account for regional variations that affect onshore transmission line costs, e.g. labor rates, terrain, siting, etc.
B86: OnSpurCost | C86: Onshore Spur Line Costs | D86: Cost for onshore transmission lines from the plant gate to the grid feature; OnSpurCost is a function of OnDist, OnTransCost, and OnRegTransMult.
B87: OnTransCost | C87: Onshore Transmission Costs (for spur line) | D87: Base onshore transmission line costs (Default in ReEDS is $3922/MW-mile)
B88: ProFinFactor | C88: Project Finance factor | D88: Technology-specific financial multiplier to account for any applicable differences in depreciation schedule, and tax policies. ProFinFactor is a function of TR, WACC, i, M, and FD
B89: PVD | C89: Present Value of Depreciation | D89: PVD is a function of FD, f and y.
B90: RROE | C90: Rate of Return on Equity (real) | D90: Assumed rate of return on the share of assets financed with equity. (10% for all technologies in ReEDS, 13% nominal)
B91: t | C91: Economic Lifetime (years) | D91: Length of time for paying off assets (20 years for all technologies in ReEDS)
B92: TR | C92: Tax Rate | D92: Combined state and federal tax rate (40%)
B93: VOM | C93: Variable Operation and Maintenance Expenses ($/MWh) | D93: Operating and maintenance costs incurred on a per-unit-energy basis.
B94: WACC | C94: Weighted Average Cost of Capital (real) | D94: The average expected rate that is paid to finance assets. (Default in ReEDS is 6.2% real); WACC is a function of DF, RROE, IR, i, and TR.
B95: y | C95: year index, starting at 0
B97: Notes:
B98: CapRegMult = 1 | C98: ATB assumes that all plants represent typical equipment costs and do not include regionally specific labor or material cost increments.
B99: GCC = 0 | C99: ATB assumes that base plant cost includes small spur line to connect with grid for all technologies in overnight capital cost. An exception is made for offshore wind plants where the export cable and construction-period transit costs based on a 30 km distance from shore are represented in GCC. Specific transmission lines based on geographically determined distances between ReEDS regions and existing transmission features for wind and solar are not included in ATB.
B100: Inputs in ATB are in $/kW, in ReEDS they are $/MW

Sheet Offshore Wind
A1: TEST | L1: https://atb.nrel.gov/electricity/2020/index.html?t=ow
T3: Inputs
J4: Take me to: | T4: Calculated
B10: X | G10: Current Costs
H12: Techno-Economic Cost and Performance Parameters | J12: Net Capacity Factor (%) | K12: Class 1 - Offshore Fixed | L12: 0.4388755534 | O12: Basis Year: | Q12: 2018
K13: Class 2 - Offshore Fixed | L13: 0.4276869155 | O13: All values are given in 2018 U.S. dollars, using the Consumer Price Index (BLS, 2020) for dollar year conversions. Projections use an inflation assumption of 2.5% per year.
K14: Class 3 - Offshore Fixed | L14: 0.4308838077 | O14: Offshore Wind Wind Speed Classes
K15: Class 4 - Offshore Fixed | L15: 0.428923703 | O15: Wind Speed Class | Q15: Average Water Depth (m) | R15: Average Distance Site to Cable Landfall (km) | S15: Average CAPEX ($/kW) | T15: Average OPEX ($/kW/yr) | U15: Average Net CF (%) | V15: Average Wind Speed (m/s) @ 100m | W15: Potential Wind Plant Capacity (GW) | X15: Potential Wind Plant Energy (TWh) | Y15: Share of total fixed-bottom / floating capacity (%)
K16: Class 5 - Offshore Fixed | L16: 0.4220117557 | O16: Fixed-Bottom | P16: Wind Speed Class 1 | Q16: 22.95537928 | R16: 35.19626497 | S16: 3640.753864 | T16: 116.3665636 | U16: 0.4496976737 | V16: 8.741383425 | W16: 13.57 | X16: 55.10279072 | Y16: =W16/SUM($W$16:$W$22) -> 0.02000530723
K17: Class 6 - Offshore Fixed | L17: 0.3623172474 | P17: Wind Speed Class 2 | Q17: 24.25688129 | R17: 38.30382134 | S17: 3680.175397 | T17: 118.8683064 | U17: 0.438233138 | V17: 8.616747967 | W17: 13.57 | X17: 53.49673932 | Y17: =W17/SUM($W$16:$W$22) -> 0.02000530723
K18: Class 7 - Offshore Fixed | L18: 0.279900843 | P18: Wind Speed Class 3 | Q18: 27.89027358 | R18: 40.42229233 | S18: 3850.575099 | T18: 120.9929517 | U18: 0.4415088616 | V18: 8.632437317 | W18: 27.13 | X18: 105.4389487 | Y18: 0.03999587215
K19: Class 8 - Offshore Floating | L19: 0.5102336271 | P19: Wind Speed Class 4 | Q19: 32.2902076 | R19: 44.93356088 | S19: 4039.094444 | T19: 122.119938 | U19: 0.4395004231 | V19: 8.614474039 | W19: 54.26 | X19: 214.1882924 | Y19: 0.07999174431
K20: Class 9 - Offshore Floating | L20: 0.4977616709 | P20: Wind Speed Class 5 | Q20: 32.08634883 | R20: 64.9909178 | S20: 4236.738874 | T20: 125.4881486 | U20: 0.4324180358 | V20: 8.586481712 | W20: 108.53 | X20: 419.4797362 | Y20: 0.1599982309
K21: Class 10 - Offshore Floating | L21: 0.4889406835 | P21: Wind Speed Class 6 | Q21: 33.14401807 | R21: 73.52587952 | S21: 4443.77061 | T21: 123.7163581 | U21: 0.3712515359 | V21: 7.833973805 | W21: 217.06 | X21: 732.4159706 | Y21: 0.3199964618
K22: Class 11 - Offshore Floating | L22: 0.4823242774 | P22: Wind Speed Class 7 | Q22: 35.89761595 | R22: 76.56011645 | S22: 5008.510303 | T22: 118.2281642 | U22: 0.2868028465 | V22: 6.779013026 | W22: 244.2 | X22: 633.6871416 | Y22: 0.3600070763
K23: Class 12 - Offshore Floating | L23: 0.4544438847 | O23: Floating | P23: Wind Speed Class 8 | Q23: 159.3591648 | R23: 45.24761172 | S23: 5030.646874 | T23: 85.01752393 | U23: 0.5154960313 | V23: 9.593370714 | W23: 27.6 | X23: 126.3887229 | Y23: =W23/SUM($W$23:$W$29) -> 0.02000405879
K24: Class 13 - Offshore Floating | L24: 0.3623961618 | P24: Wind Speed Class 9 | Q24: 176.9339852 | R24: 53.57784591 | S24: 5120.3489 | T24: 85.97853742 | U24: 0.5028954429 | V24: 9.418335185 | W24: 27.6 | X24: 123.1784989 | Y24: =W24/SUM($W$23:$W$29) -> 0.02000405879
K25: Class 14 - Offshore Floating | L25: 0.2978647334 | P25: Wind Speed Class 10 | Q25: 167.2921948 | R25: 55.59959974 | S25: 5239.295585 | T25: 89.46186605 | U25: 0.4939834783 | V25: 9.30365964 | W25: 55.19 | X25: 240.8529782 | Y25: 0.04000086974
P26: Wind Speed Class 11 | Q26: 128.3166105 | R26: 90.17183581 | S26: 5595.397641 | T26: 96.80417775 | U26: 0.4872988325 | V26: 9.328812779 | W26: 110.38 | X26: 477.1538477 | Y26: 0.08000173948
P27: Wind Speed Class 12 | Q27: 193.3462137 | R27: 122.168554 | S27: 5828.773067 | T27: 102.9796716 | U27: 0.4591308894 | V27: 9.05118164 | W27: 220.75 | X27: 919.0146901 | Y27: 0.1599962311
J28: Annual Energy Production (kWh/kW) | K28: Class 1 - Offshore Fixed | L28: =(L12)*8760 -> 3844.549848 | P28: Wind Speed Class 13 | Q28: 608.4155644 | R28: 136.7671007 | S28: 6007.58552 | T28: 105.5558924 | U28: 0.3661338125 | V28: 7.963502766 | W28: 441.5 | X28: 1494.655174 | Y28: 0.3199924622
K29: Class 2 - Offshore Fixed | L29: 3746.53738 | P29: Wind Speed Class 14 | Q29: 635.0463444 | R29: 160.9186462 | S29: 6988.678549 | T29: 95.29091502 | U29: 0.3009368253 | V29: 7.041456136 | W29: 496.7 | X29: 1339.764419 | Y29: 0.3600005798
K30: Class 3 - Offshore Fixed | L30: 3774.542156 | O30: Total | W30: =SUM(W16:W29) -> 2058.04 | X30: =SUM(X16:X29) -> 6934.81795
K31: Class 4 - Offshore Fixed | L31: 3757.371639
K32: Class 5 - Offshore Fixed | L32: 3696.82298
K33: Class 6 - Offshore Fixed | L33: 3173.899087
K34: Class 7 - Offshore Fixed | L34: 2451.931385 | O34: Financial Assumptions:
K35: Class 8 - Offshore Floating | L35: 4469.646573 | O35: Inflation Rate | S35: =L556 -> 0.025
K36: Class 9 - Offshore Floating | L36: 4360.392237 | O36: Capital Recovery Period (Years) | S36: 30
K37: Class 10 - Offshore Floating | L37: 4283.120387 | O37: Interest Rate Nominal - Mid | S37: =L558 -> 0.04
K38: Class 11 - Offshore Floating | L38: 4225.16067 | O38: Calculated Interest Rate Real - Mid | S38: =L561 -> 0.01463414634
K39: Class 12 - Offshore Floating | L39: 3980.92843 | O39: Interest During Construction - Nominal | S39: =L563 -> 0.04
K40: Class 13 - Offshore Floating | L40: 3174.590377 | O40: Rate of Return on Equity Nominal - Mid | S40: =L565 -> 0.1
K41: Class 14 - Offshore Floating | L41: 2609.295064 | O41: Calculated Rate of Return on Equity Real - Mid | S41: =L568 -> 0.07317073171
O42: Debt Fraction - Mid | S42: =L571 -> 0.685
O43: Tax Rate (Federal and State) | S43: =L573 -> 0.2574
J44: CAPEX ($/kW) | K44: Class 1 - Offshore Fixed | L44: =$S$47 * (L76 + L142) -> 4066.303866 | O44: WACC Nominal - Mid | S44: =L575 -> 0.05184724
K45: Class 2 - Offshore Fixed | L45: =$S$47 * (L77 + L143) -> 4114.481494 | O45: WACC Real - Mid | S45: =L578 -> 0.02619242927
K46: Class 3 - Offshore Fixed | L46: 4278.530788 | O46: Depreciation Period | S46: 5
K47: Class 4 - Offshore Fixed | L47: 4442.833138 | O47: Construction Finance Factor | S47: =SUMPRODUCT(P56:P58,Q56:Q58,R56:R58)+SUMPRODUCT(P56:P58,T56:T58,S56:S58) -> 1.074800228
K48: Class 5 - Offshore Fixed | L48: 4661.975216 | O48: Present Value of Depreciation | S48: =SUMPRODUCT(O76:T76,O78:T78) -> 0.8704718641
K49: Class 6 - Offshore Fixed | L49: 4628.956215 | O49: Project Finance Factor | S49: =(1 - S43 * S48) / (1 - S43) -> 1.04489704
K50: Class 7 - Offshore Fixed | L50: 4670.643507 | O50: Capital Recovery Factor (CRF) Nominal - Mid | S50: =L581 -> 0.06642760702
K51: Class 8 - Offshore Floating | L51: 5679.800566 | O51: Capital Recovery Factor (CRF) Real - Mid | S51: =L584 -> 0.04854050177 | T51: =S51*S49 -> 0.05071982664
K52: Class 9 - Offshore Floating | L52: 5782.960869 | O52: Cost of equity during construction | S52: =S40+0.02 -> 0.12
K53: Class 10 - Offshore Floating | L53: 5910.372784 | O53: Construction Duration yrs | Q53: 3
K54: Class 11 - Offshore Floating | L54: 6327.885482 | O54: Year | P54: Capital | Q54: Accumulated | R54: Percent of Leverage During Construction | S54: Percent of Equity During Construction | T54: Accumulated
K55: Class 12 - Offshore Floating | L55: 6598.171739 | O55: Index | P55: Fraction | Q55: Interest | T55: Equity Cost
K56: Class 13 - Offshore Floating | L56: 6774.529124 | O56: 0 | P56: 0.4 | Q56: =1+((1+S39)^(O56+0.5)-1) -> 1.019803903 | R56: 0.8 | S56: =1-R56 -> 0.2 | T56: =1+((1+$S$52)^(O56+0.5)-1) -> 1.058300524
K57: Class 14 - Offshore Floating | L57: 6853.491513 | O57: 1 | P57: 0.4 | Q57: =1+((1+S39)^(O57+0.5)-1) -> 1.060596059 | R57: 0.8 | S57: =1-R57 -> 0.2 | T57: =1+((1+$S$52)^(O57+0.5)-1) -> 1.185296587
O58: 2 | P58: 0.2 | Q58: =1+((1+S39)^(O58+0.5)-1) -> 1.103019901 | R58: 0.8 | S58: 0.2 | T58: 1.327532178
J60: Construction Financing Cost ($/kW) | K60: Class 1 - Offshore Fixed | L60: =(L76+L142)*($S$47-1) -> 282.9925489
K61: Class 2 - Offshore Fixed | L61: 286.3454488
K62: Class 3 - Offshore Fixed | L62: 297.762384
K63: Class 4 - Offshore Fixed | L63: 309.1969305
K64: Class 5 - Offshore Fixed | L64: 324.4480228
K65: Class 6 - Offshore Fixed | L65: 322.1500805
K66: Class 7 - Offshore Fixed | L66: 325.0512885
K67: Class 8 - Offshore Floating | L67: 395.2831102
K68: Class 9 - Offshore Floating | L68: 402.4625041
K69: Class 10 - Offshore Floating | L69: 411.3296778
K70: Class 11 - Offshore Floating | L70: 440.3862821
K71: Class 12 - Offshore Floating | L71: 459.19673
K72: Class 13 - Offshore Floating | L72: 471.4702412
K73: Class 14 - Offshore Floating | L73: 476.9655923
N75: MACRS yr | O75: 1 | P75: 2 | Q75: 3 | R75: 4 | S75: 5 | T75: 6
J76: Overnight Capital Cost ($/kW) | K76: Class 1 - Offshore Fixed | L76: 2772.781425 | N76: Depreciation | O76: 0.2 | P76: 0.32 | Q76: 0.192 | R76: 0.1152 | S76: 0.1152 | T76: 0.0576
K77: Class 2 - Offshore Fixed | L77: 2781.274453 | N77: Fraction
K78: Class 3 - Offshore Fixed | L78: 2925.939061 | N78: Depreciation | O78: =1/((1+S45)*(1+S35))^O75 -> 0.9507083937 | P78: =1/((1+S45)*(1+S35))^P75 -> 0.9038464499 | Q78: =1/((1+S45)*(1+S35))^Q75 -> 0.8592944066 | R78: =1/((1+S45)*(1+S35))^R75 -> 0.816938405 | S78: =1/((1+S45)*(1+S35))^S75 -> 0.7766701988 | T78: =1/((1+S45)*(1+S35))^T75 -> 0.7383868772
K79: Class 4 - Offshore Fixed | L79: 3055.236767 | N79: Factor
K80: Class 5 - Offshore Fixed | L80: 3109.151221
K81: Class 6 - Offshore Fixed | L81: 3137.934571
K82: Class 7 - Offshore Fixed | L82: 3424.572927
K83: Class 8 - Offshore Floating | L83: 4122.701824
K84: Class 9 - Offshore Floating | L84: 4138.340347
K85: Class 10 - Offshore Floating | L85: 4252.189505
K86: Class 11 - Offshore Floating | L86: 4407.558418
K87: Class 12 - Offshore Floating | L87: 4454.734364
K88: Class 13 - Offshore Floating | L88: 4459.559727
K89: Class 14 - Offshore Floating | L89: 4898.999478
J92: Fixed Operation and Maintenance Expenses ($/kW-yr) | K92: Class 1 - Offshore Fixed | L92: 123.5290385
K93: Class 2 - Offshore Fixed | L93: 126.1847661
K94: Class 3 - Offshore Fixed | L94: 128.4401854
K95: Class 4 - Offshore Fixed | L95: 129.6365388
K96: Class 5 - Offshore Fixed | L96: 133.2120659
K97: Class 6 - Offshore Fixed | L97: 131.33122
K98: Class 7 - Offshore Fixed | L98: 125.5052225
K99: Class 8 - Offshore Floating | L99: 89.24342489
K100: Class 9 - Offshore Floating | L100: 90.25220675
K101: Class 10 - Offshore Floating | L101: 93.90867852
K102: Class 11 - Offshore Floating | L102: 101.6159489
K103: Class 12 - Offshore Floating | L103: 108.0984033
K104: Class 13 - Offshore Floating | L104: 110.8026784
K105: Class 14 - Offshore Floating | L105: 100.0274676
J108: Variable Operation and Maintenance Expenses ($/MWh) | K108: Class 1 - Offshore Fixed | L108: =L512 -> 0
K109: Class 2 - Offshore Fixed | L109: 0
K110: Class 3 - Offshore Fixed | L110: 0
K111: Class 4 - Offshore Fixed | L111: 0
K112: Class 5 - Offshore Fixed | L112: 0
K113: Class 6 - Offshore Fixed | L113: 0
K114: Class 7 - Offshore Fixed | L114: 0
K115: Class 8 - Offshore Floating | L115: 0
K116: Class 9 - Offshore Floating | L116: 0
K117: Class 10 - Offshore Floating | L117: 0
K118: Class 11 - Offshore Floating | L118: 0
K119: Class 12 - Offshore Floating | L119: 0
K120: Class 13 - Offshore Floating | L120: 0
K121: Class 14 - Offshore Floating | L121: 0
H125: Finance | J125: Weighted Average Cost of Capital (WACC) (Nominal) (%) | K125: Class 1 - Offshore Fixed | L125: =L590 -> 0.05184724
K126: Class 2 - Offshore Fixed | L126: =L593 -> 0.05184724
K127: Class 3 - Offshore Fixed | L127: =L596 -> 0.05184724
K128: Class 4 - Offshore Fixed | L128: =L599 -> 0.05184724
K129: Class 5 - Offshore Fixed | L129: =L602 -> 0.05184724
K130: Class 6 - Offshore Fixed | L130: =L605 -> 0.05184724
K131: Class 7 - Offshore Fixed | L131: =L608 -> 0.05184724
K132: Class 8 - Offshore Floating | L132: =L611 -> 0.05184724
K133: Class 9 - Offshore Floating | L133: =L614 -> 0.05184724
K134: Class 10 - Offshore Floating | L134: =L617 -> 0.05184724
K135: Class 11 - Offshore Floating | L135: =L620 -> 0.05184724
K136: Class 12 - Offshore Floating | L136: =L623 -> 0.05184724
K137: Class 13 - Offshore Floating | L137: =L626 -> 0.05184724
K138: Class 14 - Offshore Floating | L138: =L629 -> 0.05184724
H142: Grid Connection Costs | J142: Grid Connection Costs (GCC) ($/kW) | K142: Class 1 - Offshore Fixed | L142: =L158+L174+L190 -> 1010.529893
K143: Class 2 - Offshore Fixed | L143: =L159+L175+L191 -> 1046.861592
K144: Class 3 - Offshore Fixed | L144: 1054.829343
K145: Class 4 - Offshore Fixed | L145: 1078.39944
K146: Class 5 - Offshore Fixed | L146: 1228.375973
K147: Class 6 - Offshore Fixed | L147: 1168.871563
K148: Class 7 - Offshore Fixed | L148: 921.0192917
K149: Class 8 - Offshore Floating | L149: 1161.815631
K150: Class 9 - Offshore Floating | L150: 1242.158018
K151: Class 10 - Offshore Floating | L151: 1246.853601
K152: Class 11 - Offshore Floating | L152: 1479.940782
K153: Class 12 - Offshore Floating | L153: 1684.240645
K154: Class 13 - Offshore Floating | L154: 1843.499156
K155: Class 14 - Offshore Floating | L155: 1477.526443
J158: Grid Feature Costs ($/kW) | K158: Class 1 - Offshore Fixed | L158: 0
K159: Class 2 - Offshore Fixed | L159: 0
K160: Class 3 - Offshore Fixed | L160: 0
K161: Class 4 - Offshore Fixed | L161: 0
K162: Class 5 - Offshore Fixed | L162: 0
K163: Class 6 - Offshore Fixed | L163: 0
K164: Class 7 - Offshore Fixed | L164: 0
K165: Class 8 - Offshore Floating | L165: 0
K166: Class 9 - Offshore Floating | L166: 0
K167: Class 10 - Offshore Floating | L167: 0
K168: Class 11 - Offshore Floating | L168: 0
K169: Class 12 - Offshore Floating | L169: 0
K170: Class 13 - Offshore Floating | L170: 0
K171: Class 14 - Offshore Floating | L171: 0
J174: Onshore Spur Line Costs ($/kW) | K174: Class 1 - Offshore Fixed | L174: 0
K175: Class 2 - Offshore Fixed | L175: 0
K176: Class 3 - Offshore Fixed | L176: 0
K177: Class 4 - Offshore Fixed | L177: 0
K178: Class 5 - Offshore Fixed | L178: 0
K179: Class 6 - Offshore Fixed | L179: 0
K180: Class 7 - Offshore Fixed | L180: 0
K181: Class 8 - Offshore Floating | L181: 0
K182: Class 9 - Offshore Floating | L182: 0
K183: Class 10 - Offshore Floating | L183: 0
K184: Class 11 - Offshore Floating | L184: 0
K185: Class 12 - Offshore Floating | L185: 0
K186: Class 13 - Offshore Floating | L186: 0
K187: Class 14 - Offshore Floating | L187: 0
J190: Offshore Spur Line Costs ($/kW) | K190: Class 1 - Offshore Fixed | L190: 1010.529893
K191: Class 2 - Offshore Fixed | L191: 1046.861592
K192: Class 3 - Offshore Fixed | L192: 1054.829343
K193: Class 4 - Offshore Fixed | L193: 1078.39944
K194: Class 5 - Offshore Fixed | L194: 1228.375973
K195: Class 6 - Offshore Fixed | L195: 1168.871563
K196: Class 7 - Offshore Fixed | L196: 921.0192917
K197: Class 8 - Offshore Floating | L197: 1161.815631
K198: Class 9 - Offshore Floating | L198: 1242.158018
K199: Class 10 - Offshore Floating | L199: 1246.853601
K200: Class 11 - Offshore Floating | L200: 1479.940782
K201: Class 12 - Offshore Floating | L201: 1684.240645
K202: Class 13 - Offshore Floating | L202: 1843.499156
K203: Class 14 - Offshore Floating | L203: 1477.526443
H208: LCOE | J208: Levelized Cost of Energy ($/MWh) | K208: Class 1 - Offshore Fixed | L208: =(($S$51 * $S$49 * $S$47 * (L76 * 1 + L142) +L92) * 1000 / (L12 * 8760)) + L108 + 0 -> 85.77630119
K209: Class 2 - Offshore Fixed | L209: 89.38134607
K210: Class 3 - Offshore Fixed | L210: 91.52011316
K211: Class 4 - Offshore Fixed | L211: 94.47462201
K212: Class 5 - Offshore Fixed | L212: 99.99576467
K213: Class 6 - Offshore Fixed | L213: 115.3505725
K214: Class 7 - Offshore Fixed | L214: 147.8016284
K215: Class 8 - Offshore Floating | L215: 84.41873843
K216: Class 9 - Offshore Floating | L216: 87.96524686
K217: Class 10 - Offshore Floating | L217: 91.91470841
K218: Class 11 - Offshore Floating | L218: 100.0116295
K219: Class 12 - Offshore Floating | L219: 111.2194147
K220: Class 13 - Offshore Floating | L220: 143.1383477
K221: Class 14 - Offshore Floating | L221: 171.5541393
J224: Overnight Levelized Cost of Energy ($/MWh) | K224: Class 1 - Offshore Fixed | L224: =(((L76*$S$51*(1-$S$43*$S$48))/(8760*L12*(1-$S$43))+L92/(8760*L12))*1000)+L108 -> 68.71130358 | M224: * this is similar to the LCOE used in the TCDB (Transparent Cost Database)
K225: Class 2 - Offshore Fixed | L225: 71.33267256
K226: Class 3 - Offshore Fixed | L226: 73.34487095
K227: Class 4 - Offshore Fixed | L227: 75.7438032
K228: Class 5 - Offshore Fixed | L228: 78.69126503
K229: Class 6 - Offshore Fixed | L229: 91.52361481
K230: Class 7 - Offshore Fixed | L230: 122.0258322
K231: Class 8 - Offshore Floating | L231: 66.74938204
... 564 more rows

Sheet Land-Based Wind
A1: TEST | L1: https://atb.nrel.gov/electricity/2020/index.html?t=lw
T3: Inputs
J4: Take me to: | T4: Calculated
H7: Inputs from 2020 ATB v1
B10: X | G10: Current Costs
H12: Techno-Economic Cost and Performance Parameters | J12: Net Capacity Factor (%) | K12: Class 1 | L12: =L167 -> 0.521036 | O12: Basis Year: | Q12: 2018
K13: Class 2 | L13: =L170 -> 0.467398 | O13: All values are given in 2018 U.S. dollars, using the Consumer Price Index (BLS, 2020) for dollar year conversions. Projections use an inflation assumption of 2.5% per year.
K14: Class 3 | L14: =L173 -> 0.446015 | O14: Land-Based Wind Classes
K15: Class 4 | L15: =L176 -> 0.428546 | O15: Wind Classes | P15: Wind Speed Range (m/s) | Q15: Weighted Average Wind Speed (m/s) | R15: Potential Wind Plant Capacity (GW)
K16: Class 5 | L16: =L179 -> 0.409059
K17: Class 6 | L17: =L182 -> 0.380276 | O17: Class1 | P17: > 9.0 | Q17: 9.5 | R17: 153
K18: Class 7 | L18: =L185 -> 0.3451 | O18: Class2 | P18: 8.8 - 9.0 | Q18: 8.9 | R18: 152
K19: Class 8 | L19: =L188 -> 0.304211 | O19: Class3 | P19: 8.6 - 8.8 | Q19: 8.7 | R19: 304
K20: Class 9 | L20: =L191 -> 0.260007 | O20: Class4 | P20: 8.4 - 8.6 | Q20: 8.5 | R20: 606
K21: Class 10 | L21: =L194 -> 0.1649 | O21: Class5 | P21: 8.1 - 8.4 | Q21: 8.2 | R21: 1222
O22: Class6 | P22: 7.6 - 8.1 | Q22: 7.8 | R22: 2404
J23: Annual Energy Production (kWh/kW) | K23: Class 1 | L23: =(L12)*8760 -> 4564.27536 | O23: Class7 | P23: 7.1 - 7.6 | Q23: 7.4 | R23: 2444
K24: Class 2 | L24: =(L13)*8760 -> 4094.40648 | O24: Class8 | P24: 6.5 - 7.1 | Q24: 6.8 | R24: 2441
K25: Class 3 | L25: 3907.0914 | O25: Class9 | P25: 5.9 - 6.5 | Q25: 6.2 | R25: 2406
K26: Class 4 | L26: 3754.06296 | O26: Class10 | P26: 0 - 5.9 | Q26: 5.2 | R26: 3044
K27: Class 5 | L27: 3583.35684 | O27: Total | R27: =SUM(R17:R26) -> 15176
K28: Class 6 | L28: 3331.21776 | O28: Wind speeds presented in table are assumed to be 110 meters above the surface
K29: Class 7 | L29: 3023.076 | O29: Financial Assumptions:
K30: Class 8 | L30: 2664.88836 | O30: Inflation Rate | S30: =M389 -> 0.025
K31: Class 9 | L31: 2277.66132 | O31: Capital Recovery Period (Years) | S31: 30
K32: Class 10 | L32: 1444.524 | O32: Interest Rate Nominal - Mid | S32: =M391 -> 0.04
O33: Calculated Interest Rate Real - Mid | S33: =M394 -> 0.01463414634
J34: CAPEX ($/kW) | K34: Class 1 | L34: =$S$42 * (L56 + L102) -> 1750.758067 | O34: Interest During Construction - Nominal | S34: =S32 -> 0.04
K35: Class 2 | L35: =$S$42 * (L57 + L103) -> 1613.608873 | O35: Rate of Return on Equity Nominal - Mid | S35: =M398 -> 0.09
K36: Class 3 | L36: =$S$42 * (L58 + L104) -> 1569.557676 | O36: Calculated Rate of Return on Equity Real - Mid | S36: =M401 -> 0.06341463415
K37: Class 4 | L37: 1555.883682 | O37: Debt Fraction - Mid | S37: =M404 -> 0.6705764915
K38: Class 5 | L38: 1604.885768 | O38: Tax Rate (Federal and State) | S38: =M406 -> 0.2574
K39: Class 6 | L39: 1711.732444 | O39: WACC Nominal - Mid | S39: =M408 -> 0.04956691987
K40: Class 7 | L40: 1926.172319 | O40: WACC Real - Mid | S40: =M411 -> 0.0239677267
K41: Class 8 | L41: 2240.692957 | O41: Depreciation Period | S41: 5
K42: Class 9 | L42: 2728.461367 | O42: Construction Finance Factor | S42: =SUMPRODUCT(P51:P53,Q51:Q53,R51:R53)+SUMPRODUCT(P51:P53,T51:T53,S51:S53) -> 1.043685344
K43: Class 10 | L43: 2860.290991 | O43: Present Value of Depreciation | S43: =SUMPRODUCT(O56:T56,O58:T58) -> 0.8755749844
O44: Project Finance Factor | S44: =(1 - S38 * S43) / (1 - S38) -> 1.043128197
J45: Construction Financing Cost ($/kW) | K45: Class 1 | L45: =(L56+L102)*($S$42-1) -> 73.28115576 | O45: Capital Recovery Factor (CRF) Nominal - Mid | S45: =M414 -> 0.06473064522
K46: Class 2 | L46: =(L57+L103)*($S$42-1) -> 67.54052735 | O46: Capital Recovery Factor (CRF) Real - Mid | S46: =M417 -> 0.04712247122
K47: Class 3 | L47: =(L58+L104)*($S$42-1) -> 65.69668457 | O47: Cost of equity during construction | S47: =S35+0.02 -> 0.11
K48: Class 4 | L48: 65.12433473 | O48: Construction Duration yrs | Q48: 3
K49: Class 5 | L49: 67.17540598 | O49: Year | P49: Capital | Q49: Accumulated | R49: Percent of Leverage During Construction | S49: Percent of Equity During Construction | T49: Accumulated
K50: Class 6 | L50: 71.64766748 | O50: Index | P50: Fraction | Q50: Interest | T50: Equity Cost
K51: Class 7 | L51: 80.62343756 | O51: 0 | P51: 0.8 | Q51: =1+((1+S34)^(O51+0.5)-1) -> 1.019803903 | R51: 0.8 | S51: =1-R51 -> 0.2 | T51: =1+((1+$S$47)^(O51+0.5)-1) -> 1.053565375
K52: Class 8 | L52: 93.78826959 | O52: 1 | P52: 0.1 | Q52: =1+((1+S34)^(O52+0.5)-1) -> 1.060596059 | R52: 0.8 | S52: =1-R52 -> 0.2 | T52: =1+((1+$S$47)^(O52+0.5)-1) -> 1.169457567
K53: Class 9 | L53: 114.2047015 | O53: 2 | P53: 0.1 | Q53: =1+((1+S34)^(O53+0.5)-1) -> 1.103019901 | R53: 0.8 | S53: 0.2 | T53: 1.298097899
K54: Class 10 | L54: 119.7226696
N55: MACRS yr | O55: 1 | P55: 2 | Q55: 3 | R55: 4 | S55: 5 | T55: 6
J56: Overnight Capital Cost (OCC) ($/kW) | K56: Class 1 | L56: =L295 -> 1677.476912 | N56: Depreciation | O56: 0.2 | P56: 0.32 | Q56: 0.192 | R56: 0.1152 | S56: 0.1152 | T56: 0.0576
K57: Class 2 | L57: =L298 -> 1546.068345 | N57: Fraction
K58: Class 3 | L58: =L301 -> 1503.860991 | N58: Depreciation | O58: =1/((1+S40)*(1+S30))^O55 -> 0.9527739309 | P58: =1/((1+S40)*(1+S30))^P55 -> 0.9077781634 | Q58: =1/((1+S40)*(1+S30))^Q55 -> 0.8649073692 | R58: =1/((1+S40)*(1+S30))^R55 -> 0.824061194 | S58: =1/((1+S40)*(1+S30))^S55 -> 0.7851440231 | T58: =1/((1+S40)*(1+S30))^T55 -> 0.7480647572
K59: Class 4 | L59: =L304 -> 1490.759347 | N59: Factor
K60: Class 5 | L60: =L307 -> 1537.710362
K61: Class 6 | L61: =L310 -> 1640.084776
K62: Class 7 | L62: =L313 -> 1845.548882
K63: Class 8 | L63: =L316 -> 2146.904688
K64: Class 9 | L64: =L319 -> 2614.256665
K65: Class 10 | L65: =L322 -> 2740.568321
J67: Fixed Operation and Maintenance Expenses ($/kW-year) | K67: Class 1 | L67: =L327 -> 43.20538462
K68: Class 2 | L68: =L330 -> 43.20538462
K69: Class 3 | L69: =L333 -> 43.20538462
K70: Class 4 | L70: =L336 -> 43.20538462
K71: Class 5 | L71: =L339 -> 43.20538462
K72: Class 6 | L72: =L342 -> 43.20538462
K73: Class 7 | L73: =L345 -> 43.20538462
K74: Class 8 | L74: =L348 -> 43.20538462
K75: Class 9 | L75: =L351 -> 43.20538462
K76: Class 10 | L76: =L354 -> 43.20538462
J78: Variable Operation and Maintenance Expenses ($/MWh) | K78: Class 1 | L78: =L359 -> 0
K79: Class 2 | L79: =L362 -> 0
K80: Class 3 | L80: =L365 -> 0
K81: Class 4 | L81: =L368 -> 0
K82: Class 5 | L82: =L371 -> 0
K83: Class 6 | L83: =L374 -> 0
K84: Class 7 | L84: =L377 -> 0
K85: Class 8 | L85: =L380 -> 0
K86: Class 9 | L86: =L383 -> 0
K87: Class 10 | L87: =L386 -> 0
H90: Finance | J90: Weighted Average Cost of Capital (WACC) (Nominal) (%) | K90: Class 1 | L90: =L423 -> 0.04956691987
K91: Class 2 | L91: =L426 -> 0.04956691987
K92: Class 3 | L92: =L429 -> 0.04956691987
K93: Class 4 | L93: =L432 -> 0.04956691987
K94: Class 5 | L94: =L435 -> 0.04956691987
K95: Class 6 | L95: =L438 -> 0.04956691987
K96: Class 7 | L96: =L441 -> 0.04956691987
K97: Class 8 | L97: =L444 -> 0.04956691987
K98: Class 9 | L98: =L447 -> 0.04956691987
K99: Class 10 | L99: =L450 -> 0.04956691987
H102: Grid Connection Costs | J102: Grid Connection Costs (GCC) ($/kW) | K102: Class 1 | L102: =L113+L124 -> 0
K103: Class 2 | L103: =L114+L125 -> 0
K104: Class 3 | L104: 0
K105: Class 4 | L105: 0
K106: Class 5 | L106: 0
K107: Class 6 | L107: 0
K108: Class 7 | L108: 0
K109: Class 8 | L109: 0
K110: Class 9 | L110: 0
K111: Class 10 | L111: 0
J113: Grid Feature Costs ($/kW) | K113: Class 1 | L113: 0
K114: Class 2 | L114: 0
K115: Class 3 | L115: 0
K116: Class 4 | L116: 0
K117: Class 5 | L117: 0
K118: Class 6 | L118: 0
K119: Class 7 | L119: 0
K120: Class 8 | L120: 0
K121: Class 9 | L121: 0
K122: Class 10 | L122: 0
J124: Onshore Spur Line Costs ($/kW) | K124: Class 1 | L124: 0
K125: Class 2 | L125: 0
K126: Class 3 | L126: 0
K127: Class 4 | L127: 0
K128: Class 5 | L128: 0
K129: Class 6 | L129: 0
K130: Class 7 | L130: 0
K131: Class 8 | L131: 0
K132: Class 9 | L132: 0
K133: Class 10 | L133: 0
H136: LCOE | J136: Levelized Cost of Energy ($/MWh) | K136: Class 1 | L136: =L489 -> 28.32070796
K137: Class 2 | L137: =L492 -> 29.92423245
K138: Class 3 | L138: =L495 -> 30.80466569
K139: Class 4 | L139: =L498 -> 31.88132526
K140: Class 5 | L140: =L501 -> 34.07229434
K141: Class 6 | L141: =L504 -> 38.22782622
K142: Class 7 | L142: =L507 -> 45.61114514
K143: Class 8 | L143: =L510 -> 57.54317996
K144: Class 9 | L144: =L513 -> 77.85279446
K145: Class 10 | L145: =L516 -> 127.2407759
J147: Overnight Levelized Cost of Energy ($/MWh) | K147: Class 1 | L147: =(((L56*$S$46*(1-$S$38*$S$43))/(8760*L12*(1-$S$38))+L67/(8760*L12))*1000)+L78 -> 27.53150952 | M147: * this is similar to the LCOE used in the TCDB (Transparent Cost Database)
K148: Class 2 | L148: 29.11338485
K149: Class 3 | L149: 29.9781414
K150: Class 4 | L150: 31.02860321
K151: Class 5 | L151: 33.15081419
K152: Class 6 | L152: 37.17060767
K153: Class 7 | L153: 44.3002197
K154: Class 8 | L154: 55.81322321
K155: Class 9 | L155: 75.38811424
K156: Class 10 | L156: 123.1668101
H159: ***Note: For future projections, low, mid, and high refer to the resulting low, mid, and high LCOE projections.
J161: High
D162: X | G162: Future Projections
L163: Basis Year
L164: 2018 | M164: 2019 | N164: 2020 | O164: 2021 | P164: 2022 | Q164: 2023 | R164: 2024 | S164: 2025 | T164: 2026 | U164: 2027 | V164: 2028 | W164: 2029 | X164: 2030 | Y164: 2031 | Z164: 2032 | AA164: 2033 | AB164: 2034 | AC164: 2035 | AD164: 2036 | AE164: 2037 | AF164: 2038 | AG164: 2039 | AH164: 2040 | AI164: 2041 | AJ164: 2042 | AK164: 2043 | AL164: 2044 | AM164: 2045 | AN164: 2046 | AO164: 2047 | AP164: 2048 | AQ164: 2049 | AR164: 2050
H165: Techno-Economic Cost and Performance Parameters | J165: Net Capacity Factor (%) | K165: Class 1 - Advanced | L165: 0.521036 | M165: 0.5249963333 | N165: 0.5289566667 | O165: 0.532917 | P165: 0.5368773333 | Q165: 0.5408376667 | R165: 0.544798 | S165: 0.5487583333 | T165: 0.5527186667 | U165: 0.556679 | V165: 0.5606393333 | W165: 0.5645996667 | X165: 0.56856 | Y165: 0.56912856 | Z165: 0.56969712 | AA165: 0.57026568 | AB165: 0.57083424 | AC165: 0.5714028 | AD165: 0.57197136 | AE165: 0.57253992 | AF165: 0.57310848 | AG165: 0.57367704 | AH165: 0.5742456 | AI165: 0.57481416 | AJ165: 0.57538272 | AK165: 0.57595128 | AL165: 0.57651984 | AM165: 0.5770884 | AN165: 0.57765696 | AO165: 0.57822552 | AP165: 0.57879408 | AQ165: 0.57936264 | AR165: 0.5799312
K166: Class 1 - Moderate | L166: 0.521036 | M166: 0.5228105833 | N166: 0.5245851667 | O166: 0.52635975 | P166: 0.5281343333 | Q166: 0.5299089167 | R166: 0.5316835 | S166: 0.5334580833 | T166: 0.5352326667 | U166: 0.53700725 | V166: 0.5387818333 | W166: 0.5405564167 | X166: 0.542331 | Y166: 0.5426021655 | Z166: 0.542873331 | AA166: 0.5431444965 | AB166: 0.543415662 | AC166: 0.5436868275 | AD166: 0.543957993 | AE166: 0.5442291585 | AF166: 0.544500324 | AG166: 0.5447714895 | AH166: 0.545042655 | AI166: 0.5453138205 | AJ166: 0.545584986 | AK166: 0.5458561515 | AL166: 0.546127317 | AM166: 0.5463984825 | AN166: 0.546669648 | AO166: 0.5469408135 | AP166: 0.547211979 | AQ166: 0.5474831445 | AR166: 0.54775431
K167: Class 1 - Conservative | L167: 0.521036 | M167: 0.5200325833 | N167: 0.5190291667 | O167: 0.51802575 | P167: 0.5170223333 | Q167: 0.5160189167 | R167: 0.5150155 | S167: 0.5140120833 | T167: 0.5130086667 | U167: 0.51200525 | V167: 0.5110018333 | W167: 0.5099984167 | X167: 0.508995 | Y167: 0.5091222488 | Z167: 0.5092494975 | AA167: 0.5093767462 | AB167: 0.509503995 | AC167: 0.5096312438 | AD167: 0.5097584925 | AE167: 0.5098857412 | AF167: 0.51001299 | AG167: 0.5101402387 | AH167: 0.5102674875 | AI167: 0.5103947362 | AJ167: 0.510521985 | AK167: 0.5106492337 | AL167: 0.5107764825 | AM167: 0.5109037312 | AN167: 0.51103098 | AO167: 0.5111582287 | AP167: 0.5112854775 | AQ167: 0.5114127262 | AR167: 0.511539975
K168: Class 2 - Advanced | L168: 0.467398 | M168: 0.4722306667 | N168: 0.4770633333 | O168: 0.481896 | P168: 0.4867286667 | Q168: 0.4915613333 | R168: 0.496394 | S168: 0.5012266667 | T168: 0.5060593333 | U168: 0.510892 | V168: 0.5157246667 | W168: 0.5205573333 | X168: 0.52539 | Y168: 0.526178085 | Z168: 0.52696617 | AA168: 0.527754255 | AB168: 0.52854234 | AC168: 0.529330425 | AD168: 0.53011851 | AE168: 0.530906595 | AF168: 0.53169468 | AG168: 0.532482765 | AH168: 0.53327085 | AI168: 0.534058935 | AJ168: 0.53484702 | AK168: 0.535635105 | AL168: 0.53642319 | AM168: 0.537211275 | AN168: 0.53799936 | AO168: 0.538787445 | AP168: 0.53957553 | AQ168: 0.540363615 | AR168: 0.5411517
K169: Class 2 - Moderate | L169: 0.467398 | M169: 0.4699876667 | N169: 0.4725773333 | O169: 0.475167 | P169: 0.4777566667 | Q169: 0.4803463333 | R169: 0.482936 | S169: 0.4855256667 | T169: 0.4881153333 | U169: 0.490705 | V169: 0.4932946667 | W169: 0.4958843333 | X169: 0.498474 | Y169: 0.4988478555 | Z169: 0.499221711 | AA169: 0.4995955665 | AB169: 0.499969422 | AC169: 0.5003432775 | AD169: 0.500717133 | AE169: 0.5010909885 | AF169: 0.501464844 | AG169: 0.5018386995 | AH169: 0.502212555 | AI169: 0.5025864105 | AJ169: 0.502960266 | AK169: 0.5033341215 | AL169: 0.503707977 | AM169: 0.5040818325 | AN169: 0.504455688 | AO169: 0.5048295435 | AP169: 0.505203399 | AQ169: 0.5055772545 | AR169: 0.50595111
K170: Class 2 - Conservative | L170: 0.467398 | M170: 0.467337 | N170: 0.467276 | O170: 0.467215 | P170: 0.467154 | Q170: 0.467093 | R170: 0.467032 | S170: 0.466971 | T170: 0.46691 | U170: 0.466849 | V170: 0.466788 | W170: 0.466727 | X170: 0.466666 | Y170: 0.4668409998 | Z170: 0.4670159995 | AA170: 0.4671909992 | AB170: 0.467365999 | AC170: 0.4675409987 | AD170: 0.4677159985 | AE170: 0.4678909983 | AF170: 0.468065998 | AG170: 0.4682409978 | AH170: 0.4684159975 | AI170: 0.4685909973 | AJ170: 0.468765997 | AK170: 0.4689409968 | AL170: 0.4691159965 | AM170: 0.4692909962 | AN170: 0.469465996 | AO170: 0.4696409958 | AP170: 0.4698159955 | AQ170: 0.4699909953 | AR170: 0.470165995
K171: Class 3 - Advanced | L171: 0.446015 | M171: 0.45147075 | N171: 0.4569265 | O171: 0.46238225 | P171: 0.467838 | Q171: 0.47329375 | R171: 0.4787495 | S171: 0.48420525 | T171: 0.489661 | U171: 0.49511675 | V171: 0.5005725 | W171: 0.50602825 | X171: 0.511484 | Y171: 0.512506968 | Z171: 0.513529936 | AA171: 0.514552904 | AB171: 0.515575872 | AC171: 0.51659884 | AD171: 0.517621808 | AE171: 0.518644776 | AF171: 0.519667744 | AG171: 0.520690712 | AH171: 0.52171368 | AI171: 0.522736648 | AJ171: 0.523759616 | AK171: 0.524782584 | AL171: 0.525805552 | AM171: 0.52682852 | AN171: 0.527851488 | AO171: 0.528874456 | AP171: 0.529897424 | AQ171: 0.530920392 | AR171: 0.53194336
K172: Class 3 - Moderate | L172: 0.446015 | M172: 0.4492359167 | N172: 0.4524568333 | O172: 0.45567775 | P172: 0.4588986667 | Q172: 0.4621195833 | R172: 0.4653405 | S172: 0.4685614167 | T172: 0.4717823333 | U172: 0.47500325 | V172: 0.4782241667 | W172: 0.4814450833 | X172: 0.484666 | Y172: 0.485150666 | Z172: 0.485635332 | AA172: 0.486119998 | AB172: 0.486604664 | AC172: 0.48708933 | AD172: 0.487573996 | AE172: 0.488058662 | AF172: 0.488543328 | AG172: 0.489027994 | AH172: 0.48951266 | AI172: 0.489997326 | AJ172: 0.490481992 | AK172: 0.490966658 | AL172: 0.491451324 | AM172: 0.49193599 | AN172: 0.492420656 | AO172: 0.492905322 | AP172: 0.493389988 | AQ172: 0.493874654 | AR172: 0.49435932
K173: Class 3 - Conservative | L173: 0.446015 | M173: 0.4466270833 | N173: 0.4472391667 | O173: 0.44785125 | P173: 0.4484633333 | Q173: 0.4490754167 | R173: 0.4496875 | S173: 0.4502995833 | T173: 0.4509116667 | U173: 0.45152375 | V173: 0.4521358333 | W173: 0.4527479167 | X173: 0.45336 | Y173: 0.45358668 | Z173: 0.45381336 | AA173: 0.45404004 | AB173: 0.45426672 | AC173: 0.4544934 | AD173: 0.45472008 | AE173: 0.45494676 | AF173: 0.45517344 | AG173: 0.45540012 | AH173: 0.4556268 | AI173: 0.45585348 | AJ173: 0.45608016 | AK173: 0.45630684 | AL173: 0.45653352 | AM173: 0.4567602 | AN173: 0.45698688 | AO173: 0.45721356 | AP173: 0.45744024 | AQ173: 0.45766692 | AR173: 0.4578936
K174: Class 4 - Advanced | L174: 0.428546 | M174: 0.43429175 | N174: 0.4400375 | O174: 0.44578325 | P174: 0.451529 | Q174: 0.45727475 | R174: 0.4630205 | S174: 0.46876625 | T174: 0.474512 | U174: 0.48025775 | V174: 0.4860035 | W174: 0.49174925 | X174: 0.497495 | Y174: 0.4987387375 | Z174: 0.499982475 | AA174: 0.5012262125 | AB174: 0.50246995 | AC174: 0.5037136875 | AD174: 0.504957425 | AE174: 0.5062011625 | AF174: 0.5074449 | AG174: 0.5086886375 | AH174: 0.509932375 | AI174: 0.5111761125 | AJ174: 0.51241985 | AK174: 0.5136635875 | AL174: 0.514907325 | AM174: 0.5161510625 | AN174: 0.5173948 | AO174: 0.5186385375 | AP174: 0.519882275 | AQ174: 0.5211260125 | AR174: 0.52236975
K175: Class 4 - Moderate | L175: 0.428546 | M175: 0.4320511667 | N175: 0.4355563333 | O175: 0.4390615 | P175: 0.4425666667 | Q175: 0.4460718333 | R175: 0.449577 | S175: 0.4530821667 | T175: 0.4565873333 | U175: 0.4600925 | V175: 0.4635976667 | W175: 0.4671028333 | X175: 0.470608 | Y175: 0.47119626 | Z175: 0.47178452 | AA175: 0.47237278 | AB175: 0.47296104 | AC175: 0.4735493 | AD175: 0.47413756 | AE175: 0.47472582 | AF175: 0.47531408 | AG175: 0.47590234 | AH175: 0.4764906 | AI175: 0.47707886 | AJ175: 0.47766712 | AK175: 0.47825538 | AL175: 0.47884364 | AM175: 0.4794319 | AN175: 0.48002016 | AO175: 0.48060842 | AP175: 0.48119668 | AQ175: 0.48178494 | AR175: 0.4823732
K176: Class 4 - Conservative | L176: 0.428546 | M176: 0.4295004167 | N176: 0.4304548333 | O176: 0.43140925 | P176: 0.4323636667 | Q176: 0.4333180833 | R176: 0.4342725 | S176: 0.4352269167 | T176: 0.4361813333 | U176: 0.43713575 | V176: 0.4380901667 | W176: 0.4390445833 | X176: 0.439999 | Y176: 0.4402739994 | Z176: 0.4405489987 | AA176: 0.4408239981 | AB176: 0.4410989975 | AC176: 0.4413739969 | AD176: 0.4416489962 | AE176: 0.4419239956 | AF176: 0.442198995 | AG176: 0.4424739944 | AH176: 0.4427489937 | AI176: 0.4430239931 | AJ176: 0.4432989925 | AK176: 0.4435739919 | AL176: 0.4438489912 | AM176: 0.4441239906 | AN176: 0.44439899 | AO176: 0.4446739894 | AP176: 0.4449489887 | AQ176: 0.4452239881 | AR176: 0.4454989875
K177: Class 5 - Advanced | L177: 0.409059 | M177: 0.41496025 | N177: 0.4208615 | O177: 0.42676275 | P177: 0.432664 | Q177: 0.43856525 | R177: 0.4444665 | S177: 0.45036775 | T177: 0.456269 | U177: 0.46217025 | V177: 0.4680715 | W177: 0.47397275 | X177: 0.479874 | Y177: 0.481313622 | Z177: 0.482753244 | AA177: 0.484192866 | AB177: 0.485632488 | AC177: 0.48707211 | AD177: 0.488511732 | AE177: 0.489951354 | AF177: 0.491390976 | AG177: 0.492830598 | AH177: 0.49427022 | AI177: 0.495709842 | AJ177: 0.497149464 | AK177: 0.498589086 | AL177: 0.500028708 | AM177: 0.50146833 | AN177: 0.502907952 | AO177: 0.504347574 | AP177: 0.505787196 | AQ177: 0.507226818 | AR177: 0.50866644
K178: Class 5 - Moderate | L178: 0.409059 | M178: 0.4127261667 | N178: 0.4163933333 | O178: 0.4200605 | P178: 0.4237276667 | Q178: 0.4273948333 | R178: 0.431062 | S178: 0.4347291667 | T178: 0.4383963333 | U178: 0.4420635 | V178: 0.4457306667 | W178: 0.4493978333 | X178: 0.453065 | Y178: 0.4537445975 | Z178: 0.454424195 | AA178: 0.4551037925 | AB178: 0.45578339 | AC178: 0.4564629875 | AD178: 0.457142585 | AE178: 0.4578221825 | AF178: 0.45850178 | AG178: 0.4591813775 | AH178: 0.459860975 | AI178: 0.4605405725 | AJ178: 0.46122017 | AK178: 0.4618997675 | AL178: 0.462579365 | AM178: 0.4632589625 | AN178: 0.46393856 | AO178: 0.4646181575 | AP178: 0.465297755 | AQ178: 0.4659773525 | AR178: 0.46665695
K179: Class 5 - Conservative | L179: 0.409059 | M179: 0.4102488333 | N179: 0.4114386667 | O179: 0.4126285 | P179: 0.4138183333 | Q179: 0.4150081667 | R179: 0.416198 | S179: 0.4173878333 | T179: 0.4185776667 | U179: 0.4197675 | V179: 0.4209573333 | W179: 0.4221471667 | X179: 0.423337 | Y179: 0.4236545027 | Z179: 0.4239720055 | AA179: 0.4242895083 | AB179: 0.424607011 | AC179: 0.4249245138 | AD179: 0.4252420165 | AE179: 0.4255595192 | AF179: 0.425877022 | AG179: 0.4261945247 | AH179: 0.4265120275 | AI179: 0.4268295303 | AJ179: 0.427147033 | AK179: 0.4274645357 | AL179: 0.4277820385 | AM179: 0.4280995413 | AN179: 0.428417044 | AO179: 0.4287345468 | AP179: 0.4290520495 | AQ179: 0.4293695523 | AR179: 0.429687055
K180: Class 6 - Advanced | L180: 0.380276 | M180: 0.3862735833 | N180: 0.3922711667 | O180: 0.39826875 | P180: 0.4042663333 | Q180: 0.4102639167 | R180: 0.4162615 | S180: 0.4222590833 | T180: 0.4282566667 | U180: 0.43425425 | V180: 0.4402518333 | W180: 0.4462494167 | X180: 0.452247 | Y180: 0.4538298645 | Z180: 0.455412729 | AA180: 0.4569955935 | AB180: 0.458578458 | AC180: 0.4601613225 | AD180: 0.461744187 | AE180: 0.4633270515 | AF180: 0.464909916 | AG180: 0.4664927805 | AH180: 0.468075645 | AI180: 0.4696585095 | AJ180: 0.471241374 | AK180: 0.4728242385 | AL180: 0.474407103 | AM180: 0.4759899675 | AN180: 0.477572832 | AO180: 0.4791556965 | AP180: 0.480738561 | AQ180: 0.4823214255 | AR180: 0.48390429
K181: Class 6 - Moderate | L181: 0.380276 | M181: 0.3844028333 | N181: 0.3885296667 | O181: 0.3926565 | P181: 0.3967833333 | Q181: 0.4009101667 | R181: 0.405037 | S181: 0.4091638333 | T181: 0.4132906667 | U181: 0.4174175 | V181: 0.4215443333 | W181: 0.4256711667 | X181: 0.429798 | Y181: 0.4305501465 | Z181: 0.431302293 | AA181: 0.4320544395 | AB181: 0.432806586 | AC181: 0.4335587325 | AD181: 0.434310879 | AE181: 0.4350630255 | AF181: 0.435815172 | AG181: 0.4365673185 | AH181: 0.437319465 | AI181: 0.4380716115 | AJ181: 0.438823758 | AK181: 0.4395759045 | AL181: 0.440328051 | AM181: 0.4410801975 | AN181: 0.441832344 | AO181: 0.4425844905 | AP181: 0.443336637 | AQ181: 0.4440887835 | AR181: 0.44484093
K182: Class 6 - Conservative | L182: 0.380276 | M182: 0.38170525 | N182: 0.3831345 | O182: 0.38456375 | P182: 0.385993 | Q182: 0.38742225 | R182: 0.3888515 | S182: 0.39028075 | T182: 0.39171 | U182: 0.39313925 | V182: 0.3945685 | W182: 0.39599775 | X182: 0.397427 | Y182: 0.3977747486 | Z182: 0.3981224972 | AA182: 0.3984702459 | AB182: 0.3988179945 | AC182: 0.3991657431 | AD182: 0.3995134917 | AE182: 0.3998612404 | AF182: 0.400208989 | AG182: 0.4005567376 | AH182: 0.4009044862 | AI182: 0.4012522349 | AJ182: 0.4015999835 | AK182: 0.4019477321 | AL182: 0.4022954807 | AM182: 0.4026432294 | AN182: 0.402990978 | AO182: 0.4033387266 | AP182: 0.4036864752 | AQ182: 0.4040342239 | AR182: 0.4043819725
K183: Class 7 - Advanced | L183: 0.3451 | M183: 0.3509643333 | N183: 0.3568286667 | O183: 0.362693 | P183: 0.3685573333 | Q183: 0.3744216667 | R183: 0.380286 | S183: 0.3861503333 | T183: 0.3920146667 | U183: 0.397879 | V183: 0.4037433333 | W183: 0.4096076667 | X183: 0.415472 | Y183: 0.417133888 | Z183: 0.418795776 | AA183: 0.420457664 | AB183: 0.422119552 | AC183: 0.42378144 | AD183: 0.425443328 | AE183: 0.427105216 | AF183: 0.428767104 | AG183: 0.430428992 | AH183: 0.43209088 | AI183: 0.433752768 | AJ183: 0.435414656 | AK183: 0.437076544 | AL183: 0.438738432 | AM183: 0.44040032 | AN183: 0.442062208 | AO183: 0.443724096 | AP183: 0.445385984 | AQ183: 0.447047872 | AR183: 0.44870976
K184: Class 7 - Moderate | L184: 0.3451 | M184: 0.3488183333 | N184: 0.3525366667 | O184: 0.356255 | P184: 0.3599733333 | Q184: 0.3636916667 | R184: 0.36741 | S184: 0.3711283333 | T184: 0.3748466667 | U184: 0.378565 | V184: 0.3822833333 | W184: 0.3860016667 | X184: 0.38972 | Y184: 0.39049944 | Z184: 0.39127888 | AA184: 0.39205832 | AB184: 0.39283776 | AC184: 0.3936172 | AD184: 0.39439664 | AE184: 0.39517608 | AF184: 0.39595552 | AG184: 0.39673496 | AH184: 0.3975144 | AI184: 0.39829384 | AJ184: 0.39907328 | AK184: 0.39985272 | AL184: 0.40063216 | AM184: 0.4014116 | AN184: 0.40219104 | AO184: 0.40297048 | AP184: 0.40374992 | AQ184: 0.40452936 | AR184: 0.4053088
K185: Class 7 - Conservative | L185: 0.3451 | M185: 0.3466185833 | N185: 0.3481371667 | O185: 0.34965575 | P185: 0.3511743333 | Q185: 0.3526929167 | R185: 0.3542115 | S185: 0.3557300833 | T185: 0.3572486667 | U185: 0.35876725 | V185: 0.3602858333 | W185: 0.3618044167 | X185: 0.363323 | Y185: 0.363686323 | Z185: 0.364049646 | AA185: 0.364412969 | AB185: 0.364776292 | AC185: 0.365139615 | AD185: 0.365502938 | AE185: 0.365866261 | AF185: 0.366229584 | AG185: 0.366592907 | AH185: 0.36695623 | AI185: 0.367319553 | AJ185: 0.367682876 | AK185: 0.368046199 | AL185: 0.368409522 | AM185: 0.368772845 | AN185: 0.369136168 | AO185: 0.369499491 | AP185: 0.369862814 | AQ185: 0.370226137 | AR185: 0.37058946
K186: Class 8 - Advanced | L186: 0.304211 | M186: 0.3097436667 | N186: 0.3152763333 | O186: 0.320809 | P186: 0.3263416667 | Q186: 0.3318743333 | R186: 0.337407 | S186: 0.3429396667 | T186: 0.3484723333 | U186: 0.354005 | V186: 0.3595376667 | W186: 0.3650703333 | X186: 0.370603 | Y186: 0.3722707135 | Z186: 0.373938427 | AA186: 0.3756061405 | AB186: 0.377273854 | AC186: 0.3789415675 | AD186: 0.380609281 | AE186: 0.3822769945 | AF186: 0.383944708 | AG186: 0.3856124215 | AH186: 0.387280135 | AI186: 0.3889478485 | AJ186: 0.390615562 | AK186: 0.3922832755 | AL186: 0.393950989 | AM186: 0.3956187025 | AN186: 0.397286416 | AO186: 0.3989541295 | AP186: 0.400621843 | AQ186: 0.4022895565 | AR186: 0.40395727
K187: Class 8 - Moderate | L187: 0.304211 | M187: 0.3076925833 | N187: 0.3111741667 | O187: 0.31465575 | P187: 0.3181373333 | Q187: 0.3216189167 | R187: 0.3251005 | S187: 0.3285820833 | T187: 0.3320636667 | U187: 0.33554525 | V187: 0.3390268333 | W187: 0.3425084167 | X187: 0.34599 | Y187: 0.3467684775 | Z187: 0.347546955 | AA187: 0.3483254325 | AB187: 0.34910391 | AC187: 0.3498823875 | AD187: 0.350660865 | AE187: 0.3514393425 | AF187: 0.35221782 | AG187: 0.3529962975 | AH187: 0.353774775 | AI187: 0.3545532525 | AJ187: 0.35533173 | AK187: 0.3561102075 | AL187: 0.356888685 | AM187: 0.3576671625 | AN187: 0.35844564 | AO187: 0.3592241175 | AP187: 0.360002595 | AQ187: 0.3607810725 | AR187: 0.36155955
K188: Class 8 - Conservative | L188: 0.304211 | M188: 0.3056939167 | N188: 0.3071768333 | O188: 0.30865975 | P188: 0.3101426667 | Q188: 0.3116255833 | R188: 0.3131085 | S188: 0.3145914167 | T188: 0.3160743333 | U188: 0.31755725 | V188: 0.3190401667 | W188: 0.3205230833 | X188: 0.322006 | Y188: 0.3223682568 | Z188: 0.3227305135 | AA188: 0.3230927703 | AB188: 0.323455027 | AC188: 0.3238172838 | AD188: 0.3241795405 | AE188: 0.3245417973 | AF188: 0.324904054 | AG188: 0.3252663108 | AH188: 0.3256285675 | AI188: 0.3259908243 | AJ188: 0.326353081 | AK188: 0.3267153378 | AL188: 0.3270775945 | AM188: 0.3274398513 | AN188: 0.327802108 | AO188: 0.3281643647 | AP188: 0.3285266215 | AQ188: 0.3288888783 | AR188: 0.329251135
K189: Class 9 - Advanced | L189: 0.260007 | M189: 0.2650503333 | N189: 0.2700936667 | O189: 0.275137 | P189: 0.2801803333 | Q189: 0.2852236667 | R189: 0.290267 | S189: 0.2953103333 | T189: 0.3003536667 | U189: 0.305397 | V189: 0.3104403333 | W189: 0.3154836667 | X189: 0.320527 | Y189: 0.322129635 | Z189: 0.32373227 | AA189: 0.325334905 | AB189: 0.32693754 | AC189: 0.328540175 | AD189: 0.33014281 | AE189: 0.331745445 | AF189: 0.33334808 | AG189: 0.334950715 | AH189: 0.33655335 | AI189: 0.338155985 | AJ189: 0.33975862 | AK189: 0.341361255 | AL189: 0.34296389 | AM189: 0.344566525 | AN189: 0.34616916 | AO189: 0.347771795 | AP189: 0.34937443 | AQ189: 0.350977065 | AR189: 0.3525797
K190: Class 9 - Moderate | L190: 0.260007 | M190: 0.26313675 | N190: 0.2662665 | O190: 0.26939625 | P190: 0.272526 | Q190: 0.27565575 | R190: 0.2787855 | S190: 0.28191525 | T190: 0.285045 | U190: 0.28817475 | V190: 0.2913045 | W190: 0.29443425 | X190: 0.297564 | Y190: 0.29830791 | Z190: 0.29905182 | AA190: 0.29979573 | AB190: 0.30053964 | AC190: 0.30128355 | AD190: 0.30202746 | AE190: 0.30277137 | AF190: 0.30351528 | AG190: 0.30425919 | AH190: 0.3050031 | AI190: 0.30574701 | AJ190: 0.30649092 | AK190: 0.30723483 | AL190: 0.30797874 | AM190: 0.30872265 | AN190: 0.30946656 | AO190: 0.31021047 | AP190: 0.31095438 | AQ190: 0.31169829 | AR190: 0.3124422
K191: Class 9 - Conservative | L191: 0.260007 | M191: 0.2613709167 | N191: 0.2627348333 | O191: 0.26409875 | P191: 0.2654626667 | Q191: 0.2668265833 | R191: 0.2681905 | S191: 0.2695544167 | T191: 0.2709183333 | U191: 0.27228225 | V191: 0.2736461667 | W191: 0.2750100833 | X191: 0.276374 | Y191: 0.2767194675 | Z191: 0.277064935 | AA191: 0.2774104025 | AB191: 0.27775587 | AC191: 0.2781013375 | AD191: 0.278446805 | AE191: 0.2787922725 | AF191: 0.27913774 | AG191: 0.2794832075 | AH191: 0.279828675 | AI191: 0.2801741425 | AJ191: 0.28051961 | AK191: 0.2808650775 | AL191: 0.281210545 | AM191: 0.2815560125 | AN191: 0.28190148 | AO191: 0.2822469475 | AP191: 0.282592415 | AQ191: 0.2829378825 | AR191: 0.28328335
K192: Class 10 - Advanced | L192: 0.1649 | M192: 0.1682640833 | N192: 0.1716281667 | O192: 0.17499225 | P192: 0.1783563333 | Q192: 0.1817204167 | R192: 0.1850845 | S192: 0.1884485833 | T192: 0.1918126667 | U192: 0.19517675 | V192: 0.1985408333 | W192: 0.2019049167 | X192: 0.205269 | Y192: 0.2063979795 | Z192: 0.207526959 | AA192: 0.2086559385 | AB192: 0.209784918 | AC192: 0.2109138975 | AD192: 0.212042877 | AE192: 0.2131718565 | AF192: 0.214300836 | AG192: 0.2154298155 | AH192: 0.216558795 | AI192: 0.2176877745 | AJ192: 0.218816754 | AK192: 0.2199457335 | AL192: 0.221074713 | AM192: 0.2222036925 | AN192: 0.223332672 | AO192: 0.2244616515 | AP192: 0.225590631 | AQ192: 0.2267196105 | AR192: 0.22784859
K193: Class 10 - Moderate | L193: 0.1649 | M193: 0.1668126667 | N193: 0.1687253333 | O193: 0.170638 | P193: 0.1725506667 | Q193: 0.1744633333 | R193: 0.176376 | S193: 0.1782886667 | T193: 0.1802013333 | U193: 0.182114 | V193: 0.1840266667 | W193: 0.1859393333 | X193: 0.187852 | Y193: 0.188368593 | Z193: 0.188885186 | AA193: 0.189401779 | AB193: 0.189918372 | AC193: 0.190434965 | AD193: 0.190951558 | AE193: 0.191468151 | AF193: 0.191984744 | AG193: 0.192501337 | AH193: 0.19301793 | AI193: 0.193534523 | AJ193: 0.194051116 | AK193: 0.194567709 | AL193: 0.195084302 | AM193: 0.195600895 | AN193: 0.196117488 | AO193: 0.196634081 | AP193: 0.197150674 | AQ193: 0.197667267 | AR193: 0.19818386
K194: Class 10 - Conservative | L194: 0.1649 | M194: 0.1656186667 | N194: 0.1663373333 | O194: 0.167056 | P194: 0.1677746667 | Q194: 0.1684933333 | R194: 0.169212 | S194: 0.1699306667 | T194: 0.1706493333 | U194: 0.171368 | V194: 0.1720866667 | W194: 0.1728053333 | X194: 0.173524 | Y194: 0.1737625955 | Z194: 0.174001191 | AA194: 0.1742397865 | AB194: 0.174478382 | AC194: 0.1747169775 | AD194: 0.174955573 | AE194: 0.1751941685 | AF194: 0.175432764 | AG194: 0.1756713595 | AH194: 0.175909955 | AI194: 0.1761485505 | AJ194: 0.176387146 | AK194: 0.1766257415 | AL194: 0.176864337 | AM194: 0.1771029325 | AN194: 0.177341528 | AO194: 0.1775801235 | AP194: 0.177818719 | AQ194: 0.1780573145 | AR194: 0.17829591
L196: 2018 | M196: 2019 | N196: 2020 | O196: 2021 | P196: 2022 | Q196: 2023 | R196: 2024 | S196: 2025 | T196: 2026 | U196: 2027 | V196: 2028 | W196: 2029 | X196: 2030 | Y196: 2031 | Z196: 2032 | AA196: 2033 | AB196: 2034 | AC196: 2035 | AD196: 2036 | AE196: 2037 | AF196: 2038 | AG196: 2039 | AH196: 2040 | AI196: 2041 | AJ196: 2042 | AK196: 2043 | AL196: 2044 | AM196: 2045 | AN196: 2046 | AO196: 2047 | AP196: 2048 | AQ196: 2049 | AR196: 2050
J197: Annual Energy Production (kWh/kW) | K197: Class 1 - Advanced | L197: =(L165)*8760 -> 4564.27536 | M197: 4598.96788 | N197: 4633.6604 | O197: 4668.35292 | P197: 4703.04544 | Q197: 4737.73796 | R197: 4772.43048 | S197: 4807.123 | T197: 4841.81552 | U197: 4876.50804 | V197: 4911.20056 | W197: 4945.89308 | X197: 4980.5856 | Y197: 4985.566186 | Z197: 4990.546771 | AA197: 4995.527357 | AB197: 5000.507942 | AC197: 5005.488528 | AD197: 5010.469114 | AE197: 5015.449699 | AF197: 5020.430285 | AG197: 5025.41087 | AH197: 5030.391456 | AI197: 5035.372042 | AJ197: 5040.352627 | AK197: 5045.333213 | AL197: 5050.313798 | AM197: 5055.294384 | AN197: 5060.27497 | AO197: 5065.255555 | AP197: 5070.236141 | AQ197: 5075.216726 | AR197: 5080.197312
K198: Class 1 - Moderate | L198: =(L166)*8760 -> 4564.27536 | M198: 4579.82071 | N198: 4595.36606 | O198: 4610.91141 | P198: 4626.45676 | Q198: 4642.00211 | R198: 4657.54746 | S198: 4673.09281 | T198: 4688.63816 | U198: 4704.18351 | V198: 4719.72886 | W198: 4735.27421 | X198: 4750.81956 | Y198: 4753.19497 | Z198: 4755.57038 | AA198: 4757.945789 | AB198: 4760.321199 | AC198: 4762.696609 | AD198: 4765.072019 | AE198: 4767.447428 | AF198: 4769.822838 | AG198: 4772.198248 | AH198: 4774.573658 | AI198: 4776.949068 | AJ198: 4779.324477 | AK198: 4781.699887 | AL198: 4784.075297 | AM198: 4786.450707 | AN198: 4788.826116 | AO198: 4791.201526 | AP198: 4793.576936 | AQ198: 4795.952346 | AR198: 4798.327756
K199: Class 1 - Conservative | L199: =(L167)*8760 -> 4564.27536 | M199: 4555.48543 | N199: 4546.6955 | O199: 4537.90557 | P199: 4529.11564 | Q199: 4520.32571 | R199: 4511.53578 | S199: 4502.74585 | T199: 4493.95592 | U199: 4485.16599 | V199: 4476.37606 | W199: 4467.58613 | X199: 4458.7962 | Y199: 4459.910899 | Z199: 4461.025598 | AA199: 4462.140297 | AB199: 4463.254996 | AC199: 4464.369695 | AD199: 4465.484394 | AE199: 4466.599093 | AF199: 4467.713792 | AG199: 4468.828491 | AH199: 4469.94319 | AI199: 4471.05789 | AJ199: 4472.172589 | AK199: 4473.287288 | AL199: 4474.401987 | AM199: 4475.516686 | AN199: 4476.631385 | AO199: 4477.746084 | AP199: 4478.860783 | AQ199: 4479.975482 | AR199: 4481.090181
K200: Class 2 - Advanced | L200: =(L168)*8760 -> 4094.40648 | M200: 4136.74064 | N200: 4179.0748 | O200: 4221.40896 | P200: 4263.74312 | Q200: 4306.07728 | R200: 4348.41144 | S200: 4390.7456 | T200: 4433.07976 | U200: 4475.41392 | V200: 4517.74808 | W200: 4560.08224 | X200: 4602.4164 | Y200: 4609.320025 | Z200: 4616.223649 | AA200: 4623.127274 | AB200: 4630.030898 | AC200: 4636.934523 | AD200: 4643.838148 | AE200: 4650.741772 | AF200: 4657.645397 | AG200: 4664.549021 | AH200: 4671.452646 | AI200: 4678.356271 | AJ200: 4685.259895 | AK200: 4692.16352 | AL200: 4699.067144 | AM200: 4705.970769 | AN200: 4712.874394 | AO200: 4719.778018 | AP200: 4726.681643 | AQ200: 4733.585267 | AR200: 4740.488892
K201: Class 2 - Moderate | L201: =(L169)*8760 -> 4094.40648 | M201: 4117.09196 | N201: 4139.77744 | O201: 4162.46292 | P201: 4185.1484 | Q201: 4207.83388 | R201: 4230.51936 | S201: 4253.20484 | T201: 4275.89032 | U201: 4298.5758 | V201: 4321.26128 | W201: 4343.94676 | X201: 4366.63224 | Y201: 4369.907214 | Z201: 4373.182188 | AA201: 4376.457163 | AB201: 4379.732137 | AC201: 4383.007111 | AD201: 4386.282085 | AE201: 4389.557059 | AF201: 4392.832033 | AG201: 4396.107008 | AH201: 4399.381982 | AI201: 4402.656956 | AJ201: 4405.93193 | AK201: 4409.206904 | AL201: 4412.481879 | AM201: 4415.756853 | AN201: 4419.031827 | AO201: 4422.306801 | AP201: 4425.581775 | AQ201: 4428.856749 | AR201: 4432.131724
K202: Class 2 - Conservative | L202: =(L170)*8760 -> 4094.40648 | M202: 4093.87212 | N202: 4093.33776 | O202: 4092.8034 | P202: 4092.26904 | Q202: 4091.73468 | R202: 4091.20032 | S202: 4090.66596 | T202: 4090.1316 | U202: 4089.59724 | V202: 4089.06288 | W202: 4088.52852 | X202: 4087.99416 | Y202: 4089.527158 | Z202: 4091.060156 | AA202: 4092.593153 | AB202: 4094.126151 | AC202: 4095.659149 | AD202: 4097.192147 | AE202: 4098.725145 | AF202: 4100.258142 | AG202: 4101.79114 | AH202: 4103.324138 | AI202: 4104.857136 | AJ202: 4106.390134 | AK202: 4107.923132 | AL202: 4109.456129 | AM202: 4110.989127 | AN202: 4112.522125 | AO202: 4114.055123 | AP202: 4115.588121 | AQ202: 4117.121118 | AR202: 4118.654116
K203: Class 3 - Advanced | L203: =(L171)*8760 -> 3907.0914 | M203: 3954.88377 | N203: 4002.67614 | O203: 4050.46851 | P203: 4098.26088 | Q203: 4146.05325 | R203: 4193.84562 | S203: 4241.63799 | T203: 4289.43036 | U203: 4337.22273 | V203: 4385.0151 | W203: 4432.80747 | X203: 4480.59984 | Y203: 4489.56104 | Z203: 4498.522239 | AA203: 4507.483439 | AB203: 4516.444639 | AC203: 4525.405838 | AD203: 4534.367038 | AE203: 4543.328238 | AF203: 4552.289437 | AG203: 4561.250637 | AH203: 4570.211837 | AI203: 4579.173036 | AJ203: 4588.134236 | AK203: 4597.095436 | AL203: 4606.056636 | AM203: 4615.017835 | AN203: 4623.979035 | AO203: 4632.940235 | AP203: 4641.901434 | AQ203: 4650.862634 | AR203: 4659.823834
K204: Class 3 - Moderate | L204: =(L172)*8760 -> 3907.0914 | M204: 3935.30663 | N204: 3963.52186 | O204: 3991.73709 | P204: 4019.95232 | Q204: 4048.16755 | R204: 4076.38278 | S204: 4104.59801 | T204: 4132.81324 | U204: 4161.02847 | V204: 4189.2437 | W204: 4217.45893 | X204: 4245.67416 | Y204: 4249.919834 | Z204: 4254.165508 | AA204: 4258.411182 | AB204: 4262.656857 | AC204: 4266.902531 | AD204: 4271.148205 | AE204: 4275.393879 | AF204: 4279.639553 | AG204: 4283.885227 | AH204: 4288.130902 | AI204: 4292.376576 | AJ204: 4296.62225 | AK204: 4300.867924 | AL204: 4305.113598 | AM204: 4309.359272 | AN204: 4313.604947 | AO204: 4317.850621 | AP204: 4322.096295 | AQ204: 4326.341969 | AR204: 4330.587643
K205: Class 3 - Conservative | L205: =(L173)*8760 -> 3907.0914 | M205: 3912.45325 | N205: 3917.8151 | O205: 3923.17695 | P205: 3928.5388 | Q205: 3933.90065 | R205: 3939.2625 | S205: 3944.62435 | T205: 3949.9862 | U205: 3955.34805 | V205: 3960.7099 | W205: 3966.07175 | X205: 3971.4336 | Y205: 3973.419317 | Z205: 3975.405034 | AA205: 3977.39075 | AB205: 3979.376467 | AC205: 3981.362184 | AD205: 3983.347901 | AE205: 3985.333618 | AF205: 3987.319334 | AG205: 3989.305051 | AH205: 3991.290768 | AI205: 3993.276485 | AJ205: 3995.262202 | AK205: 3997.247918 | AL205: 3999.233635 | AM205: 4001.219352 | AN205: 4003.205069 | AO205: 4005.190786 | AP205: 4007.176502 | AQ205: 4009.162219 | AR205: 4011.147936
K206: Class 4 - Advanced | L206: =(L174)*8760 -> 3754.06296 | M206: 3804.39573 | N206: 3854.7285 | O206: 3905.06127 | P206: 3955.39404 | Q206: 4005.72681 | R206: 4056.05958 | S206: 4106.39235 | T206: 4156.72512 | U206: 4207.05789 | V206: 4257.39066 | W206: 4307.72343 | X206: 4358.0562 | Y206: 4368.95134 | Z206: 4379.846481 | AA206: 4390.741622 | AB206: 4401.636762 | AC206: 4412.531903 | AD206: 4423.427043 | AE206: 4434.322184 | AF206: 4445.217324 | AG206: 4456.112464 | AH206: 4467.007605 | AI206: 4477.902746 | AJ206: 4488.797886 | AK206: 4499.693027 | AL206: 4510.588167 | AM206: 4521.483307 | AN206: 4532.378448 | AO206: 4543.273589 | AP206: 4554.168729 | AQ206: 4565.06387 | AR206: 4575.95901
K207: Class 4 - Moderate | L207: =(L175)*8760 -> 3754.06296 | M207: 3784.76822 | N207: 3815.47348 | O207: 3846.17874 | P207: 3876.884 | Q207: 3907.58926 | R207: 3938.29452 | S207: 3968.99978 | T207: 3999.70504 | U207: 4030.4103 | V207: 4061.11556 | W207: 4091.82082 | X207: 4122.52608 | Y207: 4127.679238 | Z207: 4132.832395 | AA207: 4137.985553 | AB207: 4143.13871 | AC207: 4148.291868 | AD207: 4153.445026 | AE207: 4158.598183 | AF207: 4163.751341 | AG207: 4168.904498 | AH207: 4174.057656 | AI207: 4179.210814 | AJ207: 4184.363971 | AK207: 4189.517129 | AL207: 4194.670286 | AM207: 4199.823444 | AN207: 4204.976602 | AO207: 4210.129759 | AP207: 4215.282917 | AQ207: 4220.436074 | AR207: 4225.589232
K208: Class 4 - Conservative | L208: =(L176)*8760 -> 3754.06296 | M208: 3762.42365 | N208: 3770.78434 | O208: 3779.14503 | P208: 3787.50572 | Q208: 3795.86641 | R208: 3804.2271 | S208: 3812.58779 | T208: 3820.94848 | U208: 3829.30917 | V208: 3837.66986 | W208: 3846.03055 | X208: 3854.39124 | Y208: 3856.800235 | Z208: 3859.209229 | AA208: 3861.618224 | AB208: 3864.027218 | AC208: 3866.436213 | AD208: 3868.845207 | AE208: 3871.254202 | AF208: 3873.663196 | AG208: 3876.072191 | AH208: 3878.481185 | AI208: 3880.89018 | AJ208: 3883.299174 | AK208: 3885.708169 | AL208: 3888.117163 | AM208: 3890.526158 | AN208: 3892.935152 | AO208: 3895.344147 | AP208: 3897.753141 | AQ208: 3900.162136 | AR208: 3902.57113
K209: Class 5 - Advanced | L209: =(L177)*8760 -> 3583.35684 | M209: 3635.05179 | N209: 3686.74674 | O209: 3738.44169 | P209: 3790.13664 | Q209: 3841.83159 | R209: 3893.52654 | S209: 3945.22149 | T209: 3996.91644 | U209: 4048.61139 | V209: 4100.30634 | W209: 4152.00129 | X209: 4203.69624 | Y209: 4216.307329 | Z209: 4228.918417 | AA209: 4241.529506 | AB209: 4254.140595 | AC209: 4266.751684 | AD209: 4279.362772 | AE209: 4291.973861 | AF209: 4304.58495 | AG209: 4317.196038 | AH209: 4329.807127 | AI209: 4342.418216 | AJ209: 4355.029305 | AK209: 4367.640393 | AL209: 4380.251482 | AM209: 4392.862571 | AN209: 4405.47366 | AO209: 4418.084748 | AP209: 4430.695837 | AQ209: 4443.306926 | AR209: 4455.918014
K210: Class 5 - Moderate | L210: =(L178)*8760 -> 3583.35684 | M210: 3615.48122 | N210: 3647.6056 | O210: 3679.72998 | P210: 3711.85436 | Q210: 3743.97874 | R210: 3776.10312 | S210: 3808.2275 | T210: 3840.35188 | U210: 3872.47626 | V210: 3904.60064 | W210: 3936.72502 | X210: 3968.8494 | Y210: 3974.802674 | Z210: 3980.755948 | AA210: 3986.709222 | AB210: 3992.662496 | AC210: 3998.615771 | AD210: 4004.569045 | AE210: 4010.522319 | AF210: 4016.475593 | AG210: 4022.428867 | AH210: 4028.382141 | AI210: 4034.335415 | AJ210: 4040.288689 | AK210: 4046.241963 | AL210: 4052.195237 | AM210: 4058.148512 | AN210: 4064.101786 | AO210: 4070.05506 | AP210: 4076.008334 | AQ210: 4081.961608 | AR210: 4087.914882
K211: Class 5 - Conservative | L211: =(L179)*8760 -> 3583.35684 | M211: 3593.77978 | N211: 3604.20272 | O211: 3614.62566 | P211: 3625.0486 | Q211: 3635.47154 | R211: 3645.89448 | S211: 3656.31742 | T211: 3666.74036 | U211: 3677.1633 | V211: 3687.58624 | W211: 3698.00918 | X211: 3708.43212 | Y211: 3711.213444 | Z211: 3713.994768 | AA211: 3716.776092 | AB211: 3719.557416 | AC211: 3722.33874 | AD211: 3725.120065 | AE211: 3727.901389 | AF211: 3730.682713 | AG211: 3733.464037 | AH211: 3736.245361 | AI211: 3739.026685 | AJ211: 3741.808009 | AK211: 3744.589333 | AL211: 3747.370657 | AM211: 3750.151981 | AN211: 3752.933305 | AO211: 3755.71463 | AP211: 3758.495954 | AQ211: 3761.277278 | AR211: 3764.058602
K212: Class 6 - Advanced | L212: =(L180)*8760 -> 3331.21776 | M212: 3383.75659 | N212: 3436.29542 | O212: 3488.83425 | P212: 3541.37308 | Q212: 3593.91191 | R212: 3646.45074 | S212: 3698.98957 | T212: 3751.5284 | U212: 3804.06723 | V212: 3856.60606 | W212: 3909.14489 | X212: 3961.68372 | Y212: 3975.549613 | Z212: 3989.415506 | AA212: 4003.281399 | AB212: 4017.147292 | AC212: 4031.013185 | AD212: 4044.879078 | AE212: 4058.744971 | AF212: 4072.610864 | AG212: 4086.476757 | AH212: 4100.34265 | AI212: 4114.208543 | AJ212: 4128.074436 | AK212: 4141.940329 | AL212: 4155.806222 | AM212: 4169.672115 | AN212: 4183.538008 | AO212: 4197.403901 | AP212: 4211.269794 | AQ212: 4225.135687 | AR212: 4239.00158
K213: Class 6 - Moderate | L213: =(L181)*8760 -> 3331.21776 | M213: 3367.36882 | N213: 3403.51988 | O213: 3439.67094 | P213: 3475.822 | Q213: 3511.97306 | R213: 3548.12412 | S213: 3584.27518 | T213: 3620.42624 | U213: 3656.5773 | V213: 3692.72836 | W213: 3728.87942 | X213: 3765.03048 | Y213: 3771.619283 | Z213: 3778.208087 | AA213: 3784.79689 | AB213: 3791.385693 | AC213: 3797.974497 | AD213: 3804.5633 | AE213: 3811.152103 | AF213: 3817.740907 | AG213: 3824.32971 | AH213: 3830.918513 | AI213: 3837.507317 | AJ213: 3844.09612 | AK213: 3850.684923 | AL213: 3857.273727 | AM213: 3863.86253 | AN213: 3870.451333 | AO213: 3877.040137 | AP213: 3883.62894 | AQ213: 3890.217743 | AR213: 3896.806547
K214: Class 6 - Conservative | L214: =(L182)*8760 -> 3331.21776 | M214: 3343.73799 | N214: 3356.25822 | O214: 3368.77845 | P214: 3381.29868 | Q214: 3393.81891 | R214: 3406.33914 | S214: 3418.85937 | T214: 3431.3796 | U214: 3443.89983 | V214: 3456.42006 | W214: 3468.94029 | X214: 3481.46052 | Y214: 3484.506798 | Z214: 3487.553076 | AA214: 3490.599354 | AB214: 3493.645632 | AC214: 3496.69191 | AD214: 3499.738188 | AE214: 3502.784466 | AF214: 3505.830744 | AG214: 3508.877022 | AH214: 3511.9233 | AI214: 3514.969578 | AJ214: 3518.015855 | AK214: 3521.062133 | AL214: 3524.108411 | AM214: 3527.154689 | AN214: 3530.200967 | AO214: 3533.247245 | AP214: 3536.293523 | AQ214: 3539.339801 | AR214: 3542.386079
K215: Class 7 - Advanced | L215: =(L183)*8760 -> 3023.076 | M215: 3074.44756 | N215: 3125.81912 | O215: 3177.19068 | P215: 3228.56224 | Q215: 3279.9338 | R215: 3331.30536 | S215: 3382.67692 | T215: 3434.04848 | U215: 3485.42004 | V215: 3536.7916 | W215: 3588.16316 | X215: 3639.53472 | Y215: 3654.092859 | Z215: 3668.650998 | AA215: 3683.209137 | AB215: 3697.767276 | AC215: 3712.325414 | AD215: 3726.883553 | AE215: 3741.441692 | AF215: 3755.999831 | AG215: 3770.55797 | AH215: 3785.116109 | AI215: 3799.674248 | AJ215: 3814.232387 | AK215: 3828.790525 | AL215: 3843.348664 | AM215: 3857.906803 | AN215: 3872.464942 | AO215: 3887.023081 | AP215: 3901.58122 | AQ215: 3916.139359 | AR215: 3930.697498
K216: Class 7 - Moderate | L216: =(L184)*8760 -> 3023.076 | M216: 3055.6486 | N216: 3088.2212 | O216: 3120.7938 | P216: 3153.3664 | Q216: 3185.939 | R216: 3218.5116 | S216: 3251.0842 | T216: 3283.6568 | U216: 3316.2294 | V216: 3348.802 | W216: 3381.3746 | X216: 3413.9472 | Y216: 3420.775094 | Z216: 3427.602989 | AA216: 3434.430883 | AB216: 3441.258778 | AC216: 3448.086672 | AD216: 3454.914566 | AE216: 3461.742461 | AF216: 3468.570355 | AG216: 3475.39825 | AH216: 3482.226144 | AI216: 3489.054038 | AJ216: 3495.881933 | AK216: 3502.709827 | AL216: 3509.537722 | AM216: 3516.365616 | AN216: 3523.19351 | AO216: 3530.021405 | AP216: 3536.849299 | AQ216: 3543.677194 | AR216: 3550.505088
K217: Class 7 - Conservative | L217: =(L185)*8760 -> 3023.076 | M217: 3036.37879 | N217: 3049.68158 | O217: 3062.98437 | P217: 3076.28716 | Q217: 3089.58995 | R217: 3102.89274 | S217: 3116.19553 | T217: 3129.49832 | U217: 3142.80111 | V217: 3156.1039 | W217: 3169.40669 | X217: 3182.70948 | Y217: 3185.892189 | Z217: 3189.074899 | AA217: 3192.257608 | AB217: 3195.440318 | AC217: 3198.623027 | AD217: 3201.805737 | AE217: 3204.988446 | AF217: 3208.171156 | AG217: 3211.353865 | AH217: 3214.536575 | AI217: 3217.719284 | AJ217: 3220.901994 | AK217: 3224.084703 | AL217: 3227.267413 | AM217: 3230.450122 | AN217: 3233.632832 | AO217: 3236.815541 | AP217: 3239.998251 | AQ217: 3243.18096 | AR217: 3246.36367
K218: Class 8 - Advanced | L218: =(L186)*8760 -> 2664.88836 | M218: 2713.35452 | N218: 2761.82068 | O218: 2810.28684 | P218: 2858.753 | Q218: 2907.21916 | R218: 2955.68532 | S218: 3004.15148 | T218: 3052.61764 | U218: 3101.0838 | V218: 3149.54996 | W218: 3198.01612 | X218: 3246.48228 | Y218: 3261.09145 | Z218: 3275.700621 | AA218: 3290.309791 | AB218: 3304.918961 | AC218: 3319.528131 | AD218: 3334.137302 | AE218: 3348.746472 | AF218: 3363.355642 | AG218: 3377.964812 | AH218: 3392.573983 | AI218: 3407.183153 | AJ218: 3421.792323 | AK218: 3436.401493 | AL218: 3451.010664 | AM218: 3465.619834 | AN218: 3480.229004 | AO218: 3494.838174 | AP218: 3509.447345 | AQ218: 3524.056515 | AR218: 3538.665685
K219: Class 8 - Moderate | L219: =(L187)*8760 -> 2664.88836 | M219: 2695.38703 | N219: 2725.8857 | O219: 2756.38437 | P219: 2786.88304 | Q219: 2817.38171 | R219: 2847.88038 | S219: 2878.37905 | T219: 2908.87772 | U219: 2939.37639 | V219: 2969.87506 | W219: 3000.37373 | X219: 3030.8724 | Y219: 3037.691863 | Z219: 3044.511326 | AA219: 3051.330789 | AB219: 3058.150252 | AC219: 3064.969715 | AD219: 3071.789177 | AE219: 3078.60864 | AF219: 3085.428103 | AG219: 3092.247566 | AH219: 3099.067029 | AI219: 3105.886492 | AJ219: 3112.705955 | AK219: 3119.525418 | AL219: 3126.344881 | AM219: 3133.164344 | AN219: 3139.983806 | AO219: 3146.803269 | AP219: 3153.622732 | AQ219: 3160.442195 | AR219: 3167.261658
K220: Class 8 - Conservative | L220: =(L188)*8760 -> 2664.88836 | M220: 2677.87871 | N220: 2690.86906 | O220: 2703.85941 | P220: 2716.84976 | Q220: 2729.84011 | R220: 2742.83046 | S220: 2755.82081 | T220: 2768.81116 | U220: 2781.80151 | V220: 2794.79186 | W220: 2807.78221 | X220: 2820.77256 | Y220: 2823.945929 | Z220: 2827.119298 | AA220: 2830.292667 | AB220: 2833.466037 | AC220: 2836.639406 | AD220: 2839.812775 | AE220: 2842.986144 | AF220: 2846.159513 | AG220: 2849.332882 | AH220: 2852.506251 | AI220: 2855.67962 | AJ220: 2858.85299 | AK220: 2862.026359 | AL220: 2865.199728 | AM220: 2868.373097 | AN220: 2871.546466 | AO220: 2874.719835 | AP220: 2877.893204 | AQ220: 2881.066573 | AR220: 2884.239943
K221: Class 9 - Advanced | L221: =(L189)*8760 -> 2277.66132 | M221: 2321.84092 | N221: 2366.02052 | O221: 2410.20012 | P221: 2454.37972 | Q221: 2498.55932 | R221: 2542.73892 | S221: 2586.91852 | T221: 2631.09812 | U221: 2675.27772 | V221: 2719.45732 | W221: 2763.63692 | X221: 2807.81652 | Y221: 2821.855603 | Z221: 2835.894685 | AA221: 2849.933768 | AB221: 2863.97285 | AC221: 2878.011933 | AD221: 2892.051016 | AE221: 2906.090098 | AF221: 2920.129181 | AG221: 2934.168263 | AH221: 2948.207346 | AI221: 2962.246429 | AJ221: 2976.285511 | AK221: 2990.324594 | AL221: 3004.363676 | AM221: 3018.402759 | AN221: 3032.441842 | AO221: 3046.480924 | AP221: 3060.520007 | AQ221: 3074.559089 | AR221: 3088.598172
... 336 more rows

Sheet Solar - Utility PV
A1: TEST | L1: https://atb.nrel.gov/electricity/2020/index.html?t=su
T3: Inputs
J4: Take me to: | T4: Calculated
B10: X | G10: Current Costs
H12: Techno-Economic Cost and Performance Parameters | J12: Net Capacity Factor (%) | K12: Utility PV - Seattle | L12: =L100 -> 0.2180283059 | O12: Basis Year: | Q12: 2018
K13: Utility PV - Chicago | L13: =L104 -> 0.2516553284 | O13: All values are given in 2018 U.S. dollars, using the Consumer Price Index (BLS, 2020) for dollar year conversions. Projections use an inflation assumption of 2.5% per year.
K14: Utility PV - Kansas City | L14: =L107 -> 0.272238354 | O14: Utility Scale Solar Photovoltaic
K15: Utility PV - Los Angeles | L15: =L110 -> 0.3188689699 | O15: Representative plant is Single Axis tracking with capacity of 23 MW
K16: Utility PV - Daggett, CA | L16: =L113 -> 0.351461917 | O16: Overnight Capital Cost, Capacity Factor, Fixed O&M, and Variable O&M costs represent
O17: $/kW AC, unlike the commercial and residential PV cases which are represented in $/kW DC.
J18: Annual Energy Production (kWh/kW) | K18: Utility PV - Seattle | L18: =L12*8760 -> 1909.92796 | O18: Capacity factors chosen here to reflect range across the continental U.S. in ReEDS.
K19: Utility PV - Chicago | L19: =L13*8760 -> 2204.500677
K20: Utility PV - Kansas City | L20: =L14*8760 -> 2384.807981
K21: Utility PV - Los Angeles | L21: =L15*8760 -> 2793.292177
K22: Utility PV - Daggett, CA | L22: =L16*8760 -> 3078.806393
S23: Available
J24: CAPEX ($/kW) | K24: Utility PV - Seattle | L24: =L30+L36 -> 1599.901784 | S24: Capacity
K25: Utility PV - Chicago | L25: =L31+L37 -> 1599.901784 | S25: (GW)
K26: Utility PV - Kansas City | L26: =L32+L38 -> 1599.901784 | S26: 176965
K27: Utility PV - Los Angeles | L27: =L33+L39 -> 1599.901784
K28: Utility PV - Daggett, CA | L28: =L34+L40 -> 1599.901784
O29: Res PV - Seattle | P29: Res PV - Seattle | Q29: ATB values reflect annual average capacity factor over life of plant including estimated degradation, starting at 0.7% per year, reducing to 0.2%, 0.5%, and 0.5% annual degradation by 2050 for the advanced, moderate, and conservative scenarios, respectively. Capacity factors also assume an energy yield gain at the module of 20%, 10%, and 5% for advanced, moderate, and conservatives scenarios.
J30: Construction Financing Cost ($/kW) | K30: Utility PV - Seattle | L30: =(L36+L62)*($S$48-1) -> 34.01987262 | O30: Res PV - Chicago | P30: Res PV - Chicago
K31: Utility PV - Chicago | L31: =(L37+L63)*($S$48-1) -> 34.01987262 | O31: Res PV - Kansas City | P31: Res PV - Kansas City
K32: Utility PV - Kansas City | L32: =(L38+L64)*($S$48-1) -> 34.01987262 | O32: Res PV - Los Angeles | P32: Res PV - Los Angeles
K33: Utility PV - Los Angeles | L33: =(L39+L65)*($S$48-1) -> 34.01987262 | O33: Res PV - Daggett, CA | P33: Res PV - Daggett, CA
K34: Utility PV - Daggett, CA | L34: =(L40+L66)*($S$48-1) -> 34.01987262
O35: Financial Assumptions:
J36: Overnight Capital Cost ($/kW) | K36: Utility PV - Seattle | L36: =$L$168 -> 1565.881911 | O36: Inflation Rate | S36: =L219 -> 0.025
K37: Utility PV - Chicago | L37: =$L$171 -> 1565.881911 | O37: Capital Recovery Period (Years) | S37: 30
K38: Utility PV - Kansas City | L38: =$L$180 -> 1565.881911 | O38: Interest Rate Nominal - Mid | S38: =L221 -> 0.04
K39: Utility PV - Los Angeles | L39: =$L$180 -> 1565.881911 | O39: Calculated Interest Rate Real - Mid | S39: =L224 -> 0.01463414634
K40: Utility PV - Daggett, CA | L40: =$L$180 -> 1565.881911 | O40: Interest During Construction - Nominal | S40: =L226 -> 0.035
O41: Rate of Return on Equity Nominal - Mid | S41: =L228 -> 0.0775
J42: Fixed Operation and Maintenance Expenses ($/kW-yr) | K42: Utility PV - Seattle | L42: =L184 -> 18.76 | O42: Calculated Rate of Return on Equity Real - Mid | S42: =L231 -> 0.0512195122
K43: Utility PV - Chicago | L43: =L42 -> 18.76 | O43: Debt Fraction - Mid | S43: =L235 -> 0.7351774742
K44: Utility PV - Kansas City | L44: =L43 -> 18.76 | O44: Tax Rate (Federal and State) | S44: =L236 -> 0.2574
K45: Utility PV - Los Angeles | L45: =L44 -> 18.76 | O45: WACC Nominal - Mid | S45: =L238 -> 0.04236145744
K46: Utility PV - Daggett, CA | L46: =L45 -> 18.76 | O46: WACC Real - Mid | S46: =L241 -> 0.01693800726
O47: Depreciation Period | S47: 5
J48: Variable Operation and Maintenance Expenses ($/MWh) | K48: Utility PV - Seattle | L48: 0 | O48: Construction Finance Factor | S48: =SUMPRODUCT(P67:P69,Q67:Q69,R67:R69)+SUMPRODUCT(P67:P69,T67:T69,S67:S69) -> 1.021725695
K49: Utility PV - Chicago | L49: 0 | O49: Present Value of Depreciation | S49: =SUMPRODUCT(O74:T74,O76:T76) -> 0.8920301018
K50: Utility PV - Kansas City | L50: 0 | O50: Project Finance Factor | S50: =(1 - S49 * S44) / (1 - S44) -> 1.037424524
K51: Utility PV - Los Angeles | L51: 0 | O51: Capital Recovery Factor (CRF) Nominal - Mid | S51: =L245 -> 0.05949959788
K52: Utility PV - Daggett, CA | L52: 0 | O52: Capital Recovery Factor (CRF) Real - Mid | S52: =L248 -> 0.04279208885
O53: Cost of equity during construction | S53: =S41+0.02 -> 0.0975
H55: Finance | J55: Weighted Average Cost of Capital (WACC) (Nominal) (%) | K55: Utility PV - Seattle | L55: =$S$45 -> 0.04236145744
K56: Utility PV - Chicago | L56: =L55 -> 0.04236145744
K57: Utility PV - Kansas City | L57: =L56 -> 0.04236145744
K58: Utility PV - Los Angeles | L58: =L57 -> 0.04236145744
K59: Utility PV - Daggett, CA | L59: =L58 -> 0.04236145744
H62: Grid Connection Costs | J62: Grid Connection Costs (GCC) ($/kW) | K62: Utility PV - Seattle | L62: =L68+L74 -> 0 | O62: Construction Duration yrs | Q62: 1
K63: Utility PV - Chicago | L63: =L69+L75 -> 0 | O63: Year | P63: Capital | Q63: Accumulated | R63: Percent of Leverage During Construction | S63: Percent of Equity During Construction | T63: Accumulated
K64: Utility PV - Kansas City | L64: =L70+L76 -> 0 | O64: Index | P64: Fraction | Q64: Interest | T64: Equity Cost
K65: Utility PV - Los Angeles | L65: =L71+L77 -> 0
K66: Utility PV - Daggett, CA | L66: =L72+L78 -> 0
O67: 0 | P67: 1 | Q67: =1+((1+S40)^(O67+0.5)-1) -> 1.017349497 | R67: 0.8 | S67: 0.2 | T67: 1.039230485
J68: Grid Feature Costs ($/kW) | K68: Utility PV - Seattle | L68: 0 | O68: 1 | P68: 0 | Q68: =1+((1+S40)^(O68+0.5)-1) -> 1.05295673 | R68: 0.8 | S68: 0.2 | T68: 1.122368923
K69: Utility PV - Chicago | L69: 0 | O69: 2 | P69: 0 | Q69: =1+((1+S40)^(O69+0.5)-1) -> 1.089810215 | R69: 0.8 | S69: 0.2 | T69: 1.212158437
K70: Utility PV - Kansas City | L70: 0
K71: Utility PV - Los Angeles | L71: 0
K72: Utility PV - Daggett, CA | L72: 0
N73: MACRS yr | O73: 1 | P73: 2 | Q73: 3 | R73: 4 | S73: 5 | T73: 6
J74: Onshore Spur Line Costs ($/kW) | K74: Utility PV - Seattle | L74: 0 | N74: Depreciation | O74: 0.2 | P74: 0.32 | Q74: 0.192 | R74: 0.1152 | S74: 0.1152 | T74: 0.0576
K75: Utility PV - Chicago | L75: 0 | N75: Fraction
K76: Utility PV - Kansas City | L76: 0 | N76: Depreciation | O76: =1/((1+S46)*(1+S36))^O73 -> 0.9593601076 | P76: =1/((1+S46)*(1+S36))^P73 -> 0.9203718161 | Q76: =1/((1+S46)*(1+S36))^Q73 -> 0.8829680046 | R76: =1/((1+S46)*(1+S36))^R73 -> 0.8470842799 | S76: =1/((1+S46)*(1+S36))^S73 -> 0.8126588659 | T76: =1/((1+S46)*(1+S36))^T73 -> 0.7796324971
K77: Utility PV - Los Angeles | L77: 0
K78: Utility PV - Daggett, CA | L78: 0
N79: Factor
H81: LCOE | J81: Levelized Cost of Energy ($/MWh) | K81: Utility PV - Seattle | L81: =(($S$52 * $S$50 * $S$48 * (L36 * 1 + L62) +L42) * 1000 / (L12 * 8760)) + L48 + 0 -> 47.00980435
K82: Utility PV - Chicago | L82: =(($S$52 * $S$50 * $S$48 * (L37 * 1 + L63) +L43) * 1000 / (L13 * 8760)) + L49 + 0 -> 40.72819785
K83: Utility PV - Kansas City | L83: 37.6488759
K84: Utility PV - Los Angeles | L84: 32.14319664
K85: Utility PV - Daggett, CA | L85: 29.16238576
J87: Overnight Levelized Cost of Energy ($/MWh) | K87: Utility PV - Seattle | L87: =(((L36*$S$52*(1-$S$44*$S$49))/(8760*L12*(1-$S$44))+L42/(8760*L12))*1000)+L48 -> 46.21906074 | M87: * this is similar to the LCOE used in the TCDB (Transparent Cost Database)
K88: Utility PV - Chicago | L88: =(((L37*$S$52*(1-$S$44*$S$49))/(8760*L13*(1-$S$44))+L43/(8760*L13))*1000)+L49 -> 40.04311603
K89: Utility PV - Kansas City | L89: 37.01559081
K90: Utility PV - Los Angeles | L90: 31.60252161
K91: Utility PV - Daggett, CA | L91: 28.67185042
H93: ***Note: For future projections, low, mid, and high refer to the resulting low, mid, and high LCOE projections.
D96: X | G96: Future Projections
L97: Basis Year
L98: 2018 | M98: 2019 | N98: 2020 | O98: 2021 | P98: 2022 | Q98: 2023 | R98: 2024 | S98: 2025 | T98: 2026 | U98: 2027 | V98: 2028 | W98: 2029 | X98: 2030 | Y98: 2031 | Z98: 2032 | AA98: 2033 | AB98: 2034 | AC98: 2035 | AD98: 2036 | AE98: 2037 | AF98: 2038 | AG98: 2039 | AH98: 2040 | AI98: 2041 | AJ98: 2042 | AK98: 2043 | AL98: 2044 | AM98: 2045 | AN98: 2046 | AO98: 2047 | AP98: 2048 | AQ98: 2049 | AR98: 2050
H99: Techno-Economic Cost and Performance Parameters | J99: Net Capacity Factor (%) | K99: Utility PV - Seattle - Advanced | L99: 0.2180283059 | M99: 0.2214178583 | N99: 0.2248074106 | O99: 0.228196963 | P99: 0.2315865153 | Q99: 0.2349760677 | R99: 0.2383656201 | S99: 0.2417551724 | T99: 0.2451447248 | U99: 0.2485342771 | V99: 0.2519238295 | W99: 0.2553133818 | X99: 0.2587029342 | Y99: 0.2602096865 | Z99: 0.2617164388 | AA99: 0.2632231911 | AB99: 0.2647299434 | AC99: 0.2662366957 | AD99: 0.2677434479 | AE99: 0.2692502002 | AF99: 0.2707569525 | AG99: 0.2722637048 | AH99: 0.2737704571 | AI99: 0.2752772094 | AJ99: 0.2767839617 | AK99: 0.278290714 | AL99: 0.2797974662 | AM99: 0.2813042185 | AN99: 0.2828109708 | AO99: 0.2843177231 | AP99: 0.2858244754 | AQ99: 0.2873312277 | AR99: 0.28883798
K100: Utility PV - Seattle - Moderate | L100: 0.2180283059 | M100: 0.2195715318 | N100: 0.2211147578 | O100: 0.2226579837 | P100: 0.2242012097 | Q100: 0.2257444356 | R100: 0.2272876616 | S100: 0.2288308875 | T100: 0.2303741135 | U100: 0.2319173394 | V100: 0.2334605654 | W100: 0.2350037913 | X100: 0.2365470173 | Y100: 0.2376548131 | Z100: 0.238762609 | AA100: 0.2398704048 | AB100: 0.2409782007 | AC100: 0.2420859965 | AD100: 0.2431937923 | AE100: 0.2443015882 | AF100: 0.245409384 | AG100: 0.2465171799 | AH100: 0.2476249757 | AI100: 0.2487327716 | AJ100: 0.2498405674 | AK100: 0.2509483633 | AL100: 0.2520561591 | AM100: 0.253163955 | AN100: 0.2542717508 | AO100: 0.2553795467 | AP100: 0.2564873425 | AQ100: 0.2575951384 | AR100: 0.2587029342
K101: Utility PV - Seattle - Conservative | L101: 0.2180283059 | M101: 0.2180283059 | N101: 0.2180283059 | O101: 0.2180283059 | P101: 0.2180283059 | Q101: 0.2180283059 | R101: 0.2180283059 | S101: 0.2180283059 | T101: 0.2180283059 | U101: 0.2180283059 | V101: 0.2180283059 | W101: 0.2180283059 | X101: 0.2180283059 | Y101: 0.2189542415 | Z101: 0.219880177 | AA101: 0.2208061126 | AB101: 0.2217320482 | AC101: 0.2226579837 | AD101: 0.2235839193 | AE101: 0.2245098549 | AF101: 0.2254357904 | AG101: 0.226361726 | AH101: 0.2272876616 | AI101: 0.2282135971 | AJ101: 0.2291395327 | AK101: 0.2300654683 | AL101: 0.2309914039 | AM101: 0.2319173394 | AN101: 0.232843275 | AO101: 0.2337692106 | AP101: 0.2346951461 | AQ101: 0.2356210817 | AR101: 0.2365470173
K102: Utility PV - Chicago - Advanced | L102: 0.2516553284 | M102: 0.2554249863 | N102: 0.2591946442 | O102: 0.2629643022 | P102: 0.2667339601 | Q102: 0.270503618 | R102: 0.2742732759 | S102: 0.2780429338 | T102: 0.2818125918 | U102: 0.2855822497 | V102: 0.2893519076 | W102: 0.2931215655 | X102: 0.2968912235 | Y102: 0.2984645781 | Z102: 0.3000379327 | AA102: 0.3016112873 | AB102: 0.3031846419 | AC102: 0.3047579966 | AD102: 0.3063313512 | AE102: 0.3079047058 | AF102: 0.3094780604 | AG102: 0.3110514151 | AH102: 0.3126247697 | AI102: 0.3141981243 | AJ102: 0.3157714789 | AK102: 0.3173448336 | AL102: 0.3189181882 | AM102: 0.3204915428 | AN102: 0.3220648974 | AO102: 0.323638252 | AP102: 0.3252116067 | AQ102: 0.3267849613 | AR102: 0.3283583159
K103: Utility PV - Chicago - Moderate | L103: 0.2516553284 | M103: 0.2533741176 | N103: 0.2550929069 | O103: 0.2568116962 | P103: 0.2585304854 | Q103: 0.2602492747 | R103: 0.261968064 | S103: 0.2636868532 | T103: 0.2654056425 | U103: 0.2671244318 | V103: 0.268843221 | W103: 0.2705620103 | X103: 0.2722807995 | Y103: 0.2735113207 | Z103: 0.2747418419 | AA103: 0.2759723631 | AB103: 0.2772028843 | AC103: 0.2784334055 | AD103: 0.2796639267 | AE103: 0.2808944479 | AF103: 0.2821249691 | AG103: 0.2833554903 | AH103: 0.2845860115 | AI103: 0.2858165327 | AJ103: 0.2870470539 | AK103: 0.2882775751 | AL103: 0.2895080963 | AM103: 0.2907386175 | AN103: 0.2919691387 | AO103: 0.2931996599 | AP103: 0.2944301811 | AQ103: 0.2956607023 | AR103: 0.2968912235
K104: Utility PV - Chicago - Conservative | L104: 0.2516553284 | M104: 0.2516553284 | N104: 0.2516553284 | O104: 0.2516553284 | P104: 0.2516553284 | Q104: 0.2516553284 | R104: 0.2516553284 | S104: 0.2516553284 | T104: 0.2516553284 | U104: 0.2516553284 | V104: 0.2516553284 | W104: 0.2516553284 | X104: 0.2516553284 | Y104: 0.2526866019 | Z104: 0.2537178755 | AA104: 0.2547491491 | AB104: 0.2557804226 | AC104: 0.2568116962 | AD104: 0.2578429697 | AE104: 0.2588742433 | AF104: 0.2599055168 | AG104: 0.2609367904 | AH104: 0.261968064 | AI104: 0.2629993375 | AJ104: 0.2640306111 | AK104: 0.2650618846 | AL104: 0.2660931582 | AM104: 0.2671244318 | AN104: 0.2681557053 | AO104: 0.2691869789 | AP104: 0.2702182524 | AQ104: 0.271249526 | AR104: 0.2722807995
K105: Utility PV - Kansas City - Advanced | L105: 0.272238354 | M105: 0.2759728872 | N105: 0.2797074204 | O105: 0.2834419536 | P105: 0.2871764868 | Q105: 0.29091102 | R105: 0.2946455532 | S105: 0.2983800864 | T105: 0.3021146196 | U105: 0.3058491528 | V105: 0.3095836861 | W105: 0.3133182193 | X105: 0.3170527525 | Y105: 0.3188156995 | Z105: 0.3205786465 | AA105: 0.3223415936 | AB105: 0.3241045406 | AC105: 0.3258674877 | AD105: 0.3276304347 | AE105: 0.3293933818 | AF105: 0.3311563288 | AG105: 0.3329192758 | AH105: 0.3346822229 | AI105: 0.3364451699 | AJ105: 0.338208117 | AK105: 0.339971064 | AL105: 0.341734011 | AM105: 0.3434969581 | AN105: 0.3452599051 | AO105: 0.3470228522 | AP105: 0.3487857992 | AQ105: 0.3505487462 | AR105: 0.3523116933
K106: Utility PV - Kansas City - Moderate | L106: 0.272238354 | M106: 0.2739506102 | N106: 0.2756628665 | O106: 0.2773751227 | P106: 0.279087379 | Q106: 0.2807996352 | R106: 0.2825118915 | S106: 0.2842241477 | T106: 0.285936404 | U106: 0.2876486602 | V106: 0.2893609165 | W106: 0.2910731727 | X106: 0.292785429 | Y106: 0.2939987951 | Z106: 0.2952121613 | AA106: 0.2964255275 | AB106: 0.2976388937 | AC106: 0.2988522598 | AD106: 0.300065626 | AE106: 0.3012789922 | AF106: 0.3024923584 | AG106: 0.3037057245 | AH106: 0.3049190907 | AI106: 0.3061324569 | AJ106: 0.3073458231 | AK106: 0.3085591892 | AL106: 0.3097725554 | AM106: 0.3109859216 | AN106: 0.3121992878 | AO106: 0.3134126539 | AP106: 0.3146260201 | AQ106: 0.3158393863 | AR106: 0.3170527525
K107: Utility PV - Kansas City - Conservative | L107: 0.272238354 | M107: 0.272238354 | N107: 0.272238354 | O107: 0.272238354 | P107: 0.272238354 | Q107: 0.272238354 | R107: 0.272238354 | S107: 0.272238354 | T107: 0.272238354 | U107: 0.272238354 | V107: 0.272238354 | W107: 0.272238354 | X107: 0.272238354 | Y107: 0.2732657077 | Z107: 0.2742930615 | AA107: 0.2753204152 | AB107: 0.276347769 | AC107: 0.2773751227 | AD107: 0.2784024765 | AE107: 0.2794298302 | AF107: 0.280457184 | AG107: 0.2814845377 | AH107: 0.2825118915 | AI107: 0.2835392452 | AJ107: 0.284566599 | AK107: 0.2855939527 | AL107: 0.2866213065 | AM107: 0.2876486602 | AN107: 0.288676014 | AO107: 0.2897033677 | AP107: 0.2907307215 | AQ107: 0.2917580752 | AR107: 0.292785429
K108: Utility PV - Los Angeles - Advanced | L108: 0.3188689699 | M108: 0.3224141363 | N108: 0.3259593028 | O108: 0.3295044692 | P108: 0.3330496356 | Q108: 0.336594802 | R108: 0.3401399684 | S108: 0.3436851348 | T108: 0.3472303012 | U108: 0.3507754676 | V108: 0.354320634 | W108: 0.3578658005 | X108: 0.3614109669 | Y108: 0.3631659263 | Z108: 0.3649208858 | AA108: 0.3666758452 | AB108: 0.3684308047 | AC108: 0.3701857641 | AD108: 0.3719407236 | AE108: 0.3736956831 | AF108: 0.3754506425 | AG108: 0.377205602 | AH108: 0.3789605614 | AI108: 0.3807155209 | AJ108: 0.3824704803 | AK108: 0.3842254398 | AL108: 0.3859803992 | AM108: 0.3877353587 | AN108: 0.3894903182 | AO108: 0.3912452776 | AP108: 0.3930002371 | AQ108: 0.3947551965 | AR108: 0.396510156
K109: Utility PV - Los Angeles - Moderate | L109: 0.3188689699 | M109: 0.3205174208 | N109: 0.3221658716 | O109: 0.3238143225 | P109: 0.3254627733 | Q109: 0.3271112242 | R109: 0.3287596751 | S109: 0.3304081259 | T109: 0.3320565768 | U109: 0.3337050276 | V109: 0.3353534785 | W109: 0.3370019293 | X109: 0.3386503802 | Y109: 0.3397884095 | Z109: 0.3409264388 | AA109: 0.3420644682 | AB109: 0.3432024975 | AC109: 0.3443405268 | AD109: 0.3454785562 | AE109: 0.3466165855 | AF109: 0.3477546148 | AG109: 0.3488926442 | AH109: 0.3500306735 | AI109: 0.3511687029 | AJ109: 0.3523067322 | AK109: 0.3534447615 | AL109: 0.3545827909 | AM109: 0.3557208202 | AN109: 0.3568588495 | AO109: 0.3579968789 | AP109: 0.3591349082 | AQ109: 0.3602729375 | AR109: 0.3614109669
K110: Utility PV - Los Angeles - Conservative | L110: 0.3188689699 | M110: 0.3188689699 | N110: 0.3188689699 | O110: 0.3188689699 | P110: 0.3188689699 | Q110: 0.3188689699 | R110: 0.3188689699 | S110: 0.3188689699 | T110: 0.3188689699 | U110: 0.3188689699 | V110: 0.3188689699 | W110: 0.3188689699 | X110: 0.3188689699 | Y110: 0.3198580404 | Z110: 0.320847111 | AA110: 0.3218361815 | AB110: 0.322825252 | AC110: 0.3238143225 | AD110: 0.324803393 | AE110: 0.3257924635 | AF110: 0.326781534 | AG110: 0.3277706045 | AH110: 0.3287596751 | AI110: 0.3297487456 | AJ110: 0.3307378161 | AK110: 0.3317268866 | AL110: 0.3327159571 | AM110: 0.3337050276 | AN110: 0.3346940981 | AO110: 0.3356831686 | AP110: 0.3366722391 | AQ110: 0.3376613097 | AR110: 0.3386503802
K111: Utility PV - Daggett, CA - Advanced | L111: 0.351461917 | M111: 0.3550820668 | N111: 0.3587022167 | O111: 0.3623223665 | P111: 0.3659425163 | Q111: 0.3695626662 | R111: 0.373182816 | S111: 0.3768029658 | T111: 0.3804231157 | U111: 0.3840432655 | V111: 0.3876634154 | W111: 0.3912835652 | X111: 0.394903715 | Y111: 0.3967527453 | Z111: 0.3986017756 | AA111: 0.4004508058 | AB111: 0.4022998361 | AC111: 0.4041488664 | AD111: 0.4059978966 | AE111: 0.4078469269 | AF111: 0.4096959572 | AG111: 0.4115449874 | AH111: 0.4133940177 | AI111: 0.4152430479 | AJ111: 0.4170920782 | AK111: 0.4189411085 | AL111: 0.4207901387 | AM111: 0.422639169 | AN111: 0.4244881993 | AO111: 0.4263372295 | AP111: 0.4281862598 | AQ111: 0.4300352901 | AR111: 0.4318843203
K112: Utility PV - Daggett, CA - Moderate | L112: 0.351461917 | M112: 0.3531936723 | N112: 0.3549254277 | O112: 0.356657183 | P112: 0.3583889383 | Q112: 0.3601206937 | R112: 0.361852449 | S112: 0.3635842043 | T112: 0.3653159597 | U112: 0.367047715 | V112: 0.3687794704 | W112: 0.3705112257 | X112: 0.372242981 | Y112: 0.3733760177 | Z112: 0.3745090544 | AA112: 0.3756420911 | AB112: 0.3767751278 | AC112: 0.3779081645 | AD112: 0.3790412012 | AE112: 0.3801742379 | AF112: 0.3813072746 | AG112: 0.3824403113 | AH112: 0.383573348 | AI112: 0.3847063847 | AJ112: 0.3858394214 | AK112: 0.3869724581 | AL112: 0.3881054948 | AM112: 0.3892385315 | AN112: 0.3903715682 | AO112: 0.3915046049 | AP112: 0.3926376416 | AQ112: 0.3937706783 | AR112: 0.394903715
K113: Utility PV - Daggett, CA - Conservative | L113: 0.351461917 | M113: 0.351461917 | N113: 0.351461917 | O113: 0.351461917 | P113: 0.351461917 | Q113: 0.351461917 | R113: 0.351461917 | S113: 0.351461917 | T113: 0.351461917 | U113: 0.351461917 | V113: 0.351461917 | W113: 0.351461917 | X113: 0.351461917 | Y113: 0.3525009702 | Z113: 0.3535400234 | AA113: 0.3545790766 | AB113: 0.3556181298 | AC113: 0.356657183 | AD113: 0.3576962362 | AE113: 0.3587352894 | AF113: 0.3597743426 | AG113: 0.3608133958 | AH113: 0.361852449 | AI113: 0.3628915022 | AJ113: 0.3639305554 | AK113: 0.3649696086 | AL113: 0.3660086618 | AM113: 0.367047715 | AN113: 0.3680867682 | AO113: 0.3691258214 | AP113: 0.3701648746 | AQ113: 0.3712039278 | AR113: 0.372242981
L115: 2018 | M115: 2019 | N115: 2020 | O115: 2021 | P115: 2022 | Q115: 2023 | R115: 2024 | S115: 2025 | T115: 2026 | U115: 2027 | V115: 2028 | W115: 2029 | X115: 2030 | Y115: 2031 | Z115: 2032 | AA115: 2033 | AB115: 2034 | AC115: 2035 | AD115: 2036 | AE115: 2037 | AF115: 2038 | AG115: 2039 | AH115: 2040 | AI115: 2041 | AJ115: 2042 | AK115: 2043 | AL115: 2044 | AM115: 2045 | AN115: 2046 | AO115: 2047 | AP115: 2048 | AQ115: 2049 | AR115: 2050
J116: Annual Energy Production (kWh/kW) | K116: Utility PV - Seattle - Advanced | L116: =L99*8760 -> 1909.92796 | M116: 1939.620438 | N116: 1969.312917 | O116: 1999.005396 | P116: 2028.697874 | Q116: 2058.390353 | R116: 2088.082832 | S116: 2117.77531 | T116: 2147.467789 | U116: 2177.160268 | V116: 2206.852746 | W116: 2236.545225 | X116: 2266.237704 | Y116: 2279.436854 | Z116: 2292.636004 | AA116: 2305.835154 | AB116: 2319.034304 | AC116: 2332.233454 | AD116: 2345.432604 | AE116: 2358.631754 | AF116: 2371.830904 | AG116: 2385.030054 | AH116: 2398.229204 | AI116: 2411.428354 | AJ116: 2424.627504 | AK116: 2437.826654 | AL116: 2451.025804 | AM116: 2464.224954 | AN116: 2477.424104 | AO116: 2490.623254 | AP116: 2503.822404 | AQ116: 2517.021555 | AR116: 2530.220705
K117: Utility PV - Seattle - Moderate | L117: =L100*8760 -> 1909.92796 | M117: 1923.446619 | N117: 1936.965278 | O117: 1950.483938 | P117: 1964.002597 | Q117: 1977.521256 | R117: 1991.039915 | S117: 2004.558575 | T117: 2018.077234 | U117: 2031.595893 | V117: 2045.114553 | W117: 2058.633212 | X117: 2072.151871 | Y117: 2081.856163 | Z117: 2091.560454 | AA117: 2101.264746 | AB117: 2110.969038 | AC117: 2120.673329 | AD117: 2130.377621 | AE117: 2140.081913 | AF117: 2149.786204 | AG117: 2159.490496 | AH117: 2169.194787 | AI117: 2178.899079 | AJ117: 2188.603371 | AK117: 2198.307662 | AL117: 2208.011954 | AM117: 2217.716246 | AN117: 2227.420537 | AO117: 2237.124829 | AP117: 2246.82912 | AQ117: 2256.533412 | AR117: 2266.237704
K118: Utility PV - Seattle - Conservative | L118: =L101*8760 -> 1909.92796 | M118: 1909.92796 | N118: 1909.92796 | O118: 1909.92796 | P118: 1909.92796 | Q118: 1909.92796 | R118: 1909.92796 | S118: 1909.92796 | T118: 1909.92796 | U118: 1909.92796 | V118: 1909.92796 | W118: 1909.92796 | X118: 1909.92796 | Y118: 1918.039155 | Z118: 1926.150351 | AA118: 1934.261546 | AB118: 1942.372742 | AC118: 1950.483938 | AD118: 1958.595133 | AE118: 1966.706329 | AF118: 1974.817524 | AG118: 1982.92872 | AH118: 1991.039915 | AI118: 1999.151111 | AJ118: 2007.262307 | AK118: 2015.373502 | AL118: 2023.484698 | AM118: 2031.595893 | AN118: 2039.707089 | AO118: 2047.818285 | AP118: 2055.92948 | AQ118: 2064.040676 | AR118: 2072.151871
K119: Utility PV - Chicago - Advanced | L119: =L102*8760 -> 2204.500677 | M119: 2237.52288 | N119: 2270.545083 | O119: 2303.567287 | P119: 2336.58949 | Q119: 2369.611694 | R119: 2402.633897 | S119: 2435.6561 | T119: 2468.678304 | U119: 2501.700507 | V119: 2534.722711 | W119: 2567.744914 | X119: 2600.767118 | Y119: 2614.549704 | Z119: 2628.33229 | AA119: 2642.114877 | AB119: 2655.897463 | AC119: 2669.68005 | AD119: 2683.462636 | AE119: 2697.245223 | AF119: 2711.027809 | AG119: 2724.810396 | AH119: 2738.592982 | AI119: 2752.375569 | AJ119: 2766.158155 | AK119: 2779.940742 | AL119: 2793.723328 | AM119: 2807.505915 | AN119: 2821.288501 | AO119: 2835.071088 | AP119: 2848.853674 | AQ119: 2862.636261 | AR119: 2876.418847
K120: Utility PV - Chicago - Moderate | L120: =L103*8760 -> 2204.500677 | M120: 2219.557271 | N120: 2234.613865 | O120: 2249.670458 | P120: 2264.727052 | Q120: 2279.783646 | R120: 2294.84024 | S120: 2309.896834 | T120: 2324.953428 | U120: 2340.010022 | V120: 2355.066616 | W120: 2370.12321 | X120: 2385.179804 | Y120: 2395.95917 | Z120: 2406.738535 | AA120: 2417.517901 | AB120: 2428.297267 | AC120: 2439.076632 | AD120: 2449.855998 | AE120: 2460.635364 | AF120: 2471.414729 | AG120: 2482.194095 | AH120: 2492.973461 | AI120: 2503.752826 | AJ120: 2514.532192 | AK120: 2525.311558 | AL120: 2536.090923 | AM120: 2546.870289 | AN120: 2557.649655 | AO120: 2568.42902 | AP120: 2579.208386 | AQ120: 2589.987752 | AR120: 2600.767118
K121: Utility PV - Chicago - Conservative | L121: =L104*8760 -> 2204.500677 | M121: 2204.500677 | N121: 2204.500677 | O121: 2204.500677 | P121: 2204.500677 | Q121: 2204.500677 | R121: 2204.500677 | S121: 2204.500677 | T121: 2204.500677 | U121: 2204.500677 | V121: 2204.500677 | W121: 2204.500677 | X121: 2204.500677 | Y121: 2213.534633 | Z121: 2222.568589 | AA121: 2231.602546 | AB121: 2240.636502 | AC121: 2249.670458 | AD121: 2258.704415 | AE121: 2267.738371 | AF121: 2276.772328 | AG121: 2285.806284 | AH121: 2294.84024 | AI121: 2303.874197 | AJ121: 2312.908153 | AK121: 2321.942109 | AL121: 2330.976066 | AM121: 2340.010022 | AN121: 2349.043979 | AO121: 2358.077935 | AP121: 2367.111891 | AQ121: 2376.145848 | AR121: 2385.179804
K122: Utility PV - Kansas City - Advanced | L122: =L105*8760 -> 2384.807981 | M122: 2417.522492 | N122: 2450.237003 | O122: 2482.951514 | P122: 2515.666024 | Q122: 2548.380535 | R122: 2581.095046 | S122: 2613.809557 | T122: 2646.524068 | U122: 2679.238579 | V122: 2711.95309 | W122: 2744.667601 | X122: 2777.382112 | Y122: 2792.825528 | Z122: 2808.268944 | AA122: 2823.71236 | AB122: 2839.155776 | AC122: 2854.599192 | AD122: 2870.042608 | AE122: 2885.486024 | AF122: 2900.92944 | AG122: 2916.372856 | AH122: 2931.816272 | AI122: 2947.259688 | AJ122: 2962.703105 | AK122: 2978.146521 | AL122: 2993.589937 | AM122: 3009.033353 | AN122: 3024.476769 | AO122: 3039.920185 | AP122: 3055.363601 | AQ122: 3070.807017 | AR122: 3086.250433
K123: Utility PV - Kansas City - Moderate | L123: =L106*8760 -> 2384.807981 | M123: 2399.807346 | N123: 2414.80671 | O123: 2429.806075 | P123: 2444.80544 | Q123: 2459.804805 | R123: 2474.804169 | S123: 2489.803534 | T123: 2504.802899 | U123: 2519.802264 | V123: 2534.801628 | W123: 2549.800993 | X123: 2564.800358 | Y123: 2575.429445 | Z123: 2586.058533 | AA123: 2596.687621 | AB123: 2607.316709 | AC123: 2617.945796 | AD123: 2628.574884 | AE123: 2639.203972 | AF123: 2649.833059 | AG123: 2660.462147 | AH123: 2671.091235 | AI123: 2681.720322 | AJ123: 2692.34941 | AK123: 2702.978498 | AL123: 2713.607585 | AM123: 2724.236673 | AN123: 2734.865761 | AO123: 2745.494849 | AP123: 2756.123936 | AQ123: 2766.753024 | AR123: 2777.382112
K124: Utility PV - Kansas City - Conservative | L124: =L107*8760 -> 2384.807981 | M124: 2384.807981 | N124: 2384.807981 | O124: 2384.807981 | P124: 2384.807981 | Q124: 2384.807981 | R124: 2384.807981 | S124: 2384.807981 | T124: 2384.807981 | U124: 2384.807981 | V124: 2384.807981 | W124: 2384.807981 | X124: 2384.807981 | Y124: 2393.8076 | Z124: 2402.807219 | AA124: 2411.806837 | AB124: 2420.806456 | AC124: 2429.806075 | AD124: 2438.805694 | AE124: 2447.805313 | AF124: 2456.804932 | AG124: 2465.80455 | AH124: 2474.804169 | AI124: 2483.803788 | AJ124: 2492.803407 | AK124: 2501.803026 | AL124: 2510.802645 | AM124: 2519.802264 | AN124: 2528.801882 | AO124: 2537.801501 | AP124: 2546.80112 | AQ124: 2555.800739 | AR124: 2564.800358
K125: Utility PV - Los Angeles - Advanced | L125: =L108*8760 -> 2793.292177 | M125: 2824.347834 | N125: 2855.403492 | O125: 2886.45915 | P125: 2917.514808 | Q125: 2948.570465 | R125: 2979.626123 | S125: 3010.681781 | T125: 3041.737439 | U125: 3072.793096 | V125: 3103.848754 | W125: 3134.904412 | X125: 3165.96007 | Y125: 3181.333515 | Z125: 3196.706959 | AA125: 3212.080404 | AB125: 3227.453849 | AC125: 3242.827294 | AD125: 3258.200739 | AE125: 3273.574184 | AF125: 3288.947628 | AG125: 3304.321073 | AH125: 3319.694518 | AI125: 3335.067963 | AJ125: 3350.441408 | AK125: 3365.814853 | AL125: 3381.188297 | AM125: 3396.561742 | AN125: 3411.935187 | AO125: 3427.308632 | AP125: 3442.682077 | AQ125: 3458.055522 | AR125: 3473.428966
K126: Utility PV - Los Angeles - Moderate | L126: =L109*8760 -> 2793.292177 | M126: 2807.732606 | N126: 2822.173036 | O126: 2836.613465 | P126: 2851.053895 | Q126: 2865.494324 | R126: 2879.934753 | S126: 2894.375183 | T126: 2908.815612 | U126: 2923.256042 | V126: 2937.696471 | W126: 2952.136901 | X126: 2966.57733 | Y126: 2976.546467 | Z126: 2986.515604 | AA126: 2996.484741 | AB126: 3006.453878 | AC126: 3016.423015 | AD126: 3026.392152 | AE126: 3036.361289 | AF126: 3046.330426 | AG126: 3056.299563 | AH126: 3066.2687 | AI126: 3076.237837 | AJ126: 3086.206974 | AK126: 3096.176111 | AL126: 3106.145248 | AM126: 3116.114385 | AN126: 3126.083522 | AO126: 3136.052659 | AP126: 3146.021796 | AQ126: 3155.990933 | AR126: 3165.96007
K127: Utility PV - Los Angeles - Conservative | L127: =L110*8760 -> 2793.292177 | M127: 2793.292177 | N127: 2793.292177 | O127: 2793.292177 | P127: 2793.292177 | Q127: 2793.292177 | R127: 2793.292177 | S127: 2793.292177 | T127: 2793.292177 | U127: 2793.292177 | V127: 2793.292177 | W127: 2793.292177 | X127: 2793.292177 | Y127: 2801.956434 | Z127: 2810.620692 | AA127: 2819.28495 | AB127: 2827.949207 | AC127: 2836.613465 | AD127: 2845.277723 | AE127: 2853.94198 | AF127: 2862.606238 | AG127: 2871.270496 | AH127: 2879.934753 | AI127: 2888.599011 | AJ127: 2897.263269 | AK127: 2905.927527 | AL127: 2914.591784 | AM127: 2923.256042 | AN127: 2931.9203 | AO127: 2940.584557 | AP127: 2949.248815 | AQ127: 2957.913073 | AR127: 2966.57733
K128: Utility PV - Daggett, CA - Advanced | L128: =L111*8760 -> 3078.806393 | M128: 3110.518905 | N128: 3142.231418 | O128: 3173.94393 | P128: 3205.656443 | Q128: 3237.368956 | R128: 3269.081468 | S128: 3300.793981 | T128: 3332.506493 | U128: 3364.219006 | V128: 3395.931519 | W128: 3427.644031 | X128: 3459.356544 | Y128: 3475.554049 | Z128: 3491.751554 | AA128: 3507.949059 | AB128: 3524.146564 | AC128: 3540.344069 | AD128: 3556.541574 | AE128: 3572.73908 | AF128: 3588.936585 | AG128: 3605.13409 | AH128: 3621.331595 | AI128: 3637.5291 | AJ128: 3653.726605 | AK128: 3669.92411 | AL128: 3686.121615 | AM128: 3702.319121 | AN128: 3718.516626 | AO128: 3734.714131 | AP128: 3750.911636 | AQ128: 3767.109141 | AR128: 3783.306646
K129: Utility PV - Daggett, CA - Moderate | L129: =L112*8760 -> 3078.806393 | M129: 3093.976569 | N129: 3109.146746 | O129: 3124.316923 | P129: 3139.4871 | Q129: 3154.657276 | R129: 3169.827453 | S129: 3184.99763 | T129: 3200.167807 | U129: 3215.337984 | V129: 3230.50816 | W129: 3245.678337 | X129: 3260.848514 | Y129: 3270.773915 | Z129: 3280.699317 | AA129: 3290.624718 | AB129: 3300.55012 | AC129: 3310.475521 | AD129: 3320.400923 | AE129: 3330.326324 | AF129: 3340.251726 | AG129: 3350.177127 | AH129: 3360.102529 | AI129: 3370.02793 | AJ129: 3379.953332 | AK129: 3389.878733 | AL129: 3399.804135 | AM129: 3409.729536 | AN129: 3419.654938 | AO129: 3429.580339 | AP129: 3439.505741 | AQ129: 3449.431142 | AR129: 3459.356544
K130: Utility PV - Daggett, CA - Conservative | L130: =L113*8760 -> 3078.806393 | M130: 3078.806393 | N130: 3078.806393 | O130: 3078.806393 | P130: 3078.806393 | Q130: 3078.806393 | R130: 3078.806393 | S130: 3078.806393 | T130: 3078.806393 | U130: 3078.806393 | V130: 3078.806393 | W130: 3078.806393 | X130: 3078.806393 | Y130: 3087.908499 | Z130: 3097.010605 | AA130: 3106.112711 | AB130: 3115.214817 | AC130: 3124.316923 | AD130: 3133.419029 | AE130: 3142.521135 | AF130: 3151.623241 | AG130: 3160.725347 | AH130: 3169.827453 | AI130: 3178.929559 | AJ130: 3188.031665 | AK130: 3197.133771 | AL130: 3206.235877 | AM130: 3215.337984 | AN130: 3224.44009 | AO130: 3233.542196 | AP130: 3242.644302 | AQ130: 3251.746408 | AR130: 3260.848514
L132: 2018 | M132: 2019 | N132: 2020 | O132: 2021 | P132: 2022 | Q132: 2023 | R132: 2024 | S132: 2025 | T132: 2026 | U132: 2027 | V132: 2028 | W132: 2029 | X132: 2030 | Y132: 2031 | Z132: 2032 | AA132: 2033 | AB132: 2034 | AC132: 2035 | AD132: 2036 | AE132: 2037 | AF132: 2038 | AG132: 2039 | AH132: 2040 | AI132: 2041 | AJ132: 2042 | AK132: 2043 | AL132: 2044 | AM132: 2045 | AN132: 2046 | AO132: 2047 | AP132: 2048 | AQ132: 2049 | AR132: 2050
J133: CAPEX ($/kW) | K133: Utility PV - Seattle - Advanced | L133: =L150+L167 -> 1599.901784 | M133: 1405.258715 | N133: 1340.034403 | O133: 1274.810092 | P133: 1209.58578 | Q133: 1144.361469 | R133: 1079.137157 | S133: 1013.912846 | T133: 948.6885345 | U133: 883.464223 | V133: 818.2399116 | W133: 753.0156001 | X133: 687.7912887 | Y133: 679.2804627 | Z133: 670.7696367 | AA133: 662.2588108 | AB133: 653.7479848 | AC133: 645.2371589 | AD133: 636.7263329 | AE133: 628.215507 | AF133: 619.704681 | AG133: 611.1938551 | AH133: 602.6830291 | AI133: 594.1722032 | AJ133: 585.6613772 | AK133: 577.1505512 | AL133: 568.6397253 | AM133: 560.1288993 | AN133: 551.6180734 | AO133: 543.1072474 | AP133: 534.5964215 | AQ133: 526.0855955 | AR133: 517.5747696
K134: Utility PV - Seattle - Moderate | L134: =L151+L168 -> 1599.901784 | M134: 1405.258715 | N134: 1353.542857 | O134: 1301.826999 | P134: 1250.111141 | Q134: 1198.395283 | R134: 1146.679426 | S134: 1094.963568 | T134: 1043.24771 | U134: 991.531852 | V134: 939.8159941 | W134: 888.1001363 | X134: 836.3842785 | Y134: 828.954629 | Z134: 821.5249795 | AA134: 814.09533 | AB134: 806.6656805 | AC134: 799.236031 | AD134: 791.8063815 | AE134: 784.376732 | AF134: 776.9470825 | AG134: 769.5174331 | AH134: 762.0877836 | AI134: 754.6581341 | AJ134: 747.2284846 | AK134: 739.7988351 | AL134: 732.3691856 | AM134: 724.9395361 | AN134: 717.5098866 | AO134: 710.0802371 | AP134: 702.6505876 | AQ134: 695.2209381 | AR134: 687.7912887
K135: Utility PV - Seattle - Conservative | L135: =L152+L169 -> 1599.901784 | M135: 1405.258715 | N135: 1388.723234 | O135: 1372.187753 | P135: 1355.652272 | Q135: 1339.116792 | R135: 1322.581311 | S135: 1306.04583 | T135: 1289.510349 | U135: 1272.974868 | V135: 1256.439388 | W135: 1239.903907 | X135: 1223.368426 | Y135: 1204.019219 | Z135: 1184.670011 | AA135: 1165.320804 | AB135: 1145.971597 | AC135: 1126.622389 | AD135: 1107.273182 | AE135: 1087.923974 | AF135: 1068.574767 | AG135: 1049.22556 | AH135: 1029.876352 | AI135: 1010.527145 | AJ135: 991.1779375 | AK135: 971.8287301 | AL135: 952.4795227 | AM135: 933.1303154 | AN135: 913.781108 | AO135: 894.4319006 | AP135: 875.0826932 | AQ135: 855.7334858 | AR135: 836.3842785
K136: Utility PV - Chicago - Advanced | L136: =L153+L170 -> 1599.901784 | M136: 1405.258715 | N136: 1340.034403 | O136: 1274.810092 | P136: 1209.58578 | Q136: 1144.361469 | R136: 1079.137157 | S136: 1013.912846 | T136: 948.6885345 | U136: 883.464223 | V136: 818.2399116 | W136: 753.0156001 | X136: 687.7912887 | Y136: 679.2804627 | Z136: 670.7696367 | AA136: 662.2588108 | AB136: 653.7479848 | AC136: 645.2371589 | AD136: 636.7263329 | AE136: 628.215507 | AF136: 619.704681 | AG136: 611.1938551 | AH136: 602.6830291 | AI136: 594.1722032 | AJ136: 585.6613772 | AK136: 577.1505512 | AL136: 568.6397253 | AM136: 560.1288993 | AN136: 551.6180734 | AO136: 543.1072474 | AP136: 534.5964215 | AQ136: 526.0855955 | AR136: 517.5747696
K137: Utility PV - Chicago - Moderate | L137: =L154+L171 -> 1599.901784 | M137: 1405.258715 | N137: 1353.542857 | O137: 1301.826999 | P137: 1250.111141 | Q137: 1198.395283 | R137: 1146.679426 | S137: 1094.963568 | T137: 1043.24771 | U137: 991.531852 | V137: 939.8159941 | W137: 888.1001363 | X137: 836.3842785 | Y137: 828.954629 | Z137: 821.5249795 | AA137: 814.09533 | AB137: 806.6656805 | AC137: 799.236031 | AD137: 791.8063815 | AE137: 784.376732 | AF137: 776.9470825 | AG137: 769.5174331 | AH137: 762.0877836 | AI137: 754.6581341 | AJ137: 747.2284846 | AK137: 739.7988351 | AL137: 732.3691856 | AM137: 724.9395361 | AN137: 717.5098866 | AO137: 710.0802371 | AP137: 702.6505876 | AQ137: 695.2209381 | AR137: 687.7912887
K138: Utility PV - Chicago - Conservative | L138: =L155+L172 -> 1599.901784 | M138: 1405.258715 | N138: 1388.723234 | O138: 1372.187753 | P138: 1355.652272 | Q138: 1339.116792 | R138: 1322.581311 | S138: 1306.04583 | T138: 1289.510349 | U138: 1272.974868 | V138: 1256.439388 | W138: 1239.903907 | X138: 1223.368426 | Y138: 1204.019219 | Z138: 1184.670011 | AA138: 1165.320804 | AB138: 1145.971597 | AC138: 1126.622389 | AD138: 1107.273182 | AE138: 1087.923974 | AF138: 1068.574767 | AG138: 1049.22556 | AH138: 1029.876352 | AI138: 1010.527145 | AJ138: 991.1779375 | AK138: 971.8287301 | AL138: 952.4795227 | AM138: 933.1303154 | AN138: 913.781108 | AO138: 894.4319006 | AP138: 875.0826932 | AQ138: 855.7334858 | AR138: 836.3842785
K139: Utility PV - Kansas City - Advanced | L139: =L156+L173 -> 1599.901784 | M139: 1405.258715 | N139: 1340.034403 | O139: 1274.810092 | P139: 1209.58578 | Q139: 1144.361469 | R139: 1079.137157 | S139: 1013.912846 | T139: 948.6885345 | U139: 883.464223 | V139: 818.2399116 | W139: 753.0156001 | X139: 687.7912887 | Y139: 679.2804627 | Z139: 670.7696367 | AA139: 662.2588108 | AB139: 653.7479848 | AC139: 645.2371589 | AD139: 636.7263329 | AE139: 628.215507 | AF139: 619.704681 | AG139: 611.1938551 | AH139: 602.6830291 | AI139: 594.1722032 | AJ139: 585.6613772 | AK139: 577.1505512 | AL139: 568.6397253 | AM139: 560.1288993 | AN139: 551.6180734 | AO139: 543.1072474 | AP139: 534.5964215 | AQ139: 526.0855955 | AR139: 517.5747696
K140: Utility PV - Kansas City - Moderate | L140: =L157+L174 -> 1599.901784 | M140: 1405.258715 | N140: 1353.542857 | O140: 1301.826999 | P140: 1250.111141 | Q140: 1198.395283 | R140: 1146.679426 | S140: 1094.963568 | T140: 1043.24771 | U140: 991.531852 | V140: 939.8159941 | W140: 888.1001363 | X140: 836.3842785 | Y140: 828.954629 | Z140: 821.5249795 | AA140: 814.09533 | AB140: 806.6656805 | AC140: 799.236031 | AD140: 791.8063815 | AE140: 784.376732 | AF140: 776.9470825 | AG140: 769.5174331 | AH140: 762.0877836 | AI140: 754.6581341 | AJ140: 747.2284846 | AK140: 739.7988351 | AL140: 732.3691856 | AM140: 724.9395361 | AN140: 717.5098866 | AO140: 710.0802371 | AP140: 702.6505876 | AQ140: 695.2209381 | AR140: 687.7912887
K141: Utility PV - Kansas City - Conservative | L141: =L158+L175 -> 1599.901784 | M141: 1405.258715 | N141: 1388.723234 | O141: 1372.187753 | P141: 1355.652272 | Q141: 1339.116792 | R141: 1322.581311 | S141: 1306.04583 | T141: 1289.510349 | U141: 1272.974868 | V141: 1256.439388 | W141: 1239.903907 | X141: 1223.368426 | Y141: 1204.019219 | Z141: 1184.670011 | AA141: 1165.320804 | AB141: 1145.971597 | AC141: 1126.622389 | AD141: 1107.273182 | AE141: 1087.923974 | AF141: 1068.574767 | AG141: 1049.22556 | AH141: 1029.876352 | AI141: 1010.527145 | AJ141: 991.1779375 | AK141: 971.8287301 | AL141: 952.4795227 | AM141: 933.1303154 | AN141: 913.781108 | AO141: 894.4319006 | AP141: 875.0826932 | AQ141: 855.7334858 | AR141: 836.3842785
K142: Utility PV - Los Angeles - Advanced | L142: =L159+L176 -> 1599.901784 | M142: 1405.258715 | N142: 1340.034403 | O142: 1274.810092 | P142: 1209.58578 | Q142: 1144.361469 | R142: 1079.137157 | S142: 1013.912846 | T142: 948.6885345 | U142: 883.464223 | V142: 818.2399116 | W142: 753.0156001 | X142: 687.7912887 | Y142: 679.2804627 | Z142: 670.7696367 | AA142: 662.2588108 | AB142: 653.7479848 | AC142: 645.2371589 | AD142: 636.7263329 | AE142: 628.215507 | AF142: 619.704681 | AG142: 611.1938551 | AH142: 602.6830291 | AI142: 594.1722032 | AJ142: 585.6613772 | AK142: 577.1505512 | AL142: 568.6397253 | AM142: 560.1288993 | AN142: 551.6180734 | AO142: 543.1072474 | AP142: 534.5964215 | AQ142: 526.0855955 | AR142: 517.5747696
K143: Utility PV - Los Angeles - Moderate | L143: =L160+L177 -> 1599.901784 | M143: 1405.258715 | N143: 1353.542857 | O143: 1301.826999 | P143: 1250.111141 | Q143: 1198.395283 | R143: 1146.679426 | S143: 1094.963568 | T143: 1043.24771 | U143: 991.531852 | V143: 939.8159941 | W143: 888.1001363 | X143: 836.3842785 | Y143: 828.954629 | Z143: 821.5249795 | AA143: 814.09533 | AB143: 806.6656805 | AC143: 799.236031 | AD143: 791.8063815 | AE143: 784.376732 | AF143: 776.9470825 | AG143: 769.5174331 | AH143: 762.0877836 | AI143: 754.6581341 | AJ143: 747.2284846 | AK143: 739.7988351 | AL143: 732.3691856 | AM143: 724.9395361 | AN143: 717.5098866 | AO143: 710.0802371 | AP143: 702.6505876 | AQ143: 695.2209381 | AR143: 687.7912887
K144: Utility PV - Los Angeles - Conservative | L144: =L161+L178 -> 1599.901784 | M144: 1405.258715 | N144: 1388.723234 | O144: 1372.187753 | P144: 1355.652272 | Q144: 1339.116792 | R144: 1322.581311 | S144: 1306.04583 | T144: 1289.510349 | U144: 1272.974868 | V144: 1256.439388 | W144: 1239.903907 | X144: 1223.368426 | Y144: 1204.019219 | Z144: 1184.670011 | AA144: 1165.320804 | AB144: 1145.971597 | AC144: 1126.622389 | AD144: 1107.273182 | AE144: 1087.923974 | AF144: 1068.574767 | AG144: 1049.22556 | AH144: 1029.876352 | AI144: 1010.527145 | AJ144: 991.1779375 | AK144: 971.8287301 | AL144: 952.4795227 | AM144: 933.1303154 | AN144: 913.781108 | AO144: 894.4319006 | AP144: 875.0826932 | AQ144: 855.7334858 | AR144: 836.3842785
K145: Utility PV - Daggett, CA - Advanced | L145: =L162+L179 -> 1599.901784 | M145: 1405.258715 | N145: 1340.034403 | O145: 1274.810092 | P145: 1209.58578 | Q145: 1144.361469 | R145: 1079.137157 | S145: 1013.912846 | T145: 948.6885345 | U145: 883.464223 | V145: 818.2399116 | W145: 753.0156001 | X145: 687.7912887 | Y145: 679.2804627 | Z145: 670.7696367 | AA145: 662.2588108 | AB145: 653.7479848 | AC145: 645.2371589 | AD145: 636.7263329 | AE145: 628.215507 | AF145: 619.704681 | AG145: 611.1938551 | AH145: 602.6830291 | AI145: 594.1722032 | AJ145: 585.6613772 | AK145: 577.1505512 | AL145: 568.6397253 | AM145: 560.1288993 | AN145: 551.6180734 | AO145: 543.1072474 | AP145: 534.5964215 | AQ145: 526.0855955 | AR145: 517.5747696
K146: Utility PV - Daggett, CA - Moderate | L146: =L163+L180 -> 1599.901784 | M146: 1405.258715 | N146: 1353.542857 | O146: 1301.826999 | P146: 1250.111141 | Q146: 1198.395283 | R146: 1146.679426 | S146: 1094.963568 | T146: 1043.24771 | U146: 991.531852 | V146: 939.8159941 | W146: 888.1001363 | X146: 836.3842785 | Y146: 828.954629 | Z146: 821.5249795 | AA146: 814.09533 | AB146: 806.6656805 | AC146: 799.236031 | AD146: 791.8063815 | AE146: 784.376732 | AF146: 776.9470825 | AG146: 769.5174331 | AH146: 762.0877836 | AI146: 754.6581341 | AJ146: 747.2284846 | AK146: 739.7988351 | AL146: 732.3691856 | AM146: 724.9395361 | AN146: 717.5098866 | AO146: 710.0802371 | AP146: 702.6505876 | AQ146: 695.2209381 | AR146: 687.7912887
K147: Utility PV - Daggett, CA - Conservative | L147: =L164+L181 -> 1599.901784 | M147: 1405.258715 | N147: 1388.723234 | O147: 1372.187753 | P147: 1355.652272 | Q147: 1339.116792 | R147: 1322.581311 | S147: 1306.04583 | T147: 1289.510349 | U147: 1272.974868 | V147: 1256.439388 | W147: 1239.903907 | X147: 1223.368426 | Y147: 1204.019219 | Z147: 1184.670011 | AA147: 1165.320804 | AB147: 1145.971597 | AC147: 1126.622389 | AD147: 1107.273182 | AE147: 1087.923974 | AF147: 1068.574767 | AG147: 1049.22556 | AH147: 1029.876352 | AI147: 1010.527145 | AJ147: 991.1779375 | AK147: 971.8287301 | AL147: 952.4795227 | AM147: 933.1303154 | AN147: 913.781108 | AO147: 894.4319006 | AP147: 875.0826932 | AQ147: 855.7334858 | AR147: 836.3842785
L149: 2018 | M149: 2019 | N149: 2020 | O149: 2021 | P149: 2022 | Q149: 2023 | R149: 2024 | S149: 2025 | T149: 2026 | U149: 2027 | V149: 2028 | W149: 2029 | X149: 2030 | Y149: 2031 | Z149: 2032 | AA149: 2033 | AB149: 2034 | AC149: 2035 | AD149: 2036 | AE149: 2037 | AF149: 2038 | AG149: 2039 | AH149: 2040 | AI149: 2041 | AJ149: 2042 | AK149: 2043 | AL149: 2044 | AM149: 2045 | AN149: 2046 | AO149: 2047 | AP149: 2048 | AQ149: 2049 | AR149: 2050
J150: Construction Financing Cost ($/kW) | K150: Utility PV - Seattle - Advanced | L150: =($S$48-1)*(L167+L269) -> 34.01987262 | M150: 29.8810358 | N150: 28.49412394 | O150: 27.10721207 | P150: 25.7203002 | Q150: 24.33338834 | R150: 22.94647647 | S150: 21.55956461 | T150: 20.17265274 | U150: 18.78574088 | V150: 17.39882901 | W150: 16.01191714 | X150: 14.62500528 | Y150: 14.44403341 | Z150: 14.26306154 | AA150: 14.08208967 | AB150: 13.90111781 | AC150: 13.72014594 | AD150: 13.53917407 | AE150: 13.3582022 | AF150: 13.17723033 | AG150: 12.99625846 | AH150: 12.8152866 | AI150: 12.63431473 | AJ150: 12.45334286 | AK150: 12.27237099 | AL150: 12.09139912 | AM150: 11.91042725 | AN150: 11.72945539 | AO150: 11.54848352 | AP150: 11.36751165 | AQ150: 11.18653978 | AR150: 11.00556791
K151: Utility PV - Seattle - Moderate | L151: =($S$48-1)*(L168+L270) -> 34.01987262 | M151: 29.8810358 | N151: 28.78136399 | O151: 27.68169217 | P151: 26.58202036 | Q151: 25.48234855 | R151: 24.38267673 | S151: 23.28300492 | T151: 22.1833331 | U151: 21.08366129 | V151: 19.98398948 | W151: 18.88431766 | X151: 17.78464585 | Y151: 17.62666382 | Z151: 17.46868179 | AA151: 17.31069976 | AB151: 17.15271774 | AC151: 16.99473571 | AD151: 16.83675368 | AE151: 16.67877165 | AF151: 16.52078962 | AG151: 16.36280759 | AH151: 16.20482556 | AI151: 16.04684354 | AJ151: 15.88886151 | AK151: 15.73087948 | AL151: 15.57289745 | AM151: 15.41491542 | AN151: 15.25693339 | AO151: 15.09895136 | AP151: 14.94096934 | AQ151: 14.78298731 | AR151: 14.62500528
K152: Utility PV - Seattle - Conservative | L152: =($S$48-1)*(L169+L271) -> 34.01987262 | M152: 29.8810358 | N152: 29.52942987 | O152: 29.17782395 | P152: 28.82621802 | Q152: 28.47461209 | R152: 28.12300617 | S152: 27.77140024 | T152: 27.41979431 | U152: 27.06818838 | V152: 26.71658246 | W152: 26.36497653 | X152: 26.0133706 | Y152: 25.60193436 | Z152: 25.19049813 | AA152: 24.77906189 | AB152: 24.36762565 | AC152: 23.95618941 | AD152: 23.54475318 | AE152: 23.13331694 | AF152: 22.7218807 | AG152: 22.31044446 | AH152: 21.89900823 | AI152: 21.48757199 | AJ152: 21.07613575 | AK152: 20.66469951 | AL152: 20.25326328 | AM152: 19.84182704 | AN152: 19.4303908 | AO152: 19.01895456 | AP152: 18.60751832 | AQ152: 18.19608209 | AR152: 17.78464585
K153: Utility PV - Chicago - Advanced | L153: =($S$48-1)*(L170+L272) -> 34.01987262 | M153: 29.8810358 | N153: 28.49412394 | O153: 27.10721207 | P153: 25.7203002 | Q153: 24.33338834 | R153: 22.94647647 | S153: 21.55956461 | T153: 20.17265274 | U153: 18.78574088 | V153: 17.39882901 | W153: 16.01191714 | X153: 14.62500528 | Y153: 14.44403341 | Z153: 14.26306154 | AA153: 14.08208967 | AB153: 13.90111781 | AC153: 13.72014594 | AD153: 13.53917407 | AE153: 13.3582022 | AF153: 13.17723033 | AG153: 12.99625846 | AH153: 12.8152866 | AI153: 12.63431473 | AJ153: 12.45334286 | AK153: 12.27237099 | AL153: 12.09139912 | AM153: 11.91042725 | AN153: 11.72945539 | AO153: 11.54848352 | AP153: 11.36751165 | AQ153: 11.18653978 | AR153: 11.00556791
K154: Utility PV - Chicago - Moderate | L154: =($S$48-1)*(L171+L273) -> 34.01987262 | M154: 29.8810358 | N154: 28.78136399 | O154: 27.68169217 | P154: 26.58202036 | Q154: 25.48234855 | R154: 24.38267673 | S154: 23.28300492 | T154: 22.1833331 | U154: 21.08366129 | V154: 19.98398948 | W154: 18.88431766 | X154: 17.78464585 | Y154: 17.62666382 | Z154: 17.46868179 | AA154: 17.31069976 | AB154: 17.15271774 | AC154: 16.99473571 | AD154: 16.83675368 | AE154: 16.67877165 | AF154: 16.52078962 | AG154: 16.36280759 | AH154: 16.20482556 | AI154: 16.04684354 | AJ154: 15.88886151 | AK154: 15.73087948 | AL154: 15.57289745 | AM154: 15.41491542 | AN154: 15.25693339 | AO154: 15.09895136 | AP154: 14.94096934 | AQ154: 14.78298731 | AR154: 14.62500528
K155: Utility PV - Chicago - Conservative | L155: =($S$48-1)*(L172+L274) -> 34.01987262 | M155: 29.8810358 | N155: 29.52942987 | O155: 29.17782395 | P155: 28.82621802 | Q155: 28.47461209 | R155: 28.12300617 | S155: 27.77140024 | T155: 27.41979431 | U155: 27.06818838 | V155: 26.71658246 | W155: 26.36497653 | X155: 26.0133706 | Y155: 25.60193436 | Z155: 25.19049813 | AA155: 24.77906189 | AB155: 24.36762565 | AC155: 23.95618941 | AD155: 23.54475318 | AE155: 23.13331694 | AF155: 22.7218807 | AG155: 22.31044446 | AH155: 21.89900823 | AI155: 21.48757199 | AJ155: 21.07613575 | AK155: 20.66469951 | AL155: 20.25326328 | AM155: 19.84182704 | AN155: 19.4303908 | AO155: 19.01895456 | AP155: 18.60751832 | AQ155: 18.19608209 | AR155: 17.78464585
K156: Utility PV - Kansas City - Advanced | L156: =($S$48-1)*(L173+L275) -> 34.01987262 | M156: 29.8810358 | N156: 28.49412394 | O156: 27.10721207 | P156: 25.7203002 | Q156: 24.33338834 | R156: 22.94647647 | S156: 21.55956461 | T156: 20.17265274 | U156: 18.78574088 | V156: 17.39882901 | W156: 16.01191714 | X156: 14.62500528 | Y156: 14.44403341 | Z156: 14.26306154 | AA156: 14.08208967 | AB156: 13.90111781 | AC156: 13.72014594 | AD156: 13.53917407 | AE156: 13.3582022 | AF156: 13.17723033 | AG156: 12.99625846 | AH156: 12.8152866 | AI156: 12.63431473 | AJ156: 12.45334286 | AK156: 12.27237099 | AL156: 12.09139912 | AM156: 11.91042725 | AN156: 11.72945539 | AO156: 11.54848352 | AP156: 11.36751165 | AQ156: 11.18653978 | AR156: 11.00556791
K157: Utility PV - Kansas City - Moderate | L157: =($S$48-1)*(L174+L276) -> 34.01987262 | M157: 29.8810358 | N157: 28.78136399 | O157: 27.68169217 | P157: 26.58202036 | Q157: 25.48234855 | R157: 24.38267673 | S157: 23.28300492 | T157: 22.1833331 | U157: 21.08366129 | V157: 19.98398948 | W157: 18.88431766 | X157: 17.78464585 | Y157: 17.62666382 | Z157: 17.46868179 | AA157: 17.31069976 | AB157: 17.15271774 | AC157: 16.99473571 | AD157: 16.83675368 | AE157: 16.67877165 | AF157: 16.52078962 | AG157: 16.36280759 | AH157: 16.20482556 | AI157: 16.04684354 | AJ157: 15.88886151 | AK157: 15.73087948 | AL157: 15.57289745 | AM157: 15.41491542 | AN157: 15.25693339 | AO157: 15.09895136 | AP157: 14.94096934 | AQ157: 14.78298731 | AR157: 14.62500528
K158: Utility PV - Kansas City - Conservative | L158: =($S$48-1)*(L175+L277) -> 34.01987262 | M158: 29.8810358 | N158: 29.52942987 | O158: 29.17782395 | P158: 28.82621802 | Q158: 28.47461209 | R158: 28.12300617 | S158: 27.77140024 | T158: 27.41979431 | U158: 27.06818838 | V158: 26.71658246 | W158: 26.36497653 | X158: 26.0133706 | Y158: 25.60193436 | Z158: 25.19049813 | AA158: 24.77906189 | AB158: 24.36762565 | AC158: 23.95618941 | AD158: 23.54475318 | AE158: 23.13331694 | AF158: 22.7218807 | AG158: 22.31044446 | AH158: 21.89900823 | AI158: 21.48757199 | AJ158: 21.07613575 | AK158: 20.66469951 | AL158: 20.25326328 | AM158: 19.84182704 | AN158: 19.4303908 | AO158: 19.01895456 | AP158: 18.60751832 | AQ158: 18.19608209 | AR158: 17.78464585
K159: Utility PV - Los Angeles - Advanced | L159: =($S$48-1)*(L176+L278) -> 34.01987262 | M159: 29.8810358 | N159: 28.49412394 | O159: 27.10721207 | P159: 25.7203002 | Q159: 24.33338834 | R159: 22.94647647 | S159: 21.55956461 | T159: 20.17265274 | U159: 18.78574088 | V159: 17.39882901 | W159: 16.01191714 | X159: 14.62500528 | Y159: 14.44403341 | Z159: 14.26306154 | AA159: 14.08208967 | AB159: 13.90111781 | AC159: 13.72014594 | AD159: 13.53917407 | AE159: 13.3582022 | AF159: 13.17723033 | AG159: 12.99625846 | AH159: 12.8152866 | AI159: 12.63431473 | AJ159: 12.45334286 | AK159: 12.27237099 | AL159: 12.09139912 | AM159: 11.91042725 | AN159: 11.72945539 | AO159: 11.54848352 | AP159: 11.36751165 | AQ159: 11.18653978 | AR159: 11.00556791
K160: Utility PV - Los Angeles - Moderate | L160: =($S$48-1)*(L177+L279) -> 34.01987262 | M160: 29.8810358 | N160: 28.78136399 | O160: 27.68169217 | P160: 26.58202036 | Q160: 25.48234855 | R160: 24.38267673 | S160: 23.28300492 | T160: 22.1833331 | U160: 21.08366129 | V160: 19.98398948 | W160: 18.88431766 | X160: 17.78464585 | Y160: 17.62666382 | Z160: 17.46868179 | AA160: 17.31069976 | AB160: 17.15271774 | AC160: 16.99473571 | AD160: 16.83675368 | AE160: 16.67877165 | AF160: 16.52078962 | AG160: 16.36280759 | AH160: 16.20482556 | AI160: 16.04684354 | AJ160: 15.88886151 | AK160: 15.73087948 | AL160: 15.57289745 | AM160: 15.41491542 | AN160: 15.25693339 | AO160: 15.09895136 | AP160: 14.94096934 | AQ160: 14.78298731 | AR160: 14.62500528
K161: Utility PV - Los Angeles - Conservative | L161: =($S$48-1)*(L178+L280) -> 34.01987262 | M161: 29.8810358 | N161: 29.52942987 | O161: 29.17782395 | P161: 28.82621802 | Q161: 28.47461209 | R161: 28.12300617 | S161: 27.77140024 | T161: 27.41979431 | U161: 27.06818838 | V161: 26.71658246 | W161: 26.36497653 | X161: 26.0133706 | Y161: 25.60193436 | Z161: 25.19049813 | AA161: 24.77906189 | AB161: 24.36762565 | AC161: 23.95618941 | AD161: 23.54475318 | AE161: 23.13331694 | AF161: 22.7218807 | AG161: 22.31044446 | AH161: 21.89900823 | AI161: 21.48757199 | AJ161: 21.07613575 | AK161: 20.66469951 | AL161: 20.25326328 | AM161: 19.84182704 | AN161: 19.4303908 | AO161: 19.01895456 | AP161: 18.60751832 | AQ161: 18.19608209 | AR161: 17.78464585
K162: Utility PV - Daggett, CA - Advanced | L162: =($S$48-1)*(L179+L281) -> 34.01987262 | M162: 29.8810358 | N162: 28.49412394 | O162: 27.10721207 | P162: 25.7203002 | Q162: 24.33338834 | R162: 22.94647647 | S162: 21.55956461 | T162: 20.17265274 | U162: 18.78574088 | V162: 17.39882901 | W162: 16.01191714 | X162: 14.62500528 | Y162: 14.44403341 | Z162: 14.26306154 | AA162: 14.08208967 | AB162: 13.90111781 | AC162: 13.72014594 | AD162: 13.53917407 | AE162: 13.3582022 | AF162: 13.17723033 | AG162: 12.99625846 | AH162: 12.8152866 | AI162: 12.63431473 | AJ162: 12.45334286 | AK162: 12.27237099 | AL162: 12.09139912 | AM162: 11.91042725 | AN162: 11.72945539 | AO162: 11.54848352 | AP162: 11.36751165 | AQ162: 11.18653978 | AR162: 11.00556791
K163: Utility PV - Daggett, CA - Moderate | L163: =($S$48-1)*(L180+L282) -> 34.01987262 | M163: 29.8810358 | N163: 28.78136399 | O163: 27.68169217 | P163: 26.58202036 | Q163: 25.48234855 | R163: 24.38267673 | S163: 23.28300492 | T163: 22.1833331 | U163: 21.08366129 | V163: 19.98398948 | W163: 18.88431766 | X163: 17.78464585 | Y163: 17.62666382 | Z163: 17.46868179 | AA163: 17.31069976 | AB163: 17.15271774 | AC163: 16.99473571 | AD163: 16.83675368 | AE163: 16.67877165 | AF163: 16.52078962 | AG163: 16.36280759 | AH163: 16.20482556 | AI163: 16.04684354 | AJ163: 15.88886151 | AK163: 15.73087948 | AL163: 15.57289745 | AM163: 15.41491542 | AN163: 15.25693339 | AO163: 15.09895136 | AP163: 14.94096934 | AQ163: 14.78298731 | AR163: 14.62500528
K164: Utility PV - Daggett, CA - Conservative | L164: =($S$48-1)*(L181+L283) -> 34.01987262 | M164: 29.8810358 | N164: 29.52942987 | O164: 29.17782395 | P164: 28.82621802 | Q164: 28.47461209 | R164: 28.12300617 | S164: 27.77140024 | T164: 27.41979431 | U164: 27.06818838 | V164: 26.71658246 | W164: 26.36497653 | X164: 26.0133706 | Y164: 25.60193436 | Z164: 25.19049813 | AA164: 24.77906189 | AB164: 24.36762565 | AC164: 23.95618941 | AD164: 23.54475318 | AE164: 23.13331694 | AF164: 22.7218807 | AG164: 22.31044446 | AH164: 21.89900823 | AI164: 21.48757199 | AJ164: 21.07613575 | AK164: 20.66469951 | AL164: 20.25326328 | AM164: 19.84182704 | AN164: 19.4303908 | AO164: 19.01895456 | AP164: 18.60751832 | AQ164: 18.19608209 | AR164: 17.78464585
L166: 2018 | M166: 2019 | N166: 2020 | O166: 2021 | P166: 2022 | Q166: 2023 | R166: 2024 | S166: 2025 | T166: 2026 | U166: 2027 | V166: 2028 | W166: 2029 | X166: 2030 | Y166: 2031 | Z166: 2032 | AA166: 2033 | AB166: 2034 | AC166: 2035 | AD166: 2036 | AE166: 2037 | AF166: 2038 | AG166: 2039 | AH166: 2040 | AI166: 2041 | AJ166: 2042 | AK166: 2043 | AL166: 2044 | AM166: 2045 | AN166: 2046 | AO166: 2047 | AP166: 2048 | AQ166: 2049 | AR166: 2050
J167: Overnight Capital Cost ($/kW) | K167: Utility PV - Seattle - Advanced | L167: 1565.881911 | M167: 1375.377679 | N167: 1311.540279 | O167: 1247.70288 | P167: 1183.86548 | Q167: 1120.028081 | R167: 1056.190681 | S167: 992.3532814 | T167: 928.5158818 | U167: 864.6784822 | V167: 800.8410826 | W167: 737.003683 | X167: 673.1662834 | Y167: 664.8364293 | Z167: 656.5065752 | AA167: 648.1767211 | AB167: 639.846867 | AC167: 631.5170129 | AD167: 623.1871589 | AE167: 614.8573048 | AF167: 606.5274507 | AG167: 598.1975966 | AH167: 589.8677425 | AI167: 581.5378884 | AJ167: 573.2080343 | AK167: 564.8781803 | AL167: 556.5483262 | AM167: 548.2184721 | AN167: 539.888618 | AO167: 531.5587639 | AP167: 523.2289098 | AQ167: 514.8990557 | AR167: 506.5692017
K168: Utility PV - Seattle - Moderate | L168: 1565.881911 | M168: 1375.377679 | N168: 1324.761493 | O168: 1274.145307 | P168: 1223.529121 | Q168: 1172.912935 | R168: 1122.296749 | S168: 1071.680563 | T168: 1021.064377 | U168: 970.4481907 | V168: 919.8320047 | W168: 869.2158186 | X168: 818.5996326 | Y168: 811.3279652 | Z168: 804.0562977 | AA168: 796.7846302 | AB168: 789.5129628 | AC168: 782.2412953 | AD168: 774.9696278 | AE168: 767.6979604 | AF168: 760.4262929 | AG168: 753.1546255 | AH168: 745.882958 | AI168: 738.6112905 | AJ168: 731.3396231 | AK168: 724.0679556 | AL168: 716.7962882 | AM168: 709.5246207 | AN168: 702.2529532 | AO168: 694.9812858 | AP168: 687.7096183 | AQ168: 680.4379508 | AR168: 673.1662834
K169: Utility PV - Seattle - Conservative | L169: 1565.881911 | M169: 1375.377679 | N169: 1359.193804 | O169: 1343.009929 | P169: 1326.826054 | Q169: 1310.642179 | R169: 1294.458305 | S169: 1278.27443 | T169: 1262.090555 | U169: 1245.90668 | V169: 1229.722805 | W169: 1213.53893 | X169: 1197.355055 | Y169: 1178.417284 | Z169: 1159.479513 | AA169: 1140.541742 | AB169: 1121.603971 | AC169: 1102.6662 | AD169: 1083.728429 | AE169: 1064.790657 | AF169: 1045.852886 | AG169: 1026.915115 | AH169: 1007.977344 | AI169: 989.0395729 | AJ169: 970.1018017 | AK169: 951.1640306 | AL169: 932.2262595 | AM169: 913.2884883 | AN169: 894.3507172 | AO169: 875.412946 | AP169: 856.4751749 | AQ169: 837.5374038 | AR169: 818.5996326
K170: Utility PV - Chicago - Advanced | L170: =L167 -> 1565.881911 | M170: =M167 -> 1375.377679 | N170: 1311.540279 | O170: 1247.70288 | P170: 1183.86548 | Q170: 1120.028081 | R170: 1056.190681 | S170: 992.3532814 | T170: 928.5158818 | U170: 864.6784822 | V170: 800.8410826 | W170: 737.003683 | X170: 673.1662834 | Y170: 664.8364293 | Z170: 656.5065752 | AA170: 648.1767211 | AB170: 639.846867 | AC170: 631.5170129 | AD170: 623.1871589 | AE170: 614.8573048 | AF170: 606.5274507 | AG170: 598.1975966 | AH170: 589.8677425 | AI170: 581.5378884 | AJ170: 573.2080343 | AK170: 564.8781803 | AL170: 556.5483262 | AM170: 548.2184721 | AN170: 539.888618 | AO170: 531.5587639 | AP170: 523.2289098 | AQ170: 514.8990557 | AR170: 506.5692017
K171: Utility PV - Chicago - Moderate | L171: =L168 -> 1565.881911 | M171: 1375.377679 | N171: 1324.761493 | O171: 1274.145307 | P171: 1223.529121 | Q171: 1172.912935 | R171: 1122.296749 | S171: 1071.680563 | T171: 1021.064377 | U171: 970.4481907 | V171: 919.8320047 | W171: 869.2158186 | X171: 818.5996326 | Y171: 811.3279652 | Z171: 804.0562977 | AA171: 796.7846302 | AB171: 789.5129628 | AC171: 782.2412953 | AD171: 774.9696278 | AE171: 767.6979604 | AF171: 760.4262929 | AG171: 753.1546255 | AH171: 745.882958 | AI171: 738.6112905 | AJ171: 731.3396231 | AK171: 724.0679556 | AL171: 716.7962882 | AM171: 709.5246207 | AN171: 702.2529532 | AO171: 694.9812858 | AP171: 687.7096183 | AQ171: 680.4379508 | AR171: 673.1662834
K172: Utility PV - Chicago - Conservative | L172: =L169 -> 1565.881911 | M172: 1375.377679 | N172: 1359.193804 | O172: 1343.009929 | P172: 1326.826054 | Q172: 1310.642179 | R172: 1294.458305 | S172: 1278.27443 | T172: 1262.090555 | U172: 1245.90668 | V172: 1229.722805 | W172: 1213.53893 | X172: 1197.355055 | Y172: 1178.417284 | Z172: 1159.479513 | AA172: 1140.541742 | AB172: 1121.603971 | AC172: 1102.6662 | AD172: 1083.728429 | AE172: 1064.790657 | AF172: 1045.852886 | AG172: 1026.915115 | AH172: 1007.977344 | AI172: 989.0395729 | AJ172: 970.1018017 | AK172: 951.1640306 | AL172: 932.2262595 | AM172: 913.2884883 | AN172: 894.3507172 | AO172: 875.412946 | AP172: 856.4751749 | AQ172: 837.5374038 | AR172: 818.5996326
K173: Utility PV - Kansas City - Advanced | L173: =L170 -> 1565.881911 | M173: 1375.377679 | N173: 1311.540279 | O173: 1247.70288 | P173: 1183.86548 | Q173: 1120.028081 | R173: 1056.190681 | S173: 992.3532814 | T173: 928.5158818 | U173: 864.6784822 | V173: 800.8410826 | W173: 737.003683 | X173: 673.1662834 | Y173: 664.8364293 | Z173: 656.5065752 | AA173: 648.1767211 | AB173: 639.846867 | AC173: 631.5170129 | AD173: 623.1871589 | AE173: 614.8573048 | AF173: 606.5274507 | AG173: 598.1975966 | AH173: 589.8677425 | AI173: 581.5378884 | AJ173: 573.2080343 | AK173: 564.8781803 | AL173: 556.5483262 | AM173: 548.2184721 | AN173: 539.888618 | AO173: 531.5587639 | AP173: 523.2289098 | AQ173: 514.8990557 | AR173: 506.5692017
K174: Utility PV - Kansas City - Moderate | L174: =L171 -> 1565.881911 | M174: 1375.377679 | N174: 1324.761493 | O174: 1274.145307 | P174: 1223.529121 | Q174: 1172.912935 | R174: 1122.296749 | S174: 1071.680563 | T174: 1021.064377 | U174: 970.4481907 | V174: 919.8320047 | W174: 869.2158186 | X174: 818.5996326 | Y174: 811.3279652 | Z174: 804.0562977 | AA174: 796.7846302 | AB174: 789.5129628 | AC174: 782.2412953 | AD174: 774.9696278 | AE174: 767.6979604 | AF174: 760.4262929 | AG174: 753.1546255 | AH174: 745.882958 | AI174: 738.6112905 | AJ174: 731.3396231 | AK174: 724.0679556 | AL174: 716.7962882 | AM174: 709.5246207 | AN174: 702.2529532 | AO174: 694.9812858 | AP174: 687.7096183 | AQ174: 680.4379508 | AR174: 673.1662834
K175: Utility PV - Kansas City - Conservative | L175: =L172 -> 1565.881911 | M175: 1375.377679 | N175: 1359.193804 | O175: 1343.009929 | P175: 1326.826054 | Q175: 1310.642179 | R175: 1294.458305 | S175: 1278.27443 | T175: 1262.090555 | U175: 1245.90668 | V175: 1229.722805 | W175: 1213.53893 | X175: 1197.355055 | Y175: 1178.417284 | Z175: 1159.479513 | AA175: 1140.541742 | AB175: 1121.603971 | AC175: 1102.6662 | AD175: 1083.728429 | AE175: 1064.790657 | AF175: 1045.852886 | AG175: 1026.915115 | AH175: 1007.977344 | AI175: 989.0395729 | AJ175: 970.1018017 | AK175: 951.1640306 | AL175: 932.2262595 | AM175: 913.2884883 | AN175: 894.3507172 | AO175: 875.412946 | AP175: 856.4751749 | AQ175: 837.5374038 | AR175: 818.5996326
K176: Utility PV - Los Angeles - Advanced | L176: =L173 -> 1565.881911 | M176: 1375.377679 | N176: 1311.540279 | O176: 1247.70288 | P176: 1183.86548 | Q176: 1120.028081 | R176: 1056.190681 | S176: 992.3532814 | T176: 928.5158818 | U176: 864.6784822 | V176: 800.8410826 | W176: 737.003683 | X176: 673.1662834 | Y176: 664.8364293 | Z176: 656.5065752 | AA176: 648.1767211 | AB176: 639.846867 | AC176: 631.5170129 | AD176: 623.1871589 | AE176: 614.8573048 | AF176: 606.5274507 | AG176: 598.1975966 | AH176: 589.8677425 | AI176: 581.5378884 | AJ176: 573.2080343 | AK176: 564.8781803 | AL176: 556.5483262 | AM176: 548.2184721 | AN176: 539.888618 | AO176: 531.5587639 | AP176: 523.2289098 | AQ176: 514.8990557 | AR176: 506.5692017
K177: Utility PV - Los Angeles - Moderate | L177: =L174 -> 1565.881911 | M177: 1375.377679 | N177: 1324.761493 | O177: 1274.145307 | P177: 1223.529121 | Q177: 1172.912935 | R177: 1122.296749 | S177: 1071.680563 | T177: 1021.064377 | U177: 970.4481907 | V177: 919.8320047 | W177: 869.2158186 | X177: 818.5996326 | Y177: 811.3279652 | Z177: 804.0562977 | AA177: 796.7846302 | AB177: 789.5129628 | AC177: 782.2412953 | AD177: 774.9696278 | AE177: 767.6979604 | AF177: 760.4262929 | AG177: 753.1546255 | AH177: 745.882958 | AI177: 738.6112905 | AJ177: 731.3396231 | AK177: 724.0679556 | AL177: 716.7962882 | AM177: 709.5246207 | AN177: 702.2529532 | AO177: 694.9812858 | AP177: 687.7096183 | AQ177: 680.4379508 | AR177: 673.1662834
K178: Utility PV - Los Angeles - Conservative | L178: =L175 -> 1565.881911 | M178: 1375.377679 | N178: 1359.193804 | O178: 1343.009929 | P178: 1326.826054 | Q178: 1310.642179 | R178: 1294.458305 | S178: 1278.27443 | T178: 1262.090555 | U178: 1245.90668 | V178: 1229.722805 | W178: 1213.53893 | X178: 1197.355055 | Y178: 1178.417284 | Z178: 1159.479513 | AA178: 1140.541742 | AB178: 1121.603971 | AC178: 1102.6662 | AD178: 1083.728429 | AE178: 1064.790657 | AF178: 1045.852886 | AG178: 1026.915115 | AH178: 1007.977344 | AI178: 989.0395729 | AJ178: 970.1018017 | AK178: 951.1640306 | AL178: 932.2262595 | AM178: 913.2884883 | AN178: 894.3507172 | AO178: 875.412946 | AP178: 856.4751749 | AQ178: 837.5374038 | AR178: 818.5996326
K179: Utility PV - Daggett, CA - Advanced | L179: =L176 -> 1565.881911 | M179: 1375.377679 | N179: 1311.540279 | O179: 1247.70288 | P179: 1183.86548 | Q179: 1120.028081 | R179: 1056.190681 | S179: 992.3532814 | T179: 928.5158818 | U179: 864.6784822 | V179: 800.8410826 | W179: 737.003683 | X179: 673.1662834 | Y179: 664.8364293 | Z179: 656.5065752 | AA179: 648.1767211 | AB179: 639.846867 | AC179: 631.5170129 | AD179: 623.1871589 | AE179: 614.8573048 | AF179: 606.5274507 | AG179: 598.1975966 | AH179: 589.8677425 | AI179: 581.5378884 | AJ179: 573.2080343 | AK179: 564.8781803 | AL179: 556.5483262 | AM179: 548.2184721 | AN179: 539.888618 | AO179: 531.5587639 | AP179: 523.2289098 | AQ179: 514.8990557 | AR179: 506.5692017
K180: Utility PV - Daggett, CA - Moderate | L180: =L177 -> 1565.881911 | M180: 1375.377679 | N180: 1324.761493 | O180: 1274.145307 | P180: 1223.529121 | Q180: 1172.912935 | R180: 1122.296749 | S180: 1071.680563 | T180: 1021.064377 | U180: 970.4481907 | V180: 919.8320047 | W180: 869.2158186 | X180: 818.5996326 | Y180: 811.3279652 | Z180: 804.0562977 | AA180: 796.7846302 | AB180: 789.5129628 | AC180: 782.2412953 | AD180: 774.9696278 | AE180: 767.6979604 | AF180: 760.4262929 | AG180: 753.1546255 | AH180: 745.882958 | AI180: 738.6112905 | AJ180: 731.3396231 | AK180: 724.0679556 | AL180: 716.7962882 | AM180: 709.5246207 | AN180: 702.2529532 | AO180: 694.9812858 | AP180: 687.7096183 | AQ180: 680.4379508 | AR180: 673.1662834
K181: Utility PV - Daggett, CA - Conservative | L181: =L178 -> 1565.881911 | M181: 1375.377679 | N181: 1359.193804 | O181: 1343.009929 | P181: 1326.826054 | Q181: 1310.642179 | R181: 1294.458305 | S181: 1278.27443 | T181: 1262.090555 | U181: 1245.90668 | V181: 1229.722805 | W181: 1213.53893 | X181: 1197.355055 | Y181: 1178.417284 | Z181: 1159.479513 | AA181: 1140.541742 | AB181: 1121.603971 | AC181: 1102.6662 | AD181: 1083.728429 | AE181: 1064.790657 | AF181: 1045.852886 | AG181: 1026.915115 | AH181: 1007.977344 | AI181: 989.0395729 | AJ181: 970.1018017 | AK181: 951.1640306 | AL181: 932.2262595 | AM181: 913.2884883 | AN181: 894.3507172 | AO181: 875.412946 | AP181: 856.4751749 | AQ181: 837.5374038 | AR181: 818.5996326
L183: 2018 | M183: 2019 | N183: 2020 | O183: 2021 | P183: 2022 | Q183: 2023 | R183: 2024 | S183: 2025 | T183: 2026 | U183: 2027 | V183: 2028 | W183: 2029 | X183: 2030 | Y183: 2031 | Z183: 2032 | AA183: 2033 | AB183: 2034 | AC183: 2035 | AD183: 2036 | AE183: 2037 | AF183: 2038 | AG183: 2039 | AH183: 2040 | AI183: 2041 | AJ183: 2042 | AK183: 2043 | AL183: 2044 | AM183: 2045 | AN183: 2046 | AO183: 2047 | AP183: 2048 | AQ183: 2049 | AR183: 2050
J184: Fixed Operation and Maintenance Expenses ($/kW-yr) | K184: Utility PV - Seattle - Advanced | L184: 18.76 | M184: 16.08 | N184: 15.69364437 | O184: 14.92977805 | P184: 14.16591173 | Q184: 13.40204541 | R184: 12.63817909 | S184: 11.87431277 | T184: 11.11044645 | U184: 10.34658013 | V184: 9.582713809 | W184: 8.818847489 | X184: 8.054981169 | Y184: 7.955307701 | Z184: 7.855634233 | AA184: 7.755960766 | AB184: 7.656287298 | AC184: 7.55661383 | AD184: 7.456940362 | AE184: 7.357266895 | AF184: 7.257593427 | AG184: 7.157919959 | AH184: 7.058246492 | AI184: 6.958573024 | AJ184: 6.858899556 | AK184: 6.759226089 | AL184: 6.659552621 | AM184: 6.559879153 | AN184: 6.460205685 | AO184: 6.360532218 | AP184: 6.26085875 | AQ184: 6.161185282 | AR184: 6.061511815
K185: Utility PV - Seattle - Moderate | L185: 18.76 | M185: 16.08 | N185: 15.85184692 | O185: 15.24618316 | P185: 14.64051939 | Q185: 14.03485563 | R185: 13.42919187 | S185: 12.8235281 | T185: 12.21786434 | U185: 11.61220057 | V185: 11.00653681 | W185: 10.40087304 | X185: 9.795209279 | Y185: 9.708197874 | Z185: 9.621186468 | AA185: 9.534175063 | AB185: 9.447163657 | AC185: 9.360152252 | AD185: 9.273140846 | AE185: 9.18612944 | AF185: 9.099118035 | AG185: 9.012106629 | AH185: 8.925095224 | AI185: 8.838083818 | AJ185: 8.751072413 | AK185: 8.664061007 | AL185: 8.577049602 | AM185: 8.490038196 | AN185: 8.403026791 | AO185: 8.316015385 | AP185: 8.22900398 | AQ185: 8.141992574 | AR185: 8.054981169
K186: Utility PV - Seattle - Conservative | L186: 18.76 | M186: 16.08 | N186: 16.26385748 | O186: 16.07020428 | P186: 15.87655108 | Q186: 15.68289787 | R186: 15.48924467 | S186: 15.29559147 | T186: 15.10193826 | U186: 14.90828506 | V186: 14.71463186 | W186: 14.52097865 | X186: 14.32732545 | Y186: 14.10071964 | Z186: 13.87411383 | AA186: 13.64750802 | AB186: 13.42090222 | AC186: 13.19429641 | AD186: 12.9676906 | AE186: 12.74108479 | AF186: 12.51447898 | AG186: 12.28787317 | AH186: 12.06126736 | AI186: 11.83466156 | AJ186: 11.60805575 | AK186: 11.38144994 | AL186: 11.15484413 | AM186: 10.92823832 | AN186: 10.70163251 | AO186: 10.4750267 | AP186: 10.2484209 | AQ186: 10.02181509 | AR186: 9.795209279
K187: Utility PV - Chicago - Advanced | L187: =L184 -> 18.76 | M187: 16.08 | N187: 15.69364437 | O187: 14.92977805 | P187: 14.16591173 | Q187: 13.40204541 | R187: 12.63817909 | S187: 11.87431277 | T187: 11.11044645 | U187: 10.34658013 | V187: 9.582713809 | W187: 8.818847489 | X187: 8.054981169 | Y187: 7.955307701 | Z187: 7.855634233 | AA187: 7.755960766 | AB187: 7.656287298 | AC187: 7.55661383 | AD187: 7.456940362 | AE187: 7.357266895 | AF187: 7.257593427 | AG187: 7.157919959 | AH187: 7.058246492 | AI187: 6.958573024 | AJ187: 6.858899556 | AK187: 6.759226089 | AL187: 6.659552621 | AM187: 6.559879153 | AN187: 6.460205685 | AO187: 6.360532218 | AP187: 6.26085875 | AQ187: 6.161185282 | AR187: 6.061511815
K188: Utility PV - Chicago - Moderate | L188: =L185 -> 18.76 | M188: 16.08 | N188: 15.85184692 | O188: 15.24618316 | P188: 14.64051939 | Q188: 14.03485563 | R188: 13.42919187 | S188: 12.8235281 | T188: 12.21786434 | U188: 11.61220057 | V188: 11.00653681 | W188: 10.40087304 | X188: 9.795209279 | Y188: 9.708197874 | Z188: 9.621186468 | AA188: 9.534175063 | AB188: 9.447163657 | AC188: 9.360152252 | AD188: 9.273140846 | AE188: 9.18612944 | AF188: 9.099118035 | AG188: 9.012106629 | AH188: 8.925095224 | AI188: 8.838083818 | AJ188: 8.751072413 | AK188: 8.664061007 | AL188: 8.577049602 | AM188: 8.490038196 | AN188: 8.403026791 | AO188: 8.316015385 | AP188: 8.22900398 | AQ188: 8.141992574 | AR188: 8.054981169
K189: Utility PV - Chicago - Conservative | L189: =L186 -> 18.76 | M189: 16.08 | N189: 16.26385748 | O189: 16.07020428 | P189: 15.87655108 | Q189: 15.68289787 | R189: 15.48924467 | S189: 15.29559147 | T189: 15.10193826 | U189: 14.90828506 | V189: 14.71463186 | W189: 14.52097865 | X189: 14.32732545 | Y189: 14.10071964 | Z189: 13.87411383 | AA189: 13.64750802 | AB189: 13.42090222 | AC189: 13.19429641 | AD189: 12.9676906 | AE189: 12.74108479 | AF189: 12.51447898 | AG189: 12.28787317 | AH189: 12.06126736 | AI189: 11.83466156 | AJ189: 11.60805575 | AK189: 11.38144994 | AL189: 11.15484413 | AM189: 10.92823832 | AN189: 10.70163251 | AO189: 10.4750267 | AP189: 10.2484209 | AQ189: 10.02181509 | AR189: 9.795209279
K190: Utility PV - Kansas City - Advanced | L190: =L187 -> 18.76 | M190: 16.08 | N190: 15.69364437 | O190: 14.92977805 | P190: 14.16591173 | Q190: 13.40204541 | R190: 12.63817909 | S190: 11.87431277 | T190: 11.11044645 | U190: 10.34658013 | V190: 9.582713809 | W190: 8.818847489 | X190: 8.054981169 | Y190: 7.955307701 | Z190: 7.855634233 | AA190: 7.755960766 | AB190: 7.656287298 | AC190: 7.55661383 | AD190: 7.456940362 | AE190: 7.357266895 | AF190: 7.257593427 | AG190: 7.157919959 | AH190: 7.058246492 | AI190: 6.958573024 | AJ190: 6.858899556 | AK190: 6.759226089 | AL190: 6.659552621 | AM190: 6.559879153 | AN190: 6.460205685 | AO190: 6.360532218 | AP190: 6.26085875 | AQ190: 6.161185282 | AR190: 6.061511815
K191: Utility PV - Kansas City - Moderate | L191: =L188 -> 18.76 | M191: 16.08 | N191: 15.85184692 | O191: 15.24618316 | P191: 14.64051939 | Q191: 14.03485563 | R191: 13.42919187 | S191: 12.8235281 | T191: 12.21786434 | U191: 11.61220057 | V191: 11.00653681 | W191: 10.40087304 | X191: 9.795209279 | Y191: 9.708197874 | Z191: 9.621186468 | AA191: 9.534175063 | AB191: 9.447163657 | AC191: 9.360152252 | AD191: 9.273140846 | AE191: 9.18612944 | AF191: 9.099118035 | AG191: 9.012106629 | AH191: 8.925095224 | AI191: 8.838083818 | AJ191: 8.751072413 | AK191: 8.664061007 | AL191: 8.577049602 | AM191: 8.490038196 | AN191: 8.403026791 | AO191: 8.316015385 | AP191: 8.22900398 | AQ191: 8.141992574 | AR191: 8.054981169
K192: Utility PV - Kansas City - Conservative | L192: =L189 -> 18.76 | M192: 16.08 | N192: 16.26385748 | O192: 16.07020428 | P192: 15.87655108 | Q192: 15.68289787 | R192: 15.48924467 | S192: 15.29559147 | T192: 15.10193826 | U192: 14.90828506 | V192: 14.71463186 | W192: 14.52097865 | X192: 14.32732545 | Y192: 14.10071964 | Z192: 13.87411383 | AA192: 13.64750802 | AB192: 13.42090222 | AC192: 13.19429641 | AD192: 12.9676906 | AE192: 12.74108479 | AF192: 12.51447898 | AG192: 12.28787317 | AH192: 12.06126736 | AI192: 11.83466156 | AJ192: 11.60805575 | AK192: 11.38144994 | AL192: 11.15484413 | AM192: 10.92823832 | AN192: 10.70163251 | AO192: 10.4750267 | AP192: 10.2484209 | AQ192: 10.02181509 | AR192: 9.795209279
A193: hi | K193: Utility PV - Los Angeles - Advanced | L193: =L190 -> 18.76 | M193: 16.08 | N193: 15.69364437 | O193: 14.92977805 | P193: 14.16591173 | Q193: 13.40204541 | R193: 12.63817909 | S193: 11.87431277 | T193: 11.11044645 | U193: 10.34658013 | V193: 9.582713809 | W193: 8.818847489 | X193: 8.054981169 | Y193: 7.955307701 | Z193: 7.855634233 | AA193: 7.755960766 | AB193: 7.656287298 | AC193: 7.55661383 | AD193: 7.456940362 | AE193: 7.357266895 | AF193: 7.257593427 | AG193: 7.157919959 | AH193: 7.058246492 | AI193: 6.958573024 | AJ193: 6.858899556 | AK193: 6.759226089 | AL193: 6.659552621 | AM193: 6.559879153 | AN193: 6.460205685 | AO193: 6.360532218 | AP193: 6.26085875 | AQ193: 6.161185282 | AR193: 6.061511815
K194: Utility PV - Los Angeles - Moderate | L194: =L191 -> 18.76 | M194: 16.08 | N194: 15.85184692 | O194: 15.24618316 | P194: 14.64051939 | Q194: 14.03485563 | R194: 13.42919187 | S194: 12.8235281 | T194: 12.21786434 | U194: 11.61220057 | V194: 11.00653681 | W194: 10.40087304 | X194: 9.795209279 | Y194: 9.708197874 | Z194: 9.621186468 | AA194: 9.534175063 | AB194: 9.447163657 | AC194: 9.360152252 | AD194: 9.273140846 | AE194: 9.18612944 | AF194: 9.099118035 | AG194: 9.012106629 | AH194: 8.925095224 | AI194: 8.838083818 | AJ194: 8.751072413 | AK194: 8.664061007 | AL194: 8.577049602 | AM194: 8.490038196 | AN194: 8.403026791 | AO194: 8.316015385 | AP194: 8.22900398 | AQ194: 8.141992574 | AR194: 8.054981169
K195: Utility PV - Los Angeles - Conservative | L195: =L192 -> 18.76 | M195: 16.08 | N195: 16.26385748 | O195: 16.07020428 | P195: 15.87655108 | Q195: 15.68289787 | R195: 15.48924467 | S195: 15.29559147 | T195: 15.10193826 | U195: 14.90828506 | V195: 14.71463186 | W195: 14.52097865 | X195: 14.32732545 | Y195: 14.10071964 | Z195: 13.87411383 | AA195: 13.64750802 | AB195: 13.42090222 | AC195: 13.19429641 | AD195: 12.9676906 | AE195: 12.74108479 | AF195: 12.51447898 | AG195: 12.28787317 | AH195: 12.06126736 | AI195: 11.83466156 | AJ195: 11.60805575 | AK195: 11.38144994 | AL195: 11.15484413 | AM195: 10.92823832 | AN195: 10.70163251 | AO195: 10.4750267 | AP195: 10.2484209 | AQ195: 10.02181509 | AR195: 9.795209279
K196: Utility PV - Daggett, CA - Advanced | L196: =L193 -> 18.76 | M196: 16.08 | N196: 15.69364437 | O196: 14.92977805 | P196: 14.16591173 | Q196: 13.40204541 | R196: 12.63817909 | S196: 11.87431277 | T196: 11.11044645 | U196: 10.34658013 | V196: 9.582713809 | W196: 8.818847489 | X196: 8.054981169 | Y196: 7.955307701 | Z196: 7.855634233 | AA196: 7.755960766 | AB196: 7.656287298 | AC196: 7.55661383 | AD196: 7.456940362 | AE196: 7.357266895 | AF196: 7.257593427 | AG196: 7.157919959 | AH196: 7.058246492 | AI196: 6.958573024 | AJ196: 6.858899556 | AK196: 6.759226089 | AL196: 6.659552621 | AM196: 6.559879153 | AN196: 6.460205685 | AO196: 6.360532218 | AP196: 6.26085875 | AQ196: 6.161185282 | AR196: 6.061511815
K197: Utility PV - Daggett, CA - Moderate | L197: =L194 -> 18.76 | M197: 16.08 | N197: 15.85184692 | O197: 15.24618316 | P197: 14.64051939 | Q197: 14.03485563 | R197: 13.42919187 | S197: 12.8235281 | T197: 12.21786434 | U197: 11.61220057 | V197: 11.00653681 | W197: 10.40087304 | X197: 9.795209279 | Y197: 9.708197874 | Z197: 9.621186468 | AA197: 9.534175063 | AB197: 9.447163657 | AC197: 9.360152252 | AD197: 9.273140846 | AE197: 9.18612944 | AF197: 9.099118035 | AG197: 9.012106629 | AH197: 8.925095224 | AI197: 8.838083818 | AJ197: 8.751072413 | AK197: 8.664061007 | AL197: 8.577049602 | AM197: 8.490038196 | AN197: 8.403026791 | AO197: 8.316015385 | AP197: 8.22900398 | AQ197: 8.141992574 | AR197: 8.054981169
K198: Utility PV - Daggett, CA - Conservative | L198: =L195 -> 18.76 | M198: 16.08 | N198: 16.26385748 | O198: 16.07020428 | P198: 15.87655108 | Q198: 15.68289787 | R198: 15.48924467 | S198: 15.29559147 | T198: 15.10193826 | U198: 14.90828506 | V198: 14.71463186 | W198: 14.52097865 | X198: 14.32732545 | Y198: 14.10071964 | Z198: 13.87411383 | AA198: 13.64750802 | AB198: 13.42090222 | AC198: 13.19429641 | AD198: 12.9676906 | AE198: 12.74108479 | AF198: 12.51447898 | AG198: 12.28787317 | AH198: 12.06126736 | AI198: 11.83466156 | AJ198: 11.60805575 | AK198: 11.38144994 | AL198: 11.15484413 | AM198: 10.92823832 | AN198: 10.70163251 | AO198: 10.4750267 | AP198: 10.2484209 | AQ198: 10.02181509 | AR198: 9.795209279
L200: 2018 | M200: 2019 | N200: 2020 | O200: 2021 | P200: 2022 | Q200: 2023 | R200: 2024 | S200: 2025 | T200: 2026 | U200: 2027 | V200: 2028 | W200: 2029 | X200: 2030 | Y200: 2031 | Z200: 2032 | AA200: 2033 | AB200: 2034 | AC200: 2035 | AD200: 2036 | AE200: 2037 | AF200: 2038 | AG200: 2039 | AH200: 2040 | AI200: 2041 | AJ200: 2042 | AK200: 2043 | AL200: 2044 | AM200: 2045 | AN200: 2046 | AO200: 2047 | AP200: 2048 | AQ200: 2049 | AR200: 2050
J201: Variable Operation and Maintenance Expenses ($/MWh) | K201: Utility PV - Seattle - Advanced | L201: 0 | M201: 0 | N201: 0 | O201: 0 | P201: 0 | Q201: 0 | R201: 0 | S201: 0 | T201: 0 | U201: 0 | V201: 0 | W201: 0 | X201: 0 | Y201: 0 | Z201: 0 | AA201: 0 | AB201: 0 | AC201: 0 | AD201: 0 | AE201: 0 | AF201: 0 | AG201: 0 | AH201: 0 | AI201: 0 | AJ201: 0 | AK201: 0 | AL201: 0 | AM201: 0 | AN201: 0 | AO201: 0 | AP201: 0 | AQ201: 0 | AR201: 0
K202: Utility PV - Seattle - Moderate | L202: 0 | M202: 0 | N202: 0 | O202: 0 | P202: 0 | Q202: 0 | R202: 0 | S202: 0 | T202: 0 | U202: 0 | V202: 0 | W202: 0 | X202: 0 | Y202: 0 | Z202: 0 | AA202: 0 | AB202: 0 | AC202: 0 | AD202: 0 | AE202: 0 | AF202: 0 | AG202: 0 | AH202: 0 | AI202: 0 | AJ202: 0 | AK202: 0 | AL202: 0 | AM202: 0 | AN202: 0 | AO202: 0 | AP202: 0 | AQ202: 0 | AR202: 0
K203: Utility PV - Seattle - Conservative | L203: 0 | M203: 0 | N203: 0 | O203: 0 | P203: 0 | Q203: 0 | R203: 0 | S203: 0 | T203: 0 | U203: 0 | V203: 0 | W203: 0 | X203: 0 | Y203: 0 | Z203: 0 | AA203: 0 | AB203: 0 | AC203: 0 | AD203: 0 | AE203: 0 | AF203: 0 | AG203: 0 | AH203: 0 | AI203: 0 | AJ203: 0 | AK203: 0 | AL203: 0 | AM203: 0 | AN203: 0 | AO203: 0 | AP203: 0 | AQ203: 0 | AR203: 0
K204: Utility PV - Chicago - Advanced | L204: 0 | M204: 0 | N204: 0 | O204: 0 | P204: 0 | Q204: 0 | R204: 0 | S204: 0 | T204: 0 | U204: 0 | V204: 0 | W204: 0 | X204: 0 | Y204: 0 | Z204: 0 | AA204: 0 | AB204: 0 | AC204: 0 | AD204: 0 | AE204: 0 | AF204: 0 | AG204: 0 | AH204: 0 | AI204: 0 | AJ204: 0 | AK204: 0 | AL204: 0 | AM204: 0 | AN204: 0 | AO204: 0 | AP204: 0 | AQ204: 0 | AR204: 0
K205: Utility PV - Chicago - Moderate | L205: 0 | M205: 0 | N205: 0 | O205: 0 | P205: 0 | Q205: 0 | R205: 0 | S205: 0 | T205: 0 | U205: 0 | V205: 0 | W205: 0 | X205: 0 | Y205: 0 | Z205: 0 | AA205: 0 | AB205: 0 | AC205: 0 | AD205: 0 | AE205: 0 | AF205: 0 | AG205: 0 | AH205: 0 | AI205: 0 | AJ205: 0 | AK205: 0 | AL205: 0 | AM205: 0 | AN205: 0 | AO205: 0 | AP205: 0 | AQ205: 0 | AR205: 0
K206: Utility PV - Chicago - Conservative | L206: 0 | M206: 0 | N206: 0 | O206: 0 | P206: 0 | Q206: 0 | R206: 0 | S206: 0 | T206: 0 | U206: 0 | V206: 0 | W206: 0 | X206: 0 | Y206: 0 | Z206: 0 | AA206: 0 | AB206: 0 | AC206: 0 | AD206: 0 | AE206: 0 | AF206: 0 | AG206: 0 | AH206: 0 | AI206: 0 | AJ206: 0 | AK206: 0 | AL206: 0 | AM206: 0 | AN206: 0 | AO206: 0 | AP206: 0 | AQ206: 0 | AR206: 0
K207: Utility PV - Kansas City - Advanced | L207: 0 | M207: 0 | N207: 0 | O207: 0 | P207: 0 | Q207: 0 | R207: 0 | S207: 0 | T207: 0 | U207: 0 | V207: 0 | W207: 0 | X207: 0 | Y207: 0 | Z207: 0 | AA207: 0 | AB207: 0 | AC207: 0 | AD207: 0 | AE207: 0 | AF207: 0 | AG207: 0 | AH207: 0 | AI207: 0 | AJ207: 0 | AK207: 0 | AL207: 0 | AM207: 0 | AN207: 0 | AO207: 0 | AP207: 0 | AQ207: 0 | AR207: 0
K208: Utility PV - Kansas City - Moderate | L208: 0 | M208: 0 | N208: 0 | O208: 0 | P208: 0 | Q208: 0 | R208: 0 | S208: 0 | T208: 0 | U208: 0 | V208: 0 | W208: 0 | X208: 0 | Y208: 0 | Z208: 0 | AA208: 0 | AB208: 0 | AC208: 0 | AD208: 0 | AE208: 0 | AF208: 0 | AG208: 0 | AH208: 0 | AI208: 0 | AJ208: 0 | AK208: 0 | AL208: 0 | AM208: 0 | AN208: 0 | AO208: 0 | AP208: 0 | AQ208: 0 | AR208: 0
K209: Utility PV - Kansas City - Conservative | L209: 0 | M209: 0 | N209: 0 | O209: 0 | P209: 0 | Q209: 0 | R209: 0 | S209: 0 | T209: 0 | U209: 0 | V209: 0 | W209: 0 | X209: 0 | Y209: 0 | Z209: 0 | AA209: 0 | AB209: 0 | AC209: 0 | AD209: 0 | AE209: 0 | AF209: 0 | AG209: 0 | AH209: 0 | AI209: 0 | AJ209: 0 | AK209: 0 | AL209: 0 | AM209: 0 | AN209: 0 | AO209: 0 | AP209: 0 | AQ209: 0 | AR209: 0
K210: Utility PV - Los Angeles - Advanced | L210: 0 | M210: 0 | N210: 0 | O210: 0 | P210: 0 | Q210: 0 | R210: 0 | S210: 0 | T210: 0 | U210: 0 | V210: 0 | W210: 0 | X210: 0 | Y210: 0 | Z210: 0 | AA210: 0 | AB210: 0 | AC210: 0 | AD210: 0 | AE210: 0 | AF210: 0 | AG210: 0 | AH210: 0 | AI210: 0 | AJ210: 0 | AK210: 0 | AL210: 0 | AM210: 0 | AN210: 0 | AO210: 0 | AP210: 0 | AQ210: 0 | AR210: 0
K211: Utility PV - Los Angeles - Moderate | L211: 0 | M211: 0 | N211: 0 | O211: 0 | P211: 0 | Q211: 0 | R211: 0 | S211: 0 | T211: 0 | U211: 0 | V211: 0 | W211: 0 | X211: 0 | Y211: 0 | Z211: 0 | AA211: 0 | AB211: 0 | AC211: 0 | AD211: 0 | AE211: 0 | AF211: 0 | AG211: 0 | AH211: 0 | AI211: 0 | AJ211: 0 | AK211: 0 | AL211: 0 | AM211: 0 | AN211: 0 | AO211: 0 | AP211: 0 | AQ211: 0 | AR211: 0
K212: Utility PV - Los Angeles - Conservative | L212: 0 | M212: 0 | N212: 0 | O212: 0 | P212: 0 | Q212: 0 | R212: 0 | S212: 0 | T212: 0 | U212: 0 | V212: 0 | W212: 0 | X212: 0 | Y212: 0 | Z212: 0 | AA212: 0 | AB212: 0 | AC212: 0 | AD212: 0 | AE212: 0 | AF212: 0 | AG212: 0 | AH212: 0 | AI212: 0 | AJ212: 0 | AK212: 0 | AL212: 0 | AM212: 0 | AN212: 0 | AO212: 0 | AP212: 0 | AQ212: 0 | AR212: 0
K213: Utility PV - Daggett, CA - Advanced | L213: 0 | M213: 0 | N213: 0 | O213: 0 | P213: 0 | Q213: 0 | R213: 0 | S213: 0 | T213: 0 | U213: 0 | V213: 0 | W213: 0 | X213: 0 | Y213: 0 | Z213: 0 | AA213: 0 | AB213: 0 | AC213: 0 | AD213: 0 | AE213: 0 | AF213: 0 | AG213: 0 | AH213: 0 | AI213: 0 | AJ213: 0 | AK213: 0 | AL213: 0 | AM213: 0 | AN213: 0 | AO213: 0 | AP213: 0 | AQ213: 0 | AR213: 0
K214: Utility PV - Daggett, CA - Moderate | L214: 0 | M214: 0 | N214: 0 | O214: 0 | P214: 0 | Q214: 0 | R214: 0 | S214: 0 | T214: 0 | U214: 0 | V214: 0 | W214: 0 | X214: 0 | Y214: 0 | Z214: 0 | AA214: 0 | AB214: 0 | AC214: 0 | AD214: 0 | AE214: 0 | AF214: 0 | AG214: 0 | AH214: 0 | AI214: 0 | AJ214: 0 | AK214: 0 | AL214: 0 | AM214: 0 | AN214: 0 | AO214: 0 | AP214: 0 | AQ214: 0 | AR214: 0
K215: Utility PV - Daggett, CA - Conservative | L215: 0 | M215: 0 | N215: 0 | O215: 0 | P215: 0 | Q215: 0 | R215: 0 | S215: 0 | T215: 0 | U215: 0 | V215: 0 | W215: 0 | X215: 0 | Y215: 0 | Z215: 0 | AA215: 0 | AB215: 0 | AC215: 0 | AD215: 0 | AE215: 0 | AF215: 0 | AG215: 0 | AH215: 0 | AI215: 0 | AJ215: 0 | AK215: 0 | AL215: 0 | AM215: 0 | AN215: 0 | AO215: 0 | AP215: 0 | AQ215: 0 | AR215: 0
H218: Finance | L218: 2018 | M218: 2019 | N218: 2020 | O218: 2021 | P218: 2022 | Q218: 2023 | R218: 2024 | S218: 2025 | T218: 2026 | U218: 2027 | V218: 2028 | W218: 2029 | X218: 2030 | Y218: 2031 | Z218: 2032 | AA218: 2033 | AB218: 2034 | AC218: 2035 | AD218: 2036 | AE218: 2037 | AF218: 2038 | AG218: 2039 | AH218: 2040 | AI218: 2041 | AJ218: 2042 | AK218: 2043 | AL218: 2044 | AM218: 2045 | AN218: 2046 | AO218: 2047 | AP218: 2048 | AQ218: 2049 | AR218: 2050
J219: Assumptions | K219: Inflation Rate | L219: ='WACC Calc'!F394 -> 0.025 | M219: ='WACC Calc'!G394 -> 0.025 | N219: ='WACC Calc'!H394 -> 0.025 | O219: ='WACC Calc'!I394 -> 0.025 | P219: ='WACC Calc'!J394 -> 0.025 | Q219: ='WACC Calc'!K394 -> 0.025 | R219: ='WACC Calc'!L394 -> 0.025 | S219: ='WACC Calc'!M394 -> 0.025 | T219: ='WACC Calc'!N394 -> 0.025 | U219: ='WACC Calc'!O394 -> 0.025 | V219: ='WACC Calc'!P394 -> 0.025 | W219: ='WACC Calc'!Q394 -> 0.025 | X219: ='WACC Calc'!R394 -> 0.025 | Y219: ='WACC Calc'!S394 -> 0.025 | Z219: ='WACC Calc'!T394 -> 0.025 | AA219: ='WACC Calc'!U394 -> 0.025 | AB219: ='WACC Calc'!V394 -> 0.025 | AC219: ='WACC Calc'!W394 -> 0.025 | AD219: ='WACC Calc'!X394 -> 0.025 | AE219: ='WACC Calc'!Y394 -> 0.025 | AF219: ='WACC Calc'!Z394 -> 0.025 | AG219: ='WACC Calc'!AA394 -> 0.025 | AH219: ='WACC Calc'!AB394 -> 0.025 | AI219: ='WACC Calc'!AC394 -> 0.025 | AJ219: ='WACC Calc'!AD394 -> 0.025 | AK219: ='WACC Calc'!AE394 -> 0.025 | AL219: ='WACC Calc'!AF394 -> 0.025 | AM219: ='WACC Calc'!AG394 -> 0.025 | AN219: ='WACC Calc'!AH394 -> 0.025 | AO219: ='WACC Calc'!AI394 -> 0.025 | AP219: ='WACC Calc'!AJ394 -> 0.025 | AQ219: ='WACC Calc'!AK394 -> 0.025 | AR219: ='WACC Calc'!AL394 -> 0.025
K220: Interest Rate Nominal - Advanced | L220: ='WACC Calc'!F395 -> 0.04 | M220: ='WACC Calc'!G395 -> 0.04 | N220: ='WACC Calc'!H395 -> 0.04 | O220: ='WACC Calc'!I395 -> 0.04 | P220: ='WACC Calc'!J395 -> 0.04 | Q220: ='WACC Calc'!K395 -> 0.04 | R220: ='WACC Calc'!L395 -> 0.04 | S220: ='WACC Calc'!M395 -> 0.04 | T220: ='WACC Calc'!N395 -> 0.04 | U220: ='WACC Calc'!O395 -> 0.04 | V220: ='WACC Calc'!P395 -> 0.04 | W220: ='WACC Calc'!Q395 -> 0.04 | X220: ='WACC Calc'!R395 -> 0.04 | Y220: ='WACC Calc'!S395 -> 0.04 | Z220: ='WACC Calc'!T395 -> 0.04 | AA220: ='WACC Calc'!U395 -> 0.04 | AB220: ='WACC Calc'!V395 -> 0.04 | AC220: ='WACC Calc'!W395 -> 0.04 | AD220: ='WACC Calc'!X395 -> 0.04 | AE220: ='WACC Calc'!Y395 -> 0.04 | AF220: ='WACC Calc'!Z395 -> 0.04 | AG220: ='WACC Calc'!AA395 -> 0.04 | AH220: ='WACC Calc'!AB395 -> 0.04 | AI220: ='WACC Calc'!AC395 -> 0.04 | AJ220: ='WACC Calc'!AD395 -> 0.04 | AK220: ='WACC Calc'!AE395 -> 0.04 | AL220: ='WACC Calc'!AF395 -> 0.04 | AM220: ='WACC Calc'!AG395 -> 0.04 | AN220: ='WACC Calc'!AH395 -> 0.04 | AO220: ='WACC Calc'!AI395 -> 0.04 | AP220: ='WACC Calc'!AJ395 -> 0.04 | AQ220: ='WACC Calc'!AK395 -> 0.04 | AR220: ='WACC Calc'!AL395 -> 0.04
K221: Interest Rate Nominal - Moderate | L221: ='WACC Calc'!F396 -> 0.04 | M221: ='WACC Calc'!G396 -> 0.04 | N221: ='WACC Calc'!H396 -> 0.04 | O221: ='WACC Calc'!I396 -> 0.04 | P221: ='WACC Calc'!J396 -> 0.04 | Q221: ='WACC Calc'!K396 -> 0.04 | R221: ='WACC Calc'!L396 -> 0.04 | S221: ='WACC Calc'!M396 -> 0.04 | T221: ='WACC Calc'!N396 -> 0.04 | U221: ='WACC Calc'!O396 -> 0.04 | V221: ='WACC Calc'!P396 -> 0.04 | W221: ='WACC Calc'!Q396 -> 0.04 | X221: ='WACC Calc'!R396 -> 0.04 | Y221: ='WACC Calc'!S396 -> 0.04 | Z221: ='WACC Calc'!T396 -> 0.04 | AA221: ='WACC Calc'!U396 -> 0.04 | AB221: ='WACC Calc'!V396 -> 0.04 | AC221: ='WACC Calc'!W396 -> 0.04 | AD221: ='WACC Calc'!X396 -> 0.04 | AE221: ='WACC Calc'!Y396 -> 0.04 | AF221: ='WACC Calc'!Z396 -> 0.04 | AG221: ='WACC Calc'!AA396 -> 0.04 | AH221: ='WACC Calc'!AB396 -> 0.04 | AI221: ='WACC Calc'!AC396 -> 0.04 | AJ221: ='WACC Calc'!AD396 -> 0.04 | AK221: ='WACC Calc'!AE396 -> 0.04 | AL221: ='WACC Calc'!AF396 -> 0.04 | AM221: ='WACC Calc'!AG396 -> 0.04 | AN221: ='WACC Calc'!AH396 -> 0.04 | AO221: ='WACC Calc'!AI396 -> 0.04 | AP221: ='WACC Calc'!AJ396 -> 0.04 | AQ221: ='WACC Calc'!AK396 -> 0.04 | AR221: ='WACC Calc'!AL396 -> 0.04
K222: Interest Rate Nominal - Conservative | L222: ='WACC Calc'!F397 -> 0.04 | M222: ='WACC Calc'!G397 -> 0.04 | N222: ='WACC Calc'!H397 -> 0.04 | O222: ='WACC Calc'!I397 -> 0.04 | P222: ='WACC Calc'!J397 -> 0.04 | Q222: ='WACC Calc'!K397 -> 0.04 | R222: ='WACC Calc'!L397 -> 0.04 | S222: ='WACC Calc'!M397 -> 0.04 | T222: ='WACC Calc'!N397 -> 0.04 | U222: ='WACC Calc'!O397 -> 0.04 | V222: ='WACC Calc'!P397 -> 0.04 | W222: ='WACC Calc'!Q397 -> 0.04 | X222: ='WACC Calc'!R397 -> 0.04 | Y222: ='WACC Calc'!S397 -> 0.04 | Z222: ='WACC Calc'!T397 -> 0.04 | AA222: ='WACC Calc'!U397 -> 0.04 | AB222: ='WACC Calc'!V397 -> 0.04 | AC222: ='WACC Calc'!W397 -> 0.04 | AD222: ='WACC Calc'!X397 -> 0.04 | AE222: ='WACC Calc'!Y397 -> 0.04 | AF222: ='WACC Calc'!Z397 -> 0.04 | AG222: ='WACC Calc'!AA397 -> 0.04 | AH222: ='WACC Calc'!AB397 -> 0.04 | AI222: ='WACC Calc'!AC397 -> 0.04 | AJ222: ='WACC Calc'!AD397 -> 0.04 | AK222: ='WACC Calc'!AE397 -> 0.04 | AL222: ='WACC Calc'!AF397 -> 0.04 | AM222: ='WACC Calc'!AG397 -> 0.04 | AN222: ='WACC Calc'!AH397 -> 0.04 | AO222: ='WACC Calc'!AI397 -> 0.04 | AP222: ='WACC Calc'!AJ397 -> 0.04 | AQ222: ='WACC Calc'!AK397 -> 0.04 | AR222: ='WACC Calc'!AL397 -> 0.04
K223: Calculated Interest Rate Real - Advanced | L223: ='WACC Calc'!F398 -> 0.01463414634 | M223: ='WACC Calc'!G398 -> 0.01463414634 | N223: ='WACC Calc'!H398 -> 0.01463414634 | O223: ='WACC Calc'!I398 -> 0.01463414634 | P223: ='WACC Calc'!J398 -> 0.01463414634 | Q223: ='WACC Calc'!K398 -> 0.01463414634 | R223: ='WACC Calc'!L398 -> 0.01463414634 | S223: ='WACC Calc'!M398 -> 0.01463414634 | T223: ='WACC Calc'!N398 -> 0.01463414634 | U223: ='WACC Calc'!O398 -> 0.01463414634 | V223: ='WACC Calc'!P398 -> 0.01463414634 | W223: ='WACC Calc'!Q398 -> 0.01463414634 | X223: ='WACC Calc'!R398 -> 0.01463414634 | Y223: ='WACC Calc'!S398 -> 0.01463414634 | Z223: ='WACC Calc'!T398 -> 0.01463414634 | AA223: ='WACC Calc'!U398 -> 0.01463414634 | AB223: ='WACC Calc'!V398 -> 0.01463414634 | AC223: ='WACC Calc'!W398 -> 0.01463414634 | AD223: ='WACC Calc'!X398 -> 0.01463414634 | AE223: ='WACC Calc'!Y398 -> 0.01463414634 | AF223: ='WACC Calc'!Z398 -> 0.01463414634 | AG223: ='WACC Calc'!AA398 -> 0.01463414634 | AH223: ='WACC Calc'!AB398 -> 0.01463414634 | AI223: ='WACC Calc'!AC398 -> 0.01463414634 | AJ223: ='WACC Calc'!AD398 -> 0.01463414634 | AK223: ='WACC Calc'!AE398 -> 0.01463414634 | AL223: ='WACC Calc'!AF398 -> 0.01463414634 | AM223: ='WACC Calc'!AG398 -> 0.01463414634 | AN223: ='WACC Calc'!AH398 -> 0.01463414634 | AO223: ='WACC Calc'!AI398 -> 0.01463414634 | AP223: ='WACC Calc'!AJ398 -> 0.01463414634 | AQ223: ='WACC Calc'!AK398 -> 0.01463414634 | AR223: ='WACC Calc'!AL398 -> 0.01463414634
... 126 more rows

Sheet Solar - PV Dist. Comm
A1: TEST | L1: https://atb.nrel.gov/electricity/2020/index.html?t=sd
T3: Inputs
J4: Take me to: | T4: Calculated
B10: X | G10: Current Costs
H12: Techno-Economic Cost and Performance Parameters | J12: Net Capacity Factor (%) | K12: Comm PV - Seattle | L12: =L100 -> 0.1243310222 | O12: Basis Year: | Q12: 2018
K13: Comm PV - Chicago | L13: =L104 -> 0.1441445357 | O13: All values are given in 2018 U.S. dollars, using the Consumer Price Index (BLS, 2020) for dollar year conversions. Projections use an inflation assumption of 2.5% per year.
K14: Comm PV - Kansas City | L14: =L107 -> 0.1537573122 | O14: Commercial Solar Photovoltaic
K15: Comm PV - Los Angeles | L15: =L110 -> 0.1797095474
K16: Comm PV - Daggett, CA | L16: =L113 -> 0.1945480109
O17: Representative Dist. Commercial system is fixed-tilt roof mounted with capacity of 300 kW
J18: Annual Energy Production (kWh/kW) | K18: Comm PV - Seattle | L18: =L12*8760 -> 1089.139754 | O18: Overnight Capital Cost, Capacity Factor, Fixed O&M, and Variable O&M costs
K19: Comm PV - Chicago | L19: =L13*8760 -> 1262.706132 | O19: represent $/kW DC; however LCOE reflects $/MWh AC.
K20: Comm PV - Kansas City | L20: =L14*8760 -> 1346.914055 | O20: Capacity factors chosen here to reflect range across the continental U.S. using NREL PVWATTS
K21: Comm PV - Los Angeles | L21: =L15*8760 -> 1574.255635
K22: Comm PV - Daggett, CA | L22: =L16*8760 -> 1704.240576
S23: Available | T23: Available
J24: CAPEX ($/kW) | K24: Comm PV - Seattle | L24: =$S$54 * (L36 + L62) -> 2052.102886 | S24: Capacity | T24: Generation
K25: Comm PV - Chicago | L25: =$S$54 * (L37 + L63) -> 2052.102886 | S25: (GW) | T25: (GWh)
K26: Comm PV - Kansas City | L26: =$S$54 * (L38 + L64) -> 2052.102886 | S26: 386 | T26: 506000
K27: Comm PV - Los Angeles | L27: =$S$54 * (L39 + L65) -> 2052.102886
K28: Comm PV - Daggett, CA | L28: =$S$54 * (L40 + L66) -> 2052.102886
O29: Res PV - Seattle | P29: Res PV - Seattle | Q29: ATB values reflect annual average capacity factor over life of plant including estimated degradation, starting at 0.7% per year, reducing to 0.2%, 0.5%, and 0.5% annual degradation by 2050 for the advanced, moderate, and conservative scenarios, respectively. Capacity factors also assume an energy yield gain at the module of 10%, 5%, and 2.5% for advanced, moderate, and conservatives scenarios.
J30: Construction Financing Cost ($/kW) | K30: Comm PV - Seattle | L30: =(L36+L62)*($S$54-1) -> 48.79115752 | O30: Res PV - Chicago | P30: Res PV - Chicago
K31: Comm PV - Chicago | L31: =(L37+L63)*($S$54-1) -> 48.79115752 | O31: Res PV - Kansas City | P31: Res PV - Kansas City
K32: Comm PV - Kansas City | L32: =(L38+L64)*($S$54-1) -> 48.79115752 | O32: Res PV - Los Angeles | P32: Res PV - Los Angeles
K33: Comm PV - Los Angeles | L33: =(L39+L65)*($S$54-1) -> 48.79115752 | O33: Res PV - Daggett, CA | P33: Res PV - Daggett, CA
K34: Comm PV - Daggett, CA | L34: =(L40+L66)*($S$54-1) -> 48.79115752
O35: Financial Assumptions:
J36: Overnight Capital Cost ($/kW) | K36: Comm PV - Seattle | L36: =$L$152 -> 2003.311728 | O36: Inflation Rate | S36: =L203 -> 0.025
K37: Comm PV - Chicago | L37: =$L$155 -> 2003.311728 | O37: Capital Recovery Period (Years) | S37: 30
K38: Comm PV - Kansas City | L38: =$L$164 -> 2003.311728 | O38: Interest Rate Nominal - Mid | S38: =L205 -> 0.04
K39: Comm PV - Los Angeles | L39: =$L$164 -> 2003.311728
K40: Comm PV - Daggett, CA | L40: =$L$164 -> 2003.311728
O41: Calculated Interest Rate Real - Mid | S41: =L208 -> 0.01463414634
J42: Fixed Operation and Maintenance Expenses ($/kW/yr) | K42: Comm PV - Seattle | L42: =L168 -> 18 | O42: Interest During Construction - Nominal | S42: =L210 -> 0.035
K43: Comm PV - Chicago | L43: =L171 -> 18 | O43: Rate of Return on Equity Nominal - Mid | S43: =L212 -> 0.0875
K44: Comm PV - Kansas City | L44: =L174 -> 18 | O44: Calculated Rate of Return on Equity Real - Mid | S44: =L215 -> 0.06097560976
K45: Comm PV - Los Angeles | L45: =L177 -> 18
K46: Comm PV - Daggett, CA | L46: =L180 -> 18
O47: Debt Fraction - Mid | S47: =L218 -> 0.7592911285
J48: Variable Operation and Maintenance Expenses ($/MWh) | K48: Comm PV - Seattle | L48: 0 | O48: Tax Rate (Federal and State) | S48: =L220 -> 0.2574
K49: Comm PV - Chicago | L49: 0 | O49: WACC Nominal - Mid | S49: =L222 -> 0.04361600993
K50: Comm PV - Kansas City | L50: 0 | O50: WACC Real - Mid | S50: =L225 -> 0.01816196091
K51: Comm PV - Los Angeles | L51: 0
K52: Comm PV - Daggett, CA | L52: 0
O53: Depreciation Period | S53: 5
O54: Construction Finance Factor | S54: =SUMPRODUCT(P67:P69,Q67:Q69,R67:R69)+SUMPRODUCT(P67:P69,T67:T69,S67:S69) -> 1.02435525
H55: Finance | J55: Weighted Average Cost of Capital (WACC) (Nominal) (%) | K55: Comm PV - Seattle | L55: =$S$49 -> 0.04361600993 | O55: Present Value of Depreciation | S55: =SUMPRODUCT(O74:T74,O76:T76) -> 0.8891284617
K56: Comm PV - Chicago | L56: =$S$49 -> 0.04361600993 | O56: Project Finance Factor | S56: =(1 - S48 * S55) / (1 - S48) -> 1.038430291
K57: Comm PV - Kansas City | L57: =$S$49 -> 0.04361600993 | O57: Capital Recovery Factor (CRF) Nominal - Mid | S57: =L228 -> 0.06039570519
K58: Comm PV - Los Angeles | L58: =$S$49 -> 0.04361600993
K59: Comm PV - Daggett, CA | L59: =$S$49 -> 0.04361600993
O60: Capital Recovery Factor (CRF) Real - Mid | S60: =L231 -> 0.04352940406
O61: Cost of equity during construction | S61: =S43+0.02 -> 0.1075
H62: Grid Connection Costs | J62: Grid Connection Costs (GCC) ($/kW) | K62: Comm PV - Seattle | L62: =L68+L74 -> 0 | O62: Construction Duration yrs | Q62: 1
K63: Comm PV - Chicago | L63: =L69+L75 -> 0 | O63: Year | P63: Capital | Q63: Accumulated
K64: Comm PV - Kansas City | L64: =L70+L76 -> 0 | O64: Index | P64: Fraction | Q64: Interest
K65: Comm PV - Los Angeles | L65: =L71+L77 -> 0 | R65: Percent of Leverage During Construction | S65: Percent of Equity During Construction | T65: Accumulated
K66: Comm PV - Daggett, CA | L66: =L72+L78 -> 0 | T66: Equity Cost
O67: 0 | P67: 1 | Q67: =1+((1+S42)^(O67+0.5)-1) -> 1.017349497 | R67: 0.8 | S67: =1-R67 -> 0.2 | T67: =1+((1+$S$61)^(O67+0.5)-1) -> 1.052378259
J68: Grid Feature Costs ($/kW) | K68: Comm PV - Seattle | L68: 0 | O68: 1 | P68: 0 | Q68: =1+((1+S42)^(O68+0.5)-1) -> 1.05295673 | R68: 0.8 | S68: =1-R68 -> 0.2 | T68: =1+((1+$S$61)^(O68+0.5)-1) -> 1.165508922
K69: Comm PV - Chicago | L69: 0 | O69: 2 | P69: 0 | Q69: =1+((1+S42)^(O69+0.5)-1) -> 1.089810215 | R69: 0.8 | S69: 0.2 | T69: 1.290801131
K70: Comm PV - Kansas City | L70: 0
K71: Comm PV - Los Angeles | L71: 0
K72: Comm PV - Daggett, CA | L72: 0
N73: MACRS yr | O73: 1 | P73: 2 | Q73: 3 | R73: 4 | S73: 5 | T73: 6
J74: Onshore Spur Line Costs ($/kW) | K74: Comm PV - Seattle | L74: 0 | N74: Depreciation | O74: 0.2 | P74: 0.32 | Q74: 0.192 | R74: 0.1152 | S74: 0.1152 | T74: 0.0576
K75: Comm PV - Chicago | L75: 0 | N75: Fraction
K76: Comm PV - Kansas City | L76: 0 | N76: Depreciation | O76: =1/((1+$S$50)*(1+$S$36))^O73 -> 0.9582068409 | P76: 0.91816035 | Q76: 0.8797875284 | R76: 0.8430184282 | S76: 0.807786025 | T76: 0.7740260951
K77: Comm PV - Los Angeles | L77: 0
K78: Comm PV - Daggett, CA | L78: 0
N79: Factor
H81: LCOE | J81: Levelized Cost of Energy ($/MWh) | K81: Comm PV - Seattle | L81: =(($S$60 * $S$56 * $S$54 * (L36 * 1 + L62) +L42) * 1000 / (L12 * 8760)) + L48 + 0 -> 101.6946363
K82: Comm PV - Chicago | L82: =(($S$60 * $S$56 * $S$54 * (L37 * 1 + L63) +L43) * 1000 / (L13 * 8760)) + L49 + 0 -> 87.71611094
K83: Comm PV - Kansas City | L83: =(($S$60 * $S$56 * $S$54 * (L38 * 1 + L64) +L44) * 1000 / (L14 * 8760)) + L50 + 0 -> 82.23217421
K84: Comm PV - Los Angeles | L84: =(($S$60 * $S$56 * $S$54 * (L39 * 1 + L65) +L45) * 1000 / (L15 * 8760)) + L51 + 0 -> 70.35685228
K85: Comm PV - Daggett, CA | L85: =(($S$60 * $S$56 * $S$54 * (L40 * 1 + L66) +L46) * 1000 / (L16 * 8760)) + L52 + 0 -> 64.99063147
J87: Overnight Levelized Cost of Energy ($/MWh) | K87: Comm PV - Seattle | L87: =(((L36*$S$60*(1-$S$48*$S$55))/(8760*L12*(1-$S$48))+L42/(8760*L12))*1000)+L48 -> 99.66967104
K88: Comm PV - Chicago | L88: =(((L37*$S$60*(1-$S$48*$S$55))/(8760*L13*(1-$S$48))+L43/(8760*L13))*1000)+L49 -> 85.96948904
K89: Comm PV - Kansas City | L89: =(((L38*$S$60*(1-$S$48*$S$55))/(8760*L14*(1-$S$48))+L44/(8760*L14))*1000)+L50 -> 80.59474963
K90: Comm PV - Los Angeles | L90: =(((L39*$S$60*(1-$S$48*$S$55))/(8760*L15*(1-$S$48))+L45/(8760*L15))*1000)+L51 -> 68.95589164
K91: Comm PV - Daggett, CA | L91: =(((L40*$S$60*(1-$S$48*$S$55))/(8760*L16*(1-$S$48))+L46/(8760*L16))*1000)+L52 -> 63.69652416
H94: ***Note: For future projections, low, mid, and high refer to the resulting low, mid, and high LCOE projections.
D97: X | G97: Future Projections
L98: Basis Year
L99: 2018 | M99: 2019 | N99: 2020 | O99: 2021 | P99: 2022 | Q99: 2023 | R99: 2024 | S99: 2025 | T99: 2026 | U99: 2027 | V99: 2028 | W99: 2029 | X99: 2030 | Y99: 2031 | Z99: 2032 | AA99: 2033 | AB99: 2034 | AC99: 2035 | AD99: 2036 | AE99: 2037 | AF99: 2038 | AG99: 2039 | AH99: 2040 | AI99: 2041 | AJ99: 2042 | AK99: 2043 | AL99: 2044 | AM99: 2045 | AN99: 2046 | AO99: 2047 | AP99: 2048 | AQ99: 2049 | AR99: 2050
H100: Techno-Economic Cost and Performance Parameters | J100: Net Capacity Factor (%) | K100: Comm PV - Seattle - Advanced | L100: 0.1243310222 | M100: 0.1262265686 | N100: 0.1281221151 | O100: 0.1300176616 | P100: 0.1319132081 | Q100: 0.1338087545 | R100: 0.135704301 | S100: 0.1375998475 | T100: 0.139495394 | U100: 0.1413909404 | V100: 0.1432864869 | W100: 0.1451820334 | X100: 0.1470775799 | Y100: 0.1478023536 | Z100: 0.1485271274 | AA100: 0.1492519012 | AB100: 0.1499766749 | AC100: 0.1507014487 | AD100: 0.1514262225 | AE100: 0.1521509963 | AF100: 0.15287577 | AG100: 0.1536005438 | AH100: 0.1543253176 | AI100: 0.1550500914 | AJ100: 0.1557748651 | AK100: 0.1564996389 | AL100: 0.1572244127 | AM100: 0.1579491864 | AN100: 0.1586739602 | AO100: 0.159398734 | AP100: 0.1601235078 | AQ100: 0.1608482815 | AR100: 0.1615730553
K101: Comm PV - Seattle - Moderate | L101: 0.1243310222 | M101: 0.1251839139 | N101: 0.1260368056 | O101: 0.1268896973 | P101: 0.127742589 | Q101: 0.1285954807 | R101: 0.1294483724 | S101: 0.1303012641 | T101: 0.1311541558 | U101: 0.1320070475 | V101: 0.1328599392 | W101: 0.1337128309 | X101: 0.1345657226 | Y101: 0.1351913155 | Z101: 0.1358169083 | AA101: 0.1364425012 | AB101: 0.1370680941 | AC101: 0.1376936869 | AD101: 0.1383192798 | AE101: 0.1389448726 | AF101: 0.1395704655 | AG101: 0.1401960584 | AH101: 0.1408216512 | AI101: 0.1414472441 | AJ101: 0.142072837 | AK101: 0.1426984298 | AL101: 0.1433240227 | AM101: 0.1439496155 | AN101: 0.1445752084 | AO101: 0.1452008013 | AP101: 0.1458263941 | AQ101: 0.146451987 | AR101: 0.1470775799
K102: Comm PV - Seattle - Conservative | L102: 0.1243310222 | M102: 0.1243310222 | N102: 0.1243310222 | O102: 0.1243310222 | P102: 0.1243310222 | Q102: 0.1243310222 | R102: 0.1243310222 | S102: 0.1243310222 | T102: 0.1243310222 | U102: 0.1243310222 | V102: 0.1243310222 | W102: 0.1243310222 | X102: 0.1243310222 | Y102: 0.1248427572 | Z102: 0.1253544922 | AA102: 0.1258662272 | AB102: 0.1263779623 | AC102: 0.1268896973 | AD102: 0.1274014323 | AE102: 0.1279131673 | AF102: 0.1284249023 | AG102: 0.1289366374 | AH102: 0.1294483724 | AI102: 0.1299601074 | AJ102: 0.1304718424 | AK102: 0.1309835774 | AL102: 0.1314953125 | AM102: 0.1320070475 | AN102: 0.1325187825 | AO102: 0.1330305175 | AP102: 0.1335422526 | AQ102: 0.1340539876 | AR102: 0.1345657226
K103: Comm PV - Chicago - Advanced | L103: 0.1441445357 | M103: 0.1463310104 | N103: 0.1485174852 | O103: 0.15070396 | P103: 0.1528904348 | Q103: 0.1550769096 | R103: 0.1572633843 | S103: 0.1594498591 | T103: 0.1616363339 | U103: 0.1638228087 | V103: 0.1660092834 | W103: 0.1681957582 | X103: 0.170382233 | Y103: 0.1712072836 | Z103: 0.1720323343 | AA103: 0.1728573849 | AB103: 0.1736824355 | AC103: 0.1745074862 | AD103: 0.1753325368 | AE103: 0.1761575875 | AF103: 0.1769826381 | AG103: 0.1778076887 | AH103: 0.1786327394 | AI103: 0.17945779 | AJ103: 0.1802828406 | AK103: 0.1811078913 | AL103: 0.1819329419 | AM103: 0.1827579926 | AN103: 0.1835830432 | AO103: 0.1844080938 | AP103: 0.1852331445 | AQ103: 0.1860581951 | AR103: 0.1868832458
K104: Comm PV - Chicago - Moderate | L104: 0.1441445357 | M104: 0.1451304483 | N104: 0.1461163609 | O104: 0.1471022735 | P104: 0.1480881861 | Q104: 0.1490740987 | R104: 0.1500600113 | S104: 0.1510459239 | T104: 0.1520318365 | U104: 0.1530177491 | V104: 0.1540036617 | W104: 0.1549895743 | X104: 0.1559754869 | Y104: 0.1566958242 | Z104: 0.1574161615 | AA104: 0.1581364988 | AB104: 0.1588568361 | AC104: 0.1595771734 | AD104: 0.1602975107 | AE104: 0.161017848 | AF104: 0.1617381853 | AG104: 0.1624585226 | AH104: 0.1631788599 | AI104: 0.1638991973 | AJ104: 0.1646195346 | AK104: 0.1653398719 | AL104: 0.1660602092 | AM104: 0.1667805465 | AN104: 0.1675008838 | AO104: 0.1682212211 | AP104: 0.1689415584 | AQ104: 0.1696618957 | AR104: 0.170382233
K105: Comm PV - Chicago - Conservative | L105: 0.1441445357 | M105: 0.1441445357 | N105: 0.1441445357 | O105: 0.1441445357 | P105: 0.1441445357 | Q105: 0.1441445357 | R105: 0.1441445357 | S105: 0.1441445357 | T105: 0.1441445357 | U105: 0.1441445357 | V105: 0.1441445357 | W105: 0.1441445357 | X105: 0.1441445357 | Y105: 0.1447360832 | Z105: 0.1453276308 | AA105: 0.1459191784 | AB105: 0.1465107259 | AC105: 0.1471022735 | AD105: 0.147693821 | AE105: 0.1482853686 | AF105: 0.1488769162 | AG105: 0.1494684637 | AH105: 0.1500600113 | AI105: 0.1506515588 | AJ105: 0.1512431064 | AK105: 0.151834654 | AL105: 0.1524262015 | AM105: 0.1530177491 | AN105: 0.1536092967 | AO105: 0.1542008442 | AP105: 0.1547923918 | AQ105: 0.1553839393 | AR105: 0.1559754869
K106: Comm PV - Kansas City - Advanced | L106: 0.1537573122 | M106: 0.156091178 | N106: 0.1584250437 | O106: 0.1607589095 | P106: 0.1630927753 | Q106: 0.1654266411 | R106: 0.1677605068 | S106: 0.1700943726 | T106: 0.1724282384 | U106: 0.1747621041 | V106: 0.1770959699 | W106: 0.1794298357 | X106: 0.1817637014 | Y106: 0.1826519026 | Z106: 0.1835401037 | AA106: 0.1844283049 | AB106: 0.185316506 | AC106: 0.1862047072 | AD106: 0.1870929083 | AE106: 0.1879811094 | AF106: 0.1888693106 | AG106: 0.1897575117 | AH106: 0.1906457129 | AI106: 0.191533914 | AJ106: 0.1924221152 | AK106: 0.1933103163 | AL106: 0.1941985174 | AM106: 0.1950867186 | AN106: 0.1959749197 | AO106: 0.1968631209 | AP106: 0.197751322 | AQ106: 0.1986395231 | AR106: 0.1995277243
K107: Comm PV - Kansas City - Moderate | L107: 0.1537573122 | M107: 0.1548078503 | N107: 0.1558583885 | O107: 0.1569089266 | P107: 0.1579594648 | Q107: 0.1590100029 | R107: 0.1600605411 | S107: 0.1611110792 | T107: 0.1621616173 | U107: 0.1632121555 | V107: 0.1642626936 | W107: 0.1653132318 | X107: 0.1663637699 | Y107: 0.1671337665 | Z107: 0.1679037631 | AA107: 0.1686737597 | AB107: 0.1694437562 | AC107: 0.1702137528 | AD107: 0.1709837494 | AE107: 0.171753746 | AF107: 0.1725237425 | AG107: 0.1732937391 | AH107: 0.1740637357 | AI107: 0.1748337323 | AJ107: 0.1756037288 | AK107: 0.1763737254 | AL107: 0.177143722 | AM107: 0.1779137186 | AN107: 0.1786837151 | AO107: 0.1794537117 | AP107: 0.1802237083 | AQ107: 0.1809937049 | AR107: 0.1817637014
K108: Comm PV - Kansas City - Conservative | L108: 0.1537573122 | M108: 0.1537573122 | N108: 0.1537573122 | O108: 0.1537573122 | P108: 0.1537573122 | Q108: 0.1537573122 | R108: 0.1537573122 | S108: 0.1537573122 | T108: 0.1537573122 | U108: 0.1537573122 | V108: 0.1537573122 | W108: 0.1537573122 | X108: 0.1537573122 | Y108: 0.1543876351 | Z108: 0.155017958 | AA108: 0.1556482809 | AB108: 0.1562786037 | AC108: 0.1569089266 | AD108: 0.1575392495 | AE108: 0.1581695724 | AF108: 0.1587998953 | AG108: 0.1594302182 | AH108: 0.1600605411 | AI108: 0.1606908639 | AJ108: 0.1613211868 | AK108: 0.1619515097 | AL108: 0.1625818326 | AM108: 0.1632121555 | AN108: 0.1638424784 | AO108: 0.1644728013 | AP108: 0.1651031242 | AQ108: 0.165733447 | AR108: 0.1663637699
K109: Comm PV - Los Angeles - Advanced | L109: 0.1797095474 | M109: 0.1824024937 | N109: 0.18509544 | O109: 0.1877883862 | P109: 0.1904813325 | Q109: 0.1931742788 | R109: 0.195867225 | S109: 0.1985601713 | T109: 0.2012531176 | U109: 0.2039460638 | V109: 0.2066390101 | W109: 0.2093319564 | X109: 0.2120249026 | Y109: 0.2129604023 | Z109: 0.213895902 | AA109: 0.2148314017 | AB109: 0.2157669014 | AC109: 0.2167024011 | AD109: 0.2176379008 | AE109: 0.2185734005 | AF109: 0.2195089002 | AG109: 0.2204443999 | AH109: 0.2213798996 | AI109: 0.2223153993 | AJ109: 0.223250899 | AK109: 0.2241863987 | AL109: 0.2251218984 | AM109: 0.2260573981 | AN109: 0.2269928978 | AO109: 0.2279283975 | AP109: 0.2288638972 | AQ109: 0.2297993969 | AR109: 0.2307348966
K110: Comm PV - Los Angeles - Moderate | L110: 0.1797095474 | M110: 0.180932738 | N110: 0.1821559286 | O110: 0.1833791192 | P110: 0.1846023098 | Q110: 0.1858255004 | R110: 0.187048691 | S110: 0.1882718816 | T110: 0.1894950722 | U110: 0.1907182628 | V110: 0.1919414534 | W110: 0.193164644 | X110: 0.1943878346 | Y110: 0.195269688 | Z110: 0.1961515414 | AA110: 0.1970333948 | AB110: 0.1979152482 | AC110: 0.1987971016 | AD110: 0.199678955 | AE110: 0.2005608084 | AF110: 0.2014426618 | AG110: 0.2023245152 | AH110: 0.2032063686 | AI110: 0.204088222 | AJ110: 0.2049700754 | AK110: 0.2058519288 | AL110: 0.2067337822 | AM110: 0.2076156356 | AN110: 0.208497489 | AO110: 0.2093793424 | AP110: 0.2102611958 | AQ110: 0.2111430492 | AR110: 0.2120249026
K111: Comm PV - Los Angeles - Conservative | L111: 0.1797095474 | M111: 0.1797095474 | N111: 0.1797095474 | O111: 0.1797095474 | P111: 0.1797095474 | Q111: 0.1797095474 | R111: 0.1797095474 | S111: 0.1797095474 | T111: 0.1797095474 | U111: 0.1797095474 | V111: 0.1797095474 | W111: 0.1797095474 | X111: 0.1797095474 | Y111: 0.1804434618 | Z111: 0.1811773761 | AA111: 0.1819112905 | AB111: 0.1826452049 | AC111: 0.1833791192 | AD111: 0.1841130336 | AE111: 0.1848469479 | AF111: 0.1855808623 | AG111: 0.1863147767 | AH111: 0.187048691 | AI111: 0.1877826054 | AJ111: 0.1885165197 | AK111: 0.1892504341 | AL111: 0.1899843484 | AM111: 0.1907182628 | AN111: 0.1914521772 | AO111: 0.1921860915 | AP111: 0.1929200059 | AQ111: 0.1936539202 | AR111: 0.1943878346
K112: Comm PV - Daggett, CA - Advanced | L112: 0.1945480109 | M112: 0.1974433862 | N112: 0.2003387614 | O112: 0.2032341367 | P112: 0.206129512 | Q112: 0.2090248872 | R112: 0.2119202625 | S112: 0.2148156377 | T112: 0.217711013 | U112: 0.2206063882 | V112: 0.2235017635 | W112: 0.2263971387 | X112: 0.229292514 | Y112: 0.2303118779 | Z112: 0.2313312417 | AA112: 0.2323506056 | AB112: 0.2333699694 | AC112: 0.2343893333 | AD112: 0.2354086971 | AE112: 0.236428061 | AF112: 0.2374474249 | AG112: 0.2384667887 | AH112: 0.2394861526 | AI112: 0.2405055164 | AJ112: 0.2415248803 | AK112: 0.2425442441 | AL112: 0.243563608 | AM112: 0.2445829719 | AN112: 0.2456023357 | AO112: 0.2466216996 | AP112: 0.2476410634 | AQ112: 0.2486604273 | AR112: 0.2496797912
K113: Comm PV - Daggett, CA - Moderate | L113: 0.1945480109 | M113: 0.1958643289 | N113: 0.1971806468 | O113: 0.1984969647 | P113: 0.1998132826 | Q113: 0.2011296005 | R113: 0.2024459184 | S113: 0.2037622363 | T113: 0.2050785543 | U113: 0.2063948722 | V113: 0.2077111901 | W113: 0.209027508 | X113: 0.2103438259 | Y113: 0.2112912603 | Z113: 0.2122386947 | AA113: 0.2131861291 | AB113: 0.2141335635 | AC113: 0.2150809979 | AD113: 0.2160284323 | AE113: 0.2169758668 | AF113: 0.2179233012 | AG113: 0.2188707356 | AH113: 0.21981817 | AI113: 0.2207656044 | AJ113: 0.2217130388 | AK113: 0.2226604732 | AL113: 0.2236079076 | AM113: 0.224555342 | AN113: 0.2255027764 | AO113: 0.2264502108 | AP113: 0.2273976452 | AQ113: 0.2283450796 | AR113: 0.229292514
K114: Comm PV - Daggett, CA - Conservative | L114: 0.1945480109 | M114: 0.1945480109 | N114: 0.1945480109 | O114: 0.1945480109 | P114: 0.1945480109 | Q114: 0.1945480109 | R114: 0.1945480109 | S114: 0.1945480109 | T114: 0.1945480109 | U114: 0.1945480109 | V114: 0.1945480109 | W114: 0.1945480109 | X114: 0.1945480109 | Y114: 0.1953378017 | Z114: 0.1961275924 | AA114: 0.1969173832 | AB114: 0.1977071739 | AC114: 0.1984969647 | AD114: 0.1992867554 | AE114: 0.2000765462 | AF114: 0.2008663369 | AG114: 0.2016561277 | AH114: 0.2024459184 | AI114: 0.2032357092 | AJ114: 0.2040254999 | AK114: 0.2048152907 | AL114: 0.2056050814 | AM114: 0.2063948722 | AN114: 0.2071846629 | AO114: 0.2079744537 | AP114: 0.2087642444 | AQ114: 0.2095540352 | AR114: 0.2103438259
L116: 2018 | M116: 2019 | N116: 2020 | O116: 2021 | P116: 2022 | Q116: 2023 | R116: 2024 | S116: 2025 | T116: 2026 | U116: 2027 | V116: 2028 | W116: 2029 | X116: 2030 | Y116: 2031 | Z116: 2032 | AA116: 2033 | AB116: 2034 | AC116: 2035 | AD116: 2036 | AE116: 2037 | AF116: 2038 | AG116: 2039 | AH116: 2040 | AI116: 2041 | AJ116: 2042 | AK116: 2043 | AL116: 2044 | AM116: 2045 | AN116: 2046 | AO116: 2047 | AP116: 2048 | AQ116: 2049 | AR116: 2050
J117: Annual Energy Production (kWh/kW) | K117: Comm PV - Seattle - Advanced | L117: =L100*8760 -> 1089.139754 | M117: 1105.744741 | N117: 1122.349728 | O117: 1138.954715 | P117: 1155.559703 | Q117: 1172.16469 | R117: 1188.769677 | S117: 1205.374664 | T117: 1221.979651 | U117: 1238.584638 | V117: 1255.189625 | W117: 1271.794612 | X117: 1288.3996 | Y117: 1294.748618 | Z117: 1301.097636 | AA117: 1307.446654 | AB117: 1313.795673 | AC117: 1320.144691 | AD117: 1326.493709 | AE117: 1332.842727 | AF117: 1339.191746 | AG117: 1345.540764 | AH117: 1351.889782 | AI117: 1358.2388 | AJ117: 1364.587819 | AK117: 1370.936837 | AL117: 1377.285855 | AM117: 1383.634873 | AN117: 1389.983892 | AO117: 1396.33291 | AP117: 1402.681928 | AQ117: 1409.030946 | AR117: 1415.379965
K118: Comm PV - Seattle - Moderate | L118: =L101*8760 -> 1089.139754 | M118: 1096.611085 | N118: 1104.082417 | O118: 1111.553748 | P118: 1119.025079 | Q118: 1126.496411 | R118: 1133.967742 | S118: 1141.439073 | T118: 1148.910405 | U118: 1156.381736 | V118: 1163.853067 | W118: 1171.324399 | X118: 1178.79573 | Y118: 1184.275923 | Z118: 1189.756117 | AA118: 1195.23631 | AB118: 1200.716504 | AC118: 1206.196697 | AD118: 1211.676891 | AE118: 1217.157084 | AF118: 1222.637278 | AG118: 1228.117471 | AH118: 1233.597665 | AI118: 1239.077858 | AJ118: 1244.558052 | AK118: 1250.038245 | AL118: 1255.518439 | AM118: 1260.998632 | AN118: 1266.478826 | AO118: 1271.959019 | AP118: 1277.439213 | AQ118: 1282.919406 | AR118: 1288.3996
K119: Comm PV - Seattle - Conservative | L119: =L102*8760 -> 1089.139754 | M119: 1089.139754 | N119: 1089.139754 | O119: 1089.139754 | P119: 1089.139754 | Q119: 1089.139754 | R119: 1089.139754 | S119: 1089.139754 | T119: 1089.139754 | U119: 1089.139754 | V119: 1089.139754 | W119: 1089.139754 | X119: 1089.139754 | Y119: 1093.622553 | Z119: 1098.105352 | AA119: 1102.588151 | AB119: 1107.070949 | AC119: 1111.553748 | AD119: 1116.036547 | AE119: 1120.519346 | AF119: 1125.002144 | AG119: 1129.484943 | AH119: 1133.967742 | AI119: 1138.450541 | AJ119: 1142.93334 | AK119: 1147.416138 | AL119: 1151.898937 | AM119: 1156.381736 | AN119: 1160.864535 | AO119: 1165.347334 | AP119: 1169.830132 | AQ119: 1174.312931 | AR119: 1178.79573
K120: Comm PV - Chicago - Advanced | L120: =L103*8760 -> 1262.706132 | M120: 1281.859652 | N120: 1301.013171 | O120: 1320.16669 | P120: 1339.320209 | Q120: 1358.473728 | R120: 1377.627247 | S120: 1396.780766 | T120: 1415.934285 | U120: 1435.087804 | V120: 1454.241323 | W120: 1473.394842 | X120: 1492.548361 | Y120: 1499.775805 | Z120: 1507.003248 | AA120: 1514.230692 | AB120: 1521.458135 | AC120: 1528.685579 | AD120: 1535.913023 | AE120: 1543.140466 | AF120: 1550.36791 | AG120: 1557.595353 | AH120: 1564.822797 | AI120: 1572.05024 | AJ120: 1579.277684 | AK120: 1586.505128 | AL120: 1593.732571 | AM120: 1600.960015 | AN120: 1608.187458 | AO120: 1615.414902 | AP120: 1622.642346 | AQ120: 1629.869789 | AR120: 1637.097233
K121: Comm PV - Chicago - Moderate | L121: =L104*8760 -> 1262.706132 | M121: 1271.342727 | N121: 1279.979321 | O121: 1288.615916 | P121: 1297.25251 | Q121: 1305.889104 | R121: 1314.525699 | S121: 1323.162293 | T121: 1331.798888 | U121: 1340.435482 | V121: 1349.072076 | W121: 1357.708671 | X121: 1366.345265 | Y121: 1372.65542 | Z121: 1378.965575 | AA121: 1385.27573 | AB121: 1391.585884 | AC121: 1397.896039 | AD121: 1404.206194 | AE121: 1410.516349 | AF121: 1416.826504 | AG121: 1423.136658 | AH121: 1429.446813 | AI121: 1435.756968 | AJ121: 1442.067123 | AK121: 1448.377277 | AL121: 1454.687432 | AM121: 1460.997587 | AN121: 1467.307742 | AO121: 1473.617897 | AP121: 1479.928051 | AQ121: 1486.238206 | AR121: 1492.548361
K122: Comm PV - Chicago - Conservative | L122: =L105*8760 -> 1262.706132 | M122: 1262.706132 | N122: 1262.706132 | O122: 1262.706132 | P122: 1262.706132 | Q122: 1262.706132 | R122: 1262.706132 | S122: 1262.706132 | T122: 1262.706132 | U122: 1262.706132 | V122: 1262.706132 | W122: 1262.706132 | X122: 1262.706132 | Y122: 1267.888089 | Z122: 1273.070046 | AA122: 1278.252002 | AB122: 1283.433959 | AC122: 1288.615916 | AD122: 1293.797872 | AE122: 1298.979829 | AF122: 1304.161786 | AG122: 1309.343742 | AH122: 1314.525699 | AI122: 1319.707656 | AJ122: 1324.889612 | AK122: 1330.071569 | AL122: 1335.253525 | AM122: 1340.435482 | AN122: 1345.617439 | AO122: 1350.799395 | AP122: 1355.981352 | AQ122: 1361.163309 | AR122: 1366.345265
K123: Comm PV - Kansas City - Advanced | L123: =L106*8760 -> 1346.914055 | M123: 1367.358719 | N123: 1387.803383 | O123: 1408.248047 | P123: 1428.692711 | Q123: 1449.137376 | R123: 1469.58204 | S123: 1490.026704 | T123: 1510.471368 | U123: 1530.916032 | V123: 1551.360696 | W123: 1571.805361 | X123: 1592.250025 | Y123: 1600.030667 | Z123: 1607.811309 | AA123: 1615.591951 | AB123: 1623.372593 | AC123: 1631.153235 | AD123: 1638.933877 | AE123: 1646.714519 | AF123: 1654.495161 | AG123: 1662.275803 | AH123: 1670.056445 | AI123: 1677.837087 | AJ123: 1685.617729 | AK123: 1693.398371 | AL123: 1701.179013 | AM123: 1708.959655 | AN123: 1716.740297 | AO123: 1724.520939 | AP123: 1732.301581 | AQ123: 1740.082223 | AR123: 1747.862865
K124: Comm PV - Kansas City - Moderate | L124: =L107*8760 -> 1346.914055 | M124: 1356.116769 | N124: 1365.319483 | O124: 1374.522197 | P124: 1383.724911 | Q124: 1392.927626 | R124: 1402.13034 | S124: 1411.333054 | T124: 1420.535768 | U124: 1429.738482 | V124: 1438.941196 | W124: 1448.14391 | X124: 1457.346625 | Y124: 1464.091795 | Z124: 1470.836965 | AA124: 1477.582135 | AB124: 1484.327305 | AC124: 1491.072475 | AD124: 1497.817645 | AE124: 1504.562815 | AF124: 1511.307985 | AG124: 1518.053155 | AH124: 1524.798325 | AI124: 1531.543495 | AJ124: 1538.288665 | AK124: 1545.033835 | AL124: 1551.779005 | AM124: 1558.524175 | AN124: 1565.269345 | AO124: 1572.014515 | AP124: 1578.759685 | AQ124: 1585.504855 | AR124: 1592.250025
K125: Comm PV - Kansas City - Conservative | L125: =L108*8760 -> 1346.914055 | M125: 1346.914055 | N125: 1346.914055 | O125: 1346.914055 | P125: 1346.914055 | Q125: 1346.914055 | R125: 1346.914055 | S125: 1346.914055 | T125: 1346.914055 | U125: 1346.914055 | V125: 1346.914055 | W125: 1346.914055 | X125: 1346.914055 | Y125: 1352.435683 | Z125: 1357.957312 | AA125: 1363.47894 | AB125: 1369.000569 | AC125: 1374.522197 | AD125: 1380.043826 | AE125: 1385.565454 | AF125: 1391.087083 | AG125: 1396.608711 | AH125: 1402.13034 | AI125: 1407.651968 | AJ125: 1413.173597 | AK125: 1418.695225 | AL125: 1424.216854 | AM125: 1429.738482 | AN125: 1435.260111 | AO125: 1440.781739 | AP125: 1446.303368 | AQ125: 1451.824996 | AR125: 1457.346625
K126: Comm PV - Los Angeles - Advanced | L126: =L109*8760 -> 1574.255635 | M126: 1597.845845 | N126: 1621.436054 | O126: 1645.026263 | P126: 1668.616473 | Q126: 1692.206682 | R126: 1715.796891 | S126: 1739.387101 | T126: 1762.97731 | U126: 1786.567519 | V126: 1810.157729 | W126: 1833.747938 | X126: 1857.338147 | Y126: 1865.533125 | Z126: 1873.728102 | AA126: 1881.923079 | AB126: 1890.118057 | AC126: 1898.313034 | AD126: 1906.508011 | AE126: 1914.702989 | AF126: 1922.897966 | AG126: 1931.092943 | AH126: 1939.287921 | AI126: 1947.482898 | AJ126: 1955.677875 | AK126: 1963.872853 | AL126: 1972.06783 | AM126: 1980.262807 | AN126: 1988.457785 | AO126: 1996.652762 | AP126: 2004.847739 | AQ126: 2013.042716 | AR126: 2021.237694
K127: Comm PV - Los Angeles - Moderate | L127: =L110*8760 -> 1574.255635 | M127: 1584.970785 | N127: 1595.685935 | O127: 1606.401084 | P127: 1617.116234 | Q127: 1627.831384 | R127: 1638.546533 | S127: 1649.261683 | T127: 1659.976832 | U127: 1670.691982 | V127: 1681.407132 | W127: 1692.122281 | X127: 1702.837431 | Y127: 1710.562467 | Z127: 1718.287503 | AA127: 1726.012538 | AB127: 1733.737574 | AC127: 1741.46261 | AD127: 1749.187646 | AE127: 1756.912682 | AF127: 1764.637717 | AG127: 1772.362753 | AH127: 1780.087789 | AI127: 1787.812825 | AJ127: 1795.537861 | AK127: 1803.262897 | AL127: 1810.987932 | AM127: 1818.712968 | AN127: 1826.438004 | AO127: 1834.16304 | AP127: 1841.888076 | AQ127: 1849.613111 | AR127: 1857.338147
K128: Comm PV - Los Angeles - Conservative | L128: =L111*8760 -> 1574.255635 | M128: 1574.255635 | N128: 1574.255635 | O128: 1574.255635 | P128: 1574.255635 | Q128: 1574.255635 | R128: 1574.255635 | S128: 1574.255635 | T128: 1574.255635 | U128: 1574.255635 | V128: 1574.255635 | W128: 1574.255635 | X128: 1574.255635 | Y128: 1580.684725 | Z128: 1587.113815 | AA128: 1593.542905 | AB128: 1599.971995 | AC128: 1606.401084 | AD128: 1612.830174 | AE128: 1619.259264 | AF128: 1625.688354 | AG128: 1632.117443 | AH128: 1638.546533 | AI128: 1644.975623 | AJ128: 1651.404713 | AK128: 1657.833803 | AL128: 1664.262892 | AM128: 1670.691982 | AN128: 1677.121072 | AO128: 1683.550162 | AP128: 1689.979251 | AQ128: 1696.408341 | AR128: 1702.837431
K129: Comm PV - Daggett, CA - Advanced | L129: =L112*8760 -> 1704.240576 | M129: 1729.604063 | N129: 1754.96755 | O129: 1780.331038 | P129: 1805.694525 | Q129: 1831.058012 | R129: 1856.421499 | S129: 1881.784986 | T129: 1907.148474 | U129: 1932.511961 | V129: 1957.875448 | W129: 1983.238935 | X129: 2008.602423 | Y129: 2017.53205 | Z129: 2026.461677 | AA129: 2035.391305 | AB129: 2044.320932 | AC129: 2053.25056 | AD129: 2062.180187 | AE129: 2071.109814 | AF129: 2080.039442 | AG129: 2088.969069 | AH129: 2097.898697 | AI129: 2106.828324 | AJ129: 2115.757951 | AK129: 2124.687579 | AL129: 2133.617206 | AM129: 2142.546834 | AN129: 2151.476461 | AO129: 2160.406088 | AP129: 2169.335716 | AQ129: 2178.265343 | AR129: 2187.194971
K130: Comm PV - Daggett, CA - Moderate | L130: =L113*8760 -> 1704.240576 | M130: 1715.771521 | N130: 1727.302466 | O130: 1738.833411 | P130: 1750.364356 | Q130: 1761.895301 | R130: 1773.426245 | S130: 1784.95719 | T130: 1796.488135 | U130: 1808.01908 | V130: 1819.550025 | W130: 1831.08097 | X130: 1842.611915 | Y130: 1850.911441 | Z130: 1859.210966 | AA130: 1867.510491 | AB130: 1875.810017 | AC130: 1884.109542 | AD130: 1892.409067 | AE130: 1900.708593 | AF130: 1909.008118 | AG130: 1917.307643 | AH130: 1925.607169 | AI130: 1933.906694 | AJ130: 1942.20622 | AK130: 1950.505745 | AL130: 1958.80527 | AM130: 1967.104796 | AN130: 1975.404321 | AO130: 1983.703846 | AP130: 1992.003372 | AQ130: 2000.302897 | AR130: 2008.602423
K131: Comm PV - Daggett, CA - Conservative | L131: =L114*8760 -> 1704.240576 | M131: 1704.240576 | N131: 1704.240576 | O131: 1704.240576 | P131: 1704.240576 | Q131: 1704.240576 | R131: 1704.240576 | S131: 1704.240576 | T131: 1704.240576 | U131: 1704.240576 | V131: 1704.240576 | W131: 1704.240576 | X131: 1704.240576 | Y131: 1711.159143 | Z131: 1718.07771 | AA131: 1724.996277 | AB131: 1731.914844 | AC131: 1738.833411 | AD131: 1745.751978 | AE131: 1752.670545 | AF131: 1759.589112 | AG131: 1766.507679 | AH131: 1773.426245 | AI131: 1780.344812 | AJ131: 1787.263379 | AK131: 1794.181946 | AL131: 1801.100513 | AM131: 1808.01908 | AN131: 1814.937647 | AO131: 1821.856214 | AP131: 1828.774781 | AQ131: 1835.693348 | AR131: 1842.611915
L133: 2018 | M133: 2019 | N133: 2020 | O133: 2021 | P133: 2022 | Q133: 2023 | R133: 2024 | S133: 2025 | T133: 2026 | U133: 2027 | V133: 2028 | W133: 2029 | X133: 2030 | Y133: 2031 | Z133: 2032 | AA133: 2033 | AB133: 2034 | AC133: 2035 | AD133: 2036 | AE133: 2037 | AF133: 2038 | AG133: 2039 | AH133: 2040 | AI133: 2041 | AJ133: 2042 | AK133: 2043 | AL133: 2044 | AM133: 2045 | AN133: 2046 | AO133: 2047 | AP133: 2048 | AQ133: 2049 | AR133: 2050
J134: CAPEX ($/kW) | K134: Comm PV - Seattle - Advanced | L134: =$S$54*(L151+L252) -> 2052.102886 | M134: 1812.523781 | N134: 1720.098231 | O134: 1627.672681 | P134: 1535.247131 | Q134: 1442.821581 | R134: 1350.396032 | S134: 1257.970482 | T134: 1165.544932 | U134: 1073.119382 | V134: 980.6938323 | W134: 888.2682824 | X134: 795.8427326 | Y134: 785.3689243 | Z134: 774.8951159 | AA134: 764.4213076 | AB134: 753.9474993 | AC134: 743.4736909 | AD134: 732.9998826 | AE134: 722.5260743 | AF134: 712.0522659 | AG134: 701.5784576 | AH134: 691.1046493 | AI134: 680.630841 | AJ134: 670.1570326 | AK134: 659.6832243 | AL134: 649.209416 | AM134: 638.7356076 | AN134: 628.2617993 | AO134: 617.787991 | AP134: 607.3141826 | AQ134: 596.8403743 | AR134: 586.366566
K135: Comm PV - Seattle - Moderate | L135: =$S$54*(L152+L253) -> 2052.102886 | M135: 1812.523781 | N135: 1742.055167 | O135: 1671.586554 | P135: 1601.11794 | Q135: 1530.649327 | R135: 1460.180714 | S135: 1389.7121 | T135: 1319.243487 | U135: 1248.774873 | V135: 1178.30626 | W135: 1107.837646 | X135: 1037.369033 | Y135: 1025.292718 | Z135: 1013.216403 | AA135: 1001.140088 | AB135: 989.0637729 | AC135: 976.9874579 | AD135: 964.9111429 | AE135: 952.8348279 | AF135: 940.7585128 | AG135: 928.6821978 | AH135: 916.6058828 | AI135: 904.5295678 | AJ135: 892.4532528 | AK135: 880.3769377 | AL135: 868.3006227 | AM135: 856.2243077 | AN135: 844.1479927 | AO135: 832.0716777 | AP135: 819.9953626 | AQ135: 807.9190476 | AR135: 795.8427326
K136: Comm PV - Seattle - Conservative | L136: =$S$54*(L153+L254) -> 2052.102886 | M136: 1812.523781 | N136: 1794.212472 | O136: 1775.901163 | P136: 1757.589855 | Q136: 1739.278546 | R136: 1720.967237 | S136: 1702.655929 | T136: 1684.34462 | U136: 1666.033311 | V136: 1647.722002 | W136: 1629.410694 | X136: 1611.099385 | Y136: 1582.412867 | Z136: 1553.72635 | AA136: 1525.039832 | AB136: 1496.353315 | AC136: 1467.666797 | AD136: 1438.980279 | AE136: 1410.293762 | AF136: 1381.607244 | AG136: 1352.920727 | AH136: 1324.234209 | AI136: 1295.547691 | AJ136: 1266.861174 | AK136: 1238.174656 | AL136: 1209.488139 | AM136: 1180.801621 | AN136: 1152.115103 | AO136: 1123.428586 | AP136: 1094.742068 | AQ136: 1066.055551 | AR136: 1037.369033
K137: Comm PV - Chicago - Advanced | L137: =$S$54*(L154+L255) -> 2052.102886 | M137: 1812.523781 | N137: 1720.098231 | O137: 1627.672681 | P137: 1535.247131 | Q137: 1442.821581 | R137: 1350.396032 | S137: 1257.970482 | T137: 1165.544932 | U137: 1073.119382 | V137: 980.6938323 | W137: 888.2682824 | X137: 795.8427326 | Y137: 785.3689243 | Z137: 774.8951159 | AA137: 764.4213076 | AB137: 753.9474993 | AC137: 743.4736909 | AD137: 732.9998826 | AE137: 722.5260743 | AF137: 712.0522659 | AG137: 701.5784576 | AH137: 691.1046493 | AI137: 680.630841 | AJ137: 670.1570326 | AK137: 659.6832243 | AL137: 649.209416 | AM137: 638.7356076 | AN137: 628.2617993 | AO137: 617.787991 | AP137: 607.3141826 | AQ137: 596.8403743 | AR137: 586.366566
K138: Comm PV - Chicago - Moderate | L138: =$S$54*(L155+L256) -> 2052.102886 | M138: 1812.523781 | N138: 1742.055167 | O138: 1671.586554 | P138: 1601.11794 | Q138: 1530.649327 | R138: 1460.180714 | S138: 1389.7121 | T138: 1319.243487 | U138: 1248.774873 | V138: 1178.30626 | W138: 1107.837646 | X138: 1037.369033 | Y138: 1025.292718 | Z138: 1013.216403 | AA138: 1001.140088 | AB138: 989.0637729 | AC138: 976.9874579 | AD138: 964.9111429 | AE138: 952.8348279 | AF138: 940.7585128 | AG138: 928.6821978 | AH138: 916.6058828 | AI138: 904.5295678 | AJ138: 892.4532528 | AK138: 880.3769377 | AL138: 868.3006227 | AM138: 856.2243077 | AN138: 844.1479927 | AO138: 832.0716777 | AP138: 819.9953626 | AQ138: 807.9190476 | AR138: 795.8427326
K139: Comm PV - Chicago - Conservative | L139: =$S$54*(L156+L257) -> 2052.102886 | M139: 1812.523781 | N139: 1794.212472 | O139: 1775.901163 | P139: 1757.589855 | Q139: 1739.278546 | R139: 1720.967237 | S139: 1702.655929 | T139: 1684.34462 | U139: 1666.033311 | V139: 1647.722002 | W139: 1629.410694 | X139: 1611.099385 | Y139: 1582.412867 | Z139: 1553.72635 | AA139: 1525.039832 | AB139: 1496.353315 | AC139: 1467.666797 | AD139: 1438.980279 | AE139: 1410.293762 | AF139: 1381.607244 | AG139: 1352.920727 | AH139: 1324.234209 | AI139: 1295.547691 | AJ139: 1266.861174 | AK139: 1238.174656 | AL139: 1209.488139 | AM139: 1180.801621 | AN139: 1152.115103 | AO139: 1123.428586 | AP139: 1094.742068 | AQ139: 1066.055551 | AR139: 1037.369033
K140: Comm PV - Kansas City - Advanced | L140: =$S$54*(L157+L258) -> 2052.102886 | M140: 1812.523781 | N140: 1720.098231 | O140: 1627.672681 | P140: 1535.247131 | Q140: 1442.821581 | R140: 1350.396032 | S140: 1257.970482 | T140: 1165.544932 | U140: 1073.119382 | V140: 980.6938323 | W140: 888.2682824 | X140: 795.8427326 | Y140: 785.3689243 | Z140: 774.8951159 | AA140: 764.4213076 | AB140: 753.9474993 | AC140: 743.4736909 | AD140: 732.9998826 | AE140: 722.5260743 | AF140: 712.0522659 | AG140: 701.5784576 | AH140: 691.1046493 | AI140: 680.630841 | AJ140: 670.1570326 | AK140: 659.6832243 | AL140: 649.209416 | AM140: 638.7356076 | AN140: 628.2617993 | AO140: 617.787991 | AP140: 607.3141826 | AQ140: 596.8403743 | AR140: 586.366566
K141: Comm PV - Kansas City - Moderate | L141: =$S$54*(L158+L259) -> 2052.102886 | M141: 1812.523781 | N141: 1742.055167 | O141: 1671.586554 | P141: 1601.11794 | Q141: 1530.649327 | R141: 1460.180714 | S141: 1389.7121 | T141: 1319.243487 | U141: 1248.774873 | V141: 1178.30626 | W141: 1107.837646 | X141: 1037.369033 | Y141: 1025.292718 | Z141: 1013.216403 | AA141: 1001.140088 | AB141: 989.0637729 | AC141: 976.9874579 | AD141: 964.9111429 | AE141: 952.8348279 | AF141: 940.7585128 | AG141: 928.6821978 | AH141: 916.6058828 | AI141: 904.5295678 | AJ141: 892.4532528 | AK141: 880.3769377 | AL141: 868.3006227 | AM141: 856.2243077 | AN141: 844.1479927 | AO141: 832.0716777 | AP141: 819.9953626 | AQ141: 807.9190476 | AR141: 795.8427326
K142: Comm PV - Kansas City - Conservative | L142: =$S$54*(L159+L260) -> 2052.102886 | M142: 1812.523781 | N142: 1794.212472 | O142: 1775.901163 | P142: 1757.589855 | Q142: 1739.278546 | R142: 1720.967237 | S142: 1702.655929 | T142: 1684.34462 | U142: 1666.033311 | V142: 1647.722002 | W142: 1629.410694 | X142: 1611.099385 | Y142: 1582.412867 | Z142: 1553.72635 | AA142: 1525.039832 | AB142: 1496.353315 | AC142: 1467.666797 | AD142: 1438.980279 | AE142: 1410.293762 | AF142: 1381.607244 | AG142: 1352.920727 | AH142: 1324.234209 | AI142: 1295.547691 | AJ142: 1266.861174 | AK142: 1238.174656 | AL142: 1209.488139 | AM142: 1180.801621 | AN142: 1152.115103 | AO142: 1123.428586 | AP142: 1094.742068 | AQ142: 1066.055551 | AR142: 1037.369033
K143: Comm PV - Los Angeles - Advanced | L143: =$S$54*(L160+L261) -> 2052.102886 | M143: 1812.523781 | N143: 1720.098231 | O143: 1627.672681 | P143: 1535.247131 | Q143: 1442.821581 | R143: 1350.396032 | S143: 1257.970482 | T143: 1165.544932 | U143: 1073.119382 | V143: 980.6938323 | W143: 888.2682824 | X143: 795.8427326 | Y143: 785.3689243 | Z143: 774.8951159 | AA143: 764.4213076 | AB143: 753.9474993 | AC143: 743.4736909 | AD143: 732.9998826 | AE143: 722.5260743 | AF143: 712.0522659 | AG143: 701.5784576 | AH143: 691.1046493 | AI143: 680.630841 | AJ143: 670.1570326 | AK143: 659.6832243 | AL143: 649.209416 | AM143: 638.7356076 | AN143: 628.2617993 | AO143: 617.787991 | AP143: 607.3141826 | AQ143: 596.8403743 | AR143: 586.366566
K144: Comm PV - Los Angeles - Moderate | L144: =$S$54*(L161+L262) -> 2052.102886 | M144: 1812.523781 | N144: 1742.055167 | O144: 1671.586554 | P144: 1601.11794 | Q144: 1530.649327 | R144: 1460.180714 | S144: 1389.7121 | T144: 1319.243487 | U144: 1248.774873 | V144: 1178.30626 | W144: 1107.837646 | X144: 1037.369033 | Y144: 1025.292718 | Z144: 1013.216403 | AA144: 1001.140088 | AB144: 989.0637729 | AC144: 976.9874579 | AD144: 964.9111429 | AE144: 952.8348279 | AF144: 940.7585128 | AG144: 928.6821978 | AH144: 916.6058828 | AI144: 904.5295678 | AJ144: 892.4532528 | AK144: 880.3769377 | AL144: 868.3006227 | AM144: 856.2243077 | AN144: 844.1479927 | AO144: 832.0716777 | AP144: 819.9953626 | AQ144: 807.9190476 | AR144: 795.8427326
K145: Comm PV - Los Angeles - Conservative | L145: =$S$54*(L162+L263) -> 2052.102886 | M145: 1812.523781 | N145: 1794.212472 | O145: 1775.901163 | P145: 1757.589855 | Q145: 1739.278546 | R145: 1720.967237 | S145: 1702.655929 | T145: 1684.34462 | U145: 1666.033311 | V145: 1647.722002 | W145: 1629.410694 | X145: 1611.099385 | Y145: 1582.412867 | Z145: 1553.72635 | AA145: 1525.039832 | AB145: 1496.353315 | AC145: 1467.666797 | AD145: 1438.980279 | AE145: 1410.293762 | AF145: 1381.607244 | AG145: 1352.920727 | AH145: 1324.234209 | AI145: 1295.547691 | AJ145: 1266.861174 | AK145: 1238.174656 | AL145: 1209.488139 | AM145: 1180.801621 | AN145: 1152.115103 | AO145: 1123.428586 | AP145: 1094.742068 | AQ145: 1066.055551 | AR145: 1037.369033
K146: Comm PV - Daggett, CA - Advanced | L146: =$S$54*(L163+L264) -> 2052.102886 | M146: 1812.523781 | N146: 1720.098231 | O146: 1627.672681 | P146: 1535.247131 | Q146: 1442.821581 | R146: 1350.396032 | S146: 1257.970482 | T146: 1165.544932 | U146: 1073.119382 | V146: 980.6938323 | W146: 888.2682824 | X146: 795.8427326 | Y146: 785.3689243 | Z146: 774.8951159 | AA146: 764.4213076 | AB146: 753.9474993 | AC146: 743.4736909 | AD146: 732.9998826 | AE146: 722.5260743 | AF146: 712.0522659 | AG146: 701.5784576 | AH146: 691.1046493 | AI146: 680.630841 | AJ146: 670.1570326 | AK146: 659.6832243 | AL146: 649.209416 | AM146: 638.7356076 | AN146: 628.2617993 | AO146: 617.787991 | AP146: 607.3141826 | AQ146: 596.8403743 | AR146: 586.366566
K147: Comm PV - Daggett, CA - Moderate | L147: =$S$54*(L164+L265) -> 2052.102886 | M147: 1812.523781 | N147: 1742.055167 | O147: 1671.586554 | P147: 1601.11794 | Q147: 1530.649327 | R147: 1460.180714 | S147: 1389.7121 | T147: 1319.243487 | U147: 1248.774873 | V147: 1178.30626 | W147: 1107.837646 | X147: 1037.369033 | Y147: 1025.292718 | Z147: 1013.216403 | AA147: 1001.140088 | AB147: 989.0637729 | AC147: 976.9874579 | AD147: 964.9111429 | AE147: 952.8348279 | AF147: 940.7585128 | AG147: 928.6821978 | AH147: 916.6058828 | AI147: 904.5295678 | AJ147: 892.4532528 | AK147: 880.3769377 | AL147: 868.3006227 | AM147: 856.2243077 | AN147: 844.1479927 | AO147: 832.0716777 | AP147: 819.9953626 | AQ147: 807.9190476 | AR147: 795.8427326
K148: Comm PV - Daggett, CA - Conservative | L148: =$S$54*(L165+L266) -> 2052.102886 | M148: 1812.523781 | N148: 1794.212472 | O148: 1775.901163 | P148: 1757.589855 | Q148: 1739.278546 | R148: 1720.967237 | S148: 1702.655929 | T148: 1684.34462 | U148: 1666.033311 | V148: 1647.722002 | W148: 1629.410694 | X148: 1611.099385 | Y148: 1582.412867 | Z148: 1553.72635 | AA148: 1525.039832 | AB148: 1496.353315 | AC148: 1467.666797 | AD148: 1438.980279 | AE148: 1410.293762 | AF148: 1381.607244 | AG148: 1352.920727 | AH148: 1324.234209 | AI148: 1295.547691 | AJ148: 1266.861174 | AK148: 1238.174656 | AL148: 1209.488139 | AM148: 1180.801621 | AN148: 1152.115103 | AO148: 1123.428586 | AP148: 1094.742068 | AQ148: 1066.055551 | AR148: 1037.369033
L150: 2018 | M150: 2019 | N150: 2020 | O150: 2021 | P150: 2022 | Q150: 2023 | R150: 2024 | S150: 2025 | T150: 2026 | U150: 2027 | V150: 2028 | W150: 2029 | X150: 2030 | Y150: 2031 | Z150: 2032 | AA150: 2033 | AB150: 2034 | AC150: 2035 | AD150: 2036 | AE150: 2037 | AF150: 2038 | AG150: 2039 | AH150: 2040 | AI150: 2041 | AJ150: 2042 | AK150: 2043 | AL150: 2044 | AM150: 2045 | AN150: 2046 | AO150: 2047 | AP150: 2048 | AQ150: 2049 | AR150: 2050
J151: Overnight Capital Cost ($/kW) | K151: Comm PV - Seattle - Advanced | L151: 2003.311728 | M151: 1769.428898 | N151: 1679.200874 | O151: 1588.97285 | P151: 1498.744827 | Q151: 1408.516803 | R151: 1318.288779 | S151: 1228.060755 | T151: 1137.832732 | U151: 1047.604708 | V151: 957.376684 | W151: 867.1486602 | X151: 776.9206364 | Y151: 766.6958552 | Z151: 756.471074 | AA151: 746.2462928 | AB151: 736.0215115 | AC151: 725.7967303 | AD151: 715.5719491 | AE151: 705.3471678 | AF151: 695.1223866 | AG151: 684.8976054 | AH151: 674.6728241 | AI151: 664.4480429 | AJ151: 654.2232617 | AK151: 643.9984804 | AL151: 633.7736992 | AM151: 623.548918 | AN151: 613.3241368 | AO151: 603.0993555 | AP151: 592.8745743 | AQ151: 582.6497931 | AR151: 572.4250118
K152: Comm PV - Seattle - Moderate | L152: 2003.311728 | M152: 1769.428898 | N152: 1700.635759 | O152: 1631.842619 | P152: 1563.04948 | Q152: 1494.256341 | R152: 1425.463201 | S152: 1356.670062 | T152: 1287.876923 | U152: 1219.083783 | V152: 1150.290644 | W152: 1081.497505 | X152: 1012.704365 | Y152: 1000.915179 | Z152: 989.1259924 | AA152: 977.3368059 | AB152: 965.5476195 | AC152: 953.758433 | AD152: 941.9692466 | AE152: 930.1800602 | AF152: 918.3908737 | AG152: 906.6016873 | AH152: 894.8125008 | AI152: 883.0233144 | AJ152: 871.234128 | AK152: 859.4449415 | AL152: 847.6557551 | AM152: 835.8665686 | AN152: 824.0773822 | AO152: 812.2881958 | AP152: 800.4990093 | AQ152: 788.7098229 | AR152: 776.9206364
K153: Comm PV - Seattle - Conservative | L153: 2003.311728 | M153: 1769.428898 | N153: 1751.552962 | O153: 1733.677026 | P153: 1715.801091 | Q153: 1697.925155 | R153: 1680.049219 | S153: 1662.173283 | T153: 1644.297347 | U153: 1626.421411 | V153: 1608.545476 | W153: 1590.66954 | X153: 1572.793604 | Y153: 1544.789142 | Z153: 1516.78468 | AA153: 1488.780218 | AB153: 1460.775756 | AC153: 1432.771294 | AD153: 1404.766832 | AE153: 1376.76237 | AF153: 1348.757908 | AG153: 1320.753447 | AH153: 1292.748985 | AI153: 1264.744523 | AJ153: 1236.740061 | AK153: 1208.735599 | AL153: 1180.731137 | AM153: 1152.726675 | AN153: 1124.722213 | AO153: 1096.717751 | AP153: 1068.713289 | AQ153: 1040.708827 | AR153: 1012.704365
K154: Comm PV - Chicago - Advanced | L154: =L151 -> 2003.311728 | M154: =M151 -> 1769.428898 | N154: 1679.200874 | O154: 1588.97285 | P154: 1498.744827 | Q154: 1408.516803 | R154: 1318.288779 | S154: 1228.060755 | T154: 1137.832732 | U154: 1047.604708 | V154: 957.376684 | W154: 867.1486602 | X154: 776.9206364 | Y154: 766.6958552 | Z154: 756.471074 | AA154: 746.2462928 | AB154: 736.0215115 | AC154: 725.7967303 | AD154: 715.5719491 | AE154: 705.3471678 | AF154: 695.1223866 | AG154: 684.8976054 | AH154: 674.6728241 | AI154: 664.4480429 | AJ154: 654.2232617 | AK154: 643.9984804 | AL154: 633.7736992 | AM154: 623.548918 | AN154: 613.3241368 | AO154: 603.0993555 | AP154: 592.8745743 | AQ154: 582.6497931 | AR154: 572.4250118
K155: Comm PV - Chicago - Moderate | L155: =L152 -> 2003.311728 | M155: 1769.428898 | N155: 1700.635759 | O155: 1631.842619 | P155: 1563.04948 | Q155: 1494.256341 | R155: 1425.463201 | S155: 1356.670062 | T155: 1287.876923 | U155: 1219.083783 | V155: 1150.290644 | W155: 1081.497505 | X155: 1012.704365 | Y155: 1000.915179 | Z155: 989.1259924 | AA155: 977.3368059 | AB155: 965.5476195 | AC155: 953.758433 | AD155: 941.9692466 | AE155: 930.1800602 | AF155: 918.3908737 | AG155: 906.6016873 | AH155: 894.8125008 | AI155: 883.0233144 | AJ155: 871.234128 | AK155: 859.4449415 | AL155: 847.6557551 | AM155: 835.8665686 | AN155: 824.0773822 | AO155: 812.2881958 | AP155: 800.4990093 | AQ155: 788.7098229 | AR155: 776.9206364
K156: Comm PV - Chicago - Conservative | L156: =L153 -> 2003.311728 | M156: 1769.428898 | N156: 1751.552962 | O156: 1733.677026 | P156: 1715.801091 | Q156: 1697.925155 | R156: 1680.049219 | S156: 1662.173283 | T156: 1644.297347 | U156: 1626.421411 | V156: 1608.545476 | W156: 1590.66954 | X156: 1572.793604 | Y156: 1544.789142 | Z156: 1516.78468 | AA156: 1488.780218 | AB156: 1460.775756 | AC156: 1432.771294 | AD156: 1404.766832 | AE156: 1376.76237 | AF156: 1348.757908 | AG156: 1320.753447 | AH156: 1292.748985 | AI156: 1264.744523 | AJ156: 1236.740061 | AK156: 1208.735599 | AL156: 1180.731137 | AM156: 1152.726675 | AN156: 1124.722213 | AO156: 1096.717751 | AP156: 1068.713289 | AQ156: 1040.708827 | AR156: 1012.704365
K157: Comm PV - Kansas City - Advanced | L157: =L154 -> 2003.311728 | M157: 1769.428898 | N157: 1679.200874 | O157: 1588.97285 | P157: 1498.744827 | Q157: 1408.516803 | R157: 1318.288779 | S157: 1228.060755 | T157: 1137.832732 | U157: 1047.604708 | V157: 957.376684 | W157: 867.1486602 | X157: 776.9206364 | Y157: 766.6958552 | Z157: 756.471074 | AA157: 746.2462928 | AB157: 736.0215115 | AC157: 725.7967303 | AD157: 715.5719491 | AE157: 705.3471678 | AF157: 695.1223866 | AG157: 684.8976054 | AH157: 674.6728241 | AI157: 664.4480429 | AJ157: 654.2232617 | AK157: 643.9984804 | AL157: 633.7736992 | AM157: 623.548918 | AN157: 613.3241368 | AO157: 603.0993555 | AP157: 592.8745743 | AQ157: 582.6497931 | AR157: 572.4250118
K158: Comm PV - Kansas City - Moderate | L158: =L155 -> 2003.311728 | M158: 1769.428898 | N158: 1700.635759 | O158: 1631.842619 | P158: 1563.04948 | Q158: 1494.256341 | R158: 1425.463201 | S158: 1356.670062 | T158: 1287.876923 | U158: 1219.083783 | V158: 1150.290644 | W158: 1081.497505 | X158: 1012.704365 | Y158: 1000.915179 | Z158: 989.1259924 | AA158: 977.3368059 | AB158: 965.5476195 | AC158: 953.758433 | AD158: 941.9692466 | AE158: 930.1800602 | AF158: 918.3908737 | AG158: 906.6016873 | AH158: 894.8125008 | AI158: 883.0233144 | AJ158: 871.234128 | AK158: 859.4449415 | AL158: 847.6557551 | AM158: 835.8665686 | AN158: 824.0773822 | AO158: 812.2881958 | AP158: 800.4990093 | AQ158: 788.7098229 | AR158: 776.9206364
K159: Comm PV - Kansas City - Conservative | L159: =L156 -> 2003.311728 | M159: 1769.428898 | N159: 1751.552962 | O159: 1733.677026 | P159: 1715.801091 | Q159: 1697.925155 | R159: 1680.049219 | S159: 1662.173283 | T159: 1644.297347 | U159: 1626.421411 | V159: 1608.545476 | W159: 1590.66954 | X159: 1572.793604 | Y159: 1544.789142 | Z159: 1516.78468 | AA159: 1488.780218 | AB159: 1460.775756 | AC159: 1432.771294 | AD159: 1404.766832 | AE159: 1376.76237 | AF159: 1348.757908 | AG159: 1320.753447 | AH159: 1292.748985 | AI159: 1264.744523 | AJ159: 1236.740061 | AK159: 1208.735599 | AL159: 1180.731137 | AM159: 1152.726675 | AN159: 1124.722213 | AO159: 1096.717751 | AP159: 1068.713289 | AQ159: 1040.708827 | AR159: 1012.704365
K160: Comm PV - Los Angeles - Advanced | L160: =L157 -> 2003.311728 | M160: 1769.428898 | N160: 1679.200874 | O160: 1588.97285 | P160: 1498.744827 | Q160: 1408.516803 | R160: 1318.288779 | S160: 1228.060755 | T160: 1137.832732 | U160: 1047.604708 | V160: 957.376684 | W160: 867.1486602 | X160: 776.9206364 | Y160: 766.6958552 | Z160: 756.471074 | AA160: 746.2462928 | AB160: 736.0215115 | AC160: 725.7967303 | AD160: 715.5719491 | AE160: 705.3471678 | AF160: 695.1223866 | AG160: 684.8976054 | AH160: 674.6728241 | AI160: 664.4480429 | AJ160: 654.2232617 | AK160: 643.9984804 | AL160: 633.7736992 | AM160: 623.548918 | AN160: 613.3241368 | AO160: 603.0993555 | AP160: 592.8745743 | AQ160: 582.6497931 | AR160: 572.4250118
K161: Comm PV - Los Angeles - Moderate | L161: =L158 -> 2003.311728 | M161: 1769.428898 | N161: 1700.635759 | O161: 1631.842619 | P161: 1563.04948 | Q161: 1494.256341 | R161: 1425.463201 | S161: 1356.670062 | T161: 1287.876923 | U161: 1219.083783 | V161: 1150.290644 | W161: 1081.497505 | X161: 1012.704365 | Y161: 1000.915179 | Z161: 989.1259924 | AA161: 977.3368059 | AB161: 965.5476195 | AC161: 953.758433 | AD161: 941.9692466 | AE161: 930.1800602 | AF161: 918.3908737 | AG161: 906.6016873 | AH161: 894.8125008 | AI161: 883.0233144 | AJ161: 871.234128 | AK161: 859.4449415 | AL161: 847.6557551 | AM161: 835.8665686 | AN161: 824.0773822 | AO161: 812.2881958 | AP161: 800.4990093 | AQ161: 788.7098229 | AR161: 776.9206364
K162: Comm PV - Los Angeles - Conservative | L162: =L159 -> 2003.311728 | M162: 1769.428898 | N162: 1751.552962 | O162: 1733.677026 | P162: 1715.801091 | Q162: 1697.925155 | R162: 1680.049219 | S162: 1662.173283 | T162: 1644.297347 | U162: 1626.421411 | V162: 1608.545476 | W162: 1590.66954 | X162: 1572.793604 | Y162: 1544.789142 | Z162: 1516.78468 | AA162: 1488.780218 | AB162: 1460.775756 | AC162: 1432.771294 | AD162: 1404.766832 | AE162: 1376.76237 | AF162: 1348.757908 | AG162: 1320.753447 | AH162: 1292.748985 | AI162: 1264.744523 | AJ162: 1236.740061 | AK162: 1208.735599 | AL162: 1180.731137 | AM162: 1152.726675 | AN162: 1124.722213 | AO162: 1096.717751 | AP162: 1068.713289 | AQ162: 1040.708827 | AR162: 1012.704365
K163: Comm PV - Daggett, CA - Advanced | L163: =L160 -> 2003.311728 | M163: 1769.428898 | N163: 1679.200874 | O163: 1588.97285 | P163: 1498.744827 | Q163: 1408.516803 | R163: 1318.288779 | S163: 1228.060755 | T163: 1137.832732 | U163: 1047.604708 | V163: 957.376684 | W163: 867.1486602 | X163: 776.9206364 | Y163: 766.6958552 | Z163: 756.471074 | AA163: 746.2462928 | AB163: 736.0215115 | AC163: 725.7967303 | AD163: 715.5719491 | AE163: 705.3471678 | AF163: 695.1223866 | AG163: 684.8976054 | AH163: 674.6728241 | AI163: 664.4480429 | AJ163: 654.2232617 | AK163: 643.9984804 | AL163: 633.7736992 | AM163: 623.548918 | AN163: 613.3241368 | AO163: 603.0993555 | AP163: 592.8745743 | AQ163: 582.6497931 | AR163: 572.4250118
K164: Comm PV - Daggett, CA - Moderate | L164: =L161 -> 2003.311728 | M164: 1769.428898 | N164: 1700.635759 | O164: 1631.842619 | P164: 1563.04948 | Q164: 1494.256341 | R164: 1425.463201 | S164: 1356.670062 | T164: 1287.876923 | U164: 1219.083783 | V164: 1150.290644 | W164: 1081.497505 | X164: 1012.704365 | Y164: 1000.915179 | Z164: 989.1259924 | AA164: 977.3368059 | AB164: 965.5476195 | AC164: 953.758433 | AD164: 941.9692466 | AE164: 930.1800602 | AF164: 918.3908737 | AG164: 906.6016873 | AH164: 894.8125008 | AI164: 883.0233144 | AJ164: 871.234128 | AK164: 859.4449415 | AL164: 847.6557551 | AM164: 835.8665686 | AN164: 824.0773822 | AO164: 812.2881958 | AP164: 800.4990093 | AQ164: 788.7098229 | AR164: 776.9206364
K165: Comm PV - Daggett, CA - Conservative | L165: =L162 -> 2003.311728 | M165: 1769.428898 | N165: 1751.552962 | O165: 1733.677026 | P165: 1715.801091 | Q165: 1697.925155 | R165: 1680.049219 | S165: 1662.173283 | T165: 1644.297347 | U165: 1626.421411 | V165: 1608.545476 | W165: 1590.66954 | X165: 1572.793604 | Y165: 1544.789142 | Z165: 1516.78468 | AA165: 1488.780218 | AB165: 1460.775756 | AC165: 1432.771294 | AD165: 1404.766832 | AE165: 1376.76237 | AF165: 1348.757908 | AG165: 1320.753447 | AH165: 1292.748985 | AI165: 1264.744523 | AJ165: 1236.740061 | AK165: 1208.735599 | AL165: 1180.731137 | AM165: 1152.726675 | AN165: 1124.722213 | AO165: 1096.717751 | AP165: 1068.713289 | AQ165: 1040.708827 | AR165: 1012.704365
L167: 2018 | M167: 2019 | N167: 2020 | O167: 2021 | P167: 2022 | Q167: 2023 | R167: 2024 | S167: 2025 | T167: 2026 | U167: 2027 | V167: 2028 | W167: 2029 | X167: 2030 | Y167: 2031 | Z167: 2032 | AA167: 2033 | AB167: 2034 | AC167: 2035 | AD167: 2036 | AE167: 2037 | AF167: 2038 | AG167: 2039 | AH167: 2040 | AI167: 2041 | AJ167: 2042 | AK167: 2043 | AL167: 2044 | AM167: 2045 | AN167: 2046 | AO167: 2047 | AP167: 2048 | AQ167: 2049 | AR167: 2050
J168: Fixed Operation and Maintenance Expenses ($/kW-yr) | K168: Comm PV - Seattle - Advanced | L168: 18 | M168: 13 | N168: 12.33311377 | O168: 11.67042207 | P168: 11.00773037 | Q168: 10.34503867 | R168: 9.682346965 | S168: 9.019655265 | T168: 8.356963565 | U168: 7.694271865 | V168: 7.031580165 | W168: 6.368888465 | X168: 5.706196765 | Y168: 5.631099502 | Z168: 5.556002238 | AA168: 5.480904975 | AB168: 5.405807712 | AC168: 5.330710448 | AD168: 5.255613185 | AE168: 5.180515922 | AF168: 5.105418659 | AG168: 5.030321395 | AH168: 4.955224132 | AI168: 4.880126869 | AJ168: 4.805029606 | AK168: 4.729932342 | AL168: 4.654835079 | AM168: 4.579737816 | AN168: 4.504640552 | AO168: 4.429543289 | AP168: 4.354446026 | AQ168: 4.279348763 | AR168: 4.204251499
K169: Comm PV - Seattle - Moderate | L169: 18 | M169: 13 | N169: 12.49054512 | O169: 11.98528477 | P169: 11.48002443 | Q169: 10.97476408 | R169: 10.46950374 | S169: 9.964243393 | T169: 9.458983047 | U169: 8.953722702 | V169: 8.448462357 | W169: 7.943202011 | X169: 7.437941666 | Y169: 7.351354421 | Z169: 7.264767176 | AA169: 7.17817993 | AB169: 7.091592685 | AC169: 7.00500544 | AD169: 6.918418195 | AE169: 6.83183095 | AF169: 6.745243705 | AG169: 6.65865646 | AH169: 6.572069215 | AI169: 6.48548197 | AJ169: 6.398894725 | AK169: 6.31230748 | AL169: 6.225720235 | AM169: 6.13913299 | AN169: 6.052545745 | AO169: 5.9659585 | AP169: 5.879371255 | AQ169: 5.79278401 | AR169: 5.706196765
K170: Comm PV - Seattle - Conservative | L170: 18 | M170: 13 | N170: 12.86451328 | O170: 12.7332211 | P170: 12.60192891 | Q170: 12.47063673 | R170: 12.33934455 | S170: 12.20805236 | T170: 12.07676018 | U170: 11.94546799 | V170: 11.81417581 | W170: 11.68288363 | X170: 11.55159144 | Y170: 11.34590895 | Z170: 11.14022646 | AA170: 10.93454398 | AB170: 10.72886149 | AC170: 10.523179 | AD170: 10.31749651 | AE170: 10.11181402 | AF170: 9.906131531 | AG170: 9.700449043 | AH170: 9.494766554 | AI170: 9.289084065 | AJ170: 9.083401576 | AK170: 8.877719087 | AL170: 8.672036598 | AM170: 8.46635411 | AN170: 8.260671621 | AO170: 8.054989132 | AP170: 7.849306643 | AQ170: 7.643624154 | AR170: 7.437941666
K171: Comm PV - Chicago - Advanced | L171: =L168 -> 18 | M171: 13 | N171: 12.33311377 | O171: 11.67042207 | P171: 11.00773037 | Q171: 10.34503867 | R171: 9.682346965 | S171: 9.019655265 | T171: 8.356963565 | U171: 7.694271865 | V171: 7.031580165 | W171: 6.368888465 | X171: 5.706196765 | Y171: 5.631099502 | Z171: 5.556002238 | AA171: 5.480904975 | AB171: 5.405807712 | AC171: 5.330710448 | AD171: 5.255613185 | AE171: 5.180515922 | AF171: 5.105418659 | AG171: 5.030321395 | AH171: 4.955224132 | AI171: 4.880126869 | AJ171: 4.805029606 | AK171: 4.729932342 | AL171: 4.654835079 | AM171: 4.579737816 | AN171: 4.504640552 | AO171: 4.429543289 | AP171: 4.354446026 | AQ171: 4.279348763 | AR171: 4.204251499
K172: Comm PV - Chicago - Moderate | L172: =L169 -> 18 | M172: 13 | N172: 12.49054512 | O172: 11.98528477 | P172: 11.48002443 | Q172: 10.97476408 | R172: 10.46950374 | S172: 9.964243393 | T172: 9.458983047 | U172: 8.953722702 | V172: 8.448462357 | W172: 7.943202011 | X172: 7.437941666 | Y172: 7.351354421 | Z172: 7.264767176 | AA172: 7.17817993 | AB172: 7.091592685 | AC172: 7.00500544 | AD172: 6.918418195 | AE172: 6.83183095 | AF172: 6.745243705 | AG172: 6.65865646 | AH172: 6.572069215 | AI172: 6.48548197 | AJ172: 6.398894725 | AK172: 6.31230748 | AL172: 6.225720235 | AM172: 6.13913299 | AN172: 6.052545745 | AO172: 5.9659585 | AP172: 5.879371255 | AQ172: 5.79278401 | AR172: 5.706196765
K173: Comm PV - Chicago - Conservative | L173: =L170 -> 18 | M173: 13 | N173: 12.86451328 | O173: 12.7332211 | P173: 12.60192891 | Q173: 12.47063673 | R173: 12.33934455 | S173: 12.20805236 | T173: 12.07676018 | U173: 11.94546799 | V173: 11.81417581 | W173: 11.68288363 | X173: 11.55159144 | Y173: 11.34590895 | Z173: 11.14022646 | AA173: 10.93454398 | AB173: 10.72886149 | AC173: 10.523179 | AD173: 10.31749651 | AE173: 10.11181402 | AF173: 9.906131531 | AG173: 9.700449043 | AH173: 9.494766554 | AI173: 9.289084065 | AJ173: 9.083401576 | AK173: 8.877719087 | AL173: 8.672036598 | AM173: 8.46635411 | AN173: 8.260671621 | AO173: 8.054989132 | AP173: 7.849306643 | AQ173: 7.643624154 | AR173: 7.437941666
K174: Comm PV - Kansas City - Advanced | L174: =L171 -> 18 | M174: 13 | N174: 12.33311377 | O174: 11.67042207 | P174: 11.00773037 | Q174: 10.34503867 | R174: 9.682346965 | S174: 9.019655265 | T174: 8.356963565 | U174: 7.694271865 | V174: 7.031580165 | W174: 6.368888465 | X174: 5.706196765 | Y174: 5.631099502 | Z174: 5.556002238 | AA174: 5.480904975 | AB174: 5.405807712 | AC174: 5.330710448 | AD174: 5.255613185 | AE174: 5.180515922 | AF174: 5.105418659 | AG174: 5.030321395 | AH174: 4.955224132 | AI174: 4.880126869 | AJ174: 4.805029606 | AK174: 4.729932342 | AL174: 4.654835079 | AM174: 4.579737816 | AN174: 4.504640552 | AO174: 4.429543289 | AP174: 4.354446026 | AQ174: 4.279348763 | AR174: 4.204251499
K175: Comm PV - Kansas City - Moderate | L175: =L172 -> 18 | M175: 13 | N175: 12.49054512 | O175: 11.98528477 | P175: 11.48002443 | Q175: 10.97476408 | R175: 10.46950374 | S175: 9.964243393 | T175: 9.458983047 | U175: 8.953722702 | V175: 8.448462357 | W175: 7.943202011 | X175: 7.437941666 | Y175: 7.351354421 | Z175: 7.264767176 | AA175: 7.17817993 | AB175: 7.091592685 | AC175: 7.00500544 | AD175: 6.918418195 | AE175: 6.83183095 | AF175: 6.745243705 | AG175: 6.65865646 | AH175: 6.572069215 | AI175: 6.48548197 | AJ175: 6.398894725 | AK175: 6.31230748 | AL175: 6.225720235 | AM175: 6.13913299 | AN175: 6.052545745 | AO175: 5.9659585 | AP175: 5.879371255 | AQ175: 5.79278401 | AR175: 5.706196765
K176: Comm PV - Kansas City - Conservative | L176: =L173 -> 18 | M176: 13 | N176: 12.86451328 | O176: 12.7332211 | P176: 12.60192891 | Q176: 12.47063673 | R176: 12.33934455 | S176: 12.20805236 | T176: 12.07676018 | U176: 11.94546799 | V176: 11.81417581 | W176: 11.68288363 | X176: 11.55159144 | Y176: 11.34590895 | Z176: 11.14022646 | AA176: 10.93454398 | AB176: 10.72886149 | AC176: 10.523179 | AD176: 10.31749651 | AE176: 10.11181402 | AF176: 9.906131531 | AG176: 9.700449043 | AH176: 9.494766554 | AI176: 9.289084065 | AJ176: 9.083401576 | AK176: 8.877719087 | AL176: 8.672036598 | AM176: 8.46635411 | AN176: 8.260671621 | AO176: 8.054989132 | AP176: 7.849306643 | AQ176: 7.643624154 | AR176: 7.437941666
K177: Comm PV - Los Angeles - Advanced | L177: =L174 -> 18 | M177: 13 | N177: 12.33311377 | O177: 11.67042207 | P177: 11.00773037 | Q177: 10.34503867 | R177: 9.682346965 | S177: 9.019655265 | T177: 8.356963565 | U177: 7.694271865 | V177: 7.031580165 | W177: 6.368888465 | X177: 5.706196765 | Y177: 5.631099502 | Z177: 5.556002238 | AA177: 5.480904975 | AB177: 5.405807712 | AC177: 5.330710448 | AD177: 5.255613185 | AE177: 5.180515922 | AF177: 5.105418659 | AG177: 5.030321395 | AH177: 4.955224132 | AI177: 4.880126869 | AJ177: 4.805029606 | AK177: 4.729932342 | AL177: 4.654835079 | AM177: 4.579737816 | AN177: 4.504640552 | AO177: 4.429543289 | AP177: 4.354446026 | AQ177: 4.279348763 | AR177: 4.204251499
K178: Comm PV - Los Angeles - Moderate | L178: =L175 -> 18 | M178: 13 | N178: 12.49054512 | O178: 11.98528477 | P178: 11.48002443 | Q178: 10.97476408 | R178: 10.46950374 | S178: 9.964243393 | T178: 9.458983047 | U178: 8.953722702 | V178: 8.448462357 | W178: 7.943202011 | X178: 7.437941666 | Y178: 7.351354421 | Z178: 7.264767176 | AA178: 7.17817993 | AB178: 7.091592685 | AC178: 7.00500544 | AD178: 6.918418195 | AE178: 6.83183095 | AF178: 6.745243705 | AG178: 6.65865646 | AH178: 6.572069215 | AI178: 6.48548197 | AJ178: 6.398894725 | AK178: 6.31230748 | AL178: 6.225720235 | AM178: 6.13913299 | AN178: 6.052545745 | AO178: 5.9659585 | AP178: 5.879371255 | AQ178: 5.79278401 | AR178: 5.706196765
K179: Comm PV - Los Angeles - Conservative | L179: =L176 -> 18 | M179: 13 | N179: 12.86451328 | O179: 12.7332211 | P179: 12.60192891 | Q179: 12.47063673 | R179: 12.33934455 | S179: 12.20805236 | T179: 12.07676018 | U179: 11.94546799 | V179: 11.81417581 | W179: 11.68288363 | X179: 11.55159144 | Y179: 11.34590895 | Z179: 11.14022646 | AA179: 10.93454398 | AB179: 10.72886149 | AC179: 10.523179 | AD179: 10.31749651 | AE179: 10.11181402 | AF179: 9.906131531 | AG179: 9.700449043 | AH179: 9.494766554 | AI179: 9.289084065 | AJ179: 9.083401576 | AK179: 8.877719087 | AL179: 8.672036598 | AM179: 8.46635411 | AN179: 8.260671621 | AO179: 8.054989132 | AP179: 7.849306643 | AQ179: 7.643624154 | AR179: 7.437941666
K180: Comm PV - Daggett, CA - Advanced | L180: =L177 -> 18 | M180: 13 | N180: 12.33311377 | O180: 11.67042207 | P180: 11.00773037 | Q180: 10.34503867 | R180: 9.682346965 | S180: 9.019655265 | T180: 8.356963565 | U180: 7.694271865 | V180: 7.031580165 | W180: 6.368888465 | X180: 5.706196765 | Y180: 5.631099502 | Z180: 5.556002238 | AA180: 5.480904975 | AB180: 5.405807712 | AC180: 5.330710448 | AD180: 5.255613185 | AE180: 5.180515922 | AF180: 5.105418659 | AG180: 5.030321395 | AH180: 4.955224132 | AI180: 4.880126869 | AJ180: 4.805029606 | AK180: 4.729932342 | AL180: 4.654835079 | AM180: 4.579737816 | AN180: 4.504640552 | AO180: 4.429543289 | AP180: 4.354446026 | AQ180: 4.279348763 | AR180: 4.204251499
K181: Comm PV - Daggett, CA - Moderate | L181: =L178 -> 18 | M181: 13 | N181: 12.49054512 | O181: 11.98528477 | P181: 11.48002443 | Q181: 10.97476408 | R181: 10.46950374 | S181: 9.964243393 | T181: 9.458983047 | U181: 8.953722702 | V181: 8.448462357 | W181: 7.943202011 | X181: 7.437941666 | Y181: 7.351354421 | Z181: 7.264767176 | AA181: 7.17817993 | AB181: 7.091592685 | AC181: 7.00500544 | AD181: 6.918418195 | AE181: 6.83183095 | AF181: 6.745243705 | AG181: 6.65865646 | AH181: 6.572069215 | AI181: 6.48548197 | AJ181: 6.398894725 | AK181: 6.31230748 | AL181: 6.225720235 | AM181: 6.13913299 | AN181: 6.052545745 | AO181: 5.9659585 | AP181: 5.879371255 | AQ181: 5.79278401 | AR181: 5.706196765
K182: Comm PV - Daggett, CA - Conservative | L182: =L179 -> 18 | M182: 13 | N182: 12.86451328 | O182: 12.7332211 | P182: 12.60192891 | Q182: 12.47063673 | R182: 12.33934455 | S182: 12.20805236 | T182: 12.07676018 | U182: 11.94546799 | V182: 11.81417581 | W182: 11.68288363 | X182: 11.55159144 | Y182: 11.34590895 | Z182: 11.14022646 | AA182: 10.93454398 | AB182: 10.72886149 | AC182: 10.523179 | AD182: 10.31749651 | AE182: 10.11181402 | AF182: 9.906131531 | AG182: 9.700449043 | AH182: 9.494766554 | AI182: 9.289084065 | AJ182: 9.083401576 | AK182: 8.877719087 | AL182: 8.672036598 | AM182: 8.46635411 | AN182: 8.260671621 | AO182: 8.054989132 | AP182: 7.849306643 | AQ182: 7.643624154 | AR182: 7.437941666
L184: 2018 | M184: 2019 | N184: 2020 | O184: 2021 | P184: 2022 | Q184: 2023 | R184: 2024 | S184: 2025 | T184: 2026 | U184: 2027 | V184: 2028 | W184: 2029 | X184: 2030 | Y184: 2031 | Z184: 2032 | AA184: 2033 | AB184: 2034 | AC184: 2035 | AD184: 2036 | AE184: 2037 | AF184: 2038 | AG184: 2039 | AH184: 2040 | AI184: 2041 | AJ184: 2042 | AK184: 2043 | AL184: 2044 | AM184: 2045 | AN184: 2046 | AO184: 2047 | AP184: 2048 | AQ184: 2049 | AR184: 2050
J185: Variable Operation and Maintenance Expenses ($/MWh) | K185: Comm PV - Seattle - Advanced | L185: 0 | M185: 0 | N185: 0 | O185: 0 | P185: 0 | Q185: 0 | R185: 0 | S185: 0 | T185: 0 | U185: 0 | V185: 0 | W185: 0 | X185: 0 | Y185: 0 | Z185: 0 | AA185: 0 | AB185: 0 | AC185: 0 | AD185: 0 | AE185: 0 | AF185: 0 | AG185: 0 | AH185: 0 | AI185: 0 | AJ185: 0 | AK185: 0 | AL185: 0 | AM185: 0 | AN185: 0 | AO185: 0 | AP185: 0 | AQ185: 0 | AR185: 0
K186: Comm PV - Seattle - Moderate | L186: 0 | M186: 0 | N186: 0 | O186: 0 | P186: 0 | Q186: 0 | R186: 0 | S186: 0 | T186: 0 | U186: 0 | V186: 0 | W186: 0 | X186: 0 | Y186: 0 | Z186: 0 | AA186: 0 | AB186: 0 | AC186: 0 | AD186: 0 | AE186: 0 | AF186: 0 | AG186: 0 | AH186: 0 | AI186: 0 | AJ186: 0 | AK186: 0 | AL186: 0 | AM186: 0 | AN186: 0 | AO186: 0 | AP186: 0 | AQ186: 0 | AR186: 0
K187: Comm PV - Seattle - Conservative | L187: 0 | M187: 0 | N187: 0 | O187: 0 | P187: 0 | Q187: 0 | R187: 0 | S187: 0 | T187: 0 | U187: 0 | V187: 0 | W187: 0 | X187: 0 | Y187: 0 | Z187: 0 | AA187: 0 | AB187: 0 | AC187: 0 | AD187: 0 | AE187: 0 | AF187: 0 | AG187: 0 | AH187: 0 | AI187: 0 | AJ187: 0 | AK187: 0 | AL187: 0 | AM187: 0 | AN187: 0 | AO187: 0 | AP187: 0 | AQ187: 0 | AR187: 0
K188: Comm PV - Chicago - Advanced | L188: 0 | M188: 0 | N188: 0 | O188: 0 | P188: 0 | Q188: 0 | R188: 0 | S188: 0 | T188: 0 | U188: 0 | V188: 0 | W188: 0 | X188: 0 | Y188: 0 | Z188: 0 | AA188: 0 | AB188: 0 | AC188: 0 | AD188: 0 | AE188: 0 | AF188: 0 | AG188: 0 | AH188: 0 | AI188: 0 | AJ188: 0 | AK188: 0 | AL188: 0 | AM188: 0 | AN188: 0 | AO188: 0 | AP188: 0 | AQ188: 0 | AR188: 0
K189: Comm PV - Chicago - Moderate | L189: 0 | M189: 0 | N189: 0 | O189: 0 | P189: 0 | Q189: 0 | R189: 0 | S189: 0 | T189: 0 | U189: 0 | V189: 0 | W189: 0 | X189: 0 | Y189: 0 | Z189: 0 | AA189: 0 | AB189: 0 | AC189: 0 | AD189: 0 | AE189: 0 | AF189: 0 | AG189: 0 | AH189: 0 | AI189: 0 | AJ189: 0 | AK189: 0 | AL189: 0 | AM189: 0 | AN189: 0 | AO189: 0 | AP189: 0 | AQ189: 0 | AR189: 0
K190: Comm PV - Chicago - Conservative | L190: 0 | M190: 0 | N190: 0 | O190: 0 | P190: 0 | Q190: 0 | R190: 0 | S190: 0 | T190: 0 | U190: 0 | V190: 0 | W190: 0 | X190: 0 | Y190: 0 | Z190: 0 | AA190: 0 | AB190: 0 | AC190: 0 | AD190: 0 | AE190: 0 | AF190: 0 | AG190: 0 | AH190: 0 | AI190: 0 | AJ190: 0 | AK190: 0 | AL190: 0 | AM190: 0 | AN190: 0 | AO190: 0 | AP190: 0 | AQ190: 0 | AR190: 0
K191: Comm PV - Kansas City - Advanced | L191: 0 | M191: 0 | N191: 0 | O191: 0 | P191: 0 | Q191: 0 | R191: 0 | S191: 0 | T191: 0 | U191: 0 | V191: 0 | W191: 0 | X191: 0 | Y191: 0 | Z191: 0 | AA191: 0 | AB191: 0 | AC191: 0 | AD191: 0 | AE191: 0 | AF191: 0 | AG191: 0 | AH191: 0 | AI191: 0 | AJ191: 0 | AK191: 0 | AL191: 0 | AM191: 0 | AN191: 0 | AO191: 0 | AP191: 0 | AQ191: 0 | AR191: 0
K192: Comm PV - Kansas City - Moderate | L192: 0 | M192: 0 | N192: 0 | O192: 0 | P192: 0 | Q192: 0 | R192: 0 | S192: 0 | T192: 0 | U192: 0 | V192: 0 | W192: 0 | X192: 0 | Y192: 0 | Z192: 0 | AA192: 0 | AB192: 0 | AC192: 0 | AD192: 0 | AE192: 0 | AF192: 0 | AG192: 0 | AH192: 0 | AI192: 0 | AJ192: 0 | AK192: 0 | AL192: 0 | AM192: 0 | AN192: 0 | AO192: 0 | AP192: 0 | AQ192: 0 | AR192: 0
K193: Comm PV - Kansas City - Conservative | L193: 0 | M193: 0 | N193: 0 | O193: 0 | P193: 0 | Q193: 0 | R193: 0 | S193: 0 | T193: 0 | U193: 0 | V193: 0 | W193: 0 | X193: 0 | Y193: 0 | Z193: 0 | AA193: 0 | AB193: 0 | AC193: 0 | AD193: 0 | AE193: 0 | AF193: 0 | AG193: 0 | AH193: 0 | AI193: 0 | AJ193: 0 | AK193: 0 | AL193: 0 | AM193: 0 | AN193: 0 | AO193: 0 | AP193: 0 | AQ193: 0 | AR193: 0
K194: Comm PV - Los Angeles - Advanced | L194: 0 | M194: 0 | N194: 0 | O194: 0 | P194: 0 | Q194: 0 | R194: 0 | S194: 0 | T194: 0 | U194: 0 | V194: 0 | W194: 0 | X194: 0 | Y194: 0 | Z194: 0 | AA194: 0 | AB194: 0 | AC194: 0 | AD194: 0 | AE194: 0 | AF194: 0 | AG194: 0 | AH194: 0 | AI194: 0 | AJ194: 0 | AK194: 0 | AL194: 0 | AM194: 0 | AN194: 0 | AO194: 0 | AP194: 0 | AQ194: 0 | AR194: 0
K195: Comm PV - Los Angeles - Moderate | L195: 0 | M195: 0 | N195: 0 | O195: 0 | P195: 0 | Q195: 0 | R195: 0 | S195: 0 | T195: 0 | U195: 0 | V195: 0 | W195: 0 | X195: 0 | Y195: 0 | Z195: 0 | AA195: 0 | AB195: 0 | AC195: 0 | AD195: 0 | AE195: 0 | AF195: 0 | AG195: 0 | AH195: 0 | AI195: 0 | AJ195: 0 | AK195: 0 | AL195: 0 | AM195: 0 | AN195: 0 | AO195: 0 | AP195: 0 | AQ195: 0 | AR195: 0
K196: Comm PV - Los Angeles - Conservative | L196: 0 | M196: 0 | N196: 0 | O196: 0 | P196: 0 | Q196: 0 | R196: 0 | S196: 0 | T196: 0 | U196: 0 | V196: 0 | W196: 0 | X196: 0 | Y196: 0 | Z196: 0 | AA196: 0 | AB196: 0 | AC196: 0 | AD196: 0 | AE196: 0 | AF196: 0 | AG196: 0 | AH196: 0 | AI196: 0 | AJ196: 0 | AK196: 0 | AL196: 0 | AM196: 0 | AN196: 0 | AO196: 0 | AP196: 0 | AQ196: 0 | AR196: 0
K197: Comm PV - Daggett, CA - Advanced | L197: 0 | M197: 0 | N197: 0 | O197: 0 | P197: 0 | Q197: 0 | R197: 0 | S197: 0 | T197: 0 | U197: 0 | V197: 0 | W197: 0 | X197: 0 | Y197: 0 | Z197: 0 | AA197: 0 | AB197: 0 | AC197: 0 | AD197: 0 | AE197: 0 | AF197: 0 | AG197: 0 | AH197: 0 | AI197: 0 | AJ197: 0 | AK197: 0 | AL197: 0 | AM197: 0 | AN197: 0 | AO197: 0 | AP197: 0 | AQ197: 0 | AR197: 0
K198: Comm PV - Daggett, CA - Moderate | L198: 0 | M198: 0 | N198: 0 | O198: 0 | P198: 0 | Q198: 0 | R198: 0 | S198: 0 | T198: 0 | U198: 0 | V198: 0 | W198: 0 | X198: 0 | Y198: 0 | Z198: 0 | AA198: 0 | AB198: 0 | AC198: 0 | AD198: 0 | AE198: 0 | AF198: 0 | AG198: 0 | AH198: 0 | AI198: 0 | AJ198: 0 | AK198: 0 | AL198: 0 | AM198: 0 | AN198: 0 | AO198: 0 | AP198: 0 | AQ198: 0 | AR198: 0
K199: Comm PV - Daggett, CA - Conservative | L199: 0 | M199: 0 | N199: 0 | O199: 0 | P199: 0 | Q199: 0 | R199: 0 | S199: 0 | T199: 0 | U199: 0 | V199: 0 | W199: 0 | X199: 0 | Y199: 0 | Z199: 0 | AA199: 0 | AB199: 0 | AC199: 0 | AD199: 0 | AE199: 0 | AF199: 0 | AG199: 0 | AH199: 0 | AI199: 0 | AJ199: 0 | AK199: 0 | AL199: 0 | AM199: 0 | AN199: 0 | AO199: 0 | AP199: 0 | AQ199: 0 | AR199: 0
H202: Finance | L202: 2018 | M202: 2019 | N202: 2020 | O202: 2021 | P202: 2022 | Q202: 2023 | R202: 2024 | S202: 2025 | T202: 2026 | U202: 2027 | V202: 2028 | W202: 2029 | X202: 2030 | Y202: 2031 | Z202: 2032 | AA202: 2033 | AB202: 2034 | AC202: 2035 | AD202: 2036 | AE202: 2037 | AF202: 2038 | AG202: 2039 | AH202: 2040 | AI202: 2041 | AJ202: 2042 | AK202: 2043 | AL202: 2044 | AM202: 2045 | AN202: 2046 | AO202: 2047 | AP202: 2048 | AQ202: 2049 | AR202: 2050
J203: Assumptions | K203: Inflation Rate | L203: ='WACC Calc'!F420 -> 0.025 | M203: ='WACC Calc'!G420 -> 0.025 | N203: ='WACC Calc'!H420 -> 0.025 | O203: ='WACC Calc'!I420 -> 0.025 | P203: ='WACC Calc'!J420 -> 0.025 | Q203: ='WACC Calc'!K420 -> 0.025 | R203: ='WACC Calc'!L420 -> 0.025 | S203: ='WACC Calc'!M420 -> 0.025 | T203: ='WACC Calc'!N420 -> 0.025 | U203: ='WACC Calc'!O420 -> 0.025 | V203: ='WACC Calc'!P420 -> 0.025 | W203: ='WACC Calc'!Q420 -> 0.025 | X203: ='WACC Calc'!R420 -> 0.025 | Y203: ='WACC Calc'!S420 -> 0.025 | Z203: ='WACC Calc'!T420 -> 0.025 | AA203: ='WACC Calc'!U420 -> 0.025 | AB203: ='WACC Calc'!V420 -> 0.025 | AC203: ='WACC Calc'!W420 -> 0.025 | AD203: ='WACC Calc'!X420 -> 0.025 | AE203: ='WACC Calc'!Y420 -> 0.025 | AF203: ='WACC Calc'!Z420 -> 0.025 | AG203: ='WACC Calc'!AA420 -> 0.025 | AH203: ='WACC Calc'!AB420 -> 0.025 | AI203: ='WACC Calc'!AC420 -> 0.025 | AJ203: ='WACC Calc'!AD420 -> 0.025 | AK203: ='WACC Calc'!AE420 -> 0.025 | AL203: ='WACC Calc'!AF420 -> 0.025 | AM203: ='WACC Calc'!AG420 -> 0.025 | AN203: ='WACC Calc'!AH420 -> 0.025 | AO203: ='WACC Calc'!AI420 -> 0.025 | AP203: ='WACC Calc'!AJ420 -> 0.025 | AQ203: ='WACC Calc'!AK420 -> 0.025 | AR203: ='WACC Calc'!AL420 -> 0.025
K204: Interest Rate Nominal - Advanced | L204: ='WACC Calc'!F421 -> 0.04 | M204: ='WACC Calc'!G421 -> 0.04 | N204: ='WACC Calc'!H421 -> 0.04 | O204: ='WACC Calc'!I421 -> 0.04 | P204: ='WACC Calc'!J421 -> 0.04 | Q204: ='WACC Calc'!K421 -> 0.04 | R204: ='WACC Calc'!L421 -> 0.04 | S204: ='WACC Calc'!M421 -> 0.04 | T204: ='WACC Calc'!N421 -> 0.04 | U204: ='WACC Calc'!O421 -> 0.04 | V204: ='WACC Calc'!P421 -> 0.04 | W204: ='WACC Calc'!Q421 -> 0.04 | X204: ='WACC Calc'!R421 -> 0.04 | Y204: ='WACC Calc'!S421 -> 0.04 | Z204: ='WACC Calc'!T421 -> 0.04 | AA204: ='WACC Calc'!U421 -> 0.04 | AB204: ='WACC Calc'!V421 -> 0.04 | AC204: ='WACC Calc'!W421 -> 0.04 | AD204: ='WACC Calc'!X421 -> 0.04 | AE204: ='WACC Calc'!Y421 -> 0.04 | AF204: ='WACC Calc'!Z421 -> 0.04 | AG204: ='WACC Calc'!AA421 -> 0.04 | AH204: ='WACC Calc'!AB421 -> 0.04 | AI204: ='WACC Calc'!AC421 -> 0.04 | AJ204: ='WACC Calc'!AD421 -> 0.04 | AK204: ='WACC Calc'!AE421 -> 0.04 | AL204: ='WACC Calc'!AF421 -> 0.04 | AM204: ='WACC Calc'!AG421 -> 0.04 | AN204: ='WACC Calc'!AH421 -> 0.04 | AO204: ='WACC Calc'!AI421 -> 0.04 | AP204: ='WACC Calc'!AJ421 -> 0.04 | AQ204: ='WACC Calc'!AK421 -> 0.04 | AR204: ='WACC Calc'!AL421 -> 0.04
K205: Interest Rate Nominal - Moderate | L205: ='WACC Calc'!F422 -> 0.04 | M205: ='WACC Calc'!G422 -> 0.04 | N205: ='WACC Calc'!H422 -> 0.04 | O205: ='WACC Calc'!I422 -> 0.04 | P205: ='WACC Calc'!J422 -> 0.04 | Q205: ='WACC Calc'!K422 -> 0.04 | R205: ='WACC Calc'!L422 -> 0.04 | S205: ='WACC Calc'!M422 -> 0.04 | T205: ='WACC Calc'!N422 -> 0.04 | U205: ='WACC Calc'!O422 -> 0.04 | V205: ='WACC Calc'!P422 -> 0.04 | W205: ='WACC Calc'!Q422 -> 0.04 | X205: ='WACC Calc'!R422 -> 0.04 | Y205: ='WACC Calc'!S422 -> 0.04 | Z205: ='WACC Calc'!T422 -> 0.04 | AA205: ='WACC Calc'!U422 -> 0.04 | AB205: ='WACC Calc'!V422 -> 0.04 | AC205: ='WACC Calc'!W422 -> 0.04 | AD205: ='WACC Calc'!X422 -> 0.04 | AE205: ='WACC Calc'!Y422 -> 0.04 | AF205: ='WACC Calc'!Z422 -> 0.04 | AG205: ='WACC Calc'!AA422 -> 0.04 | AH205: ='WACC Calc'!AB422 -> 0.04 | AI205: ='WACC Calc'!AC422 -> 0.04 | AJ205: ='WACC Calc'!AD422 -> 0.04 | AK205: ='WACC Calc'!AE422 -> 0.04 | AL205: ='WACC Calc'!AF422 -> 0.04 | AM205: ='WACC Calc'!AG422 -> 0.04 | AN205: ='WACC Calc'!AH422 -> 0.04 | AO205: ='WACC Calc'!AI422 -> 0.04 | AP205: ='WACC Calc'!AJ422 -> 0.04 | AQ205: ='WACC Calc'!AK422 -> 0.04 | AR205: ='WACC Calc'!AL422 -> 0.04
K206: Interest Rate Nominal - Conservative | L206: ='WACC Calc'!F423 -> 0.04 | M206: ='WACC Calc'!G423 -> 0.04 | N206: ='WACC Calc'!H423 -> 0.04 | O206: ='WACC Calc'!I423 -> 0.04 | P206: ='WACC Calc'!J423 -> 0.04 | Q206: ='WACC Calc'!K423 -> 0.04 | R206: ='WACC Calc'!L423 -> 0.04 | S206: ='WACC Calc'!M423 -> 0.04 | T206: ='WACC Calc'!N423 -> 0.04 | U206: ='WACC Calc'!O423 -> 0.04 | V206: ='WACC Calc'!P423 -> 0.04 | W206: ='WACC Calc'!Q423 -> 0.04 | X206: ='WACC Calc'!R423 -> 0.04 | Y206: ='WACC Calc'!S423 -> 0.04 | Z206: ='WACC Calc'!T423 -> 0.04 | AA206: ='WACC Calc'!U423 -> 0.04 | AB206: ='WACC Calc'!V423 -> 0.04 | AC206: ='WACC Calc'!W423 -> 0.04 | AD206: ='WACC Calc'!X423 -> 0.04 | AE206: ='WACC Calc'!Y423 -> 0.04 | AF206: ='WACC Calc'!Z423 -> 0.04 | AG206: ='WACC Calc'!AA423 -> 0.04 | AH206: ='WACC Calc'!AB423 -> 0.04 | AI206: ='WACC Calc'!AC423 -> 0.04 | AJ206: ='WACC Calc'!AD423 -> 0.04 | AK206: ='WACC Calc'!AE423 -> 0.04 | AL206: ='WACC Calc'!AF423 -> 0.04 | AM206: ='WACC Calc'!AG423 -> 0.04 | AN206: ='WACC Calc'!AH423 -> 0.04 | AO206: ='WACC Calc'!AI423 -> 0.04 | AP206: ='WACC Calc'!AJ423 -> 0.04 | AQ206: ='WACC Calc'!AK423 -> 0.04 | AR206: ='WACC Calc'!AL423 -> 0.04
K207: Calculated Interest Rate Real - Advanced | L207: ='WACC Calc'!F424 -> 0.01463414634 | M207: ='WACC Calc'!G424 -> 0.01463414634 | N207: ='WACC Calc'!H424 -> 0.01463414634 | O207: ='WACC Calc'!I424 -> 0.01463414634 | P207: ='WACC Calc'!J424 -> 0.01463414634 | Q207: ='WACC Calc'!K424 -> 0.01463414634 | R207: ='WACC Calc'!L424 -> 0.01463414634 | S207: ='WACC Calc'!M424 -> 0.01463414634 | T207: ='WACC Calc'!N424 -> 0.01463414634 | U207: ='WACC Calc'!O424 -> 0.01463414634 | V207: ='WACC Calc'!P424 -> 0.01463414634 | W207: ='WACC Calc'!Q424 -> 0.01463414634 | X207: ='WACC Calc'!R424 -> 0.01463414634 | Y207: ='WACC Calc'!S424 -> 0.01463414634 | Z207: ='WACC Calc'!T424 -> 0.01463414634 | AA207: ='WACC Calc'!U424 -> 0.01463414634 | AB207: ='WACC Calc'!V424 -> 0.01463414634 | AC207: ='WACC Calc'!W424 -> 0.01463414634 | AD207: ='WACC Calc'!X424 -> 0.01463414634 | AE207: ='WACC Calc'!Y424 -> 0.01463414634 | AF207: ='WACC Calc'!Z424 -> 0.01463414634 | AG207: ='WACC Calc'!AA424 -> 0.01463414634 | AH207: ='WACC Calc'!AB424 -> 0.01463414634 | AI207: ='WACC Calc'!AC424 -> 0.01463414634 | AJ207: ='WACC Calc'!AD424 -> 0.01463414634 | AK207: ='WACC Calc'!AE424 -> 0.01463414634 | AL207: ='WACC Calc'!AF424 -> 0.01463414634 | AM207: ='WACC Calc'!AG424 -> 0.01463414634 | AN207: ='WACC Calc'!AH424 -> 0.01463414634 | AO207: ='WACC Calc'!AI424 -> 0.01463414634 | AP207: ='WACC Calc'!AJ424 -> 0.01463414634 | AQ207: ='WACC Calc'!AK424 -> 0.01463414634 | AR207: ='WACC Calc'!AL424 -> 0.01463414634
K208: Calculated Interest Rate Real - Moderate | L208: ='WACC Calc'!F425 -> 0.01463414634 | M208: ='WACC Calc'!G425 -> 0.01463414634 | N208: ='WACC Calc'!H425 -> 0.01463414634 | O208: ='WACC Calc'!I425 -> 0.01463414634 | P208: ='WACC Calc'!J425 -> 0.01463414634 | Q208: ='WACC Calc'!K425 -> 0.01463414634 | R208: ='WACC Calc'!L425 -> 0.01463414634 | S208: ='WACC Calc'!M425 -> 0.01463414634 | T208: ='WACC Calc'!N425 -> 0.01463414634 | U208: ='WACC Calc'!O425 -> 0.01463414634 | V208: ='WACC Calc'!P425 -> 0.01463414634 | W208: ='WACC Calc'!Q425 -> 0.01463414634 | X208: ='WACC Calc'!R425 -> 0.01463414634 | Y208: ='WACC Calc'!S425 -> 0.01463414634 | Z208: ='WACC Calc'!T425 -> 0.01463414634 | AA208: ='WACC Calc'!U425 -> 0.01463414634 | AB208: ='WACC Calc'!V425 -> 0.01463414634 | AC208: ='WACC Calc'!W425 -> 0.01463414634 | AD208: ='WACC Calc'!X425 -> 0.01463414634 | AE208: ='WACC Calc'!Y425 -> 0.01463414634 | AF208: ='WACC Calc'!Z425 -> 0.01463414634 | AG208: ='WACC Calc'!AA425 -> 0.01463414634 | AH208: ='WACC Calc'!AB425 -> 0.01463414634 | AI208: ='WACC Calc'!AC425 -> 0.01463414634 | AJ208: ='WACC Calc'!AD425 -> 0.01463414634 | AK208: ='WACC Calc'!AE425 -> 0.01463414634 | AL208: ='WACC Calc'!AF425 -> 0.01463414634 | AM208: ='WACC Calc'!AG425 -> 0.01463414634 | AN208: ='WACC Calc'!AH425 -> 0.01463414634 | AO208: ='WACC Calc'!AI425 -> 0.01463414634 | AP208: ='WACC Calc'!AJ425 -> 0.01463414634 | AQ208: ='WACC Calc'!AK425 -> 0.01463414634 | AR208: ='WACC Calc'!AL425 -> 0.01463414634
K209: Calculated Interest Rate Real - Conservative | L209: ='WACC Calc'!F426 -> 0.01463414634 | M209: ='WACC Calc'!G426 -> 0.01463414634 | N209: ='WACC Calc'!H426 -> 0.01463414634 | O209: ='WACC Calc'!I426 -> 0.01463414634 | P209: ='WACC Calc'!J426 -> 0.01463414634 | Q209: ='WACC Calc'!K426 -> 0.01463414634 | R209: ='WACC Calc'!L426 -> 0.01463414634 | S209: ='WACC Calc'!M426 -> 0.01463414634 | T209: ='WACC Calc'!N426 -> 0.01463414634 | U209: ='WACC Calc'!O426 -> 0.01463414634 | V209: ='WACC Calc'!P426 -> 0.01463414634 | W209: ='WACC Calc'!Q426 -> 0.01463414634 | X209: ='WACC Calc'!R426 -> 0.01463414634 | Y209: ='WACC Calc'!S426 -> 0.01463414634 | Z209: ='WACC Calc'!T426 -> 0.01463414634 | AA209: ='WACC Calc'!U426 -> 0.01463414634 | AB209: ='WACC Calc'!V426 -> 0.01463414634 | AC209: ='WACC Calc'!W426 -> 0.01463414634 | AD209: ='WACC Calc'!X426 -> 0.01463414634 | AE209: ='WACC Calc'!Y426 -> 0.01463414634 | AF209: ='WACC Calc'!Z426 -> 0.01463414634 | AG209: ='WACC Calc'!AA426 -> 0.01463414634 | AH209: ='WACC Calc'!AB426 -> 0.01463414634 | AI209: ='WACC Calc'!AC426 -> 0.01463414634 | AJ209: ='WACC Calc'!AD426 -> 0.01463414634 | AK209: ='WACC Calc'!AE426 -> 0.01463414634 | AL209: ='WACC Calc'!AF426 -> 0.01463414634 | AM209: ='WACC Calc'!AG426 -> 0.01463414634 | AN209: ='WACC Calc'!AH426 -> 0.01463414634 | AO209: ='WACC Calc'!AI426 -> 0.01463414634 | AP209: ='WACC Calc'!AJ426 -> 0.01463414634 | AQ209: ='WACC Calc'!AK426 -> 0.01463414634 | AR209: ='WACC Calc'!AL426 -> 0.01463414634
K210: Interest During Construction - Nominal | L210: ='WACC Calc'!F427 -> 0.035 | M210: ='WACC Calc'!G427 -> 0.035 | N210: ='WACC Calc'!H427 -> 0.035 | O210: ='WACC Calc'!I427 -> 0.035 | P210: ='WACC Calc'!J427 -> 0.035 | Q210: ='WACC Calc'!K427 -> 0.035 | R210: ='WACC Calc'!L427 -> 0.035 | S210: ='WACC Calc'!M427 -> 0.035 | T210: ='WACC Calc'!N427 -> 0.035 | U210: ='WACC Calc'!O427 -> 0.035 | V210: ='WACC Calc'!P427 -> 0.035 | W210: ='WACC Calc'!Q427 -> 0.035 | X210: ='WACC Calc'!R427 -> 0.035 | Y210: ='WACC Calc'!S427 -> 0.035 | Z210: ='WACC Calc'!T427 -> 0.035 | AA210: ='WACC Calc'!U427 -> 0.035 | AB210: ='WACC Calc'!V427 -> 0.035 | AC210: ='WACC Calc'!W427 -> 0.035 | AD210: ='WACC Calc'!X427 -> 0.035 | AE210: ='WACC Calc'!Y427 -> 0.035 | AF210: ='WACC Calc'!Z427 -> 0.035 | AG210: ='WACC Calc'!AA427 -> 0.035 | AH210: ='WACC Calc'!AB427 -> 0.035 | AI210: ='WACC Calc'!AC427 -> 0.035 | AJ210: ='WACC Calc'!AD427 -> 0.035 | AK210: ='WACC Calc'!AE427 -> 0.035 | AL210: ='WACC Calc'!AF427 -> 0.035 | AM210: ='WACC Calc'!AG427 -> 0.035 | AN210: ='WACC Calc'!AH427 -> 0.035 | AO210: ='WACC Calc'!AI427 -> 0.035 | AP210: ='WACC Calc'!AJ427 -> 0.035 | AQ210: ='WACC Calc'!AK427 -> 0.035 | AR210: ='WACC Calc'!AL427 -> 0.035
K211: Rate of Return on Equity Nominal - Advanced | L211: ='WACC Calc'!F428 -> 0.0875 | M211: ='WACC Calc'!G428 -> 0.0875 | N211: ='WACC Calc'!H428 -> 0.0875 | O211: ='WACC Calc'!I428 -> 0.0875 | P211: ='WACC Calc'!J428 -> 0.0875 | Q211: ='WACC Calc'!K428 -> 0.0875 | R211: ='WACC Calc'!L428 -> 0.0875 | S211: ='WACC Calc'!M428 -> 0.0875 | T211: ='WACC Calc'!N428 -> 0.0875 | U211: ='WACC Calc'!O428 -> 0.0875 | V211: ='WACC Calc'!P428 -> 0.0875 | W211: ='WACC Calc'!Q428 -> 0.0875 | X211: ='WACC Calc'!R428 -> 0.0875 | Y211: ='WACC Calc'!S428 -> 0.0875 | Z211: ='WACC Calc'!T428 -> 0.0875 | AA211: ='WACC Calc'!U428 -> 0.0875 | AB211: ='WACC Calc'!V428 -> 0.0875 | AC211: ='WACC Calc'!W428 -> 0.0875 | AD211: ='WACC Calc'!X428 -> 0.0875 | AE211: ='WACC Calc'!Y428 -> 0.0875 | AF211: ='WACC Calc'!Z428 -> 0.0875 | AG211: ='WACC Calc'!AA428 -> 0.0875 | AH211: ='WACC Calc'!AB428 -> 0.0875 | AI211: ='WACC Calc'!AC428 -> 0.0875 | AJ211: ='WACC Calc'!AD428 -> 0.0875 | AK211: ='WACC Calc'!AE428 -> 0.0875 | AL211: ='WACC Calc'!AF428 -> 0.0875 | AM211: ='WACC Calc'!AG428 -> 0.0875 | AN211: ='WACC Calc'!AH428 -> 0.0875 | AO211: ='WACC Calc'!AI428 -> 0.0875 | AP211: ='WACC Calc'!AJ428 -> 0.0875 | AQ211: ='WACC Calc'!AK428 -> 0.0875 | AR211: ='WACC Calc'!AL428 -> 0.0875
K212: Rate of Return on Equity Nominal - Moderate | L212: ='WACC Calc'!F429 -> 0.0875 | M212: ='WACC Calc'!G429 -> 0.0875 | N212: ='WACC Calc'!H429 -> 0.0875 | O212: ='WACC Calc'!I429 -> 0.0875 | P212: ='WACC Calc'!J429 -> 0.0875 | Q212: ='WACC Calc'!K429 -> 0.0875 | R212: ='WACC Calc'!L429 -> 0.0875 | S212: ='WACC Calc'!M429 -> 0.0875 | T212: ='WACC Calc'!N429 -> 0.0875 | U212: ='WACC Calc'!O429 -> 0.0875 | V212: ='WACC Calc'!P429 -> 0.0875 | W212: ='WACC Calc'!Q429 -> 0.0875 | X212: ='WACC Calc'!R429 -> 0.0875 | Y212: ='WACC Calc'!S429 -> 0.0875 | Z212: ='WACC Calc'!T429 -> 0.0875 | AA212: ='WACC Calc'!U429 -> 0.0875 | AB212: ='WACC Calc'!V429 -> 0.0875 | AC212: ='WACC Calc'!W429 -> 0.0875 | AD212: ='WACC Calc'!X429 -> 0.0875 | AE212: ='WACC Calc'!Y429 -> 0.0875 | AF212: ='WACC Calc'!Z429 -> 0.0875 | AG212: ='WACC Calc'!AA429 -> 0.0875 | AH212: ='WACC Calc'!AB429 -> 0.0875 | AI212: ='WACC Calc'!AC429 -> 0.0875 | AJ212: ='WACC Calc'!AD429 -> 0.0875 | AK212: ='WACC Calc'!AE429 -> 0.0875 | AL212: ='WACC Calc'!AF429 -> 0.0875 | AM212: ='WACC Calc'!AG429 -> 0.0875 | AN212: ='WACC Calc'!AH429 -> 0.0875 | AO212: ='WACC Calc'!AI429 -> 0.0875 | AP212: ='WACC Calc'!AJ429 -> 0.0875 | AQ212: ='WACC Calc'!AK429 -> 0.0875 | AR212: ='WACC Calc'!AL429 -> 0.0875
K213: Rate of Return on Equity Nominal - Conservative | L213: ='WACC Calc'!F430 -> 0.0875 | M213: ='WACC Calc'!G430 -> 0.0875 | N213: ='WACC Calc'!H430 -> 0.0875 | O213: ='WACC Calc'!I430 -> 0.0875 | P213: ='WACC Calc'!J430 -> 0.0875 | Q213: ='WACC Calc'!K430 -> 0.0875 | R213: ='WACC Calc'!L430 -> 0.0875 | S213: ='WACC Calc'!M430 -> 0.0875 | T213: ='WACC Calc'!N430 -> 0.0875 | U213: ='WACC Calc'!O430 -> 0.0875 | V213: ='WACC Calc'!P430 -> 0.0875 | W213: ='WACC Calc'!Q430 -> 0.0875 | X213: ='WACC Calc'!R430 -> 0.0875 | Y213: ='WACC Calc'!S430 -> 0.0875 | Z213: ='WACC Calc'!T430 -> 0.0875 | AA213: ='WACC Calc'!U430 -> 0.0875 | AB213: ='WACC Calc'!V430 -> 0.0875 | AC213: ='WACC Calc'!W430 -> 0.0875 | AD213: ='WACC Calc'!X430 -> 0.0875 | AE213: ='WACC Calc'!Y430 -> 0.0875 | AF213: ='WACC Calc'!Z430 -> 0.0875 | AG213: ='WACC Calc'!AA430 -> 0.0875 | AH213: ='WACC Calc'!AB430 -> 0.0875 | AI213: ='WACC Calc'!AC430 -> 0.0875 | AJ213: ='WACC Calc'!AD430 -> 0.0875 | AK213: ='WACC Calc'!AE430 -> 0.0875 | AL213: ='WACC Calc'!AF430 -> 0.0875 | AM213: ='WACC Calc'!AG430 -> 0.0875 | AN213: ='WACC Calc'!AH430 -> 0.0875 | AO213: ='WACC Calc'!AI430 -> 0.0875 | AP213: ='WACC Calc'!AJ430 -> 0.0875 | AQ213: ='WACC Calc'!AK430 -> 0.0875 | AR213: ='WACC Calc'!AL430 -> 0.0875
K214: Calculated Rate of Return on Equity Real - Advanced | L214: ='WACC Calc'!F431 -> 0.06097560976 | M214: ='WACC Calc'!G431 -> 0.06097560976 | N214: ='WACC Calc'!H431 -> 0.06097560976 | O214: ='WACC Calc'!I431 -> 0.06097560976 | P214: ='WACC Calc'!J431 -> 0.06097560976 | Q214: ='WACC Calc'!K431 -> 0.06097560976 | R214: ='WACC Calc'!L431 -> 0.06097560976 | S214: ='WACC Calc'!M431 -> 0.06097560976 | T214: ='WACC Calc'!N431 -> 0.06097560976 | U214: ='WACC Calc'!O431 -> 0.06097560976 | V214: ='WACC Calc'!P431 -> 0.06097560976 | W214: ='WACC Calc'!Q431 -> 0.06097560976 | X214: ='WACC Calc'!R431 -> 0.06097560976 | Y214: ='WACC Calc'!S431 -> 0.06097560976 | Z214: ='WACC Calc'!T431 -> 0.06097560976 | AA214: ='WACC Calc'!U431 -> 0.06097560976 | AB214: ='WACC Calc'!V431 -> 0.06097560976 | AC214: ='WACC Calc'!W431 -> 0.06097560976 | AD214: ='WACC Calc'!X431 -> 0.06097560976 | AE214: ='WACC Calc'!Y431 -> 0.06097560976 | AF214: ='WACC Calc'!Z431 -> 0.06097560976 | AG214: ='WACC Calc'!AA431 -> 0.06097560976 | AH214: ='WACC Calc'!AB431 -> 0.06097560976 | AI214: ='WACC Calc'!AC431 -> 0.06097560976 | AJ214: ='WACC Calc'!AD431 -> 0.06097560976 | AK214: ='WACC Calc'!AE431 -> 0.06097560976 | AL214: ='WACC Calc'!AF431 -> 0.06097560976 | AM214: ='WACC Calc'!AG431 -> 0.06097560976 | AN214: ='WACC Calc'!AH431 -> 0.06097560976 | AO214: ='WACC Calc'!AI431 -> 0.06097560976 | AP214: ='WACC Calc'!AJ431 -> 0.06097560976 | AQ214: ='WACC Calc'!AK431 -> 0.06097560976 | AR214: ='WACC Calc'!AL431 -> 0.06097560976
K215: Calculated Rate of Return on Equity Real - Moderate | L215: ='WACC Calc'!F432 -> 0.06097560976 | M215: ='WACC Calc'!G432 -> 0.06097560976 | N215: ='WACC Calc'!H432 -> 0.06097560976 | O215: ='WACC Calc'!I432 -> 0.06097560976 | P215: ='WACC Calc'!J432 -> 0.06097560976 | Q215: ='WACC Calc'!K432 -> 0.06097560976 | R215: ='WACC Calc'!L432 -> 0.06097560976 | S215: ='WACC Calc'!M432 -> 0.06097560976 | T215: ='WACC Calc'!N432 -> 0.06097560976 | U215: ='WACC Calc'!O432 -> 0.06097560976 | V215: ='WACC Calc'!P432 -> 0.06097560976 | W215: ='WACC Calc'!Q432 -> 0.06097560976 | X215: ='WACC Calc'!R432 -> 0.06097560976 | Y215: ='WACC Calc'!S432 -> 0.06097560976 | Z215: ='WACC Calc'!T432 -> 0.06097560976 | AA215: ='WACC Calc'!U432 -> 0.06097560976 | AB215: ='WACC Calc'!V432 -> 0.06097560976 | AC215: ='WACC Calc'!W432 -> 0.06097560976 | AD215: ='WACC Calc'!X432 -> 0.06097560976 | AE215: ='WACC Calc'!Y432 -> 0.06097560976 | AF215: ='WACC Calc'!Z432 -> 0.06097560976 | AG215: ='WACC Calc'!AA432 -> 0.06097560976 | AH215: ='WACC Calc'!AB432 -> 0.06097560976 | AI215: ='WACC Calc'!AC432 -> 0.06097560976 | AJ215: ='WACC Calc'!AD432 -> 0.06097560976 | AK215: ='WACC Calc'!AE432 -> 0.06097560976 | AL215: ='WACC Calc'!AF432 -> 0.06097560976 | AM215: ='WACC Calc'!AG432 -> 0.06097560976 | AN215: ='WACC Calc'!AH432 -> 0.06097560976 | AO215: ='WACC Calc'!AI432 -> 0.06097560976 | AP215: ='WACC Calc'!AJ432 -> 0.06097560976 | AQ215: ='WACC Calc'!AK432 -> 0.06097560976 | AR215: ='WACC Calc'!AL432 -> 0.06097560976
K216: Calculated Rate of Return on Equity Real - Conservative | L216: ='WACC Calc'!F433 -> 0.06097560976 | M216: ='WACC Calc'!G433 -> 0.06097560976 | N216: ='WACC Calc'!H433 -> 0.06097560976 | O216: ='WACC Calc'!I433 -> 0.06097560976 | P216: ='WACC Calc'!J433 -> 0.06097560976 | Q216: ='WACC Calc'!K433 -> 0.06097560976 | R216: ='WACC Calc'!L433 -> 0.06097560976 | S216: ='WACC Calc'!M433 -> 0.06097560976 | T216: ='WACC Calc'!N433 -> 0.06097560976 | U216: ='WACC Calc'!O433 -> 0.06097560976 | V216: ='WACC Calc'!P433 -> 0.06097560976 | W216: ='WACC Calc'!Q433 -> 0.06097560976 | X216: ='WACC Calc'!R433 -> 0.06097560976 | Y216: ='WACC Calc'!S433 -> 0.06097560976 | Z216: ='WACC Calc'!T433 -> 0.06097560976 | AA216: ='WACC Calc'!U433 -> 0.06097560976 | AB216: ='WACC Calc'!V433 -> 0.06097560976 | AC216: ='WACC Calc'!W433 -> 0.06097560976 | AD216: ='WACC Calc'!X433 -> 0.06097560976 | AE216: ='WACC Calc'!Y433 -> 0.06097560976 | AF216: ='WACC Calc'!Z433 -> 0.06097560976 | AG216: ='WACC Calc'!AA433 -> 0.06097560976 | AH216: ='WACC Calc'!AB433 -> 0.06097560976 | AI216: ='WACC Calc'!AC433 -> 0.06097560976 | AJ216: ='WACC Calc'!AD433 -> 0.06097560976 | AK216: ='WACC Calc'!AE433 -> 0.06097560976 | AL216: ='WACC Calc'!AF433 -> 0.06097560976 | AM216: ='WACC Calc'!AG433 -> 0.06097560976 | AN216: ='WACC Calc'!AH433 -> 0.06097560976 | AO216: ='WACC Calc'!AI433 -> 0.06097560976 | AP216: ='WACC Calc'!AJ433 -> 0.06097560976 | AQ216: ='WACC Calc'!AK433 -> 0.06097560976 | AR216: ='WACC Calc'!AL433 -> 0.06097560976
K217: Debt Fraction - Advanced | L217: ='WACC Calc'!F434 -> 0.7592911285 | M217: ='WACC Calc'!G434 -> 0.7592911285 | N217: ='WACC Calc'!H434 -> 0.7592911285 | O217: ='WACC Calc'!I434 -> 0.7592911285 | P217: ='WACC Calc'!J434 -> 0.7592911285 | Q217: ='WACC Calc'!K434 -> 0.7592911285 | R217: ='WACC Calc'!L434 -> 0.7592911285 | S217: ='WACC Calc'!M434 -> 0.7592911285 | T217: ='WACC Calc'!N434 -> 0.7592911285 | U217: ='WACC Calc'!O434 -> 0.7592911285 | V217: ='WACC Calc'!P434 -> 0.7592911285 | W217: ='WACC Calc'!Q434 -> 0.7592911285 | X217: ='WACC Calc'!R434 -> 0.7592911285 | Y217: ='WACC Calc'!S434 -> 0.7592911285 | Z217: ='WACC Calc'!T434 -> 0.7592911285 | AA217: ='WACC Calc'!U434 -> 0.7592911285 | AB217: ='WACC Calc'!V434 -> 0.7592911285 | AC217: ='WACC Calc'!W434 -> 0.7592911285 | AD217: ='WACC Calc'!X434 -> 0.7592911285 | AE217: ='WACC Calc'!Y434 -> 0.7592911285 | AF217: ='WACC Calc'!Z434 -> 0.7592911285 | AG217: ='WACC Calc'!AA434 -> 0.7592911285 | AH217: ='WACC Calc'!AB434 -> 0.7592911285 | AI217: ='WACC Calc'!AC434 -> 0.7592911285 | AJ217: ='WACC Calc'!AD434 -> 0.7592911285 | AK217: ='WACC Calc'!AE434 -> 0.7592911285 | AL217: ='WACC Calc'!AF434 -> 0.7592911285 | AM217: ='WACC Calc'!AG434 -> 0.7592911285 | AN217: ='WACC Calc'!AH434 -> 0.7592911285 | AO217: ='WACC Calc'!AI434 -> 0.7592911285 | AP217: ='WACC Calc'!AJ434 -> 0.7592911285 | AQ217: ='WACC Calc'!AK434 -> 0.7592911285 | AR217: ='WACC Calc'!AL434 -> 0.7592911285
K218: Debt Fraction - Moderate | L218: ='WACC Calc'!F435 -> 0.7592911285 | M218: ='WACC Calc'!G435 -> 0.7592911285 | N218: ='WACC Calc'!H435 -> 0.7592911285 | O218: ='WACC Calc'!I435 -> 0.7592911285 | P218: ='WACC Calc'!J435 -> 0.7592911285 | Q218: ='WACC Calc'!K435 -> 0.7592911285 | R218: ='WACC Calc'!L435 -> 0.7592911285 | S218: ='WACC Calc'!M435 -> 0.7592911285 | T218: ='WACC Calc'!N435 -> 0.7592911285 | U218: ='WACC Calc'!O435 -> 0.7592911285 | V218: ='WACC Calc'!P435 -> 0.7592911285 | W218: ='WACC Calc'!Q435 -> 0.7592911285 | X218: ='WACC Calc'!R435 -> 0.7592911285 | Y218: ='WACC Calc'!S435 -> 0.7592911285 | Z218: ='WACC Calc'!T435 -> 0.7592911285 | AA218: ='WACC Calc'!U435 -> 0.7592911285 | AB218: ='WACC Calc'!V435 -> 0.7592911285 | AC218: ='WACC Calc'!W435 -> 0.7592911285 | AD218: ='WACC Calc'!X435 -> 0.7592911285 | AE218: ='WACC Calc'!Y435 -> 0.7592911285 | AF218: ='WACC Calc'!Z435 -> 0.7592911285 | AG218: ='WACC Calc'!AA435 -> 0.7592911285 | AH218: ='WACC Calc'!AB435 -> 0.7592911285 | AI218: ='WACC Calc'!AC435 -> 0.7592911285 | AJ218: ='WACC Calc'!AD435 -> 0.7592911285 | AK218: ='WACC Calc'!AE435 -> 0.7592911285 | AL218: ='WACC Calc'!AF435 -> 0.7592911285 | AM218: ='WACC Calc'!AG435 -> 0.7592911285 | AN218: ='WACC Calc'!AH435 -> 0.7592911285 | AO218: ='WACC Calc'!AI435 -> 0.7592911285 | AP218: ='WACC Calc'!AJ435 -> 0.7592911285 | AQ218: ='WACC Calc'!AK435 -> 0.7592911285 | AR218: ='WACC Calc'!AL435 -> 0.7592911285
K219: Debt Fraction - Conservative | L219: ='WACC Calc'!F436 -> 0.7592911285 | M219: ='WACC Calc'!G436 -> 0.7592911285 | N219: ='WACC Calc'!H436 -> 0.7592911285 | O219: ='WACC Calc'!I436 -> 0.7592911285 | P219: ='WACC Calc'!J436 -> 0.7592911285 | Q219: ='WACC Calc'!K436 -> 0.7592911285 | R219: ='WACC Calc'!L436 -> 0.7592911285 | S219: ='WACC Calc'!M436 -> 0.7592911285 | T219: ='WACC Calc'!N436 -> 0.7592911285 | U219: ='WACC Calc'!O436 -> 0.7592911285 | V219: ='WACC Calc'!P436 -> 0.7592911285 | W219: ='WACC Calc'!Q436 -> 0.7592911285 | X219: ='WACC Calc'!R436 -> 0.7592911285 | Y219: ='WACC Calc'!S436 -> 0.7592911285 | Z219: ='WACC Calc'!T436 -> 0.7592911285 | AA219: ='WACC Calc'!U436 -> 0.7592911285 | AB219: ='WACC Calc'!V436 -> 0.7592911285 | AC219: ='WACC Calc'!W436 -> 0.7592911285 | AD219: ='WACC Calc'!X436 -> 0.7592911285 | AE219: ='WACC Calc'!Y436 -> 0.7592911285 | AF219: ='WACC Calc'!Z436 -> 0.7592911285 | AG219: ='WACC Calc'!AA436 -> 0.7592911285 | AH219: ='WACC Calc'!AB436 -> 0.7592911285 | AI219: ='WACC Calc'!AC436 -> 0.7592911285 | AJ219: ='WACC Calc'!AD436 -> 0.7592911285 | AK219: ='WACC Calc'!AE436 -> 0.7592911285 | AL219: ='WACC Calc'!AF436 -> 0.7592911285 | AM219: ='WACC Calc'!AG436 -> 0.7592911285 | AN219: ='WACC Calc'!AH436 -> 0.7592911285 | AO219: ='WACC Calc'!AI436 -> 0.7592911285 | AP219: ='WACC Calc'!AJ436 -> 0.7592911285 | AQ219: ='WACC Calc'!AK436 -> 0.7592911285 | AR219: ='WACC Calc'!AL436 -> 0.7592911285
K220: Tax Rate (Federal and State) | L220: ='WACC Calc'!F437 -> 0.2574 | M220: ='WACC Calc'!G437 -> 0.2574 | N220: ='WACC Calc'!H437 -> 0.2574 | O220: ='WACC Calc'!I437 -> 0.2574 | P220: ='WACC Calc'!J437 -> 0.2574 | Q220: ='WACC Calc'!K437 -> 0.2574 | R220: ='WACC Calc'!L437 -> 0.2574 | S220: ='WACC Calc'!M437 -> 0.2574 | T220: ='WACC Calc'!N437 -> 0.2574 | U220: ='WACC Calc'!O437 -> 0.2574 | V220: ='WACC Calc'!P437 -> 0.2574 | W220: ='WACC Calc'!Q437 -> 0.2574 | X220: ='WACC Calc'!R437 -> 0.2574 | Y220: ='WACC Calc'!S437 -> 0.2574 | Z220: ='WACC Calc'!T437 -> 0.2574 | AA220: ='WACC Calc'!U437 -> 0.2574 | AB220: ='WACC Calc'!V437 -> 0.2574 | AC220: ='WACC Calc'!W437 -> 0.2574 | AD220: ='WACC Calc'!X437 -> 0.2574 | AE220: ='WACC Calc'!Y437 -> 0.2574 | AF220: ='WACC Calc'!Z437 -> 0.2574 | AG220: ='WACC Calc'!AA437 -> 0.2574 | AH220: ='WACC Calc'!AB437 -> 0.2574 | AI220: ='WACC Calc'!AC437 -> 0.2574 | AJ220: ='WACC Calc'!AD437 -> 0.2574 | AK220: ='WACC Calc'!AE437 -> 0.2574 | AL220: ='WACC Calc'!AF437 -> 0.2574 | AM220: ='WACC Calc'!AG437 -> 0.2574 | AN220: ='WACC Calc'!AH437 -> 0.2574 | AO220: ='WACC Calc'!AI437 -> 0.2574 | AP220: ='WACC Calc'!AJ437 -> 0.2574 | AQ220: ='WACC Calc'!AK437 -> 0.2574 | AR220: ='WACC Calc'!AL437 -> 0.2574
... 111 more rows

Sheet Solar - PV Dist. Res
A1: TEST | L1: https://atb.nrel.gov/electricity/2020/index.html?t=sr
T3: Inputs
J4: Take me to: | T4: Calculated
B10: X | G10: Current Costs
H12: Techno-Economic Cost and Performance Parameters | J12: Net Capacity Factor (%) | K12: Res PV - Seattle | L12: =L100 -> 0.1336912772 | O12: Basis Year: | Q12: 2018
K13: Res PV - Chicago | L13: =L104 -> 0.1543565796 | O13: All values are given in 2018 U.S. dollars, using the Consumer Price Index (BLS, 2020) for dollar year conversions. Projections use an inflation assumption of 2.5% per year.
K14: Res PV - Kansas City | L14: =L107 -> 0.165191447 | O14: Residential Solar Photovoltaic
K15: Res PV - Los Angeles | L15: =L110 -> 0.1899649346
K16: Res PV - Daggett, CA | L16: =L113 -> 0.2075095238
O17: Representative Dist. Res system is fixed-tilt roof mounted with capacity of 5 kW
J18: Annual Energy Production (kWh/kW) | K18: Res PV - Seattle | L18: =L12*8760 -> 1171.135588 | O18: Overnight Capital Cost, Capacity Factor, Fixed O&M, and Variable O&M costs
K19: Res PV - Chicago | L19: =L13*8760 -> 1352.163637 | O19: represent $/kW DC; however LCOE reflects $/MWh AC.
K20: Res PV - Kansas City | L20: =L14*8760 -> 1447.077076 | O20: Capacity factors chosen here to reflect range of across the continental U.S. using NREL PVWATTS
K21: Res PV - Los Angeles | L21: =L15*8760 -> 1664.092827
K22: Res PV - Daggett, CA | L22: =L16*8760 -> 1817.783428
S23: Available | T23: Available
J24: CAPEX ($/kW) | K24: Res PV - Seattle | L24: =$S$54 * (L36 + L62) -> 3054.318209 | S24: Capacity | T24: Generation
K25: Res PV - Chicago | L25: =$S$54 * (L37 + L63) -> 3054.318209 | S25: (GW) | T25: (GWh)
K26: Res PV - Kansas City | L26: =$S$54 * (L38 + L64) -> 3054.318209 | S26: 731 | T26: 926000
K27: Res PV - Los Angeles | L27: =$S$54 * (L39 + L65) -> 3054.318209
K28: Res PV - Daggett, CA | L28: =$S$54 * (L40 + L66) -> 3054.318209
O29: Res PV - Seattle | P29: Res PV - Seattle | Q29: ATB values reflect annual average capacity factor over life of plant including estimated degradation, starting at 0.7% per year, reducing to 0.2%, 0.5%, and 0.5% annual degradation by 2050 for the advanced, moderate, and conservative scenarios, respectively.
J30: Construction Financing Cost ($/kW) | K30: Res PV - Seattle | L30: =(L36+L62)*($S$54-1) -> 0 | O30: Res PV - Chicago | P30: Res PV - Chicago
K31: Res PV - Chicago | L31: =(L37+L63)*($S$54-1) -> 0 | O31: Res PV - Kansas City | P31: Res PV - Kansas City
K32: Res PV - Kansas City | L32: =(L38+L64)*($S$54-1) -> 0 | O32: Res PV - Los Angeles | P32: Res PV - Los Angeles
K33: Res PV - Los Angeles | L33: =(L39+L65)*($S$54-1) -> 0 | O33: Res PV - Daggett, CA | P33: Res PV - Daggett, CA
K34: Res PV - Daggett, CA | L34: =(L40+L66)*($S$54-1) -> 0
O35: Financial Assumptions:
J36: Overnight Capital Cost ($/kW) | K36: Res PV - Seattle | L36: =$L$155 -> 3054.318209 | O36: Inflation Rate | S36: =L203 -> 0.025
K37: Res PV - Chicago | L37: =$L$155 -> 3054.318209 | O37: Capital Recovery Period (Years) | S37: 30
K38: Res PV - Kansas City | L38: =$L$164 -> 3054.318209 | O38: Interest Rate Nominal - Mid | S38: =L205 -> 0.04
K39: Res PV - Los Angeles | L39: =$L$164 -> 3054.318209
K40: Res PV - Daggett, CA | L40: =$L$164 -> 3054.318209
O41: Calculated Interest Rate Real - Mid | S41: =L208 -> 0.01463414634
J42: Fixed Operation and Maintenance Expenses ($/kW/yr) | K42: Res PV - Seattle | L42: =L168 -> 22 | O42: Interest During Construction - Nominal | S42: =L210 -> 0.035
K43: Res PV - Chicago | L43: =L171 -> 22 | O43: Rate of Return on Equity Nominal - Mid | S43: =L212 -> 0.0875
K44: Res PV - Kansas City | L44: =L174 -> 22 | O44: Calculated Rate of Return on Equity Real - Mid | S44: =L215 -> 0.06097560976
K45: Res PV - Los Angeles | L45: =L177 -> 22
K46: Res PV - Daggett, CA | L46: =L180 -> 22
O47: Debt Fraction - Mid | S47: =L218 -> 0.7583473154
J48: Variable Operation and Maintenance Expenses ($/MWh) | K48: Res PV - Seattle | L48: 0 | O48: Tax Rate (Federal and State) | S48: =L220 -> 0.2574
K49: Res PV - Chicago | L49: 0 | O49: WACC Nominal - Mid | S49: =L222 -> 0.04367055856
K50: Res PV - Kansas City | L50: 0 | O50: WACC Real - Mid | S50: =L225 -> 0.01821517908
K51: Res PV - Los Angeles | L51: 0
K52: Res PV - Daggett, CA | L52: 0
O53: Depreciation Period | S53: 5
O54: Construction Finance Factor | S54: 1
H55: Finance | J55: Weighted Average Cost of Capital (WACC) (Nominal) (%) | K55: Res PV - Seattle | L55: =$S$49 -> 0.04367055856 | O55: Present Value of Depreciation | S55: =SUMPRODUCT(O74:T74,O76:T76) -> 0.889002651
K56: Res PV - Chicago | L56: =$S$49 -> 0.04367055856 | O56: Project Finance Factor | S56: =(1 - S48 * S55) / (1 - S48) -> 1.038473899
K57: Res PV - Kansas City | L57: =$S$49 -> 0.04367055856 | O57: Capital Recovery Factor (CRF) Nominal - Mid | S57: =L228 -> 0.06043481123
K58: Res PV - Los Angeles | L58: =$S$49 -> 0.04367055856
K59: Res PV - Daggett, CA | L59: =$S$49 -> 0.04367055856
O60: Capital Recovery Factor (CRF) Real - Mid | S60: =L231 -> 0.04356162369
O61: Cost of equity during construction | S61: =S43+0.02 -> 0.1075
H62: Grid Connection Costs | J62: Grid Connection Costs (GCC) ($/kW) | K62: Res PV - Seattle | L62: =L68+L74 -> 0 | O62: Construction Duration yrs | Q62: 0
K63: Res PV - Chicago | L63: =L69+L75 -> 0 | O63: Year | P63: Capital | Q63: Accumulated | R63: Percent of Leverage During Construction | S63: Percent of Equity During Construction | T63: Accumulated
K64: Res PV - Kansas City | L64: =L70+L76 -> 0 | O64: Index | P64: Fraction | Q64: Interest | T64: Equity Cost
K65: Res PV - Los Angeles | L65: =L71+L77 -> 0
K66: Res PV - Daggett, CA | L66: =L72+L78 -> 0
O67: 0 | P67: 1 | Q67: =1+((1+S42)^(O67+0.5)-1) -> 1.017349497 | R67: 0.8 | S67: =1-R67 -> 0.2 | T67: =1+((1+$S$61)^(O67+0.5)-1) -> 1.052378259
J68: Grid Feature Costs ($/kW) | K68: Res PV - Seattle | L68: 0 | O68: 1 | P68: 0 | Q68: =1+((1+S42)^(O68+0.5)-1) -> 1.05295673 | R68: 0.8 | S68: =1-R68 -> 0.2 | T68: =1+((1+$S$61)^(O68+0.5)-1) -> 1.165508922
K69: Res PV - Chicago | L69: 0 | O69: 2 | P69: 0 | Q69: =1+((1+S42)^(O69+0.5)-1) -> 1.089810215 | R69: 0.8 | S69: 0.2 | T69: =1+((1+$S$61)^(O69+0.5)-1) -> 1.290801131
K70: Res PV - Kansas City | L70: 0
K71: Res PV - Los Angeles | L71: 0
K72: Res PV - Daggett, CA | L72: 0
N73: MACRS yr | O73: 1 | P73: 2 | Q73: 3 | R73: 4 | S73: 5 | T73: 6
J74: Onshore Spur Line Costs ($/kW) | K74: Res PV - Seattle | L74: 0 | N74: Depreciation | O74: 0.2 | P74: 0.32 | Q74: 0.192 | R74: 0.1152 | S74: 0.1152 | T74: 0.0576
K75: Res PV - Chicago | L75: 0 | N75: Fraction
K76: Res PV - Kansas City | L76: 0 | N76: Depreciation | O76: =1/((1+$S$50)*(1+$S$36))^O73 -> 0.9581567591 | P76: 0.9180643751 | Q76: 0.8796495863 | R76: 0.8428421968 | S76: 0.8075749478 | T76: 0.7737833947
K77: Res PV - Los Angeles | L77: 0
K78: Res PV - Daggett, CA | L78: 0
N79: Factor
H81: LCOE | J81: Levelized Cost of Energy ($/MWh) | K81: Res PV - Seattle | L81: =(($S$60 * $S$56 * $S$54 * (L36 * 1 + L62) +L42) * 1000 / (L12 * 8760)) + L48 + 0 -> 136.7647394
K82: Res PV - Chicago | L82: =(($S$60 * $S$56 * $S$54 * (L37 * 1 + L63) +L43) * 1000 / (L13 * 8760)) + L49 + 0 -> 118.4546376
K83: Res PV - Kansas City | L83: =(($S$60 * $S$56 * $S$54 * (L38 * 1 + L64) +L44) * 1000 / (L14 * 8760)) + L50 + 0 -> 110.6852263
K84: Res PV - Los Angeles | L84: =(($S$60 * $S$56 * $S$54 * (L39 * 1 + L65) +L45) * 1000 / (L15 * 8760)) + L51 + 0 -> 96.25067242
K85: Res PV - Daggett, CA | L85: =(($S$60 * $S$56 * $S$54 * (L40 * 1 + L66) +L46) * 1000 / (L16 * 8760)) + L52 + 0 -> 88.11283626
J87: Overnight Levelized Cost of Energy ($/MWh) | K87: Res PV - Seattle | L87: =(((L36*$S$60*(1-$S$48*$S$55))/(8760*L12*(1-$S$48))+L42/(8760*L12))*1000)+L48 -> 136.7647394
K88: Res PV - Chicago | L88: =(((L37*$S$60*(1-$S$48*$S$55))/(8760*L13*(1-$S$48))+L43/(8760*L13))*1000)+L49 -> 118.4546376
K89: Res PV - Kansas City | L89: =(((L38*$S$60*(1-$S$48*$S$55))/(8760*L14*(1-$S$48))+L44/(8760*L14))*1000)+L50 -> 110.6852263
K90: Res PV - Los Angeles | L90: =(((L39*$S$60*(1-$S$48*$S$55))/(8760*L15*(1-$S$48))+L45/(8760*L15))*1000)+L51 -> 96.25067242
K91: Res PV - Daggett, CA | L91: =(((L40*$S$60*(1-$S$48*$S$55))/(8760*L16*(1-$S$48))+L46/(8760*L16))*1000)+L52 -> 88.11283626
H94: ***Note: For future projections, low, mid, and high refer to the resulting low, mid, and high LCOE projections.
D97: X | G97: Future Projections
L99: 2018 | M99: 2019 | N99: 2020 | O99: 2021 | P99: 2022 | Q99: 2023 | R99: 2024 | S99: 2025 | T99: 2026 | U99: 2027 | V99: 2028 | W99: 2029 | X99: 2030 | Y99: 2031 | Z99: 2032 | AA99: 2033 | AB99: 2034 | AC99: 2035 | AD99: 2036 | AE99: 2037 | AF99: 2038 | AG99: 2039 | AH99: 2040 | AI99: 2041 | AJ99: 2042 | AK99: 2043 | AL99: 2044 | AM99: 2045 | AN99: 2046 | AO99: 2047 | AP99: 2048 | AQ99: 2049 | AR99: 2050
H100: Techno-Economic Cost and Performance Parameters | J100: Net Capacity Factor (%) | K100: Res PV - Seattle - Advanced | L100: 0.1336912772 | M100: 0.1341734838 | N100: 0.1346556904 | O100: 0.1351378969 | P100: 0.1356201035 | Q100: 0.1361023101 | R100: 0.1365845166 | S100: 0.1370667232 | T100: 0.1375489298 | U100: 0.1380311364 | V100: 0.1385133429 | W100: 0.1389955495 | X100: 0.1394777561 | Y100: 0.1394777561 | Z100: 0.1394777561 | AA100: 0.1394777561 | AB100: 0.1394777561 | AC100: 0.1394777561 | AD100: 0.1394777561 | AE100: 0.1394777561 | AF100: 0.1394777561 | AG100: 0.1394777561 | AH100: 0.1394777561 | AI100: 0.1394777561 | AJ100: 0.1394777561 | AK100: 0.1394777561 | AL100: 0.1394777561 | AM100: 0.1394777561 | AN100: 0.1394777561 | AO100: 0.1394777561 | AP100: 0.1394777561 | AQ100: 0.1394777561 | AR100: 0.1394777561
K101: Res PV - Seattle - Moderate | L101: 0.1336912772 | M101: 0.1338808836 | N101: 0.1340704899 | O101: 0.1342600962 | P101: 0.1344497026 | Q101: 0.1346393089 | R101: 0.1348289153 | S101: 0.1350185216 | T101: 0.135208128 | U101: 0.1353977343 | V101: 0.1355873407 | W101: 0.135776947 | X101: 0.1359665534 | Y101: 0.1361421135 | Z101: 0.1363176736 | AA101: 0.1364932338 | AB101: 0.1366687939 | AC101: 0.136844354 | AD101: 0.1370199142 | AE101: 0.1371954743 | AF101: 0.1373710344 | AG101: 0.1375465946 | AH101: 0.1377221547 | AI101: 0.1378977149 | AJ101: 0.138073275 | AK101: 0.1382488351 | AL101: 0.1384243953 | AM101: 0.1385999554 | AN101: 0.1387755155 | AO101: 0.1389510757 | AP101: 0.1391266358 | AQ101: 0.1393021959 | AR101: 0.1394777561
K102: Res PV - Seattle - Conservative | L102: 0.1336912772 | M102: 0.1336912772 | N102: 0.1336912772 | O102: 0.1336912772 | P102: 0.1336912772 | Q102: 0.1336912772 | R102: 0.1336912772 | S102: 0.1336912772 | T102: 0.1336912772 | U102: 0.1336912772 | V102: 0.1336912772 | W102: 0.1336912772 | X102: 0.1336912772 | Y102: 0.133805041 | Z102: 0.1339188048 | AA102: 0.1340325686 | AB102: 0.1341463324 | AC102: 0.1342600962 | AD102: 0.1343738601 | AE102: 0.1344876239 | AF102: 0.1346013877 | AG102: 0.1347151515 | AH102: 0.1348289153 | AI102: 0.1349426791 | AJ102: 0.1350564429 | AK102: 0.1351702067 | AL102: 0.1352839705 | AM102: 0.1353977343 | AN102: 0.1355114981 | AO102: 0.1356252619 | AP102: 0.1357390257 | AQ102: 0.1358527895 | AR102: 0.1359665534
K103: Res PV - Chicago - Advanced | L103: 0.1543565796 | M103: 0.1549133231 | N103: 0.1554700667 | O103: 0.1560268102 | P103: 0.1565835538 | Q103: 0.1571402974 | R103: 0.1576970409 | S103: 0.1582537845 | T103: 0.158810528 | U103: 0.1593672716 | V103: 0.1599240151 | W103: 0.1604807587 | X103: 0.1610375023 | Y103: 0.1610375023 | Z103: 0.1610375023 | AA103: 0.1610375023 | AB103: 0.1610375023 | AC103: 0.1610375023 | AD103: 0.1610375023 | AE103: 0.1610375023 | AF103: 0.1610375023 | AG103: 0.1610375023 | AH103: 0.1610375023 | AI103: 0.1610375023 | AJ103: 0.1610375023 | AK103: 0.1610375023 | AL103: 0.1610375023 | AM103: 0.1610375023 | AN103: 0.1610375023 | AO103: 0.1610375023 | AP103: 0.1610375023 | AQ103: 0.1610375023 | AR103: 0.1610375023
K104: Res PV - Chicago - Moderate | L104: 0.1543565796 | M104: 0.1545754943 | N104: 0.154794409 | O104: 0.1550133237 | P104: 0.1552322384 | Q104: 0.1554511531 | R104: 0.1556700678 | S104: 0.1558889825 | T104: 0.1561078972 | U104: 0.156326812 | V104: 0.1565457267 | W104: 0.1567646414 | X104: 0.1569835561 | Y104: 0.1571862534 | Z104: 0.1573889507 | AA104: 0.157591648 | AB104: 0.1577943453 | AC104: 0.1579970426 | AD104: 0.1581997399 | AE104: 0.1584024372 | AF104: 0.1586051345 | AG104: 0.1588078319 | AH104: 0.1590105292 | AI104: 0.1592132265 | AJ104: 0.1594159238 | AK104: 0.1596186211 | AL104: 0.1598213184 | AM104: 0.1600240157 | AN104: 0.160226713 | AO104: 0.1604294103 | AP104: 0.1606321076 | AQ104: 0.1608348049 | AR104: 0.1610375023
K105: Res PV - Chicago - Conservative | L105: 0.1543565796 | M105: 0.1543565796 | N105: 0.1543565796 | O105: 0.1543565796 | P105: 0.1543565796 | Q105: 0.1543565796 | R105: 0.1543565796 | S105: 0.1543565796 | T105: 0.1543565796 | U105: 0.1543565796 | V105: 0.1543565796 | W105: 0.1543565796 | X105: 0.1543565796 | Y105: 0.1544879284 | Z105: 0.1546192772 | AA105: 0.1547506261 | AB105: 0.1548819749 | AC105: 0.1550133237 | AD105: 0.1551446725 | AE105: 0.1552760214 | AF105: 0.1554073702 | AG105: 0.155538719 | AH105: 0.1556700678 | AI105: 0.1558014167 | AJ105: 0.1559327655 | AK105: 0.1560641143 | AL105: 0.1561954631 | AM105: 0.156326812 | AN105: 0.1564581608 | AO105: 0.1565895096 | AP105: 0.1567208584 | AQ105: 0.1568522073 | AR105: 0.1569835561
K106: Res PV - Kansas City - Advanced | L106: 0.165191447 | M106: 0.1657872705 | N106: 0.1663830939 | O106: 0.1669789174 | P106: 0.1675747409 | Q106: 0.1681705644 | R106: 0.1687663878 | S106: 0.1693622113 | T106: 0.1699580348 | U106: 0.1705538583 | V106: 0.1711496817 | W106: 0.1717455052 | X106: 0.1723413287 | Y106: 0.1723413287 | Z106: 0.1723413287 | AA106: 0.1723413287 | AB106: 0.1723413287 | AC106: 0.1723413287 | AD106: 0.1723413287 | AE106: 0.1723413287 | AF106: 0.1723413287 | AG106: 0.1723413287 | AH106: 0.1723413287 | AI106: 0.1723413287 | AJ106: 0.1723413287 | AK106: 0.1723413287 | AL106: 0.1723413287 | AM106: 0.1723413287 | AN106: 0.1723413287 | AO106: 0.1723413287 | AP106: 0.1723413287 | AQ106: 0.1723413287 | AR106: 0.1723413287
K107: Res PV - Kansas City - Moderate | L107: 0.165191447 | M107: 0.1654257281 | N107: 0.1656600093 | O107: 0.1658942904 | P107: 0.1661285716 | Q107: 0.1663628528 | R107: 0.1665971339 | S107: 0.1668314151 | T107: 0.1670656962 | U107: 0.1672999774 | V107: 0.1675342585 | W107: 0.1677685397 | X107: 0.1680028208 | Y107: 0.1682197462 | Z107: 0.1684366716 | AA107: 0.168653597 | AB107: 0.1688705224 | AC107: 0.1690874478 | AD107: 0.1693043732 | AE107: 0.1695212986 | AF107: 0.169738224 | AG107: 0.1699551494 | AH107: 0.1701720748 | AI107: 0.1703890001 | AJ107: 0.1706059255 | AK107: 0.1708228509 | AL107: 0.1710397763 | AM107: 0.1712567017 | AN107: 0.1714736271 | AO107: 0.1716905525 | AP107: 0.1719074779 | AQ107: 0.1721244033 | AR107: 0.1723413287
K108: Res PV - Kansas City - Conservative | L108: 0.165191447 | M108: 0.165191447 | N108: 0.165191447 | O108: 0.165191447 | P108: 0.165191447 | Q108: 0.165191447 | R108: 0.165191447 | S108: 0.165191447 | T108: 0.165191447 | U108: 0.165191447 | V108: 0.165191447 | W108: 0.165191447 | X108: 0.165191447 | Y108: 0.1653320157 | Z108: 0.1654725844 | AA108: 0.1656131531 | AB108: 0.1657537218 | AC108: 0.1658942904 | AD108: 0.1660348591 | AE108: 0.1661754278 | AF108: 0.1663159965 | AG108: 0.1664565652 | AH108: 0.1665971339 | AI108: 0.1667377026 | AJ108: 0.1668782713 | AK108: 0.16701884 | AL108: 0.1671594087 | AM108: 0.1672999774 | AN108: 0.1674405461 | AO108: 0.1675811147 | AP108: 0.1677216834 | AQ108: 0.1678622521 | AR108: 0.1680028208
K109: Res PV - Los Angeles - Advanced | L109: 0.1899649346 | M109: 0.1906501127 | N109: 0.1913352908 | O109: 0.192020469 | P109: 0.1927056471 | Q109: 0.1933908252 | R109: 0.1940760034 | S109: 0.1947611815 | T109: 0.1954463597 | U109: 0.1961315378 | V109: 0.1968167159 | W109: 0.1975018941 | X109: 0.1981870722 | Y109: 0.1981870722 | Z109: 0.1981870722 | AA109: 0.1981870722 | AB109: 0.1981870722 | AC109: 0.1981870722 | AD109: 0.1981870722 | AE109: 0.1981870722 | AF109: 0.1981870722 | AG109: 0.1981870722 | AH109: 0.1981870722 | AI109: 0.1981870722 | AJ109: 0.1981870722 | AK109: 0.1981870722 | AL109: 0.1981870722 | AM109: 0.1981870722 | AN109: 0.1981870722 | AO109: 0.1981870722 | AP109: 0.1981870722 | AQ109: 0.1981870722 | AR109: 0.1981870722
K110: Res PV - Los Angeles - Moderate | L110: 0.1899649346 | M110: 0.1902343505 | N110: 0.1905037664 | O110: 0.1907731823 | P110: 0.1910425982 | Q110: 0.1913120141 | R110: 0.19158143 | S110: 0.1918508459 | T110: 0.1921202619 | U110: 0.1923896778 | V110: 0.1926590937 | W110: 0.1929285096 | X110: 0.1931979255 | Y110: 0.1934473828 | Z110: 0.1936968402 | AA110: 0.1939462975 | AB110: 0.1941957548 | AC110: 0.1944452122 | AD110: 0.1946946695 | AE110: 0.1949441268 | AF110: 0.1951935842 | AG110: 0.1954430415 | AH110: 0.1956924988 | AI110: 0.1959419562 | AJ110: 0.1961914135 | AK110: 0.1964408708 | AL110: 0.1966903282 | AM110: 0.1969397855 | AN110: 0.1971892428 | AO110: 0.1974387002 | AP110: 0.1976881575 | AQ110: 0.1979376149 | AR110: 0.1981870722
K111: Res PV - Los Angeles - Conservative | L111: 0.1899649346 | M111: 0.1899649346 | N111: 0.1899649346 | O111: 0.1899649346 | P111: 0.1899649346 | Q111: 0.1899649346 | R111: 0.1899649346 | S111: 0.1899649346 | T111: 0.1899649346 | U111: 0.1899649346 | V111: 0.1899649346 | W111: 0.1899649346 | X111: 0.1899649346 | Y111: 0.1901265841 | Z111: 0.1902882337 | AA111: 0.1904498832 | AB111: 0.1906115328 | AC111: 0.1907731823 | AD111: 0.1909348319 | AE111: 0.1910964814 | AF111: 0.1912581309 | AG111: 0.1914197805 | AH111: 0.19158143 | AI111: 0.1917430796 | AJ111: 0.1919047291 | AK111: 0.1920663787 | AL111: 0.1922280282 | AM111: 0.1923896778 | AN111: 0.1925513273 | AO111: 0.1927129769 | AP111: 0.1928746264 | AQ111: 0.1930362759 | AR111: 0.1931979255
K112: Res PV - Daggett, CA - Advanced | L112: 0.2075095238 | M112: 0.2082579829 | N112: 0.209006442 | O112: 0.2097549011 | P112: 0.2105033603 | Q112: 0.2112518194 | R112: 0.2120002785 | S112: 0.2127487376 | T112: 0.2134971968 | U112: 0.2142456559 | V112: 0.214994115 | W112: 0.2157425741 | X112: 0.2164910332 | Y112: 0.2164910332 | Z112: 0.2164910332 | AA112: 0.2164910332 | AB112: 0.2164910332 | AC112: 0.2164910332 | AD112: 0.2164910332 | AE112: 0.2164910332 | AF112: 0.2164910332 | AG112: 0.2164910332 | AH112: 0.2164910332 | AI112: 0.2164910332 | AJ112: 0.2164910332 | AK112: 0.2164910332 | AL112: 0.2164910332 | AM112: 0.2164910332 | AN112: 0.2164910332 | AO112: 0.2164910332 | AP112: 0.2164910332 | AQ112: 0.2164910332 | AR112: 0.2164910332
K113: Res PV - Daggett, CA - Moderate | L113: 0.2075095238 | M113: 0.2078038221 | N113: 0.2080981205 | O113: 0.2083924188 | P113: 0.2086867172 | Q113: 0.2089810155 | R113: 0.2092753139 | S113: 0.2095696122 | T113: 0.2098639106 | U113: 0.2101582089 | V113: 0.2104525073 | W113: 0.2107468056 | X113: 0.211041104 | Y113: 0.2113136004 | Z113: 0.2115860969 | AA113: 0.2118585934 | AB113: 0.2121310898 | AC113: 0.2124035863 | AD113: 0.2126760828 | AE113: 0.2129485792 | AF113: 0.2132210757 | AG113: 0.2134935721 | AH113: 0.2137660686 | AI113: 0.2140385651 | AJ113: 0.2143110615 | AK113: 0.214583558 | AL113: 0.2148560545 | AM113: 0.2151285509 | AN113: 0.2154010474 | AO113: 0.2156735439 | AP113: 0.2159460403 | AQ113: 0.2162185368 | AR113: 0.2164910332
K114: Res PV - Daggett, CA - Conservative | L114: 0.2075095238 | M114: 0.2075095238 | N114: 0.2075095238 | O114: 0.2075095238 | P114: 0.2075095238 | Q114: 0.2075095238 | R114: 0.2075095238 | S114: 0.2075095238 | T114: 0.2075095238 | U114: 0.2075095238 | V114: 0.2075095238 | W114: 0.2075095238 | X114: 0.2075095238 | Y114: 0.2076861028 | Z114: 0.2078626818 | AA114: 0.2080392608 | AB114: 0.2082158398 | AC114: 0.2083924188 | AD114: 0.2085689978 | AE114: 0.2087455768 | AF114: 0.2089221559 | AG114: 0.2090987349 | AH114: 0.2092753139 | AI114: 0.2094518929 | AJ114: 0.2096284719 | AK114: 0.2098050509 | AL114: 0.2099816299 | AM114: 0.2101582089 | AN114: 0.2103347879 | AO114: 0.2105113669 | AP114: 0.210687946 | AQ114: 0.210864525 | AR114: 0.211041104
L116: 2018 | M116: 2019 | N116: 2020 | O116: 2021 | P116: 2022 | Q116: 2023 | R116: 2024 | S116: 2025 | T116: 2026 | U116: 2027 | V116: 2028 | W116: 2029 | X116: 2030 | Y116: 2031 | Z116: 2032 | AA116: 2033 | AB116: 2034 | AC116: 2035 | AD116: 2036 | AE116: 2037 | AF116: 2038 | AG116: 2039 | AH116: 2040 | AI116: 2041 | AJ116: 2042 | AK116: 2043 | AL116: 2044 | AM116: 2045 | AN116: 2046 | AO116: 2047 | AP116: 2048 | AQ116: 2049 | AR116: 2050
J117: Annual Energy Production (kWh/kW) | K117: Res PV - Seattle - Advanced | L117: =L100*8760 -> 1171.135588 | M117: 1175.359718 | N117: 1179.583848 | O117: 1183.807977 | P117: 1188.032107 | Q117: 1192.256236 | R117: 1196.480366 | S117: 1200.704495 | T117: 1204.928625 | U117: 1209.152755 | V117: 1213.376884 | W117: 1217.601014 | X117: 1221.825143 | Y117: 1221.825143 | Z117: 1221.825143 | AA117: 1221.825143 | AB117: 1221.825143 | AC117: 1221.825143 | AD117: 1221.825143 | AE117: 1221.825143 | AF117: 1221.825143 | AG117: 1221.825143 | AH117: 1221.825143 | AI117: 1221.825143 | AJ117: 1221.825143 | AK117: 1221.825143 | AL117: 1221.825143 | AM117: 1221.825143 | AN117: 1221.825143 | AO117: 1221.825143 | AP117: 1221.825143 | AQ117: 1221.825143 | AR117: 1221.825143
K118: Res PV - Seattle - Moderate | L118: =L101*8760 -> 1171.135588 | M118: 1172.79654 | N118: 1174.457492 | O118: 1176.118443 | P118: 1177.779395 | Q118: 1179.440346 | R118: 1181.101298 | S118: 1182.762249 | T118: 1184.423201 | U118: 1186.084153 | V118: 1187.745104 | W118: 1189.406056 | X118: 1191.067007 | Y118: 1192.604914 | Z118: 1194.142821 | AA118: 1195.680728 | AB118: 1197.218635 | AC118: 1198.756541 | AD118: 1200.294448 | AE118: 1201.832355 | AF118: 1203.370262 | AG118: 1204.908169 | AH118: 1206.446075 | AI118: 1207.983982 | AJ118: 1209.521889 | AK118: 1211.059796 | AL118: 1212.597702 | AM118: 1214.135609 | AN118: 1215.673516 | AO118: 1217.211423 | AP118: 1218.74933 | AQ118: 1220.287236 | AR118: 1221.825143
K119: Res PV - Seattle - Conservative | L119: =L102*8760 -> 1171.135588 | M119: 1171.135588 | N119: 1171.135588 | O119: 1171.135588 | P119: 1171.135588 | Q119: 1171.135588 | R119: 1171.135588 | S119: 1171.135588 | T119: 1171.135588 | U119: 1171.135588 | V119: 1171.135588 | W119: 1171.135588 | X119: 1171.135588 | Y119: 1172.132159 | Z119: 1173.12873 | AA119: 1174.125301 | AB119: 1175.121872 | AC119: 1176.118443 | AD119: 1177.115014 | AE119: 1178.111585 | AF119: 1179.108156 | AG119: 1180.104727 | AH119: 1181.101298 | AI119: 1182.097869 | AJ119: 1183.09444 | AK119: 1184.091011 | AL119: 1185.087582 | AM119: 1186.084153 | AN119: 1187.080724 | AO119: 1188.077295 | AP119: 1189.073865 | AQ119: 1190.070436 | AR119: 1191.067007
K120: Res PV - Chicago - Advanced | L120: =L103*8760 -> 1352.163637 | M120: 1357.040711 | N120: 1361.917784 | O120: 1366.794858 | P120: 1371.671931 | Q120: 1376.549005 | R120: 1381.426078 | S120: 1386.303152 | T120: 1391.180226 | U120: 1396.057299 | V120: 1400.934373 | W120: 1405.811446 | X120: 1410.68852 | Y120: 1410.68852 | Z120: 1410.68852 | AA120: 1410.68852 | AB120: 1410.68852 | AC120: 1410.68852 | AD120: 1410.68852 | AE120: 1410.68852 | AF120: 1410.68852 | AG120: 1410.68852 | AH120: 1410.68852 | AI120: 1410.68852 | AJ120: 1410.68852 | AK120: 1410.68852 | AL120: 1410.68852 | AM120: 1410.68852 | AN120: 1410.68852 | AO120: 1410.68852 | AP120: 1410.68852 | AQ120: 1410.68852 | AR120: 1410.68852
K121: Res PV - Chicago - Moderate | L121: =L104*8760 -> 1352.163637 | M121: 1354.08133 | N121: 1355.999023 | O121: 1357.916716 | P121: 1359.834409 | Q121: 1361.752101 | R121: 1363.669794 | S121: 1365.587487 | T121: 1367.50518 | U121: 1369.422873 | V121: 1371.340566 | W121: 1373.258258 | X121: 1375.175951 | Y121: 1376.95158 | Z121: 1378.727208 | AA121: 1380.502837 | AB121: 1382.278465 | AC121: 1384.054093 | AD121: 1385.829722 | AE121: 1387.60535 | AF121: 1389.380979 | AG121: 1391.156607 | AH121: 1392.932235 | AI121: 1394.707864 | AJ121: 1396.483492 | AK121: 1398.259121 | AL121: 1400.034749 | AM121: 1401.810378 | AN121: 1403.586006 | AO121: 1405.361634 | AP121: 1407.137263 | AQ121: 1408.912891 | AR121: 1410.68852
K122: Res PV - Chicago - Conservative | L122: =L105*8760 -> 1352.163637 | M122: 1352.163637 | N122: 1352.163637 | O122: 1352.163637 | P122: 1352.163637 | Q122: 1352.163637 | R122: 1352.163637 | S122: 1352.163637 | T122: 1352.163637 | U122: 1352.163637 | V122: 1352.163637 | W122: 1352.163637 | X122: 1352.163637 | Y122: 1353.314253 | Z122: 1354.464869 | AA122: 1355.615484 | AB122: 1356.7661 | AC122: 1357.916716 | AD122: 1359.067331 | AE122: 1360.217947 | AF122: 1361.368563 | AG122: 1362.519178 | AH122: 1363.669794 | AI122: 1364.82041 | AJ122: 1365.971026 | AK122: 1367.121641 | AL122: 1368.272257 | AM122: 1369.422873 | AN122: 1370.573488 | AO122: 1371.724104 | AP122: 1372.87472 | AQ122: 1374.025336 | AR122: 1375.175951
K123: Res PV - Kansas City - Advanced | L123: =L106*8760 -> 1447.077076 | M123: 1452.296489 | N123: 1457.515903 | O123: 1462.735317 | P123: 1467.95473 | Q123: 1473.174144 | R123: 1478.393557 | S123: 1483.612971 | T123: 1488.832385 | U123: 1494.051798 | V123: 1499.271212 | W123: 1504.490626 | X123: 1509.710039 | Y123: 1509.710039 | Z123: 1509.710039 | AA123: 1509.710039 | AB123: 1509.710039 | AC123: 1509.710039 | AD123: 1509.710039 | AE123: 1509.710039 | AF123: 1509.710039 | AG123: 1509.710039 | AH123: 1509.710039 | AI123: 1509.710039 | AJ123: 1509.710039 | AK123: 1509.710039 | AL123: 1509.710039 | AM123: 1509.710039 | AN123: 1509.710039 | AO123: 1509.710039 | AP123: 1509.710039 | AQ123: 1509.710039 | AR123: 1509.710039
K124: Res PV - Kansas City - Moderate | L124: =L107*8760 -> 1447.077076 | M124: 1449.129379 | N124: 1451.181681 | O124: 1453.233984 | P124: 1455.286287 | Q124: 1457.33859 | R124: 1459.390893 | S124: 1461.443196 | T124: 1463.495499 | U124: 1465.547802 | V124: 1467.600105 | W124: 1469.652407 | X124: 1471.70471 | Y124: 1473.604977 | Z124: 1475.505243 | AA124: 1477.40551 | AB124: 1479.305776 | AC124: 1481.206043 | AD124: 1483.106309 | AE124: 1485.006575 | AF124: 1486.906842 | AG124: 1488.807108 | AH124: 1490.707375 | AI124: 1492.607641 | AJ124: 1494.507908 | AK124: 1496.408174 | AL124: 1498.308441 | AM124: 1500.208707 | AN124: 1502.108974 | AO124: 1504.00924 | AP124: 1505.909506 | AQ124: 1507.809773 | AR124: 1509.710039
K125: Res PV - Kansas City - Conservative | L125: =L108*8760 -> 1447.077076 | M125: 1447.077076 | N125: 1447.077076 | O125: 1447.077076 | P125: 1447.077076 | Q125: 1447.077076 | R125: 1447.077076 | S125: 1447.077076 | T125: 1447.077076 | U125: 1447.077076 | V125: 1447.077076 | W125: 1447.077076 | X125: 1447.077076 | Y125: 1448.308457 | Z125: 1449.539839 | AA125: 1450.771221 | AB125: 1452.002603 | AC125: 1453.233984 | AD125: 1454.465366 | AE125: 1455.696748 | AF125: 1456.92813 | AG125: 1458.159511 | AH125: 1459.390893 | AI125: 1460.622275 | AJ125: 1461.853656 | AK125: 1463.085038 | AL125: 1464.31642 | AM125: 1465.547802 | AN125: 1466.779183 | AO125: 1468.010565 | AP125: 1469.241947 | AQ125: 1470.473329 | AR125: 1471.70471
K126: Res PV - Los Angeles - Advanced | L126: =L109*8760 -> 1664.092827 | M126: 1670.094987 | N126: 1676.097148 | O126: 1682.099308 | P126: 1688.101469 | Q126: 1694.103629 | R126: 1700.10579 | S126: 1706.10795 | T126: 1712.110111 | U126: 1718.112271 | V126: 1724.114431 | W126: 1730.116592 | X126: 1736.118752 | Y126: 1736.118752 | Z126: 1736.118752 | AA126: 1736.118752 | AB126: 1736.118752 | AC126: 1736.118752 | AD126: 1736.118752 | AE126: 1736.118752 | AF126: 1736.118752 | AG126: 1736.118752 | AH126: 1736.118752 | AI126: 1736.118752 | AJ126: 1736.118752 | AK126: 1736.118752 | AL126: 1736.118752 | AM126: 1736.118752 | AN126: 1736.118752 | AO126: 1736.118752 | AP126: 1736.118752 | AQ126: 1736.118752 | AR126: 1736.118752
K127: Res PV - Los Angeles - Moderate | L127: =L110*8760 -> 1664.092827 | M127: 1666.45291 | N127: 1668.812994 | O127: 1671.173077 | P127: 1673.53316 | Q127: 1675.893244 | R127: 1678.253327 | S127: 1680.61341 | T127: 1682.973494 | U127: 1685.333577 | V127: 1687.693661 | W127: 1690.053744 | X127: 1692.413827 | Y127: 1694.599074 | Z127: 1696.78432 | AA127: 1698.969566 | AB127: 1701.154812 | AC127: 1703.340059 | AD127: 1705.525305 | AE127: 1707.710551 | AF127: 1709.895797 | AG127: 1712.081044 | AH127: 1714.26629 | AI127: 1716.451536 | AJ127: 1718.636782 | AK127: 1720.822029 | AL127: 1723.007275 | AM127: 1725.192521 | AN127: 1727.377767 | AO127: 1729.563014 | AP127: 1731.74826 | AQ127: 1733.933506 | AR127: 1736.118752
K128: Res PV - Los Angeles - Conservative | L128: =L111*8760 -> 1664.092827 | M128: 1664.092827 | N128: 1664.092827 | O128: 1664.092827 | P128: 1664.092827 | Q128: 1664.092827 | R128: 1664.092827 | S128: 1664.092827 | T128: 1664.092827 | U128: 1664.092827 | V128: 1664.092827 | W128: 1664.092827 | X128: 1664.092827 | Y128: 1665.508877 | Z128: 1666.924927 | AA128: 1668.340977 | AB128: 1669.757027 | AC128: 1671.173077 | AD128: 1672.589127 | AE128: 1674.005177 | AF128: 1675.421227 | AG128: 1676.837277 | AH128: 1678.253327 | AI128: 1679.669377 | AJ128: 1681.085427 | AK128: 1682.501477 | AL128: 1683.917527 | AM128: 1685.333577 | AN128: 1686.749627 | AO128: 1688.165677 | AP128: 1689.581727 | AQ128: 1690.997777 | AR128: 1692.413827
K129: Res PV - Daggett, CA - Advanced | L129: =L112*8760 -> 1817.783428 | M129: 1824.33993 | N129: 1830.896432 | O129: 1837.452934 | P129: 1844.009436 | Q129: 1850.565938 | R129: 1857.12244 | S129: 1863.678942 | T129: 1870.235444 | U129: 1876.791945 | V129: 1883.348447 | W129: 1889.904949 | X129: 1896.461451 | Y129: 1896.461451 | Z129: 1896.461451 | AA129: 1896.461451 | AB129: 1896.461451 | AC129: 1896.461451 | AD129: 1896.461451 | AE129: 1896.461451 | AF129: 1896.461451 | AG129: 1896.461451 | AH129: 1896.461451 | AI129: 1896.461451 | AJ129: 1896.461451 | AK129: 1896.461451 | AL129: 1896.461451 | AM129: 1896.461451 | AN129: 1896.461451 | AO129: 1896.461451 | AP129: 1896.461451 | AQ129: 1896.461451 | AR129: 1896.461451
K130: Res PV - Daggett, CA - Moderate | L130: =L113*8760 -> 1817.783428 | M130: 1820.361482 | N130: 1822.939535 | O130: 1825.517589 | P130: 1828.095642 | Q130: 1830.673696 | R130: 1833.25175 | S130: 1835.829803 | T130: 1838.407857 | U130: 1840.98591 | V130: 1843.563964 | W130: 1846.142017 | X130: 1848.720071 | Y130: 1851.10714 | Z130: 1853.494209 | AA130: 1855.881278 | AB130: 1858.268347 | AC130: 1860.655416 | AD130: 1863.042485 | AE130: 1865.429554 | AF130: 1867.816623 | AG130: 1870.203692 | AH130: 1872.590761 | AI130: 1874.97783 | AJ130: 1877.364899 | AK130: 1879.751968 | AL130: 1882.139037 | AM130: 1884.526106 | AN130: 1886.913175 | AO130: 1889.300244 | AP130: 1891.687313 | AQ130: 1894.074382 | AR130: 1896.461451
K131: Res PV - Daggett, CA - Conservative | L131: =L114*8760 -> 1817.783428 | M131: 1817.783428 | N131: 1817.783428 | O131: 1817.783428 | P131: 1817.783428 | Q131: 1817.783428 | R131: 1817.783428 | S131: 1817.783428 | T131: 1817.783428 | U131: 1817.783428 | V131: 1817.783428 | W131: 1817.783428 | X131: 1817.783428 | Y131: 1819.33026 | Z131: 1820.877092 | AA131: 1822.423925 | AB131: 1823.970757 | AC131: 1825.517589 | AD131: 1827.064421 | AE131: 1828.611253 | AF131: 1830.158085 | AG131: 1831.704917 | AH131: 1833.25175 | AI131: 1834.798582 | AJ131: 1836.345414 | AK131: 1837.892246 | AL131: 1839.439078 | AM131: 1840.98591 | AN131: 1842.532742 | AO131: 1844.079574 | AP131: 1845.626407 | AQ131: 1847.173239 | AR131: 1848.720071
L133: 2018 | M133: 2019 | N133: 2020 | O133: 2021 | P133: 2022 | Q133: 2023 | R133: 2024 | S133: 2025 | T133: 2026 | U133: 2027 | V133: 2028 | W133: 2029 | X133: 2030 | Y133: 2031 | Z133: 2032 | AA133: 2033 | AB133: 2034 | AC133: 2035 | AD133: 2036 | AE133: 2037 | AF133: 2038 | AG133: 2039 | AH133: 2040 | AI133: 2041 | AJ133: 2042 | AK133: 2043 | AL133: 2044 | AM133: 2045 | AN133: 2046 | AO133: 2047 | AP133: 2048 | AQ133: 2049 | AR133: 2050
